Workbook

Sheet Berker
AJ3: Série | AK3: Cor | AM3: Quadro Simples | AN3: preço | AO3: grupo | AP3: desconto | AR3: 161
AJ4: S.1 | AK4: branco mate | AL4: =CONCATENATE(AJ4,AK4) -> S.1branco mate | AM4: 10119909 | AN4: =VLOOKUP(AM4,'Tabela de preços'!B:F,5,0)*(1-AP4) -> 1.35 | AO4: =VLOOKUP(AM4,'Tabela de preços'!B:G,6,0) -> 23 | AP4: =VLOOKUP(AO4,$B$169:$C$175,2,0) -> 0 | AQ4: =VLOOKUP(AO4,B169:C175,2,0) -> 0 | AR4: 1037
AJ5: S.1 | AK5: branco | AL5: =CONCATENATE(AJ5,AK5) -> S.1branco | AM5: 10118989 | AN5: =VLOOKUP(AM5,'Tabela de preços'!B:F,5,0)*(1-AP5) -> 1.35 | AO5: =VLOOKUP(AM5,'Tabela de preços'!B:G,6,0) -> 23 | AP5: =VLOOKUP(AO5,$B$169:$C$175,2,0) -> 0 | AR5: 1040
AJ6: S.1 | AK6: creme | AL6: S.1creme | AM6: 10118982 | AN6: =VLOOKUP(AM6,'Tabela de preços'!B:F,5,0)*(1-AP6) -> 1.35 | AO6: =VLOOKUP(AM6,'Tabela de preços'!B:G,6,0) -> 23 | AP6: 0 | AR6: 1061
AJ7: S.1 | AK7: antracite mate | AL7: S.1antracite mate | AM7: 10119949 | AN7: =VLOOKUP(AM7,'Tabela de preços'!B:F,5,0)*(1-AP7) -> 2.87 | AO7: =VLOOKUP(AM7,'Tabela de preços'!B:G,6,0) -> 23 | AP7: 0 | AR7: 1090
AJ8: S.1 | AK8: alumínio mate | AL8: S.1alumínio mate | AM8: 10119939 | AN8: =VLOOKUP(AM8,'Tabela de preços'!B:F,5,0)*(1-AP8) -> 4.16 | AO8: =VLOOKUP(AM8,'Tabela de preços'!B:G,6,0) -> 23 | AP8: 0 | AR8: 1091
AJ9: B.3 | AK9: alumínio c/ branco mate | AL9: B.3alumínio c/ branco mate | AM9: 10113904 | AN9: =VLOOKUP(AM9,'Tabela de preços'!B:F,5,0)*(1-AP9) -> 16.75 | AO9: =VLOOKUP(AM9,'Tabela de preços'!B:G,6,0) -> 23 | AP9: 0 | AR9: 1094
N10: Mecanismo | Q10: Centro | T10: Quadro | AJ10: B.3 | AK10: alumínio c/ antracite mate | AL10: B.3alumínio c/ antracite mate | AM10: 10113004 | AN10: =VLOOKUP(AM10,'Tabela de preços'!B:F,5,0)*(1-AP10) -> 17.1 | AO10: =VLOOKUP(AM10,'Tabela de preços'!B:G,6,0) -> 23 | AP10: 0 | AR10: 1095
K11: Desconto | L11: Preço Líquido | M11: Preço TABELA | N11: P.T. Mecanismo | O11: Grupo | P11: V.Líq. Unit. | Q11: P.T. Centro | R11: Grupo | S11: V.Líq. Unit. | T11: P.T. Quadro | U11: Grupo | V11: V.Líq. Unit. | W11: P. Líquido total | AJ11: B.3 | AK11: dourado c/ branco mate | AL11: B.3dourado c/ branco mate | AM11: 10113046 | AN11: =VLOOKUP(AM11,'Tabela de preços'!B:F,5,0)*(1-AP11) -> 19.21 | AO11: =VLOOKUP(AM11,'Tabela de preços'!B:G,6,0) -> 23 | AP11: 0 | AR11: 1102
AJ12: B.3 | AK12: dourado c/ antracite mate | AL12: B.3dourado c/ antracite mate | AM12: 10113016 | AN12: =VLOOKUP(AM12,'Tabela de preços'!B:F,5,0)*(1-AP12) -> 19.54 | AO12: =VLOOKUP(AM12,'Tabela de preços'!B:G,6,0) -> 23 | AP12: 0 | AR12: 1220
K13: =J114-L13 -> 0 | L13: =W13 -> 0 | M13: =B114*(N13+Q13+T13) -> 0 | N13: =IF(D114<>"",IFERROR(VLOOKUP(D114,'Tabela de preços'!$B:$F,5,0),0),0) -> 0 | O13: =IF(D114<>"",IFERROR(VLOOKUP(D114,'Tabela de preços'!$B:$G,6,0),0),0) -> 0 | P13: =IF(D114<>"",N13-N13*IFERROR(VLOOKUP(O13,$B$169:$C$175,2),0),0) -> 0 | Q13: =IF(F114<>"",IFERROR(VLOOKUP(F114,'Tabela de preços'!$B:$F,5,0),0),0) -> 0 | R13: =IF(F114<>"",IFERROR(VLOOKUP(F114,'Tabela de preços'!$B:$G,6,0),0),0) -> 0 | S13: =IF(G114<>"",Q13-Q13*IFERROR(VLOOKUP(R13,$B$169:$C$175,2),0),0) -> 0 | T13: =IF(H114<>"",IFERROR(VLOOKUP(H114,'Tabela de preços'!$B:$F,5,0),0),0) -> 0 | U13: =IF(H114<>"",IFERROR(VLOOKUP(H114,'Tabela de preços'!$B:$G,6,0),0),0) -> 0 | V13: =IF(J114<>"",T13-T13*IFERROR(VLOOKUP(U13,$B$169:$C$175,2),0),0) -> 0 | W13: =B114*(V13+S13+P13) -> 0 | AJ13: B.3 | AK13: preto c/ branco mate | AL13: B.3preto c/ branco mate | AM13: 10113025 | AN13: =VLOOKUP(AM13,'Tabela de preços'!B:F,5,0)*(1-AP13) -> 19.21 | AO13: =VLOOKUP(AM13,'Tabela de preços'!B:G,6,0) -> 23 | AP13: 0 | AR13: 1221
K14: 0 | L14: =W14 -> 0 | M14: 0 | N14: =IF(D115<>"",IFERROR(VLOOKUP(D115,'Tabela de preços'!$B:$F,5,0),0),0) -> 0 | O14: =IF(D115<>"",IFERROR(VLOOKUP(D115,'Tabela de preços'!$B:$G,6,0),0),0) -> 0 | P14: 0 | Q14: =IF(F115<>"",IFERROR(VLOOKUP(F115,'Tabela de preços'!$B:$F,5,0),0),0) -> 0 | R14: =IF(F115<>"",IFERROR(VLOOKUP(F115,'Tabela de preços'!$B:$G,6,0),0),0) -> 0 | S14: 0 | T14: =IF(H115<>"",IFERROR(VLOOKUP(H115,'Tabela de preços'!$B:$F,5,0),0),0) -> 0 | U14: =IF(H115<>"",IFERROR(VLOOKUP(H115,'Tabela de preços'!$B:$G,6,0),0),0) -> 0 | V14: 0 | W14: 0 | AJ14: B.3 | AK14: preto c/ antracite mate | AL14: B.3preto c/ antracite mate | AM14: 10113005 | AN14: =VLOOKUP(AM14,'Tabela de preços'!B:F,5,0)*(1-AP14) -> 19.54 | AO14: =VLOOKUP(AM14,'Tabela de preços'!B:G,6,0) -> 23 | AP14: 0 | AR14: 1222
K15: 0 | L15: 0 | M15: 0 | N15: =IF(D116<>"",IFERROR(VLOOKUP(D116,'Tabela de preços'!$B:$F,5,0),0),0) -> 0 | O15: =IF(D116<>"",IFERROR(VLOOKUP(D116,'Tabela de preços'!$B:$G,6,0),0),0) -> 0 | P15: 0 | Q15: =IF(F116<>"",IFERROR(VLOOKUP(F116,'Tabela de preços'!$B:$F,5,0),0),0) -> 0 | R15: =IF(F116<>"",IFERROR(VLOOKUP(F116,'Tabela de preços'!$B:$G,6,0),0),0) -> 0 | S15: 0 | T15: =IF(H116<>"",IFERROR(VLOOKUP(H116,'Tabela de preços'!$B:$F,5,0),0),0) -> 0 | U15: =IF(H116<>"",IFERROR(VLOOKUP(H116,'Tabela de preços'!$B:$G,6,0),0),0) -> 0 | V15: 0 | W15: 0 | AJ15: B.3 | AK15: encarnado c/ branco mate | AL15: B.3encarnado c/ branco mate | AM15: 10113022 | AN15: =VLOOKUP(AM15,'Tabela de preços'!B:F,5,0)*(1-AP15) -> 19.21 | AO15: =VLOOKUP(AM15,'Tabela de preços'!B:G,6,0) -> 23 | AP15: 0 | AR15: 1225
K16: 0 | L16: 0 | M16: 0 | N16: =IF(D117<>"",IFERROR(VLOOKUP(D117,'Tabela de preços'!$B:$F,5,0),0),0) -> 0 | O16: =IF(D117<>"",IFERROR(VLOOKUP(D117,'Tabela de preços'!$B:$G,6,0),0),0) -> 0 | P16: 0 | Q16: =IF(F117<>"",IFERROR(VLOOKUP(F117,'Tabela de preços'!$B:$F,5,0),0),0) -> 0 | R16: =IF(F117<>"",IFERROR(VLOOKUP(F117,'Tabela de preços'!$B:$G,6,0),0),0) -> 0 | S16: 0 | T16: =IF(H117<>"",IFERROR(VLOOKUP(H117,'Tabela de preços'!$B:$F,5,0),0),0) -> 0 | U16: =IF(H117<>"",IFERROR(VLOOKUP(H117,'Tabela de preços'!$B:$G,6,0),0),0) -> 0 | V16: 0 | W16: 0 | AJ16: B.3 | AK16: encarnado c/ antracite mate | AL16: B.3encarnado c/ antracite mate | AM16: 10113012 | AN16: =VLOOKUP(AM16,'Tabela de preços'!B:F,5,0)*(1-AP16) -> 19.54 | AO16: =VLOOKUP(AM16,'Tabela de preços'!B:G,6,0) -> 23 | AP16: 0 | AR16: 1226
K17: 0 | L17: 0 | M17: 0 | N17: =IF(D118<>"",IFERROR(VLOOKUP(D118,'Tabela de preços'!$B:$F,5,0),0),0) -> 0 | O17: =IF(D118<>"",IFERROR(VLOOKUP(D118,'Tabela de preços'!$B:$G,6,0),0),0) -> 0 | P17: 0 | Q17: =IF(F118<>"",IFERROR(VLOOKUP(F118,'Tabela de preços'!$B:$F,5,0),0),0) -> 0 | R17: =IF(F118<>"",IFERROR(VLOOKUP(F118,'Tabela de preços'!$B:$G,6,0),0),0) -> 0 | S17: 0 | T17: =IF(H118<>"",IFERROR(VLOOKUP(H118,'Tabela de preços'!$B:$F,5,0),0),0) -> 0 | U17: =IF(H118<>"",IFERROR(VLOOKUP(H118,'Tabela de preços'!$B:$G,6,0),0),0) -> 0 | V17: 0 | W17: 0 | AJ17: B.3 | AK17: castanho c/ branco mate | AL17: B.3castanho c/ branco mate | AM17: 10113021 | AN17: =VLOOKUP(AM17,'Tabela de preços'!B:F,5,0)*(1-AP17) -> 19.21 | AO17: =VLOOKUP(AM17,'Tabela de preços'!B:G,6,0) -> 23 | AP17: 0 | AR17: 1227
K18: 0 | L18: 0 | M18: 0 | N18: =IF(D119<>"",IFERROR(VLOOKUP(D119,'Tabela de preços'!$B:$F,5,0),0),0) -> 0 | O18: =IF(D119<>"",IFERROR(VLOOKUP(D119,'Tabela de preços'!$B:$G,6,0),0),0) -> 0 | P18: 0 | Q18: =IF(F119<>"",IFERROR(VLOOKUP(F119,'Tabela de preços'!$B:$F,5,0),0),0) -> 0 | R18: =IF(F119<>"",IFERROR(VLOOKUP(F119,'Tabela de preços'!$B:$G,6,0),0),0) -> 0 | S18: 0 | T18: =IF(H119<>"",IFERROR(VLOOKUP(H119,'Tabela de preços'!$B:$F,5,0),0),0) -> 0 | U18: =IF(H119<>"",IFERROR(VLOOKUP(H119,'Tabela de preços'!$B:$G,6,0),0),0) -> 0 | V18: 0 | W18: 0 | AJ18: B.3 | AK18: castanho c/ antracite mate | AL18: B.3castanho c/ antracite mate | AM18: 10113001 | AN18: =VLOOKUP(AM18,'Tabela de preços'!B:F,5,0)*(1-AP18) -> 19.54 | AO18: =VLOOKUP(AM18,'Tabela de preços'!B:G,6,0) -> 23 | AP18: 0 | AR18: 1229
K19: 0 | L19: 0 | M19: 0 | N19: =IF(D120<>"",IFERROR(VLOOKUP(D120,'Tabela de preços'!$B:$F,5,0),0),0) -> 0 | O19: =IF(D120<>"",IFERROR(VLOOKUP(D120,'Tabela de preços'!$B:$G,6,0),0),0) -> 0 | P19: 0 | Q19: =IF(F120<>"",IFERROR(VLOOKUP(F120,'Tabela de preços'!$B:$F,5,0),0),0) -> 0 | R19: =IF(F120<>"",IFERROR(VLOOKUP(F120,'Tabela de preços'!$B:$G,6,0),0),0) -> 0 | S19: 0 | T19: =IF(H120<>"",IFERROR(VLOOKUP(H120,'Tabela de preços'!$B:$F,5,0),0),0) -> 0 | U19: =IF(H120<>"",IFERROR(VLOOKUP(H120,'Tabela de preços'!$B:$G,6,0),0),0) -> 0 | V19: 0 | W19: 0 | AJ19: B.7 | AK19: branco mate | AL19: B.7branco mate | AM19: 10116919 | AN19: =VLOOKUP(AM19,'Tabela de preços'!B:F,5,0)*(1-AP19) -> 6.68 | AO19: =VLOOKUP(AM19,'Tabela de preços'!B:G,6,0) -> 23 | AP19: 0 | AR19: 1230
K20: 0 | L20: 0 | M20: 0 | N20: =IF(D121<>"",IFERROR(VLOOKUP(D121,'Tabela de preços'!$B:$F,5,0),0),0) -> 0 | O20: =IF(D121<>"",IFERROR(VLOOKUP(D121,'Tabela de preços'!$B:$G,6,0),0),0) -> 0 | P20: 0 | Q20: =IF(F121<>"",IFERROR(VLOOKUP(F121,'Tabela de preços'!$B:$F,5,0),0),0) -> 0 | R20: =IF(F121<>"",IFERROR(VLOOKUP(F121,'Tabela de preços'!$B:$G,6,0),0),0) -> 0 | S20: 0 | T20: =IF(H121<>"",IFERROR(VLOOKUP(H121,'Tabela de preços'!$B:$F,5,0),0),0) -> 0 | U20: =IF(H121<>"",IFERROR(VLOOKUP(H121,'Tabela de preços'!$B:$G,6,0),0),0) -> 0 | V20: 0 | W20: 0 | AJ20: B.7 | AK20: antracite mate | AL20: B.7antracite mate | AM20: 10116626 | AN20: =VLOOKUP(AM20,'Tabela de preços'!B:F,5,0)*(1-AP20) -> 7.14 | AO20: =VLOOKUP(AM20,'Tabela de preços'!B:G,6,0) -> 23 | AP20: 0 | AR20: 1231
K21: 0 | L21: 0 | M21: 0 | N21: =IF(D122<>"",IFERROR(VLOOKUP(D122,'Tabela de preços'!$B:$F,5,0),0),0) -> 0 | O21: =IF(D122<>"",IFERROR(VLOOKUP(D122,'Tabela de preços'!$B:$G,6,0),0),0) -> 0 | P21: 0 | Q21: =IF(F122<>"",IFERROR(VLOOKUP(F122,'Tabela de preços'!$B:$F,5,0),0),0) -> 0 | R21: =IF(F122<>"",IFERROR(VLOOKUP(F122,'Tabela de preços'!$B:$G,6,0),0),0) -> 0 | S21: 0 | T21: =IF(H122<>"",IFERROR(VLOOKUP(H122,'Tabela de preços'!$B:$F,5,0),0),0) -> 0 | U21: =IF(H122<>"",IFERROR(VLOOKUP(H122,'Tabela de preços'!$B:$G,6,0),0),0) -> 0 | V21: 0 | W21: 0 | AJ21: B.7 | AK21: alumínio mate | AL21: B.7alumínio mate | AM21: 10116424 | AN21: =VLOOKUP(AM21,'Tabela de preços'!B:F,5,0)*(1-AP21) -> 9.43 | AO21: =VLOOKUP(AM21,'Tabela de preços'!B:G,6,0) -> 23 | AP21: 0 | AR21: 1232
K22: 0 | L22: 0 | M22: 0 | N22: =IF(D123<>"",IFERROR(VLOOKUP(D123,'Tabela de preços'!$B:$F,5,0),0),0) -> 0 | O22: =IF(D123<>"",IFERROR(VLOOKUP(D123,'Tabela de preços'!$B:$G,6,0),0),0) -> 0 | P22: 0 | Q22: =IF(F123<>"",IFERROR(VLOOKUP(F123,'Tabela de preços'!$B:$F,5,0),0),0) -> 0 | R22: =IF(F123<>"",IFERROR(VLOOKUP(F123,'Tabela de preços'!$B:$G,6,0),0),0) -> 0 | S22: 0 | T22: =IF(H123<>"",IFERROR(VLOOKUP(H123,'Tabela de preços'!$B:$F,5,0),0),0) -> 0 | U22: =IF(H123<>"",IFERROR(VLOOKUP(H123,'Tabela de preços'!$B:$G,6,0),0),0) -> 0 | V22: 0 | W22: 0 | AJ22: B.7 | AK22: Vidro c/ branco mate | AL22: B.7Vidro c/ branco mate | AM22: 10116909 | AN22: =VLOOKUP(AM22,'Tabela de preços'!B:F,5,0)*(1-AP22) -> 27.36 | AO22: =VLOOKUP(AM22,'Tabela de preços'!B:G,6,0) -> 23 | AP22: 0 | AR22: 1279
K23: 0 | L23: 0 | M23: 0 | N23: =IF(D124<>"",IFERROR(VLOOKUP(D124,'Tabela de preços'!$B:$F,5,0),0),0) -> 0 | O23: =IF(D124<>"",IFERROR(VLOOKUP(D124,'Tabela de preços'!$B:$G,6,0),0),0) -> 0 | P23: 0 | Q23: =IF(F124<>"",IFERROR(VLOOKUP(F124,'Tabela de preços'!$B:$F,5,0),0),0) -> 0 | R23: =IF(F124<>"",IFERROR(VLOOKUP(F124,'Tabela de preços'!$B:$G,6,0),0),0) -> 0 | S23: 0 | T23: =IF(H124<>"",IFERROR(VLOOKUP(H124,'Tabela de preços'!$B:$F,5,0),0),0) -> 0 | U23: =IF(H124<>"",IFERROR(VLOOKUP(H124,'Tabela de preços'!$B:$G,6,0),0),0) -> 0 | V23: 0 | W23: 0 | AJ23: B.7 | AK23: Vidro c/ antracite mate | AL23: B.7Vidro c/ antracite mate | AM23: 10116616 | AN23: =VLOOKUP(AM23,'Tabela de preços'!B:F,5,0)*(1-AP23) -> 27.36 | AO23: =VLOOKUP(AM23,'Tabela de preços'!B:G,6,0) -> 23 | AP23: 0 | AR23: 1280
K24: 0 | L24: 0 | M24: 0 | N24: =IF(D125<>"",IFERROR(VLOOKUP(D125,'Tabela de preços'!$B:$F,5,0),0),0) -> 0 | O24: =IF(D125<>"",IFERROR(VLOOKUP(D125,'Tabela de preços'!$B:$G,6,0),0),0) -> 0 | P24: 0 | Q24: =IF(F125<>"",IFERROR(VLOOKUP(F125,'Tabela de preços'!$B:$F,5,0),0),0) -> 0 | R24: =IF(F125<>"",IFERROR(VLOOKUP(F125,'Tabela de preços'!$B:$G,6,0),0),0) -> 0 | S24: 0 | T24: =IF(H125<>"",IFERROR(VLOOKUP(H125,'Tabela de preços'!$B:$F,5,0),0),0) -> 0 | U24: =IF(H125<>"",IFERROR(VLOOKUP(H125,'Tabela de preços'!$B:$G,6,0),0),0) -> 0 | V24: 0 | W24: 0 | AJ24: B.7 | AK24: Vidro c/ alumínio mate | AL24: B.7Vidro c/ alumínio mate | AM24: 10116414 | AN24: =VLOOKUP(AM24,'Tabela de preços'!B:F,5,0)*(1-AP24) -> 27.36 | AO24: =VLOOKUP(AM24,'Tabela de preços'!B:G,6,0) -> 23 | AP24: 0 | AR24: 1281
K25: 0 | L25: 0 | M25: 0 | N25: =IF(D126<>"",IFERROR(VLOOKUP(D126,'Tabela de preços'!$B:$F,5,0),0),0) -> 0 | O25: =IF(D126<>"",IFERROR(VLOOKUP(D126,'Tabela de preços'!$B:$G,6,0),0),0) -> 0 | P25: 0 | Q25: =IF(F126<>"",IFERROR(VLOOKUP(F126,'Tabela de preços'!$B:$F,5,0),0),0) -> 0 | R25: =IF(F126<>"",IFERROR(VLOOKUP(F126,'Tabela de preços'!$B:$G,6,0),0),0) -> 0 | S25: 0 | T25: =IF(H126<>"",IFERROR(VLOOKUP(H126,'Tabela de preços'!$B:$F,5,0),0),0) -> 0 | U25: =IF(H126<>"",IFERROR(VLOOKUP(H126,'Tabela de preços'!$B:$G,6,0),0),0) -> 0 | V25: 0 | W25: 0 | AJ25: B.7 | AK25: Alumínio c/ branco mate | AL25: B.7Alumínio c/ branco mate | AM25: 10116914 | AN25: =VLOOKUP(AM25,'Tabela de preços'!B:F,5,0)*(1-AP25) -> 31.97 | AO25: =VLOOKUP(AM25,'Tabela de preços'!B:G,6,0) -> 23 | AP25: 0 | AR25: 1282
K26: 0 | L26: 0 | M26: 0 | N26: =IF(D127<>"",IFERROR(VLOOKUP(D127,'Tabela de preços'!$B:$F,5,0),0),0) -> 0 | O26: =IF(D127<>"",IFERROR(VLOOKUP(D127,'Tabela de preços'!$B:$G,6,0),0),0) -> 0 | P26: 0 | Q26: =IF(F127<>"",IFERROR(VLOOKUP(F127,'Tabela de preços'!$B:$F,5,0),0),0) -> 0 | R26: =IF(F127<>"",IFERROR(VLOOKUP(F127,'Tabela de preços'!$B:$G,6,0),0),0) -> 0 | S26: 0 | T26: =IF(H127<>"",IFERROR(VLOOKUP(H127,'Tabela de preços'!$B:$F,5,0),0),0) -> 0 | U26: =IF(H127<>"",IFERROR(VLOOKUP(H127,'Tabela de preços'!$B:$G,6,0),0),0) -> 0 | V26: 0 | W26: 0 | AJ26: B.7 | AK26: Alumínio c/ antracite mate | AL26: B.7Alumínio c/ antracite mate | AM26: 10116904 | AN26: =VLOOKUP(AM26,'Tabela de preços'!B:F,5,0)*(1-AP26) -> 31.97 | AO26: =VLOOKUP(AM26,'Tabela de preços'!B:G,6,0) -> 23 | AP26: 0 | AR26: 1283
K27: 0 | L27: 0 | M27: 0 | N27: =IF(D128<>"",IFERROR(VLOOKUP(D128,'Tabela de preços'!$B:$F,5,0),0),0) -> 0 | O27: =IF(D128<>"",IFERROR(VLOOKUP(D128,'Tabela de preços'!$B:$G,6,0),0),0) -> 0 | P27: 0 | Q27: =IF(F128<>"",IFERROR(VLOOKUP(F128,'Tabela de preços'!$B:$F,5,0),0),0) -> 0 | R27: =IF(F128<>"",IFERROR(VLOOKUP(F128,'Tabela de preços'!$B:$G,6,0),0),0) -> 0 | S27: 0 | T27: =IF(H128<>"",IFERROR(VLOOKUP(H128,'Tabela de preços'!$B:$F,5,0),0),0) -> 0 | U27: =IF(H128<>"",IFERROR(VLOOKUP(H128,'Tabela de preços'!$B:$G,6,0),0),0) -> 0 | V27: 0 | W27: 0 | AJ27: B.7 | AK27: Inox c/ branco mate | AL27: B.7Inox c/ branco mate | AM27: 10113609 | AN27: =VLOOKUP(AM27,'Tabela de preços'!B:F,5,0)*(1-AP27) -> 47.81 | AO27: =VLOOKUP(AM27,'Tabela de preços'!B:G,6,0) -> 23 | AP27: 0 | AR27: 1311
K28: 0 | L28: 0 | M28: 0 | N28: =IF(D129<>"",IFERROR(VLOOKUP(D129,'Tabela de preços'!$B:$F,5,0),0),0) -> 0 | O28: =IF(D129<>"",IFERROR(VLOOKUP(D129,'Tabela de preços'!$B:$G,6,0),0),0) -> 0 | P28: 0 | Q28: =IF(F129<>"",IFERROR(VLOOKUP(F129,'Tabela de preços'!$B:$F,5,0),0),0) -> 0 | R28: =IF(F129<>"",IFERROR(VLOOKUP(F129,'Tabela de preços'!$B:$G,6,0),0),0) -> 0 | S28: 0 | T28: =IF(H129<>"",IFERROR(VLOOKUP(H129,'Tabela de preços'!$B:$F,5,0),0),0) -> 0 | U28: =IF(H129<>"",IFERROR(VLOOKUP(H129,'Tabela de preços'!$B:$G,6,0),0),0) -> 0 | V28: 0 | W28: 0 | AJ28: B.7 | AK28: Inox c/ antracite mate | AL28: B.7Inox c/ antracite mate | AM28: 10113606 | AN28: =VLOOKUP(AM28,'Tabela de preços'!B:F,5,0)*(1-AP28) -> 47.81 | AO28: =VLOOKUP(AM28,'Tabela de preços'!B:G,6,0) -> 23 | AP28: 0 | AR28: 1321
K29: 0 | L29: 0 | M29: 0 | N29: =IF(D130<>"",IFERROR(VLOOKUP(D130,'Tabela de preços'!$B:$F,5,0),0),0) -> 0 | O29: =IF(D130<>"",IFERROR(VLOOKUP(D130,'Tabela de preços'!$B:$G,6,0),0),0) -> 0 | P29: 0 | Q29: =IF(F130<>"",IFERROR(VLOOKUP(F130,'Tabela de preços'!$B:$F,5,0),0),0) -> 0 | R29: =IF(F130<>"",IFERROR(VLOOKUP(F130,'Tabela de preços'!$B:$G,6,0),0),0) -> 0 | S29: 0 | T29: =IF(H130<>"",IFERROR(VLOOKUP(H130,'Tabela de preços'!$B:$F,5,0),0),0) -> 0 | U29: =IF(H130<>"",IFERROR(VLOOKUP(H130,'Tabela de preços'!$B:$G,6,0),0),0) -> 0 | V29: 0 | W29: 0 | AJ29: Q.1 | AK29: branco mate | AL29: Q.1branco mate | AM29: 10116089 | AN29: =VLOOKUP(AM29,'Tabela de preços'!B:F,5,0)*(1-AP29) -> 2.51 | AO29: =VLOOKUP(AM29,'Tabela de preços'!B:G,6,0) -> 23 | AP29: 0 | AR29: 1341
K30: 0 | L30: 0 | M30: 0 | N30: =IF(D131<>"",IFERROR(VLOOKUP(D131,'Tabela de preços'!$B:$F,5,0),0),0) -> 0 | O30: =IF(D131<>"",IFERROR(VLOOKUP(D131,'Tabela de preços'!$B:$G,6,0),0),0) -> 0 | P30: 0 | Q30: =IF(F131<>"",IFERROR(VLOOKUP(F131,'Tabela de preços'!$B:$F,5,0),0),0) -> 0 | R30: =IF(F131<>"",IFERROR(VLOOKUP(F131,'Tabela de preços'!$B:$G,6,0),0),0) -> 0 | S30: 0 | T30: =IF(H131<>"",IFERROR(VLOOKUP(H131,'Tabela de preços'!$B:$F,5,0),0),0) -> 0 | U30: =IF(H131<>"",IFERROR(VLOOKUP(H131,'Tabela de preços'!$B:$G,6,0),0),0) -> 0 | V30: 0 | W30: 0 | AJ30: Q.1 | AK30: antracite mate | AL30: Q.1antracite mate | AM30: 10116086 | AN30: =VLOOKUP(AM30,'Tabela de preços'!B:F,5,0)*(1-AP30) -> 3.42 | AO30: =VLOOKUP(AM30,'Tabela de preços'!B:G,6,0) -> 23 | AP30: 0 | AR30: 1366
K31: 0 | L31: 0 | M31: 0 | N31: =IF(D132<>"",IFERROR(VLOOKUP(D132,'Tabela de preços'!$B:$F,5,0),0),0) -> 0 | O31: =IF(D132<>"",IFERROR(VLOOKUP(D132,'Tabela de preços'!$B:$G,6,0),0),0) -> 0 | P31: 0 | Q31: =IF(F132<>"",IFERROR(VLOOKUP(F132,'Tabela de preços'!$B:$F,5,0),0),0) -> 0 | R31: =IF(F132<>"",IFERROR(VLOOKUP(F132,'Tabela de preços'!$B:$G,6,0),0),0) -> 0 | S31: 0 | T31: =IF(H132<>"",IFERROR(VLOOKUP(H132,'Tabela de preços'!$B:$F,5,0),0),0) -> 0 | U31: =IF(H132<>"",IFERROR(VLOOKUP(H132,'Tabela de preços'!$B:$G,6,0),0),0) -> 0 | V31: 0 | W31: 0 | AJ31: Q.1 | AK31: alumínio mate | AL31: Q.1alumínio mate | AM31: 10116084 | AN31: =VLOOKUP(AM31,'Tabela de preços'!B:F,5,0)*(1-AP31) -> 4.08 | AO31: =VLOOKUP(AM31,'Tabela de preços'!B:G,6,0) -> 23 | AP31: 0 | AR31: 1388
K32: 0 | L32: 0 | M32: 0 | N32: =IF(D133<>"",IFERROR(VLOOKUP(D133,'Tabela de preços'!$B:$F,5,0),0),0) -> 0 | O32: =IF(D133<>"",IFERROR(VLOOKUP(D133,'Tabela de preços'!$B:$G,6,0),0),0) -> 0 | P32: 0 | Q32: =IF(F133<>"",IFERROR(VLOOKUP(F133,'Tabela de preços'!$B:$F,5,0),0),0) -> 0 | R32: =IF(F133<>"",IFERROR(VLOOKUP(F133,'Tabela de preços'!$B:$G,6,0),0),0) -> 0 | S32: 0 | T32: =IF(H133<>"",IFERROR(VLOOKUP(H133,'Tabela de preços'!$B:$F,5,0),0),0) -> 0 | U32: =IF(H133<>"",IFERROR(VLOOKUP(H133,'Tabela de preços'!$B:$G,6,0),0),0) -> 0 | V32: 0 | W32: 0 | AJ32: Q.3 | AK32: branco mate | AL32: Q.3branco mate | AM32: 10116099 | AN32: =VLOOKUP(AM32,'Tabela de preços'!B:F,5,0)*(1-AP32) -> 2.51 | AO32: =VLOOKUP(AM32,'Tabela de preços'!B:G,6,0) -> 23 | AP32: 0 | AR32: 1391
K33: 0 | L33: 0 | M33: 0 | N33: =IF(D134<>"",IFERROR(VLOOKUP(D134,'Tabela de preços'!$B:$F,5,0),0),0) -> 0 | O33: =IF(D134<>"",IFERROR(VLOOKUP(D134,'Tabela de preços'!$B:$G,6,0),0),0) -> 0 | P33: 0 | Q33: =IF(F134<>"",IFERROR(VLOOKUP(F134,'Tabela de preços'!$B:$F,5,0),0),0) -> 0 | R33: =IF(F134<>"",IFERROR(VLOOKUP(F134,'Tabela de preços'!$B:$G,6,0),0),0) -> 0 | S33: 0 | T33: =IF(H134<>"",IFERROR(VLOOKUP(H134,'Tabela de preços'!$B:$F,5,0),0),0) -> 0 | U33: =IF(H134<>"",IFERROR(VLOOKUP(H134,'Tabela de preços'!$B:$G,6,0),0),0) -> 0 | V33: 0 | W33: 0 | AJ33: Q.3 | AK33: antracite mate | AL33: Q.3antracite mate | AM33: 10116096 | AN33: =VLOOKUP(AM33,'Tabela de preços'!B:F,5,0)*(1-AP33) -> 3.42 | AO33: =VLOOKUP(AM33,'Tabela de preços'!B:G,6,0) -> 23 | AP33: 0 | AR33: 1392
K34: 0 | L34: 0 | M34: 0 | N34: =IF(D135<>"",IFERROR(VLOOKUP(D135,'Tabela de preços'!$B:$F,5,0),0),0) -> 0 | O34: =IF(D135<>"",IFERROR(VLOOKUP(D135,'Tabela de preços'!$B:$G,6,0),0),0) -> 0 | P34: 0 | Q34: =IF(F135<>"",IFERROR(VLOOKUP(F135,'Tabela de preços'!$B:$F,5,0),0),0) -> 0 | R34: =IF(F135<>"",IFERROR(VLOOKUP(F135,'Tabela de preços'!$B:$G,6,0),0),0) -> 0 | S34: 0 | T34: =IF(H135<>"",IFERROR(VLOOKUP(H135,'Tabela de preços'!$B:$F,5,0),0),0) -> 0 | U34: =IF(H135<>"",IFERROR(VLOOKUP(H135,'Tabela de preços'!$B:$G,6,0),0),0) -> 0 | V34: 0 | W34: 0 | AJ34: Q.3 | AK34: alumínio mate | AL34: Q.3alumínio mate | AM34: 10116094 | AN34: =VLOOKUP(AM34,'Tabela de preços'!B:F,5,0)*(1-AP34) -> 4.08 | AO34: =VLOOKUP(AM34,'Tabela de preços'!B:G,6,0) -> 23 | AP34: 0 | AR34: 1394
K35: 0 | L35: 0 | M35: 0 | N35: =IF(D136<>"",IFERROR(VLOOKUP(D136,'Tabela de preços'!$B:$F,5,0),0),0) -> 0 | O35: =IF(D136<>"",IFERROR(VLOOKUP(D136,'Tabela de preços'!$B:$G,6,0),0),0) -> 0 | P35: 0 | Q35: =IF(F136<>"",IFERROR(VLOOKUP(F136,'Tabela de preços'!$B:$F,5,0),0),0) -> 0 | R35: =IF(F136<>"",IFERROR(VLOOKUP(F136,'Tabela de preços'!$B:$G,6,0),0),0) -> 0 | S35: 0 | T35: =IF(H136<>"",IFERROR(VLOOKUP(H136,'Tabela de preços'!$B:$F,5,0),0),0) -> 0 | U35: =IF(H136<>"",IFERROR(VLOOKUP(H136,'Tabela de preços'!$B:$G,6,0),0),0) -> 0 | V35: 0 | W35: 0 | AJ35: Q.7 | AK35: branco mate | AL35: Q.7branco mate | AM35: 10116189 | AN35: =VLOOKUP(AM35,'Tabela de preços'!B:F,5,0)*(1-AP35) -> 3.53 | AO35: =VLOOKUP(AM35,'Tabela de preços'!B:G,6,0) -> 23 | AP35: 0 | AR35: 1407
K36: 0 | L36: 0 | M36: 0 | N36: =IF(D137<>"",IFERROR(VLOOKUP(D137,'Tabela de preços'!$B:$F,5,0),0),0) -> 0 | O36: =IF(D137<>"",IFERROR(VLOOKUP(D137,'Tabela de preços'!$B:$G,6,0),0),0) -> 0 | P36: 0 | Q36: =IF(F137<>"",IFERROR(VLOOKUP(F137,'Tabela de preços'!$B:$F,5,0),0),0) -> 0 | R36: =IF(F137<>"",IFERROR(VLOOKUP(F137,'Tabela de preços'!$B:$G,6,0),0),0) -> 0 | S36: 0 | T36: =IF(H137<>"",IFERROR(VLOOKUP(H137,'Tabela de preços'!$B:$F,5,0),0),0) -> 0 | U36: =IF(H137<>"",IFERROR(VLOOKUP(H137,'Tabela de preços'!$B:$G,6,0),0),0) -> 0 | V36: 0 | W36: 0 | AJ36: Q.7 | AK36: antracite mate | AL36: Q.7antracite mate | AM36: 10116186 | AN36: =VLOOKUP(AM36,'Tabela de preços'!B:F,5,0)*(1-AP36) -> 4.79 | AO36: =VLOOKUP(AM36,'Tabela de preços'!B:G,6,0) -> 23 | AP36: 0 | AR36: 1409
K37: 0 | L37: 0 | M37: 0 | N37: =IF(D138<>"",IFERROR(VLOOKUP(D138,'Tabela de preços'!$B:$F,5,0),0),0) -> 0 | O37: =IF(D138<>"",IFERROR(VLOOKUP(D138,'Tabela de preços'!$B:$G,6,0),0),0) -> 0 | P37: 0 | Q37: =IF(F138<>"",IFERROR(VLOOKUP(F138,'Tabela de preços'!$B:$F,5,0),0),0) -> 0 | R37: =IF(F138<>"",IFERROR(VLOOKUP(F138,'Tabela de preços'!$B:$G,6,0),0),0) -> 0 | S37: 0 | T37: =IF(H138<>"",IFERROR(VLOOKUP(H138,'Tabela de preços'!$B:$F,5,0),0),0) -> 0 | U37: =IF(H138<>"",IFERROR(VLOOKUP(H138,'Tabela de preços'!$B:$G,6,0),0),0) -> 0 | V37: 0 | W37: 0 | AJ37: Q.7 | AK37: alumínio mate | AL37: Q.7alumínio mate | AM37: 10116184 | AN37: =VLOOKUP(AM37,'Tabela de preços'!B:F,5,0)*(1-AP37) -> 6.59 | AO37: =VLOOKUP(AM37,'Tabela de preços'!B:G,6,0) -> 23 | AP37: 0 | AR37: 1601
K38: 0 | L38: 0 | M38: 0 | N38: =IF(D139<>"",IFERROR(VLOOKUP(D139,'Tabela de preços'!$B:$F,5,0),0),0) -> 0 | O38: =IF(D139<>"",IFERROR(VLOOKUP(D139,'Tabela de preços'!$B:$G,6,0),0),0) -> 0 | P38: 0 | Q38: =IF(F139<>"",IFERROR(VLOOKUP(F139,'Tabela de preços'!$B:$F,5,0),0),0) -> 0 | R38: =IF(F139<>"",IFERROR(VLOOKUP(F139,'Tabela de preços'!$B:$G,6,0),0),0) -> 0 | S38: 0 | T38: =IF(H139<>"",IFERROR(VLOOKUP(H139,'Tabela de preços'!$B:$F,5,0),0),0) -> 0 | U38: =IF(H139<>"",IFERROR(VLOOKUP(H139,'Tabela de preços'!$B:$G,6,0),0),0) -> 0 | V38: 0 | W38: 0 | AJ38: Q.7 | AK38: Vidro c/ branco mate | AL38: Q.7Vidro c/ branco mate | AM38: 10116079 | AN38: =VLOOKUP(AM38,'Tabela de preços'!B:F,5,0)*(1-AP38) -> 25.3 | AO38: =VLOOKUP(AM38,'Tabela de preços'!B:G,6,0) -> 23 | AP38: 0 | AR38: 1647
K39: =IFERROR(J140-L39,0) -> 0 | L39: =IFERROR(W39,0) -> 0 | M39: =IFERROR(B140*(N39+Q39+T39),0) -> 0 | N39: =IF(D140<>"",IFERROR(VLOOKUP(D140,'Tabela de preços'!$B:$F,5,0),0),0) -> 0 | O39: =IF(D140<>"",IFERROR(VLOOKUP(D140,'Tabela de preços'!$B:$G,6,0),0),0) -> 0 | P39: 0 | Q39: =IF(F140<>"",IFERROR(VLOOKUP(F140,'Tabela de preços'!$B:$F,5,0),0),0) -> 0 | R39: =IF(F140<>"",IFERROR(VLOOKUP(F140,'Tabela de preços'!$B:$G,6,0),0),0) -> 0 | S39: 0 | T39: =IF(H140<>"",IFERROR(VLOOKUP(H140,'Tabela de preços'!$B:$F,5,0),0),0) -> 0 | U39: =IF(H140<>"",IFERROR(VLOOKUP(H140,'Tabela de preços'!$B:$G,6,0),0),0) -> 0 | V39: 0 | W39: =IFERROR(B140*(V39+S39+P39),0) -> 0 | AJ39: Q.7 | AK39: Vidro c/ antracite mate | AL39: Q.7Vidro c/ antracite mate | AM39: 10116076 | AN39: =VLOOKUP(AM39,'Tabela de preços'!B:F,5,0)*(1-AP39) -> 25.3 | AO39: =VLOOKUP(AM39,'Tabela de preços'!B:G,6,0) -> 23 | AP39: 0 | AR39: 1675
K40: =IFERROR(J141-L40,0) -> 0 | L40: =IFERROR(W40,0) -> 0 | M40: =IFERROR(B141*(N40+Q40+T40),0) -> 0 | N40: =IF(D141<>"",IFERROR(VLOOKUP(D141,'Tabela de preços'!$B:$F,5,0),0),0) -> 0 | O40: =IF(D141<>"",IFERROR(VLOOKUP(D141,'Tabela de preços'!$B:$G,6,0),0),0) -> 0 | P40: 0 | Q40: =IF(F141<>"",IFERROR(VLOOKUP(F141,'Tabela de preços'!$B:$F,5,0),0),0) -> 0 | R40: =IF(F141<>"",IFERROR(VLOOKUP(F141,'Tabela de preços'!$B:$G,6,0),0),0) -> 0 | S40: 0 | T40: =IF(H141<>"",IFERROR(VLOOKUP(H141,'Tabela de preços'!$B:$F,5,0),0),0) -> 0 | U40: =IF(H141<>"",IFERROR(VLOOKUP(H141,'Tabela de preços'!$B:$G,6,0),0),0) -> 0 | V40: 0 | W40: =IFERROR(B141*(V40+S40+P40),0) -> 0 | AJ40: Q.7 | AK40: Alumínio c/ branco mate | AL40: Q.7Alumínio c/ branco mate | AM40: 10116074 | AN40: =VLOOKUP(AM40,'Tabela de preços'!B:F,5,0)*(1-AP40) -> 25.3 | AO40: =VLOOKUP(AM40,'Tabela de preços'!B:G,6,0) -> 23 | AP40: 0 | AR40: 1676
M41: Quadros Múltiplos | AJ41: Q.7 | AK41: Alumínio c/ antracite mate | AL41: Q.7Alumínio c/ antracite mate | AM41: 10116074 | AN41: =VLOOKUP(AM41,'Tabela de preços'!B:F,5,0)*(1-AP41) -> 25.3 | AO41: =VLOOKUP(AM41,'Tabela de preços'!B:G,6,0) -> 23 | AP41: 0 | AR41: 1678
K42: 0 | L42: =W42 -> 0 | M42: 0 | N42: =IF(D143<>"",IFERROR(VLOOKUP(D143,'Tabela de preços'!$B:$F,5,0),0),0) -> 0 | O42: =IF(D143<>"",IFERROR(VLOOKUP(D143,'Tabela de preços'!$B:$G,6,0),0),0) -> 0 | P42: =IF(D143<>"",N42-N42*IFERROR(VLOOKUP(O42,$B$169:$C$175,2),0),0) -> 0 | Q42: =IF(F143<>"",IFERROR(VLOOKUP(F143,'Tabela de preços'!$B:$F,5,0),0),0) -> 0 | R42: =IF(F143<>"",IFERROR(VLOOKUP(F143,'Tabela de preços'!$B:$G,6,0),0),0) -> 0 | S42: =IF(G143<>"",Q42-Q42*IFERROR(VLOOKUP(R42,$B$169:$C$175,2),0),0) -> 0 | T42: =IF(H143<>"",IFERROR(VLOOKUP(H143,'Tabela de preços'!$B:$F,5,0),0),0) -> 0 | U42: =IF(H143<>"",IFERROR(VLOOKUP(H143,'Tabela de preços'!$B:$G,6,0),0),0) -> 0 | V42: =IF(J143<>"",T42-T42*IFERROR(VLOOKUP(U42,$B$169:$C$175,2),0),0) -> 0 | W42: =B143*(V42+S42+P42) -> 0 | AJ42: Q.7 | AK42: Alumínio c/ alumínio mate | AL42: Q.7Alumínio c/ alumínio mate | AM42: 10116074 | AN42: =VLOOKUP(AM42,'Tabela de preços'!B:F,5,0)*(1-AP42) -> 25.3 | AO42: =VLOOKUP(AM42,'Tabela de preços'!B:G,6,0) -> 23 | AP42: 0 | AR42: 1679
K43: 0 | L43: 0 | M43: 0 | N43: =IF(D144<>"",IFERROR(VLOOKUP(D144,'Tabela de preços'!$B:$F,5,0),0),0) -> 0 | O43: =IF(D144<>"",IFERROR(VLOOKUP(D144,'Tabela de preços'!$B:$G,6,0),0),0) -> 0 | P43: 0 | Q43: =IF(F144<>"",IFERROR(VLOOKUP(F144,'Tabela de preços'!$B:$F,5,0),0),0) -> 0 | R43: =IF(F144<>"",IFERROR(VLOOKUP(F144,'Tabela de preços'!$B:$G,6,0),0),0) -> 0 | S43: 0 | T43: =IF(H144<>"",IFERROR(VLOOKUP(H144,'Tabela de preços'!$B:$F,5,0),0),0) -> 0 | U43: =IF(H144<>"",IFERROR(VLOOKUP(H144,'Tabela de preços'!$B:$G,6,0),0),0) -> 0 | V43: 0 | W43: 0 | AJ43: Q.7 | AK43: Inox c/ branco mate | AL43: Q.7Inox c/ branco mate | AM43: 10116083 | AN43: =VLOOKUP(AM43,'Tabela de preços'!B:F,5,0)*(1-AP43) -> 30.34 | AO43: =VLOOKUP(AM43,'Tabela de preços'!B:G,6,0) -> 23 | AP43: 0 | AR43: 1680
K44: 0 | L44: 0 | M44: 0 | N44: =IF(D145<>"",IFERROR(VLOOKUP(D145,'Tabela de preços'!$B:$F,5,0),0),0) -> 0 | O44: =IF(D145<>"",IFERROR(VLOOKUP(D145,'Tabela de preços'!$B:$G,6,0),0),0) -> 0 | P44: 0 | Q44: =IF(F145<>"",IFERROR(VLOOKUP(F145,'Tabela de preços'!$B:$F,5,0),0),0) -> 0 | R44: =IF(F145<>"",IFERROR(VLOOKUP(F145,'Tabela de preços'!$B:$G,6,0),0),0) -> 0 | S44: 0 | T44: =IF(H145<>"",IFERROR(VLOOKUP(H145,'Tabela de preços'!$B:$F,5,0),0),0) -> 0 | U44: =IF(H145<>"",IFERROR(VLOOKUP(H145,'Tabela de preços'!$B:$G,6,0),0),0) -> 0 | V44: 0 | W44: 0 | AJ44: Q.7 | AK44: Inox c/ antracite mate | AL44: Q.7Inox c/ antracite mate | AM44: 10116083 | AN44: =VLOOKUP(AM44,'Tabela de preços'!B:F,5,0)*(1-AP44) -> 30.34 | AO44: =VLOOKUP(AM44,'Tabela de preços'!B:G,6,0) -> 23 | AP44: 0 | AR44: 1686
K45: 0 | L45: 0 | M45: 0 | N45: =IF(D146<>"",IFERROR(VLOOKUP(D146,'Tabela de preços'!$B:$F,5,0),0),0) -> 0 | O45: =IF(D146<>"",IFERROR(VLOOKUP(D146,'Tabela de preços'!$B:$G,6,0),0),0) -> 0 | P45: 0 | Q45: =IF(F146<>"",IFERROR(VLOOKUP(F146,'Tabela de preços'!$B:$F,5,0),0),0) -> 0 | R45: =IF(F146<>"",IFERROR(VLOOKUP(F146,'Tabela de preços'!$B:$G,6,0),0),0) -> 0 | S45: 0 | T45: =IF(H146<>"",IFERROR(VLOOKUP(H146,'Tabela de preços'!$B:$F,5,0),0),0) -> 0 | U45: =IF(H146<>"",IFERROR(VLOOKUP(H146,'Tabela de preços'!$B:$G,6,0),0),0) -> 0 | V45: 0 | W45: 0 | AJ45: Q.7 | AK45: Inox c/ alumínio mate | AL45: Q.7Inox c/ alumínio mate | AM45: 10116083 | AN45: =VLOOKUP(AM45,'Tabela de preços'!B:F,5,0)*(1-AP45) -> 30.34 | AO45: =VLOOKUP(AM45,'Tabela de preços'!B:G,6,0) -> 23 | AP45: 0 | AR45: 1687
K46: 0 | L46: 0 | M46: 0 | N46: =IF(D147<>"",IFERROR(VLOOKUP(D147,'Tabela de preços'!$B:$F,5,0),0),0) -> 0 | O46: =IF(D147<>"",IFERROR(VLOOKUP(D147,'Tabela de preços'!$B:$G,6,0),0),0) -> 0 | P46: 0 | Q46: =IF(F147<>"",IFERROR(VLOOKUP(F147,'Tabela de preços'!$B:$F,5,0),0),0) -> 0 | R46: =IF(F147<>"",IFERROR(VLOOKUP(F147,'Tabela de preços'!$B:$G,6,0),0),0) -> 0 | S46: 0 | T46: =IF(H147<>"",IFERROR(VLOOKUP(H147,'Tabela de preços'!$B:$F,5,0),0),0) -> 0 | U46: =IF(H147<>"",IFERROR(VLOOKUP(H147,'Tabela de preços'!$B:$G,6,0),0),0) -> 0 | V46: 0 | W46: 0 | AJ46: Q.7 | AK46: Betão c/ branco mate | AL46: Q.7Betão c/ branco mate | AM46: 10116020 | AN46: =VLOOKUP(AM46,'Tabela de preços'!B:F,5,0)*(1-AP46) ->  | AO46: =VLOOKUP(AM46,'Tabela de preços'!B:G,6,0) ->  | AR46: 1809
K47: 0 | L47: 0 | M47: 0 | N47: =IF(D148<>"",IFERROR(VLOOKUP(D148,'Tabela de preços'!$B:$F,5,0),0),0) -> 0 | O47: =IF(D148<>"",IFERROR(VLOOKUP(D148,'Tabela de preços'!$B:$G,6,0),0),0) -> 0 | P47: 0 | Q47: =IF(F148<>"",IFERROR(VLOOKUP(F148,'Tabela de preços'!$B:$F,5,0),0),0) -> 0 | R47: =IF(F148<>"",IFERROR(VLOOKUP(F148,'Tabela de preços'!$B:$G,6,0),0),0) -> 0 | S47: 0 | T47: =IF(H148<>"",IFERROR(VLOOKUP(H148,'Tabela de preços'!$B:$F,5,0),0),0) -> 0 | U47: =IF(H148<>"",IFERROR(VLOOKUP(H148,'Tabela de preços'!$B:$G,6,0),0),0) -> 0 | V47: 0 | W47: 0 | AJ47: Q.7 | AK47: Betão c/ antracite mate | AL47: Q.7Betão c/ antracite mate | AM47: 10116020 | AN47: =VLOOKUP(AM47,'Tabela de preços'!B:F,5,0)*(1-AP47) ->  | AO47: =VLOOKUP(AM47,'Tabela de preços'!B:G,6,0) ->  | AR47: 1813
K48: 0 | L48: 0 | M48: 0 | N48: =IF(D149<>"",IFERROR(VLOOKUP(D149,'Tabela de preços'!$B:$F,5,0),0),0) -> 0 | O48: =IF(D149<>"",IFERROR(VLOOKUP(D149,'Tabela de preços'!$B:$G,6,0),0),0) -> 0 | P48: 0 | Q48: =IF(F149<>"",IFERROR(VLOOKUP(F149,'Tabela de preços'!$B:$F,5,0),0),0) -> 0 | R48: =IF(F149<>"",IFERROR(VLOOKUP(F149,'Tabela de preços'!$B:$G,6,0),0),0) -> 0 | S48: 0 | T48: =IF(H149<>"",IFERROR(VLOOKUP(H149,'Tabela de preços'!$B:$F,5,0),0),0) -> 0 | U48: =IF(H149<>"",IFERROR(VLOOKUP(H149,'Tabela de preços'!$B:$G,6,0),0),0) -> 0 | V48: 0 | W48: 0 | Y48: ref | Z48: qtd ref | AA48: QTD Mult total | AB48: QTD a tirar | AC48: Valor a tirar | AJ48: Q.7 | AK48: Betão c/ alumínio mate | AL48: Q.7Betão c/ alumínio mate | AM48: 10116020 | AN48: =VLOOKUP(AM48,'Tabela de preços'!B:F,5,0)*(1-AP48) ->  | AO48: =VLOOKUP(AM48,'Tabela de preços'!B:G,6,0) ->  | AR48: 1818
K49: 0 | L49: 0 | M49: 0 | N49: =IF(D150<>"",IFERROR(VLOOKUP(D150,'Tabela de preços'!$B:$F,5,0),0),0) -> 0 | O49: =IF(D150<>"",IFERROR(VLOOKUP(D150,'Tabela de preços'!$B:$G,6,0),0),0) -> 0 | P49: 0 | Q49: =IF(F150<>"",IFERROR(VLOOKUP(F150,'Tabela de preços'!$B:$F,5,0),0),0) -> 0 | R49: =IF(F150<>"",IFERROR(VLOOKUP(F150,'Tabela de preços'!$B:$G,6,0),0),0) -> 0 | S49: 0 | T49: =IF(H150<>"",IFERROR(VLOOKUP(H150,'Tabela de preços'!$B:$F,5,0),0),0) -> 0 | U49: =IF(H150<>"",IFERROR(VLOOKUP(H150,'Tabela de preços'!$B:$G,6,0),0),0) -> 0 | V49: 0 | W49: 0 | Y49: =IFERROR(VLOOKUP(CONCATENATE(C104,C105),AL:AM,2,0),0) -> 0 | Z49: =SUMIF(H114:H141,Y49,B114:B141) -> 0 | AA49: =SUM(AA57:AA64) -> 0 | AB49: =IF(Z49>=AA49,AA49,0) -> 0 | AC49: =VLOOKUP(Y49,AM:AN,2,0)*AB49 ->  | AJ49: Q.7 | AK49: Ardósia c/ branco mate | AL49: Q.7Ardósia c/ branco mate | AM49: 10116030 | AN49: =VLOOKUP(AM49,'Tabela de preços'!B:F,5,0)*(1-AP49) -> 30.34 | AO49: =VLOOKUP(AM49,'Tabela de preços'!B:G,6,0) -> 23 | AP49: 0 | AR49: 1824
M50: Referências Adicionais (Inserir manualmente com base na tabela de preços Berker) | AJ50: Q.7 | AK50: Ardósia c/ antracite mate | AL50: Q.7Ardósia c/ antracite mate | AM50: 10116030 | AN50: =VLOOKUP(AM50,'Tabela de preços'!B:F,5,0)*(1-AP50) -> 30.34 | AO50: =VLOOKUP(AM50,'Tabela de preços'!B:G,6,0) -> 23 | AP50: 0 | AR50: 1861
K51: 0 | L51: =W51 -> 0 | M51: 0 | N51: =IF(D152<>"",IFERROR(VLOOKUP(D152,'Tabela de preços'!$B:$F,5,0),0),0) -> 0 | O51: =IF(D152<>"",IFERROR(VLOOKUP(D152,'Tabela de preços'!$B:$G,6,0),0),0) -> 0 | P51: =IF(D152<>"",N51-N51*IFERROR(VLOOKUP(O51,$B$169:$C$175,2),0),0) -> 0 | Q51: =IF(F152<>"",IFERROR(VLOOKUP(F152,'Tabela de preços'!$B:$F,5,0),0),0) -> 0 | R51: =IF(F152<>"",IFERROR(VLOOKUP(F152,'Tabela de preços'!$B:$G,6,0),0),0) -> 0 | S51: =IF(G152<>"",Q51-Q51*IFERROR(VLOOKUP(R51,$B$169:$C$175,2),0),0) -> 0 | T51: =IF(H152<>"",IFERROR(VLOOKUP(H152,'Tabela de preços'!$B:$F,5,0),0),0) -> 0 | U51: =IF(H152<>"",IFERROR(VLOOKUP(H152,'Tabela de preços'!$B:$G,6,0),0),0) -> 0 | V51: =IF(J152<>"",T51-T51*IFERROR(VLOOKUP(U51,$B$169:$C$175,2),0),0) -> 0 | W51: =B152*(V51+S51+P51) -> 0 | AJ51: Q.7 | AK51: Ardósia c/ alumínio mate | AL51: Q.7Ardósia c/ alumínio mate | AM51: 10116030 | AN51: =VLOOKUP(AM51,'Tabela de preços'!B:F,5,0)*(1-AP51) -> 30.34 | AO51: =VLOOKUP(AM51,'Tabela de preços'!B:G,6,0) -> 23 | AP51: 0 | AR51: 1870
K52: 0 | L52: 0 | M52: 0 | N52: =IF(D153<>"",IFERROR(VLOOKUP(D153,'Tabela de preços'!$B:$F,5,0),0),0) -> 0 | O52: =IF(D153<>"",IFERROR(VLOOKUP(D153,'Tabela de preços'!$B:$G,6,0),0),0) -> 0 | P52: 0 | Q52: =IF(F153<>"",IFERROR(VLOOKUP(F153,'Tabela de preços'!$B:$F,5,0),0),0) -> 0 | R52: =IF(F153<>"",IFERROR(VLOOKUP(F153,'Tabela de preços'!$B:$G,6,0),0),0) -> 0 | S52: 0 | T52: =IF(H153<>"",IFERROR(VLOOKUP(H153,'Tabela de preços'!$B:$F,5,0),0),0) -> 0 | U52: =IF(H153<>"",IFERROR(VLOOKUP(H153,'Tabela de preços'!$B:$G,6,0),0),0) -> 0 | V52: 0 | W52: 0 | AJ52: K.1 | AK52: branco | AL52: K.1branco | AM52: 13137009 | AN52: =VLOOKUP(AM52,'Tabela de preços'!B:F,5,0)*(1-AP52) -> 3.07 | AO52: =VLOOKUP(AM52,'Tabela de preços'!B:G,6,0) -> 23 | AP52: 0 | AR52: 1871
K53: 0 | L53: 0 | M53: 0 | N53: =IF(D154<>"",IFERROR(VLOOKUP(D154,'Tabela de preços'!$B:$F,5,0),0),0) -> 0 | O53: =IF(D154<>"",IFERROR(VLOOKUP(D154,'Tabela de preços'!$B:$G,6,0),0),0) -> 0 | P53: 0 | Q53: =IF(F154<>"",IFERROR(VLOOKUP(F154,'Tabela de preços'!$B:$F,5,0),0),0) -> 0 | R53: =IF(F154<>"",IFERROR(VLOOKUP(F154,'Tabela de preços'!$B:$G,6,0),0),0) -> 0 | S53: 0 | T53: =IF(H154<>"",IFERROR(VLOOKUP(H154,'Tabela de preços'!$B:$F,5,0),0),0) -> 0 | U53: =IF(H154<>"",IFERROR(VLOOKUP(H154,'Tabela de preços'!$B:$G,6,0),0),0) -> 0 | V53: 0 | W53: 0 | AJ53: K.1 | AK53: antracite mate | AL53: K.1antracite mate | AM53: 13137006 | AN53: =VLOOKUP(AM53,'Tabela de preços'!B:F,5,0)*(1-AP53) -> 4.56 | AO53: =VLOOKUP(AM53,'Tabela de preços'!B:G,6,0) -> 23 | AP53: 0 | AR53: 1887
K54: 0 | L54: 0 | M54: 0 | N54: =IF(D155<>"",IFERROR(VLOOKUP(D155,'Tabela de preços'!$B:$F,5,0),0),0) -> 0 | O54: =IF(D155<>"",IFERROR(VLOOKUP(D155,'Tabela de preços'!$B:$G,6,0),0),0) -> 0 | P54: 0 | Q54: =IF(F155<>"",IFERROR(VLOOKUP(F155,'Tabela de preços'!$B:$F,5,0),0),0) -> 0 | R54: =IF(F155<>"",IFERROR(VLOOKUP(F155,'Tabela de preços'!$B:$G,6,0),0),0) -> 0 | S54: 0 | T54: =IF(H155<>"",IFERROR(VLOOKUP(H155,'Tabela de preços'!$B:$F,5,0),0),0) -> 0 | U54: =IF(H155<>"",IFERROR(VLOOKUP(H155,'Tabela de preços'!$B:$G,6,0),0),0) -> 0 | V54: 0 | W54: 0 | AJ54: K.5 | AK54: Alumínio | AL54: K.5Alumínio | AM54: 13137003 | AN54: =VLOOKUP(AM54,'Tabela de preços'!B:F,5,0)*(1-AP54) -> 9.85 | AO54: =VLOOKUP(AM54,'Tabela de preços'!B:G,6,0) -> 23 | AP54: 0 | AR54: 1913
K55: 0 | L55: 0 | M55: 0 | N55: =IF(D156<>"",IFERROR(VLOOKUP(D156,'Tabela de preços'!$B:$F,5,0),0),0) -> 0 | O55: =IF(D156<>"",IFERROR(VLOOKUP(D156,'Tabela de preços'!$B:$G,6,0),0),0) -> 0 | P55: 0 | Q55: =IF(F156<>"",IFERROR(VLOOKUP(F156,'Tabela de preços'!$B:$F,5,0),0),0) -> 0 | R55: =IF(F156<>"",IFERROR(VLOOKUP(F156,'Tabela de preços'!$B:$G,6,0),0),0) -> 0 | S55: 0 | T55: =IF(H156<>"",IFERROR(VLOOKUP(H156,'Tabela de preços'!$B:$F,5,0),0),0) -> 0 | U55: =IF(H156<>"",IFERROR(VLOOKUP(H156,'Tabela de preços'!$B:$G,6,0),0),0) -> 0 | V55: 0 | W55: 0 | AJ55: K.5 | AK55: Inox | AL55: K.5Inox | AM55: 13137004 | AN55: =VLOOKUP(AM55,'Tabela de preços'!B:F,5,0)*(1-AP55) -> 9.85 | AO55: =VLOOKUP(AM55,'Tabela de preços'!B:G,6,0) -> 23 | AP55: 0 | AR55: 1914
K56: 0 | L56: 0 | M56: 0 | N56: =IF(D157<>"",IFERROR(VLOOKUP(D157,'Tabela de preços'!$B:$F,5,0),0),0) -> 0 | O56: =IF(D157<>"",IFERROR(VLOOKUP(D157,'Tabela de preços'!$B:$G,6,0),0),0) -> 0 | P56: 0 | Q56: =IF(F157<>"",IFERROR(VLOOKUP(F157,'Tabela de preços'!$B:$F,5,0),0),0) -> 0 | R56: =IF(F157<>"",IFERROR(VLOOKUP(F157,'Tabela de preços'!$B:$G,6,0),0),0) -> 0 | S56: 0 | T56: =IF(H157<>"",IFERROR(VLOOKUP(H157,'Tabela de preços'!$B:$F,5,0),0),0) -> 0 | U56: =IF(H157<>"",IFERROR(VLOOKUP(H157,'Tabela de preços'!$B:$G,6,0),0),0) -> 0 | V56: 0 | W56: 0 | Z56: Formula Para Quadros | AA56: Total De Quadros | AJ56: R.1 | AK56: branco | AL56: R.1branco | AM56: 10112189 | AN56: =VLOOKUP(AM56,'Tabela de preços'!B:F,5,0)*(1-AP56) -> 3.21 | AO56: =VLOOKUP(AM56,'Tabela de preços'!B:G,6,0) -> 23 | AP56: 0 | AR56: 1980
K57: 0 | L57: 0 | M57: 0 | N57: =IF(D158<>"",IFERROR(VLOOKUP(D158,'Tabela de preços'!$B:$F,5,0),0),0) -> 0 | O57: =IF(D158<>"",IFERROR(VLOOKUP(D158,'Tabela de preços'!$B:$G,6,0),0),0) -> 0 | P57: 0 | Q57: =IF(F158<>"",IFERROR(VLOOKUP(F158,'Tabela de preços'!$B:$F,5,0),0),0) -> 0 | R57: =IF(F158<>"",IFERROR(VLOOKUP(F158,'Tabela de preços'!$B:$G,6,0),0),0) -> 0 | S57: 0 | T57: =IF(H158<>"",IFERROR(VLOOKUP(H158,'Tabela de preços'!$B:$F,5,0),0),0) -> 0 | U57: =IF(H158<>"",IFERROR(VLOOKUP(H158,'Tabela de preços'!$B:$G,6,0),0),0) -> 0 | V57: 0 | W57: 0 | Z57: =IF(J143=0,0,IF(B143<>0,IF(C143="Quadro Duplo Horizontal",2,IF(C143="Quadro Duplo Vertical",2,IF(C143="Quadro Triplo Horizontal",3,IF(C143="Quadro Triplo Vertical",3,IF(C143="Quadro Quádruplo Horizontal",4,IF(C143="Quadro Quádruplo Vertical",4,IF(C143="Quadro Quíntuplo Horizontal",5,IF(C143="Quadro Quíntuplo Vertical",5,IF(C143=0,0*B143))))))))))) -> 0 | AA57: =IF(B143<>0,Z57*B143,0) -> 0 | AJ57: R.1 | AK57: preto | AL57: R.1preto | AM57: 10112145 | AN57: =VLOOKUP(AM57,'Tabela de preços'!B:F,5,0)*(1-AP57) -> 4.75 | AO57: =VLOOKUP(AM57,'Tabela de preços'!B:G,6,0) -> 23 | AP57: 0 | AR57: 1985
K58: 0 | L58: 0 | M58: 0 | N58: =IF(D159<>"",IFERROR(VLOOKUP(D159,'Tabela de preços'!$B:$F,5,0),0),0) -> 0 | O58: =IF(D159<>"",IFERROR(VLOOKUP(D159,'Tabela de preços'!$B:$G,6,0),0),0) -> 0 | P58: 0 | Q58: =IF(F159<>"",IFERROR(VLOOKUP(F159,'Tabela de preços'!$B:$F,5,0),0),0) -> 0 | R58: =IF(F159<>"",IFERROR(VLOOKUP(F159,'Tabela de preços'!$B:$G,6,0),0),0) -> 0 | S58: 0 | T58: =IF(H159<>"",IFERROR(VLOOKUP(H159,'Tabela de preços'!$B:$F,5,0),0),0) -> 0 | U58: =IF(H159<>"",IFERROR(VLOOKUP(H159,'Tabela de preços'!$B:$G,6,0),0),0) -> 0 | V58: 0 | W58: 0 | Z58: =IF(J144=0,0,IF(B144<>0,IF(C144="Quadro Duplo Horizontal",2,IF(C144="Quadro Duplo Vertical",2,IF(C144="Quadro Triplo Horizontal",3,IF(C144="Quadro Triplo Vertical",3,IF(C144="Quadro Quádruplo Horizontal",4,IF(C144="Quadro Quádruplo Vertical",4,IF(C144="Quadro Quíntuplo Horizontal",5,IF(C144="Quadro Quíntuplo Vertical",5,IF(C144=0,0*B144))))))))))) -> 0 | AA58: 0 | AJ58: R.1 | AK58: Vidro branco | AL58: R.1Vidro branco | AM58: 10112109 | AN58: =VLOOKUP(AM58,'Tabela de preços'!B:F,5,0)*(1-AP58) -> 31.97 | AO58: =VLOOKUP(AM58,'Tabela de preços'!B:G,6,0) -> 23 | AP58: 0 | AR58: 1989
K59: 0 | L59: 0 | M59: 0 | N59: =IF(D160<>"",IFERROR(VLOOKUP(D160,'Tabela de preços'!$B:$F,5,0),0),0) -> 0 | O59: =IF(D160<>"",IFERROR(VLOOKUP(D160,'Tabela de preços'!$B:$G,6,0),0),0) -> 0 | P59: 0 | Q59: =IF(F160<>"",IFERROR(VLOOKUP(F160,'Tabela de preços'!$B:$F,5,0),0),0) -> 0 | R59: =IF(F160<>"",IFERROR(VLOOKUP(F160,'Tabela de preços'!$B:$G,6,0),0),0) -> 0 | S59: 0 | T59: =IF(H160<>"",IFERROR(VLOOKUP(H160,'Tabela de preços'!$B:$F,5,0),0),0) -> 0 | U59: =IF(H160<>"",IFERROR(VLOOKUP(H160,'Tabela de preços'!$B:$G,6,0),0),0) -> 0 | V59: 0 | W59: 0 | Z59: =IF(J145=0,0,IF(B145<>0,IF(C145="Quadro Duplo Horizontal",2,IF(C145="Quadro Duplo Vertical",2,IF(C145="Quadro Triplo Horizontal",3,IF(C145="Quadro Triplo Vertical",3,IF(C145="Quadro Quádruplo Horizontal",4,IF(C145="Quadro Quádruplo Vertical",4,IF(C145="Quadro Quíntuplo Horizontal",5,IF(C145="Quadro Quíntuplo Vertical",5,IF(C145=0,0*B145))))))))))) -> 0 | AA59: 0 | AJ59: R.1 | AK59: Vidro preto | AL59: R.1Vidro preto | AM59: 10112116 | AN59: =VLOOKUP(AM59,'Tabela de preços'!B:F,5,0)*(1-AP59) -> 31.97 | AO59: =VLOOKUP(AM59,'Tabela de preços'!B:G,6,0) -> 23 | AP59: 0 | AR59: 1990
K60: 0 | L60: 0 | M60: 0 | N60: =IF(D161<>"",IFERROR(VLOOKUP(D161,'Tabela de preços'!$B:$F,5,0),0),0) -> 0 | O60: =IF(D161<>"",IFERROR(VLOOKUP(D161,'Tabela de preços'!$B:$G,6,0),0),0) -> 0 | P60: 0 | Q60: =IF(F161<>"",IFERROR(VLOOKUP(F161,'Tabela de preços'!$B:$F,5,0),0),0) -> 0 | R60: =IF(F161<>"",IFERROR(VLOOKUP(F161,'Tabela de preços'!$B:$G,6,0),0),0) -> 0 | S60: 0 | T60: =IF(H161<>"",IFERROR(VLOOKUP(H161,'Tabela de preços'!$B:$F,5,0),0),0) -> 0 | U60: =IF(H161<>"",IFERROR(VLOOKUP(H161,'Tabela de preços'!$B:$G,6,0),0),0) -> 0 | V60: 0 | W60: 0 | Z60: 0 | AA60: 0 | AJ60: R.1 | AK60: Alumínio c/ branco | AL60: R.1Alumínio c/ branco | AM60: 10112174 | AN60: =VLOOKUP(AM60,'Tabela de preços'!B:F,5,0)*(1-AP60) -> 31.97 | AO60: =VLOOKUP(AM60,'Tabela de preços'!B:G,6,0) -> 23 | AP60: 0 | AR60: 1992
K61: 0 | L61: 0 | M61: 0 | N61: =IF(D162<>"",IFERROR(VLOOKUP(D162,'Tabela de preços'!$B:$F,5,0),0),0) -> 0 | O61: =IF(D162<>"",IFERROR(VLOOKUP(D162,'Tabela de preços'!$B:$G,6,0),0),0) -> 0 | P61: 0 | Q61: =IF(F162<>"",IFERROR(VLOOKUP(F162,'Tabela de preços'!$B:$F,5,0),0),0) -> 0 | R61: =IF(F162<>"",IFERROR(VLOOKUP(F162,'Tabela de preços'!$B:$G,6,0),0),0) -> 0 | S61: 0 | T61: =IF(H162<>"",IFERROR(VLOOKUP(H162,'Tabela de preços'!$B:$F,5,0),0),0) -> 0 | U61: =IF(H162<>"",IFERROR(VLOOKUP(H162,'Tabela de preços'!$B:$G,6,0),0),0) -> 0 | V61: 0 | W61: 0 | Z61: 0 | AA61: 0 | AJ61: R.1 | AK61: Alumínio c/ preto | AL61: R.1Alumínio c/ preto | AM61: 10112184 | AN61: =VLOOKUP(AM61,'Tabela de preços'!B:F,5,0)*(1-AP61) -> 31.97 | AO61: =VLOOKUP(AM61,'Tabela de preços'!B:G,6,0) -> 23 | AP61: 0 | AR61: 1993
K62: 0 | L62: 0 | M62: 0 | N62: =IF(D163<>"",IFERROR(VLOOKUP(D163,'Tabela de preços'!$B:$F,5,0),0),0) -> 0 | O62: =IF(D163<>"",IFERROR(VLOOKUP(D163,'Tabela de preços'!$B:$G,6,0),0),0) -> 0 | P62: 0 | Q62: =IF(F163<>"",IFERROR(VLOOKUP(F163,'Tabela de preços'!$B:$F,5,0),0),0) -> 0 | R62: =IF(F163<>"",IFERROR(VLOOKUP(F163,'Tabela de preços'!$B:$G,6,0),0),0) -> 0 | S62: 0 | T62: =IF(H163<>"",IFERROR(VLOOKUP(H163,'Tabela de preços'!$B:$F,5,0),0),0) -> 0 | U62: =IF(H163<>"",IFERROR(VLOOKUP(H163,'Tabela de preços'!$B:$G,6,0),0),0) -> 0 | V62: 0 | W62: 0 | Z62: 0 | AA62: 0 | AJ62: R.1 | AK62: Inox c/ branco | AL62: R.1Inox c/ branco | AM62: 10112114 | AN62: =VLOOKUP(AM62,'Tabela de preços'!B:F,5,0)*(1-AP62) -> 31.97 | AO62: =VLOOKUP(AM62,'Tabela de preços'!B:G,6,0) -> 23 | AP62: 0 | AR62: 1994
K63: 0 | L63: 0 | M63: 0 | N63: =IF(D164<>"",IFERROR(VLOOKUP(D164,'Tabela de preços'!$B:$F,5,0),0),0) -> 0 | O63: =IF(D164<>"",IFERROR(VLOOKUP(D164,'Tabela de preços'!$B:$G,6,0),0),0) -> 0 | P63: 0 | Q63: =IF(F164<>"",IFERROR(VLOOKUP(F164,'Tabela de preços'!$B:$F,5,0),0),0) -> 0 | R63: =IF(F164<>"",IFERROR(VLOOKUP(F164,'Tabela de preços'!$B:$G,6,0),0),0) -> 0 | S63: 0 | T63: =IF(H164<>"",IFERROR(VLOOKUP(H164,'Tabela de preços'!$B:$F,5,0),0),0) -> 0 | U63: =IF(H164<>"",IFERROR(VLOOKUP(H164,'Tabela de preços'!$B:$G,6,0),0),0) -> 0 | V63: 0 | W63: 0 | Z63: 0 | AA63: 0 | AJ63: R.1 | AK63: Inox c/ preto | AL63: R.1Inox c/ preto | AM63: 10112104 | AN63: =VLOOKUP(AM63,'Tabela de preços'!B:F,5,0)*(1-AP63) -> 31.97 | AO63: =VLOOKUP(AM63,'Tabela de preços'!B:G,6,0) -> 23 | AP63: 0 | AR63: 2873
K64: 0 | L64: 0 | M64: 0 | N64: =IF(D165<>"",IFERROR(VLOOKUP(D165,'Tabela de preços'!$B:$F,5,0),0),0) -> 0 | O64: =IF(D165<>"",IFERROR(VLOOKUP(D165,'Tabela de preços'!$B:$G,6,0),0),0) -> 0 | P64: 0 | Q64: =IF(F165<>"",IFERROR(VLOOKUP(F165,'Tabela de preços'!$B:$F,5,0),0),0) -> 0 | R64: =IF(F165<>"",IFERROR(VLOOKUP(F165,'Tabela de preços'!$B:$G,6,0),0),0) -> 0 | S64: 0 | T64: =IF(H165<>"",IFERROR(VLOOKUP(H165,'Tabela de preços'!$B:$F,5,0),0),0) -> 0 | U64: =IF(H165<>"",IFERROR(VLOOKUP(H165,'Tabela de preços'!$B:$G,6,0),0),0) -> 0 | V64: 0 | W64: 0 | Z64: 0 | AA64: 0 | AJ64: R.1 | AK64: Ardósia c/ branco | AL64: R.1Ardósia c/ branco | AM64: 10112389 | AN64: =VLOOKUP(AM64,'Tabela de preços'!B:F,5,0)*(1-AP64) -> 31.97 | AO64: =VLOOKUP(AM64,'Tabela de preços'!B:G,6,0) -> 23 | AP64: 0 | AR64: 2909
U65: Total líquido: | W65: =SUM(W13:W64) -> 0 | AJ65: R.1 | AK65: Ardósia c/ preto | AL65: R.1Ardósia c/ preto | AM65: 10112384 | AN65: =VLOOKUP(AM65,'Tabela de preços'!B:F,5,0)*(1-AP65) -> 31.97 | AO65: =VLOOKUP(AM65,'Tabela de preços'!B:G,6,0) -> 23 | AP65: 0 | AR65: 2913
U66: Total líquido Corrigido: | AJ66: R.1 | AK66: Betão c/ branco | AL66: R.1Betão c/ branco | AM66: 10112379 | AN66: =VLOOKUP(AM66,'Tabela de preços'!B:F,5,0)*(1-AP66) ->  | AO66: =VLOOKUP(AM66,'Tabela de preços'!B:G,6,0) ->  | AR66: 2930
AJ67: R.1 | AK67: Betão c/ preto | AL67: R.1Betão c/ preto | AM67: 10112374 | AN67: =VLOOKUP(AM67,'Tabela de preços'!B:F,5,0)*(1-AP67) ->  | AO67: =VLOOKUP(AM67,'Tabela de preços'!B:G,6,0) ->  | AR67: 2969
AJ68: R.1 | AK68: Pele natural c/ branco | AL68: R.1Pele natural c/ branco | AM68: 10112369 | AN68: =VLOOKUP(AM68,'Tabela de preços'!B:F,5,0)*(1-AP68) ->  | AO68: =VLOOKUP(AM68,'Tabela de preços'!B:G,6,0) ->  | AR68: 2973
AJ69: R.1 | AK69: Pele natural c/ preto | AL69: =CONCATENATE(AJ69,AK69) -> R.1Pele natural c/ preto | AM69: 10112364 | AN69: =VLOOKUP(AM69,'Tabela de preços'!B:F,5,0)*(1-AP69) ->  | AO69: =VLOOKUP(AM69,'Tabela de preços'!B:G,6,0) ->  | AP69: =VLOOKUP(AO69,$B$169:$C$175,2,0) ->  | AR69: 2995
K70: =IF(OR(L_=K71,L_=L71),1,0) -> 0 | AC70: =IF(OR(L_=AC71,L_=AD71),1,0) -> 0 | AJ70: R.1 | AK70: Madeira carvalho c/ branco | AL70: R.1Madeira carvalho c/ branco | AM70: 10112359 | AN70: =VLOOKUP(AM70,'Tabela de preços'!B:F,5,0)*(1-AP70) ->  | AO70: =VLOOKUP(AM70,'Tabela de preços'!B:G,6,0) ->  | AR70: 2996
A71: S.1 | B71: B.3 | C71: B.7 | D71: Q.1 | E71: Q.3 | F71: Q.7 | G71: K.1 | H71: K.5 | I71: R.1 | J71: R.3 | K71: R.8 | L71: R.8 Alvenaria | M71: R.classic | N71: 1930 | O71: Glas | P71: Cubyko componível | Q71: Cubyko monobloco | S71: S.1 | T71: B.3 | U71: B.7 | V71: Q.1 | W71: Q.3 | X71: Q.7 | Y71: K.1 | Z71: K.5 | AA71: R.1 | AB71: R.3 | AC71: R.8 | AD71: R.8 Alvenaria | AE71: R.classic | AF71: 1930 | AG71: Glas | AH71: Cubyko componível | AI71: Cubyko monobloco | AJ71: R.1 | AK71: Madeira carvalho c/ preto | AL71: R.1Madeira carvalho c/ preto | AM71: 10112354 | AN71: =VLOOKUP(AM71,'Tabela de preços'!B:F,5,0)*(1-AP71) ->  | AO71: =VLOOKUP(AM71,'Tabela de preços'!B:G,6,0) ->  | AR71: 2997
A72: branco mate | B72: alumínio c/ branco mate | C72: branco mate | D72: branco mate | E72: branco mate | F72: branco mate | G72: branco | H72: Alumínio | I72: branco | J72: branco | K72: Vidro branco c/ branco | M72: branco | N72: branco | O72: Vidro transp. c/ branco | P72: encastrado branco | Q72: encastrado branco | S72: Botão de Cordão | T72: Botão de Cordão | U72: Botão de Cordão | V72: Botão de Cordão | W72: Botão de Cordão | X72: Botão de Cordão | Y72: Botão de Cordão | Z72: Botão de Pressão Duplo 2NA | AA72: Botão de Cordão | AB72: Botão de Cordão | AC72: Botão de Cordão | AE72: Botão de Pressão Duplo 2NA | AF72: Botão de Pressão Duplo 2NA | AG72: Botão de Pressão Duplo 2NA | AH72: Interruptor / Comutador de Escada | AJ72: R.1 | AK72: Acrílico encarnado c/ branco | AL72: R.1Acrílico encarnado c/ branco | AM72: 10112349 | AN72: =VLOOKUP(AM72,'Tabela de preços'!B:F,5,0)*(1-AP72) -> 31.97 | AO72: =VLOOKUP(AM72,'Tabela de preços'!B:G,6,0) -> 23 | AP72: 0 | AR72: 2998
A73: branco | B73: alumínio c/ antracite mate | C73: antracite mate | D73: antracite mate | E73: antracite mate | F73: antracite mate | G73: antracite mate | H73: Inox | I73: preto | J73: preto | K73: Vidro branco c/ preto | M73: preto | N73: preto | O73: Vidro transp. c/ preto | P73: saliente branco | Q73: encastrado cinzento | S73: Botão de Pressão Duplo 2NA | T73: Botão de Pressão Duplo 2NA | U73: Botão de Pressão Duplo 2NA | V73: Botão de Pressão Duplo 2NA | W73: Botão de Pressão Duplo 2NA | X73: Botão de Pressão Duplo 2NA | Y73: Botão de Pressão Duplo 2NA | Z73: Botão de Pressão Duplo 4NA | AA73: Botão de Pressão Duplo 2NA | AB73: Botão de Pressão Duplo 2NA | AC73: Botão de Pressão Duplo 2NA | AE73: Botão de Pressão Simples 1NA | AF73: Botão de Pressão Simples 1NA | AG73: Botão de Pressão Simples 1NA | AH73: Comutador de Lustre | AJ73: R.1 | AK73: Acrílico encarnado c/ preto | AL73: R.1Acrílico encarnado c/ preto | AM73: 10112344 | AN73: =VLOOKUP(AM73,'Tabela de preços'!B:F,5,0)*(1-AP73) -> 31.97 | AO73: =VLOOKUP(AM73,'Tabela de preços'!B:G,6,0) -> 23 | AP73: 0 | AR73: 3031
A74: creme | B74: dourado c/ branco mate | C74: alumínio mate | D74: alumínio mate | E74: alumínio mate | F74: alumínio mate | I74: Vidro branco | J74: Vidro branco | K74: Vidro preto c/ branco | M74: Vidro branco | N74: porcelana branco | O74: Vidro branco c/ branco | P74: encastrado cinzento | Q74: saliente cinzento | S74: Botão de Pressão Duplo 4NA | T74: Botão de Pressão Duplo 4NA | U74: Botão de Pressão Duplo 4NA | V74: Botão de Pressão Duplo 4NA | W74: Botão de Pressão Duplo 4NA | X74: Botão de Pressão Duplo 4NA | Y74: Botão de Pressão Duplo 4NA | Z74: Botão de Pressão Simples 1NA | AA74: Botão de Pressão Duplo 4NA | AB74: Botão de Pressão Duplo 4NA | AC74: Botão de Pressão Duplo 4NA | AE74: Comutador de Lustre | AF74: Comutador de Lustre | AG74: Comutador de Lustre | AH74: Inversor | AJ74: R.1 | AK74: Acrílico laranja c/ branco | AL74: R.1Acrílico laranja c/ branco | AM74: 10112339 | AN74: =VLOOKUP(AM74,'Tabela de preços'!B:F,5,0)*(1-AP74) -> 31.97 | AO74: =VLOOKUP(AM74,'Tabela de preços'!B:G,6,0) -> 23 | AP74: 0 | AR74: 3032
A75: antracite mate | B75: dourado c/ antracite mate | C75: Vidro c/ branco mate | F75: Vidro c/ branco mate | I75: Vidro preto | J75: Vidro preto | K75: Vidro preto c/ preto | M75: Vidro preto | N75: porcelana preto | O75: Vidro branco c/ preto | P75: saliente cinzento | S75: Botão de Pressão Simples 1NA | T75: Botão de Pressão Simples 1NA | U75: Botão de Pressão Simples 1NA | V75: Botão de Pressão Simples 1NA | W75: Botão de Pressão Simples 1NA | X75: Botão de Pressão Simples 1NA | Y75: Botão de Pressão Simples 1NA | Z75: BP KNX Comfort 1 tecla | AA75: Botão de Pressão Simples 1NA | AB75: Botão de Pressão Simples 1NA | AC75: Botão de Pressão Simples 1NA | AE75: Comutador para Estores | AF75: Comutador para Estores | AG75: Comutador para Estores | AH75: Comutador de Escada Duplo | AJ75: R.1 | AK75: Acrílico laranja c/ preto | AL75: R.1Acrílico laranja c/ preto | AM75: 10112334 | AN75: =VLOOKUP(AM75,'Tabela de preços'!B:F,5,0)*(1-AP75) -> 31.97 | AO75: =VLOOKUP(AM75,'Tabela de preços'!B:G,6,0) -> 23 | AP75: 0 | AR75: 3035
A76: alumínio mate | B76: preto c/ branco mate | C76: Vidro c/ antracite mate | F76: Vidro c/ antracite mate | I76: Alumínio c/ branco | J76: Alumínio c/ branco | K76: Alumínio c/ branco | M76: Alumínio c/ branco | S76: BP KNX Comfort 1 tecla | T76: BP KNX Comfort 1 tecla | U76: BP KNX Comfort 1 tecla | V76: BP KNX Comfort 1 tecla | W76: BP KNX Comfort 1 tecla | X76: BP KNX Comfort 1 tecla | Y76: BP KNX Comfort 1 tecla | Z76: BP KNX Comfort 2 teclas | AA76: BP KNX Comfort 1 tecla | AB76: BP KNX Comfort 1 tecla | AC76: BP KNX Comfort 1 tecla | AE76: Tomada fibra óptica Duplex-SC | AF76: Tomada fibra óptica Duplex-SC | AG76: Tomada fibra óptica Duplex-SC | AH76: Botão de Pressão Simples 1NA | AJ76: R.3 | AK76: branco | AL76: R.3branco | AM76: 10112289 | AN76: =VLOOKUP(AM76,'Tabela de preços'!B:F,5,0)*(1-AP76) -> 3.21 | AO76: =VLOOKUP(AM76,'Tabela de preços'!B:G,6,0) -> 23 | AP76: 0 | AR76: 3036
B77: preto c/ antracite mate | C77: Vidro c/ alumínio mate | F77: Alumínio c/ branco mate | I77: Alumínio c/ preto | J77: Alumínio c/ preto | K77: Alumínio c/ preto | M77: Alumínio c/ preto | S77: BP KNX Comfort 2 teclas | T77: BP KNX Comfort 2 teclas | U77: BP KNX Comfort 2 teclas | V77: BP KNX Comfort 2 teclas | W77: BP KNX Comfort 2 teclas | X77: BP KNX Comfort 2 teclas | Y77: BP KNX Comfort 2 teclas | Z77: BP KNX Comfort 3 teclas | AA77: BP KNX Comfort 2 teclas | AB77: BP KNX Comfort 2 teclas | AC77: BP KNX Comfort 2 teclas | AE77: Interruptor / Comutador de Escada | AF77: Interruptor / Comutador de Escada | AG77: Interruptor / Comutador de Escada | AH77: Botão de Pressão Duplo 2NA | AJ77: R.3 | AK77: preto | AL77: R.3preto | AM77: 10112245 | AN77: =VLOOKUP(AM77,'Tabela de preços'!B:F,5,0)*(1-AP77) -> 4.75 | AO77: =VLOOKUP(AM77,'Tabela de preços'!B:G,6,0) -> 23 | AP77: 0 | AR77: 3037
B78: encarnado c/ branco mate | C78: Alumínio c/ branco mate | F78: Alumínio c/ antracite mate | I78: Inox c/ branco | J78: Inox c/ branco | K78: Inox c/ branco | M78: Inox c/ branco | S78: BP KNX Comfort 3 teclas | T78: BP KNX Comfort 3 teclas | U78: BP KNX Comfort 3 teclas | V78: BP KNX Comfort 3 teclas | W78: BP KNX Comfort 3 teclas | X78: BP KNX Comfort 3 teclas | Y78: BP KNX Comfort 3 teclas | Z78: BP KNX Comfort 4 teclas | AA78: Comutador de Escada de Cordão | AB78: Comutador de Escada de Cordão | AC78: Comutador de Escada de Cordão | AE78: Interruptor de Cartão de Hotel | AF78: Interruptor de Cartão de Hotel | AG78: Inversor | AH78: Comutador para Estores | AJ78: R.3 | AK78: Vidro branco | AL78: R.3Vidro branco | AM78: 10112209 | AN78: =VLOOKUP(AM78,'Tabela de preços'!B:F,5,0)*(1-AP78) -> 31.97 | AO78: =VLOOKUP(AM78,'Tabela de preços'!B:G,6,0) -> 23 | AP78: 0 | AR78: 3966
B79: encarnado c/ antracite mate | C79: Alumínio c/ antracite mate | F79: Alumínio c/ alumínio mate | I79: Inox c/ preto | J79: Inox c/ preto | K79: Inox c/ preto | M79: Inox c/ preto | S79: BP KNX Comfort 4 teclas | T79: BP KNX Comfort 4 teclas | U79: BP KNX Comfort 4 teclas | V79: BP KNX Comfort 4 teclas | W79: BP KNX Comfort 4 teclas | X79: BP KNX Comfort 4 teclas | Y79: BP KNX Comfort 4 teclas | Z79: Comutador de Escada Duplo | AA79: Comutador de Escada Duplo | AB79: Comutador de Escada Duplo | AC79: Comutador de Escada Duplo | AE79: Inversor | AF79: Inversor | AG79: Tomada RJ45 cat.6, Dupla, Blindada | AH79: Tomada Schuko com Obturadores | AJ79: R.3 | AK79: Vidro preto | AL79: R.3Vidro preto | AM79: 10112216 | AN79: =VLOOKUP(AM79,'Tabela de preços'!B:F,5,0)*(1-AP79) -> 31.97 | AO79: =VLOOKUP(AM79,'Tabela de preços'!B:G,6,0) -> 23 | AP79: 0 | AR79: 4468
B80: castanho c/ branco mate | C80: Inox c/ branco mate | F80: Inox c/ branco mate | I80: Ardósia c/ branco | S80: Comutador de Escada de Cordão | T80: Comutador de Escada de Cordão | U80: Comutador de Escada de Cordão | V80: Comutador de Escada de Cordão | W80: Comutador de Escada de Cordão | X80: Comutador de Escada de Cordão | Y80: Comutador de Escada de Cordão | Z80: Comutador de Lustre | AA80: Comutador de Lustre | AB80: Comutador de Lustre | AC80: Comutador de Lustre | AE80: Tomada RJ45 cat.6, Dupla, Blindada | AF80: Tomada RJ45 cat.6, Dupla, Blindada | AG80: Tomada RJ45 cat.6, Simples, Blindada | AH80: Tomada Schuko com Tampa e Obturadores | AJ80: R.3 | AK80: Alumínio c/ branco | AL80: R.3Alumínio c/ branco | AM80: 10112274 | AN80: =VLOOKUP(AM80,'Tabela de preços'!B:F,5,0)*(1-AP80) -> 31.97 | AO80: =VLOOKUP(AM80,'Tabela de preços'!B:G,6,0) -> 23 | AP80: 0 | AR80: 4470
B81: castanho c/ antracite mate | C81: Inox c/ antracite mate | F81: Inox c/ antracite mate | I81: Ardósia c/ preto | R81: 1 | S81: Comutador de Escada Duplo | T81: Comutador de Escada Duplo | U81: Comutador de Escada Duplo | V81: Comutador de Escada Duplo | W81: Comutador de Escada Duplo | X81: Comutador de Escada Duplo | Y81: Comutador de Escada Duplo | Z81: Comutador para Estores | AA81: Comutador para Estores | AB81: Comutador para Estores | AC81: Comutador para Estores | AE81: Tomada RJ45 cat.6, Simples, Blindada | AF81: Tomada RJ45 cat.6, Simples, Blindada | AG81: Tomada Schuko com Obturadores | AH81: BP KNX Comfort 1 tecla | AJ81: R.3 | AK81: Alumínio c/ preto | AL81: R.3Alumínio c/ preto | AM81: 10112284 | AN81: =VLOOKUP(AM81,'Tabela de preços'!B:F,5,0)*(1-AP81) -> 31.97 | AO81: =VLOOKUP(AM81,'Tabela de preços'!B:G,6,0) -> 23 | AP81: 0 | AR81: 4505
F82: Inox c/ alumínio mate | I82: Betão c/ branco | R82: 2 | S82: Comutador de Lustre | T82: Comutador de Lustre | U82: Comutador de Lustre | V82: Comutador de Lustre | W82: Comutador de Lustre | X82: Comutador de Lustre | Y82: Comutador de Lustre | Z82: Controlador ambiente KNX com display | AA82: Detector movimento KNX 1,1m | AB82: Detector movimento KNX 1,1m | AC82: Detector movimento KNX 1,1m | AE82: Tomada Schuko com Obturadores | AF82: Tomada Schuko com Obturadores | AG82: Tomada TV/FM | AH82: BP KNX Comfort 2 teclas | AJ82: R.3 | AK82: Inox c/ branco | AL82: R.3Inox c/ branco | AM82: 10112214 | AN82: =VLOOKUP(AM82,'Tabela de preços'!B:F,5,0)*(1-AP82) -> 31.97 | AO82: =VLOOKUP(AM82,'Tabela de preços'!B:G,6,0) -> 23 | AP82: 0 | AR82: 4582
F83: Betão c/ branco mate | I83: Betão c/ preto | R83: 3 | S83: Comutador para Estores | T83: Comutador para Estores | U83: Comutador para Estores | V83: Comutador para Estores | W83: Comutador para Estores | X83: Comutador para Estores | Y83: Comutador para Estores | Z83: Detector movimento KNX 1,1m | AA83: Detector movimento KNX 2,2m | AB83: Detector movimento KNX 2,2m | AC83: Detector movimento KNX 2,2m | AE83: Tomada Schuko com Tampa e Obturadores | AF83: Tomada Schuko com Tampa e Obturadores | AG83: Tomada USB Carregamento | AJ83: R.3 | AK83: Inox c/ preto | AL83: R.3Inox c/ preto | AM83: 10112204 | AN83: =VLOOKUP(AM83,'Tabela de preços'!B:F,5,0)*(1-AP83) -> 31.97 | AO83: =VLOOKUP(AM83,'Tabela de preços'!B:G,6,0) -> 23 | AP83: 0 | AR83: 4583
F84: Betão c/ antracite mate | I84: Madeira carvalho c/ branco | N84: Quadro Duplo Horizontal | R84: 4 | S84: Controlador ambiente KNX com display | T84: Controlador ambiente KNX com display | U84: Controlador ambiente KNX com display | V84: Controlador ambiente KNX com display | W84: Controlador ambiente KNX com display | X84: Controlador ambiente KNX com display | Y84: Controlador ambiente KNX com display | Z84: Detector movimento KNX 2,2m | AA84: Tomada fibra óptica Duplex-SC | AB84: Tomada fibra óptica Duplex-SC | AC84: Interruptor / Comutador de Escada | AE84: Tomada Schuko Encarnada, c/ Obturadores | AF84: Tomada Schuko Encarnada, c/ Obturadores | AG84: Variador Rotativo | AJ84: R.classic | AK84: branco | AL84: R.classicbranco | AM84: 10112089 | AN84: =VLOOKUP(AM84,'Tabela de preços'!B:F,5,0)*(1-AP84) -> 5.91 | AO84: =VLOOKUP(AM84,'Tabela de preços'!B:G,6,0) -> 24 | AP84: 0 | AR84: 4586
F85: Betão c/ alumínio mate | I85: Madeira carvalho c/ preto | N85: Quadro Duplo Vertical | R85: 5 | S85: Detector movimento KNX 1,1m | T85: Detector movimento KNX 1,1m | U85: Detector movimento KNX 1,1m | V85: Detector movimento KNX 1,1m | W85: Detector movimento KNX 1,1m | X85: Detector movimento KNX 1,1m | Y85: Detector movimento KNX 1,1m | Z85: Interruptor / Comutador de Escada | AA85: Interruptor / Comutador de Escada | AB85: Interruptor / Comutador de Escada | AC85: Interruptor de Cartão de Hotel | AE85: Tomada TV/FM | AF85: Tomada TV/FM | AJ85: R.classic | AK85: preto | AL85: R.classicpreto | AM85: 10112045 | AN85: =VLOOKUP(AM85,'Tabela de preços'!B:F,5,0)*(1-AP85) -> 5.91 | AO85: =VLOOKUP(AM85,'Tabela de preços'!B:G,6,0) -> 24 | AP85: 0 | AR85: 4587
F86: Ardósia c/ branco mate | I86: Acrílico encarnado c/ branco | N86: Quadro Triplo Horizontal | R86: 6 | S86: Detector movimento KNX 2,2m | T86: Detector movimento KNX 2,2m | U86: Detector movimento KNX 2,2m | V86: Detector movimento KNX 2,2m | W86: Detector movimento KNX 2,2m | X86: Detector movimento KNX 2,2m | Y86: Detector movimento KNX 2,2m | Z86: Interruptor de Cartão de Hotel | AA86: Interruptor de Cartão de Hotel | AB86: Interruptor de Cartão de Hotel | AC86: Inversor | AE86: Tomada USB Carregamento | AF86: Tomada USB Carregamento | AJ86: R.classic | AK86: Vidro branco | AL86: R.classicVidro branco | AM86: 10112009 | AN86: =VLOOKUP(AM86,'Tabela de preços'!B:F,5,0)*(1-AP86) -> 33.21 | AO86: =VLOOKUP(AM86,'Tabela de preços'!B:G,6,0) -> 24 | AP86: 0 | AR86: 4604
F87: Ardósia c/ antracite mate | I87: Acrílico encarnado c/ preto | N87: Quadro Triplo Vertical | R87: 7 | S87: Tomada fibra óptica Duplex-SC | T87: Tomada fibra óptica Duplex-SC | U87: Tomada fibra óptica Duplex-SC | V87: Tomada fibra óptica Duplex-SC | W87: Tomada fibra óptica Duplex-SC | X87: Tomada fibra óptica Duplex-SC | Y87: Tomada fibra óptica Duplex-SC | Z87: Inversor | AA87: Inversor | AB87: Inversor | AC87: Tomada fibra óptica Duplex-SC | AE87: Variador Rotativo | AF87: Variador Rotativo | AJ87: R.classic | AK87: Vidro preto | AL87: R.classicVidro preto | AM87: 10112016 | AN87: =VLOOKUP(AM87,'Tabela de preços'!B:F,5,0)*(1-AP87) -> 33.21 | AO87: =VLOOKUP(AM87,'Tabela de preços'!B:G,6,0) -> 24 | AP87: 0 | AR87: 4605
F88: Ardósia c/ alumínio mate | I88: Acrílico laranja c/ branco | N88: Quadro Quádruplo Horizontal | R88: 8 | S88: Interruptor / Comutador de Escada | T88: Interruptor / Comutador de Escada | U88: Interruptor / Comutador de Escada | V88: Interruptor / Comutador de Escada | W88: Interruptor / Comutador de Escada | X88: Interruptor / Comutador de Escada | Y88: Interruptor / Comutador de Escada | Z88: Termóstato KNX com display | AA88: Tomada RJ45 cat.6, Dupla, Blindada | AB88: Tomada RJ45 cat.6, Dupla, Blindada | AC88: Tomada RJ45 cat.6, Dupla, Blindada | AJ88: R.classic | AK88: Alumínio c/ branco | AL88: R.classicAlumínio c/ branco | AM88: 10112074 | AN88: =VLOOKUP(AM88,'Tabela de preços'!B:F,5,0)*(1-AP88) -> 33.21 | AO88: =VLOOKUP(AM88,'Tabela de preços'!B:G,6,0) -> 24 | AP88: 0 | AR88: 4606
I89: Acrílico laranja c/ preto | N89: Quadro Quádruplo Vertical | R89: 9 | S89: Interruptor de Cartão de Hotel | T89: Interruptor de Cartão de Hotel | U89: Interruptor de Cartão de Hotel | V89: Interruptor de Cartão de Hotel | W89: Interruptor de Cartão de Hotel | X89: Interruptor de Cartão de Hotel | Y89: Interruptor de Cartão de Hotel | Z89: Tomada RJ45 cat.6, Dupla, Blindada | AA89: Tomada RJ45 cat.6, Simples, Blindada | AB89: Tomada RJ45 cat.6, Simples, Blindada | AC89: Tomada RJ45 cat.6, Simples, Blindada | AJ89: R.classic | AK89: Alumínio c/ preto | AL89: R.classicAlumínio c/ preto | AM89: 10112084 | AN89: =VLOOKUP(AM89,'Tabela de preços'!B:F,5,0)*(1-AP89) -> 33.21 | AO89: =VLOOKUP(AM89,'Tabela de preços'!B:G,6,0) -> 24 | AP89: 0 | AR89: 4637
N90: Quadro Quíntuplo Horizontal | R90: 10 | S90: Inversor | T90: Inversor | U90: Inversor | V90: Inversor | W90: Inversor | X90: Inversor | Y90: Inversor | Z90: Tomada RJ45 cat.6, Simples, Blindada | AA90: Tomada Schuko com Obturadores | AB90: Tomada Schuko com Obturadores | AC90: Tomada Schuko com Obturadores | AJ90: R.classic | AK90: Inox c/ branco | AL90: R.classicInox c/ branco | AM90: 10112014 | AN90: =VLOOKUP(AM90,'Tabela de preços'!B:F,5,0)*(1-AP90) -> 33.21 | AO90: =VLOOKUP(AM90,'Tabela de preços'!B:G,6,0) -> 24 | AP90: 0 | AR90: 4755
N91: Quadro Quíntuplo Vertical | R91: 11 | S91: Termóstato KNX com display | T91: Termóstato KNX com display | U91: Termóstato KNX com display | V91: Termóstato KNX com display | W91: Termóstato KNX com display | X91: Termóstato KNX com display | Y91: Termóstato KNX com display | Z91: Tomada Schuko com Obturadores | AA91: Tomada Schuko com Tampa e Obturadores | AB91: Tomada Schuko com Tampa e Obturadores | AC91: Tomada Schuko com Tampa e Obturadores | AJ91: R.classic | AK91: Inox c/ preto | AL91: R.classicInox c/ preto | AM91: 10112014 | AN91: =VLOOKUP(AM91,'Tabela de preços'!B:F,5,0)*(1-AP91) -> 33.21 | AO91: =VLOOKUP(AM91,'Tabela de preços'!B:G,6,0) -> 24 | AP91: 0 | AR91: 5031
C92: =IF(J166=0,"sem imagem folha 2","imagem folha 2") -> sem imagem folha 2 | D92: =IF(J166=0,2,3) -> 2 | J92: COR c/ R8 | K92: =IF(L_=S.1,_s1,IF(L_=B.3,_b3,IF(L_=B.7,_b7,IF(L_=Q.1,_q1,IF(L_=Q.3,_q3,IF(L_=Q.7,_q7,IF(L_=K.1,_k1,IF(L_=K.5,_k5,IF(L_=R.1,_r1,IF(L_=R.3,_r3,IF(COR_R8=1,_R8,IF(L_=R.cl,_cl,IF(L_=S_19,_1930,IF(L_=GLAS,_gl,IF(L_=P71,_cc,IF(L_=Q71,_cm)))))))))))))))) -> FALSE | R92: 12 | S92: Tomada RJ45 cat.6, Dupla, Blindada | T92: Tomada RJ45 cat.6, Dupla, Blindada | U92: Tomada RJ45 cat.6, Dupla, Blindada | V92: Tomada RJ45 cat.6, Dupla, Blindada | W92: Tomada RJ45 cat.6, Dupla, Blindada | X92: Tomada RJ45 cat.6, Dupla, Blindada | Y92: Tomada RJ45 cat.6, Dupla, Blindada | Z92: Tomada Schuko com Tampa e Obturadores | AA92: Tomada Schuko Encarnada, c/ Obturadores | AB92: Tomada Schuko Encarnada, c/ Obturadores | AC92: Tomada Schuko Encarnada, c/ Obturadores | AJ92: 1930 | AK92: branco | AL92: 1930branco | AM92: 138109 | AN92: =VLOOKUP(AM92,'Tabela de preços'!B:F,5,0)*(1-AP92) -> 5.19 | AO92: =VLOOKUP(AM92,'Tabela de preços'!B:G,6,0) -> 24 | AP92: 0 | AR92: 5035
C93: =IF(AND(C105=0,C114=0,C115=0,C116=0,C117=0,C118=0,C119=0,C120=0,C121=0,C122=0,C123=0,C124=0,C125=0,C126=0,C127=0,C128=0,C129=0,C130=0,C131=0,C132=0,C133=0,C134=0,C135=0,C136=0,C137=0,C138=0,C139=0,C143=0,C144=0,C145=0,C146=0,C147=0,C148=0,C149=0,C150=0,H152=0,H153=0,H154=0,H155=0,H156=0,H157=0,H158=0,H159=0,H160=0,H161=0,H162=0,H163=0,H164=0,H165=0),1,2) -> 1 | R93: 13 | S93: Tomada RJ45 cat.6, Simples, Blindada | T93: Tomada RJ45 cat.6, Simples, Blindada | U93: Tomada RJ45 cat.6, Simples, Blindada | V93: Tomada RJ45 cat.6, Simples, Blindada | W93: Tomada RJ45 cat.6, Simples, Blindada | X93: Tomada RJ45 cat.6, Simples, Blindada | Y93: Tomada RJ45 cat.6, Simples, Blindada | Z93: Tomada Schuko Encarnada, c/ Obturadores | AA93: Tomada TV/FM | AB93: Tomada TV/FM | AC93: Tomada TV/FM | AJ93: 1930 | AK93: preto | AL93: 1930preto | AM93: 138101 | AN93: =VLOOKUP(AM93,'Tabela de preços'!B:F,5,0)*(1-AP93) -> 5.57 | AO93: =VLOOKUP(AM93,'Tabela de preços'!B:G,6,0) -> 24 | AP93: 0 | AR93: 5036
G94: Indisp. Série | H94: =(SUMIFS(B114:B139,D114:D139,"Indisp. Série")+SUMIFS(B114:B139,D114:D139,"Indisp. Cor"))*-1 -> 0 | J94: Função c/r8 | K94: =IF(Função_geral=1,L_g,IF(L_=K.5,L_k5,IF(L_=R.1,L_r1,IF(L_=R.3,L_r3,IF(Função_R8=1,L_r8,IF(L_=R.cl,L_cl,IF(L_=S_19,L_19,IF(L_=GLAS,L_gl,IF(L_=AH71,L_cu,IF(L_=AI71,L_cu)))))))))) -> FALSE | R94: 14 | S94: Tomada Schuko com USB A+C e Obturadores | T94: Tomada Schuko com USB A+C e Obturadores | U94: Tomada Schuko com USB A+C e Obturadores | V94: Tomada Schuko com USB A+C e Obturadores | W94: Tomada Schuko com USB A+C e Obturadores | X94: Tomada Schuko com USB A+C e Obturadores | Y94: Tomada Schuko com USB A+C e Obturadores | Z94: Tomada Schuko com USB A+C e Obturadores | AA94: Tomada USB Carregamento | AB94: Tomada USB Carregamento | AC94: Tomada USB Carregamento | AJ94: 1930 | AK94: porcelana branco | AL94: 1930porcelana branco | AM94: 138169 | AN94: =VLOOKUP(AM94,'Tabela de preços'!B:F,5,0)*(1-AP94) -> 31.56 | AO94: =VLOOKUP(AM94,'Tabela de preços'!B:G,6,0) -> 24 | AP94: 0 | AR94: 5101
D95: L_g | E95: =IF(OR(L_=S.1,L_=B.3,L_=B.7,L_=Q.1,L_=Q.3,L_=Q.7,L_=K.1),1,0) -> 0 | G95: Indisp. Cor | S95: Tomada Schuko com Obturadores | T95: Tomada Schuko com Obturadores | U95: Tomada Schuko com Obturadores | V95: Tomada Schuko com Obturadores | W95: Tomada Schuko com Obturadores | X95: Tomada Schuko com Obturadores | Y95: Tomada Schuko com Obturadores | Z95: Tomada TV/FM | AA95: Variador Rotativo | AB95: Variador Rotativo | AC95: Variador Rotativo | AJ95: 1930 | AK95: porcelana preto | AL95: 1930porcelana preto | AM95: 138165 | AN95: =VLOOKUP(AM95,'Tabela de preços'!B:F,5,0)*(1-AP95) -> 31.56 | AO95: =VLOOKUP(AM95,'Tabela de preços'!B:G,6,0) -> 24 | AP95: 0 | AR95: 5104
S96: Tomada Schuko com Tampa e Obturadores | T96: Tomada Schuko com Tampa e Obturadores | U96: Tomada Schuko com Tampa e Obturadores | V96: Tomada Schuko com Tampa e Obturadores | W96: Tomada Schuko com Tampa e Obturadores | X96: Tomada Schuko com Tampa e Obturadores | Y96: Tomada Schuko com Tampa e Obturadores | Z96: Tomada USB Carregamento | AJ96: Glas | AK96: Vidro transp. c/ branco | AL96: GlasVidro transp. c/ branco | AM96: 1091 | AN96: =VLOOKUP(AM96,'Tabela de preços'!B:F,5,0)*(1-AP96) -> 23.26 | AO96: =VLOOKUP(AM96,'Tabela de preços'!B:G,6,0) -> 24 | AP96: 0 | AR96: 81836
S97: Tomada Schuko Encarnada, c/ Obturadores | T97: Tomada Schuko Encarnada, c/ Obturadores | U97: Tomada Schuko Encarnada, c/ Obturadores | V97: Tomada Schuko Encarnada, c/ Obturadores | W97: Tomada Schuko Encarnada, c/ Obturadores | X97: Tomada Schuko Encarnada, c/ Obturadores | Y97: Tomada Schuko Encarnada, c/ Obturadores | Z97: Variador Rotativo | AJ97: Glas | AK97: Vidro transp. c/ preto | AL97: GlasVidro transp. c/ preto | AM97: 1091 | AN97: =VLOOKUP(AM97,'Tabela de preços'!B:F,5,0)*(1-AP97) -> 23.26 | AO97: =VLOOKUP(AM97,'Tabela de preços'!B:G,6,0) -> 24 | AP97: 0 | AR97: 81837
L98: =INDEX(Imagens!$H$2:$H$3,$D$92) -> 0 | S98: Tomada TV/FM | T98: Tomada TV/FM | U98: Tomada TV/FM | V98: Tomada TV/FM | W98: Tomada TV/FM | X98: Tomada TV/FM | Y98: Tomada TV/FM | AJ98: Glas | AK98: Vidro branco c/ branco | AL98: GlasVidro branco c/ branco | AM98: 109109 | AN98: =VLOOKUP(AM98,'Tabela de preços'!B:F,5,0)*(1-AP98) -> 25.59 | AO98: =VLOOKUP(AM98,'Tabela de preços'!B:G,6,0) -> 24 | AP98: 0 | AR98: 91820
S99: Tomada USB Carregamento | T99: Tomada USB Carregamento | U99: Tomada USB Carregamento | V99: Tomada USB Carregamento | W99: Tomada USB Carregamento | X99: Tomada USB Carregamento | Y99: Tomada USB Carregamento | AJ99: Glas | AK99: Vidro branco c/ preto | AL99: GlasVidro branco c/ preto | AM99: 109109 | AN99: =VLOOKUP(AM99,'Tabela de preços'!B:F,5,0)*(1-AP99) -> 25.59 | AO99: =VLOOKUP(AM99,'Tabela de preços'!B:G,6,0) -> 24 | AP99: 0 | AR99: 91844
S100: Variador Rotativo | T100: Variador Rotativo | U100: Variador Rotativo | V100: Variador Rotativo | W100: Variador Rotativo | X100: Variador Rotativo | Y100: Variador Rotativo | AJ100: cubyko componível | AK100: encastrado cinzento | AL100: cubyko componívelencastrado cinzento | AM100: WNA401 | AN100: =VLOOKUP(AM100,'Tabela de preços'!B:F,5,0)*(1-AP100) -> 5.56 | AO100: =VLOOKUP(AM100,'Tabela de preços'!B:G,6,0) -> 20 | AP100: =VLOOKUP(AO100,$B$169:$C$175,2,0) -> 0 | AR100: 91853
AJ101: cubyko componível | AK101: encastrado branco | AL101: cubyko componívelencastrado branco | AM101: WNA401B | AN101: =VLOOKUP(AM101,'Tabela de preços'!B:F,5,0)*(1-AP101) -> 5.56 | AO101: =VLOOKUP(AM101,'Tabela de preços'!B:G,6,0) -> 20 | AP101: =VLOOKUP(AO101,$B$169:$C$175,2,0) -> 0 | AR101: 91883
B102: Orçamento | L102: Nota de Encomenda | AJ102: cubyko componível | AK102: saliente cinzento | AL102: cubyko componívelsaliente cinzento | AM102: WNA681 | AN102: =VLOOKUP(AM102,'Tabela de preços'!B:F,5,0)*(1-AP102) -> 3.32 | AO102: =VLOOKUP(AM102,'Tabela de preços'!B:G,6,0) -> 20 | AP102: 0 | AR102: 91887
AJ103: cubyko componível | AK103: saliente branco | AL103: cubyko componívelsaliente branco | AM103: WNA681B | AN103: =VLOOKUP(AM103,'Tabela de preços'!B:F,5,0)*(1-AP103) -> 3.32 | AO103: =VLOOKUP(AM103,'Tabela de preços'!B:G,6,0) -> 20 | AP103: 0 | AR103: 91933
B104: Série: | D104: =IF($C$104=0,"1- Selecionar Série","") -> 1- Selecionar Série | H104: Data: | L104: Nome: | O104: Data: | P104: =IF(I104<>0,I104,"") ->  | AJ104: R.8 | AK104: Vidro branco c/ branco | AL104: R.8Vidro branco c/ branco | AM104: 10112609 | AN104: =VLOOKUP(AM104,'Tabela de preços'!B:F,5,0)*(1-AP104) -> 38.72 | AO104: =VLOOKUP(AM104,'Tabela de preços'!B:G,6,0) -> 23 | AP104: 0 | AR104: 100101
B105: Cor: | D105: =IF(AND($C$104<>0,$C$105=0),"2- Selecionar cor","") ->  | L105: Morada: | AJ105: R.8 | AK105: Vidro branco c/ preto | AL105: R.8Vidro branco c/ preto | AM105: 10112609 | AN105: =VLOOKUP(AM105,'Tabela de preços'!B:F,5,0)*(1-AP105) -> 38.72 | AO105: =VLOOKUP(AM105,'Tabela de preços'!B:G,6,0) -> 23 | AP105: 0 | AR105: 100109
O106: Observações: | AJ106: R.8 | AK106: Vidro preto c/ branco | AL106: R.8Vidro preto c/ branco | AM106: 10112616 | AN106: =VLOOKUP(AM106,'Tabela de preços'!B:F,5,0)*(1-AP106) -> 38.72 | AO106: =VLOOKUP(AM106,'Tabela de preços'!B:G,6,0) -> 23 | AP106: 0 | AR106: 100920
B107: Nome de Obra: | AJ107: R.8 | AK107: Vidro preto c/ preto | AL107: R.8Vidro preto c/ preto | AM107: 10112616 | AN107: =VLOOKUP(AM107,'Tabela de preços'!B:F,5,0)*(1-AP107) -> 38.72 | AO107: =VLOOKUP(AM107,'Tabela de preços'!B:G,6,0) -> 23 | AP107: 0 | AR107: 100921
B108: Localidade: | L108: Código Postal: | AJ108: R.8 | AK108: Alumínio c/ branco | AL108: R.8Alumínio c/ branco | AM108: 10112674 | AN108: =VLOOKUP(AM108,'Tabela de preços'!B:F,5,0)*(1-AP108) -> 38.72 | AO108: =VLOOKUP(AM108,'Tabela de preços'!B:G,6,0) -> 23 | AP108: 0 | AR108: 103701
AJ109: R.8 | AK109: Alumínio c/ preto | AL109: R.8Alumínio c/ preto | AM109: 10112674 | AN109: =VLOOKUP(AM109,'Tabela de preços'!B:F,5,0)*(1-AP109) -> 38.72 | AO109: =VLOOKUP(AM109,'Tabela de preços'!B:G,6,0) -> 23 | AP109: 0 | AR109: 103920
B110: Cliente: | H110: N.º Orçamento: | L110: NIF: | AJ110: R.8 | AK110: Inox c/ branco | AL110: R.8Inox c/ branco | AM110: 10112614 | AN110: =VLOOKUP(AM110,'Tabela de preços'!B:F,5,0)*(1-AP110) -> 38.72 | AO110: =VLOOKUP(AM110,'Tabela de preços'!B:G,6,0) -> 23 | AP110: 0 | AR110: 103921
AJ111: R.8 | AK111: Inox c/ preto | AL111: R.8Inox c/ preto | AM111: 10112614 | AN111: =VLOOKUP(AM111,'Tabela de preços'!B:F,5,0)*(1-AP111) -> 38.72 | AO111: =VLOOKUP(AM111,'Tabela de preços'!B:G,6,0) -> 23 | AP111: 0 | AR111: 104001
B112: Quantidade | C112: Função | D112: Mecanismo | F112: Centro | H112: Quadro | J112: Preço Total Tabela | L112: Referência | M112: Designação | N112: Quantidade | O112: Preço Tabela Unitário | P112: Grupo | Q112: Desconto | R112: Valor | AJ112: R.8 Alvenaria | AK112: Vidro branco c/ branco | AL112: R.8 AlvenariaVidro branco c/ branco | AM112: 10112609 | AN112: =VLOOKUP(AM112,'Tabela de preços'!B:F,5,0)*(1-AP112) -> 38.72 | AO112: =VLOOKUP(AM112,'Tabela de preços'!B:G,6,0) -> 23 | AP112: 0 | AR112: 106420
D113: Referência | E113: Grupo | F113: Referência | G113: Grupo | H113: Referência | I113: Grupo | AJ113: R.8 Alvenaria | AK113: Vidro branco c/ preto | AL113: R.8 AlvenariaVidro branco c/ preto | AM113: 10112609 | AN113: =VLOOKUP(AM113,'Tabela de preços'!B:F,5,0)*(1-AP113) -> 38.72 | AO113: =VLOOKUP(AM113,'Tabela de preços'!B:G,6,0) -> 23 | AP113: 0 | AR113: 106421
D114: =IF(C114<>"",IFERROR(VLOOKUP(CONCATENATE($C$104,$C$105,C114),'Base de dados'!D:G,2,0),"Selecionar cor"),"") ->  | E114: =IF(D114<>"",IFERROR(VLOOKUP(D114,'Tabela de preços'!$B:$G,6,0),"-"),"") ->  | F114: =IF(C114<>"",IFERROR(VLOOKUP(CONCATENATE($C$104,$C$105,C114),'Base de dados'!D:G,3,0),"Selecionar cor"),"") ->  | G114: =IF(F114<>"",IFERROR(VLOOKUP(F114,'Tabela de preços'!$B:$G,6,0),"-"),"") ->  | H114: =IF(C114<>"",IFERROR(VLOOKUP(CONCATENATE($C$104,$C$105,C114),'Base de dados'!D:G,4,0),"Selecionar cor"),"") ->  | I114: =IF(H114<>"",IFERROR(VLOOKUP(H114,'Tabela de preços'!$B:$G,6,0),"-"),"") ->  | J114: =(N13+Q13+T13)*B114 -> 0 | L114: =IF(+'Ordenar Auto'!Q5=0,+'Ordenar Auto'!Q6,+'Ordenar Auto'!Q5) ->  | M114: =IF(L114<>"",VLOOKUP(L114,'Tabela de preços'!$B:$G,3,0),"") ->  | N114: =VLOOKUP(L114,'Ordenar Auto'!Q:R,2,0) ->  | O114: =IF(L114<>"",VLOOKUP(L114,'Tabela de preços'!$B:$G,5,0),"") ->  | P114: =IF(L114<>"",VLOOKUP(L114,'Tabela de preços'!$B:$G,6,0),"") ->  | Q114: =IF(L114<>"",IF(P114=$B$169,O114*$C$169,IF(P114=$B$170,O114*$C$170,IF(P114=$B$171,O114*$C$171,IF(P114=$B$172,O114*$C$172,IF(P114=$B$173,O114*$C$173,IF(P114=$B$174,O114*$C$174,IF(P114=$B$175,O114*$C$175,0))))))),"") ->  | R114: =IF(L114<>"",(O114-Q114)*N114,"") ->  | AJ114: R.8 Alvenaria | AK114: Vidro preto c/ branco | AL114: R.8 AlvenariaVidro preto c/ branco | AM114: 10112616 | AN114: =VLOOKUP(AM114,'Tabela de preços'!B:F,5,0)*(1-AP114) -> 38.72 | AO114: =VLOOKUP(AM114,'Tabela de preços'!B:G,6,0) -> 23 | AP114: 0 | AR114: 109009
D115: =IF(C115<>"",IFERROR(VLOOKUP(CONCATENATE($C$104,$C$105,C115),'Base de dados'!D:G,2,0),"Selecionar cor"),"") ->  | E115: =IF(D115<>"",IFERROR(VLOOKUP(D115,'Tabela de preços'!$B:$G,6,0),"-"),"") ->  | F115: =IF(C115<>"",IFERROR(VLOOKUP(CONCATENATE($C$104,$C$105,C115),'Base de dados'!D:G,3,0),"Selecionar cor"),"") ->  | G115: =IF(F115<>"",IFERROR(VLOOKUP(F115,'Tabela de preços'!$B:$G,6,0),"-"),"") ->  | H115: =IF(C115<>"",IFERROR(VLOOKUP(CONCATENATE($C$104,$C$105,C115),'Base de dados'!D:G,4,0),"Selecionar cor"),"") ->  | I115: =IF(H115<>"",IFERROR(VLOOKUP(H115,'Tabela de preços'!$B:$G,6,0),"-"),"") ->  | J115: 0 | L115: =IF(OR(+'Ordenar Auto'!$Q$5=0,+'Ordenar Auto'!$Q$6=0),+'Ordenar Auto'!Q7,+'Ordenar Auto'!Q6) ->  | M115: =IF(L115<>"",VLOOKUP(L115,'Tabela de preços'!$B:$G,3,0),"") ->  | N115: =VLOOKUP(L115,'Ordenar Auto'!Q:R,2,0) ->  | O115: =IF(L115<>"",VLOOKUP(L115,'Tabela de preços'!$B:$G,5,0),"") ->  | P115: =IF(L115<>"",VLOOKUP(L115,'Tabela de preços'!$B:$G,6,0),"") ->  | R115: =IF(L115<>"",(O115-Q115)*N115,"") ->  | AJ115: R.8 Alvenaria | AK115: Vidro preto c/ preto | AL115: R.8 AlvenariaVidro preto c/ preto | AM115: 10112616 | AN115: =VLOOKUP(AM115,'Tabela de preços'!B:F,5,0)*(1-AP115) -> 38.72 | AO115: =VLOOKUP(AM115,'Tabela de preços'!B:G,6,0) -> 23 | AP115: 0 | AR115: 109109
D116: =IF(C116<>"",IFERROR(VLOOKUP(CONCATENATE($C$104,$C$105,C116),'Base de dados'!D:G,2,0),"Selecionar cor"),"") ->  | E116: =IF(D116<>"",IFERROR(VLOOKUP(D116,'Tabela de preços'!$B:$G,6,0),"-"),"") ->  | F116: =IF(C116<>"",IFERROR(VLOOKUP(CONCATENATE($C$104,$C$105,C116),'Base de dados'!D:G,3,0),"Selecionar cor"),"") ->  | G116: =IF(F116<>"",IFERROR(VLOOKUP(F116,'Tabela de preços'!$B:$G,6,0),"-"),"") ->  | H116: =IF(C116<>"",IFERROR(VLOOKUP(CONCATENATE($C$104,$C$105,C116),'Base de dados'!D:G,4,0),"Selecionar cor"),"") ->  | I116: =IF(H116<>"",IFERROR(VLOOKUP(H116,'Tabela de preços'!$B:$G,6,0),"-"),"") ->  | J116: 0 | L116: =IF(OR(+'Ordenar Auto'!$Q$5=0,+'Ordenar Auto'!$Q$6=0,+'Ordenar Auto'!$Q$7=0),+'Ordenar Auto'!Q8,+'Ordenar Auto'!Q7) ->  | M116: =IF(L116<>"",VLOOKUP(L116,'Tabela de preços'!$B:$G,3,0),"") ->  | N116: =VLOOKUP(L116,'Ordenar Auto'!Q:R,2,0) ->  | O116: =IF(L116<>"",VLOOKUP(L116,'Tabela de preços'!$B:$G,5,0),"") ->  | P116: =IF(L116<>"",VLOOKUP(L116,'Tabela de preços'!$B:$G,6,0),"") ->  | AJ116: R.8 Alvenaria | AK116: Alumínio c/ branco | AL116: R.8 AlvenariaAlumínio c/ branco | AM116: 10112674 | AN116: =VLOOKUP(AM116,'Tabela de preços'!B:F,5,0)*(1-AP116) -> 38.72 | AO116: =VLOOKUP(AM116,'Tabela de preços'!B:G,6,0) -> 23 | AP116: 0 | AR116: 109200
D117: =IF(C117<>"",IFERROR(VLOOKUP(CONCATENATE($C$104,$C$105,C117),'Base de dados'!D:G,2,0),"Selecionar cor"),"") ->  | E117: =IF(D117<>"",IFERROR(VLOOKUP(D117,'Tabela de preços'!$B:$G,6,0),"-"),"") ->  | F117: =IF(C117<>"",IFERROR(VLOOKUP(CONCATENATE($C$104,$C$105,C117),'Base de dados'!D:G,3,0),"Selecionar cor"),"") ->  | G117: =IF(F117<>"",IFERROR(VLOOKUP(F117,'Tabela de preços'!$B:$G,6,0),"-"),"") ->  | H117: =IF(C117<>"",IFERROR(VLOOKUP(CONCATENATE($C$104,$C$105,C117),'Base de dados'!D:G,4,0),"Selecionar cor"),"") ->  | I117: =IF(H117<>"",IFERROR(VLOOKUP(H117,'Tabela de preços'!$B:$G,6,0),"-"),"") ->  | J117: 0 | L117: =IF(OR(+'Ordenar Auto'!$Q$5=0,+'Ordenar Auto'!$Q$6=0,+'Ordenar Auto'!$Q$7=0,+'Ordenar Auto'!$Q$8=0),+'Ordenar Auto'!Q9,+'Ordenar Auto'!Q8) ->  | M117: =IF(L117<>"",VLOOKUP(L117,'Tabela de preços'!$B:$G,3,0),"") ->  | N117: =VLOOKUP(L117,'Ordenar Auto'!Q:R,2,0) ->  | O117: =IF(L117<>"",VLOOKUP(L117,'Tabela de preços'!$B:$G,5,0),"") ->  | P117: =IF(L117<>"",VLOOKUP(L117,'Tabela de preços'!$B:$G,6,0),"") ->  | AJ117: R.8 Alvenaria | AK117: Alumínio c/ preto | AL117: R.8 AlvenariaAlumínio c/ preto | AM117: 10112674 | AN117: =VLOOKUP(AM117,'Tabela de preços'!B:F,5,0)*(1-AP117) -> 38.72 | AO117: =VLOOKUP(AM117,'Tabela de preços'!B:G,6,0) -> 23 | AP117: 0 | AR117: 109219
D118: =IF(C118<>"",IFERROR(VLOOKUP(CONCATENATE($C$104,$C$105,C118),'Base de dados'!D:G,2,0),"Selecionar cor"),"") ->  | E118: =IF(D118<>"",IFERROR(VLOOKUP(D118,'Tabela de preços'!$B:$G,6,0),"-"),"") ->  | F118: =IF(C118<>"",IFERROR(VLOOKUP(CONCATENATE($C$104,$C$105,C118),'Base de dados'!D:G,3,0),"Selecionar cor"),"") ->  | G118: =IF(F118<>"",IFERROR(VLOOKUP(F118,'Tabela de preços'!$B:$G,6,0),"-"),"") ->  | H118: =IF(C118<>"",IFERROR(VLOOKUP(CONCATENATE($C$104,$C$105,C118),'Base de dados'!D:G,4,0),"Selecionar cor"),"") ->  | I118: =IF(H118<>"",IFERROR(VLOOKUP(H118,'Tabela de preços'!$B:$G,6,0),"-"),"") ->  | J118: 0 | L118: =IF(OR(+'Ordenar Auto'!$Q$5=0,+'Ordenar Auto'!$Q$6=0,+'Ordenar Auto'!$Q$7=0,+'Ordenar Auto'!$Q$8=0,+'Ordenar Auto'!$Q$9=0),+'Ordenar Auto'!Q10,+'Ordenar Auto'!Q9) ->  | M118: =IF(L118<>"",VLOOKUP(L118,'Tabela de preços'!$B:$G,3,0),"") ->  | N118: =VLOOKUP(L118,'Ordenar Auto'!Q:R,2,0) ->  | O118: =IF(L118<>"",VLOOKUP(L118,'Tabela de preços'!$B:$G,5,0),"") ->  | P118: =IF(L118<>"",VLOOKUP(L118,'Tabela de preços'!$B:$G,6,0),"") ->  | AJ118: R.8 Alvenaria | AK118: Inox c/ branco | AL118: R.8 AlvenariaInox c/ branco | AM118: 10112614 | AN118: =VLOOKUP(AM118,'Tabela de preços'!B:F,5,0)*(1-AP118) -> 38.72 | AO118: =VLOOKUP(AM118,'Tabela de preços'!B:G,6,0) -> 23 | AP118: 0 | AR118: 109300
D119: =IF(C119<>"",IFERROR(VLOOKUP(CONCATENATE($C$104,$C$105,C119),'Base de dados'!D:G,2,0),"Selecionar cor"),"") ->  | E119: =IF(D119<>"",IFERROR(VLOOKUP(D119,'Tabela de preços'!$B:$G,6,0),"-"),"") ->  | F119: =IF(C119<>"",IFERROR(VLOOKUP(CONCATENATE($C$104,$C$105,C119),'Base de dados'!D:G,3,0),"Selecionar cor"),"") ->  | G119: =IF(F119<>"",IFERROR(VLOOKUP(F119,'Tabela de preços'!$B:$G,6,0),"-"),"") ->  | H119: =IF(C119<>"",IFERROR(VLOOKUP(CONCATENATE($C$104,$C$105,C119),'Base de dados'!D:G,4,0),"Selecionar cor"),"") ->  | I119: =IF(H119<>"",IFERROR(VLOOKUP(H119,'Tabela de preços'!$B:$G,6,0),"-"),"") ->  | J119: 0 | L119: =IF(OR(+'Ordenar Auto'!$Q$5=0,+'Ordenar Auto'!$Q$6=0,+'Ordenar Auto'!$Q$7=0,+'Ordenar Auto'!$Q$8=0,+'Ordenar Auto'!$Q$9=0,+'Ordenar Auto'!$Q$10=0),+'Ordenar Auto'!Q11,+'Ordenar Auto'!Q10) ->  | M119: =IF(L119<>"",VLOOKUP(L119,'Tabela de preços'!$B:$G,3,0),"") ->  | N119: =VLOOKUP(L119,'Ordenar Auto'!Q:R,2,0) ->  | O119: =IF(L119<>"",VLOOKUP(L119,'Tabela de preços'!$B:$G,5,0),"") ->  | P119: =IF(L119<>"",VLOOKUP(L119,'Tabela de preços'!$B:$G,6,0),"") ->  | AJ119: R.8 Alvenaria | AK119: Inox c/ preto | AL119: R.8 AlvenariaInox c/ preto | AM119: 10112614 | AN119: =VLOOKUP(AM119,'Tabela de preços'!B:F,5,0)*(1-AP119) -> 38.72 | AO119: =VLOOKUP(AM119,'Tabela de preços'!B:G,6,0) -> 23 | AP119: 0 | AR119: 109309
D120: =IF(C120<>"",IFERROR(VLOOKUP(CONCATENATE($C$104,$C$105,C120),'Base de dados'!D:G,2,0),"Selecionar cor"),"") ->  | E120: =IF(D120<>"",IFERROR(VLOOKUP(D120,'Tabela de preços'!$B:$G,6,0),"-"),"") ->  | F120: =IF(C120<>"",IFERROR(VLOOKUP(CONCATENATE($C$104,$C$105,C120),'Base de dados'!D:G,3,0),"Selecionar cor"),"") ->  | G120: =IF(F120<>"",IFERROR(VLOOKUP(F120,'Tabela de preços'!$B:$G,6,0),"-"),"") ->  | H120: =IF(C120<>"",IFERROR(VLOOKUP(CONCATENATE($C$104,$C$105,C120),'Base de dados'!D:G,4,0),"Selecionar cor"),"") ->  | I120: =IF(H120<>"",IFERROR(VLOOKUP(H120,'Tabela de preços'!$B:$G,6,0),"-"),"") ->  | J120: 0 | L120: =IF(OR(+'Ordenar Auto'!$Q$5=0,+'Ordenar Auto'!$Q$6=0,+'Ordenar Auto'!$Q$7=0,+'Ordenar Auto'!$Q$8=0,+'Ordenar Auto'!$Q$9=0,+'Ordenar Auto'!$Q$10=0,+'Ordenar Auto'!$Q$11=0),+'Ordenar Auto'!Q12,+'Ordenar Auto'!Q11) ->  | M120: =IF(L120<>"",VLOOKUP(L120,'Tabela de preços'!$B:$G,3,0),"") ->  | N120: =VLOOKUP(L120,'Ordenar Auto'!Q:R,2,0) ->  | O120: =IF(L120<>"",VLOOKUP(L120,'Tabela de preços'!$B:$G,5,0),"") ->  | P120: =IF(L120<>"",VLOOKUP(L120,'Tabela de preços'!$B:$G,6,0),"") ->  | AR120: 109409
D121: =IF(C121<>"",IFERROR(VLOOKUP(CONCATENATE($C$104,$C$105,C121),'Base de dados'!D:G,2,0),"Selecionar cor"),"") ->  | E121: =IF(D121<>"",IFERROR(VLOOKUP(D121,'Tabela de preços'!$B:$G,6,0),"-"),"") ->  | F121: =IF(C121<>"",IFERROR(VLOOKUP(CONCATENATE($C$104,$C$105,C121),'Base de dados'!D:G,3,0),"Selecionar cor"),"") ->  | G121: =IF(F121<>"",IFERROR(VLOOKUP(F121,'Tabela de preços'!$B:$G,6,0),"-"),"") ->  | H121: =IF(C121<>"",IFERROR(VLOOKUP(CONCATENATE($C$104,$C$105,C121),'Base de dados'!D:G,4,0),"Selecionar cor"),"") ->  | I121: =IF(H121<>"",IFERROR(VLOOKUP(H121,'Tabela de preços'!$B:$G,6,0),"-"),"") ->  | J121: 0 | L121: =IF(OR(+'Ordenar Auto'!$Q$5=0,+'Ordenar Auto'!$Q$6=0,+'Ordenar Auto'!$Q$7=0,+'Ordenar Auto'!$Q$8=0,+'Ordenar Auto'!$Q$9=0,+'Ordenar Auto'!$Q$10=0,+'Ordenar Auto'!$Q$11=0,+'Ordenar Auto'!$Q$12=0),+'Ordenar Auto'!Q13,+'Ordenar Auto'!Q12) ->  | M121: =IF(L121<>"",VLOOKUP(L121,'Tabela de preços'!$B:$G,3,0),"") ->  | N121: =VLOOKUP(L121,'Ordenar Auto'!Q:R,2,0) ->  | O121: =IF(L121<>"",VLOOKUP(L121,'Tabela de preços'!$B:$G,5,0),"") ->  | P121: =IF(L121<>"",VLOOKUP(L121,'Tabela de preços'!$B:$G,6,0),"") ->  | AR121: 109509
D122: =IF(C122<>"",IFERROR(VLOOKUP(CONCATENATE($C$104,$C$105,C122),'Base de dados'!D:G,2,0),"Selecionar cor"),"") ->  | E122: =IF(D122<>"",IFERROR(VLOOKUP(D122,'Tabela de preços'!$B:$G,6,0),"-"),"") ->  | F122: =IF(C122<>"",IFERROR(VLOOKUP(CONCATENATE($C$104,$C$105,C122),'Base de dados'!D:G,3,0),"Selecionar cor"),"") ->  | G122: =IF(F122<>"",IFERROR(VLOOKUP(F122,'Tabela de preços'!$B:$G,6,0),"-"),"") ->  | H122: =IF(C122<>"",IFERROR(VLOOKUP(CONCATENATE($C$104,$C$105,C122),'Base de dados'!D:G,4,0),"Selecionar cor"),"") ->  | I122: =IF(H122<>"",IFERROR(VLOOKUP(H122,'Tabela de preços'!$B:$G,6,0),"-"),"") ->  | J122: 0 | L122: =IF(OR(+'Ordenar Auto'!$Q$5=0,+'Ordenar Auto'!$Q$6=0,+'Ordenar Auto'!$Q$7=0,+'Ordenar Auto'!$Q$8=0,+'Ordenar Auto'!$Q$9=0,+'Ordenar Auto'!$Q$10=0,+'Ordenar Auto'!$Q$11=0,+'Ordenar Auto'!$Q$12=0,+'Ordenar Auto'!$Q$13=0),+'Ordenar Auto'!Q14,+'Ordenar Auto'!Q13) ->  | M122: =IF(L122<>"",VLOOKUP(L122,'Tabela de preços'!$B:$G,3,0),"") ->  | N122: =VLOOKUP(L122,'Ordenar Auto'!Q:R,2,0) ->  | O122: =IF(L122<>"",VLOOKUP(L122,'Tabela de preços'!$B:$G,5,0),"") ->  | P122: =IF(L122<>"",VLOOKUP(L122,'Tabela de preços'!$B:$G,6,0),"") ->  | AR122: 110209
D123: =IF(C123<>"",IFERROR(VLOOKUP(CONCATENATE($C$104,$C$105,C123),'Base de dados'!D:G,2,0),"Selecionar cor"),"") ->  | E123: =IF(D123<>"",IFERROR(VLOOKUP(D123,'Tabela de preços'!$B:$G,6,0),"-"),"") ->  | F123: =IF(C123<>"",IFERROR(VLOOKUP(CONCATENATE($C$104,$C$105,C123),'Base de dados'!D:G,3,0),"Selecionar cor"),"") ->  | G123: =IF(F123<>"",IFERROR(VLOOKUP(F123,'Tabela de preços'!$B:$G,6,0),"-"),"") ->  | H123: =IF(C123<>"",IFERROR(VLOOKUP(CONCATENATE($C$104,$C$105,C123),'Base de dados'!D:G,4,0),"Selecionar cor"),"") ->  | I123: =IF(H123<>"",IFERROR(VLOOKUP(H123,'Tabela de preços'!$B:$G,6,0),"-"),"") ->  | J123: 0 | L123: =IF(OR(+'Ordenar Auto'!$Q$5=0,+'Ordenar Auto'!$Q$6=0,+'Ordenar Auto'!$Q$7=0,+'Ordenar Auto'!$Q$8=0,+'Ordenar Auto'!$Q$9=0,+'Ordenar Auto'!$Q$10=0,+'Ordenar Auto'!$Q$11=0,+'Ordenar Auto'!$Q$12=0,+'Ordenar Auto'!$Q$13=0,'Ordenar Auto'!$Q$14=0),+'Ordenar Auto'!Q15,+'Ordenar Auto'!Q14) ->  | M123: =IF(L123<>"",VLOOKUP(L123,'Tabela de preços'!$B:$G,3,0),"") ->  | N123: =VLOOKUP(L123,'Ordenar Auto'!Q:R,2,0) ->  | O123: =IF(L123<>"",VLOOKUP(L123,'Tabela de preços'!$B:$G,5,0),"") ->  | P123: =IF(L123<>"",VLOOKUP(L123,'Tabela de preços'!$B:$G,6,0),"") ->  | AR123: 122501
D124: =IF(C124<>"",IFERROR(VLOOKUP(CONCATENATE($C$104,$C$105,C124),'Base de dados'!D:G,2,0),"Selecionar cor"),"") ->  | E124: =IF(D124<>"",IFERROR(VLOOKUP(D124,'Tabela de preços'!$B:$G,6,0),"-"),"") ->  | F124: =IF(C124<>"",IFERROR(VLOOKUP(CONCATENATE($C$104,$C$105,C124),'Base de dados'!D:G,3,0),"Selecionar cor"),"") ->  | G124: =IF(F124<>"",IFERROR(VLOOKUP(F124,'Tabela de preços'!$B:$G,6,0),"-"),"") ->  | H124: =IF(C124<>"",IFERROR(VLOOKUP(CONCATENATE($C$104,$C$105,C124),'Base de dados'!D:G,4,0),"Selecionar cor"),"") ->  | I124: =IF(H124<>"",IFERROR(VLOOKUP(H124,'Tabela de preços'!$B:$G,6,0),"-"),"") ->  | J124: 0 | L124: =IF(OR(+'Ordenar Auto'!$Q$5=0,+'Ordenar Auto'!$Q$6=0,+'Ordenar Auto'!$Q$7=0,+'Ordenar Auto'!$Q$8=0,+'Ordenar Auto'!$Q$9=0,+'Ordenar Auto'!$Q$10=0,+'Ordenar Auto'!$Q$11=0,+'Ordenar Auto'!$Q$12=0,+'Ordenar Auto'!$Q$13=0,'Ordenar Auto'!$Q$14=0,'Ordenar Auto'!$Q$15=0),+'Ordenar Auto'!Q16,+'Ordenar Auto'!Q15) ->  | M124: =IF(L124<>"",VLOOKUP(L124,'Tabela de preços'!$B:$G,3,0),"") ->  | N124: =VLOOKUP(L124,'Ordenar Auto'!Q:R,2,0) ->  | O124: =IF(L124<>"",VLOOKUP(L124,'Tabela de preços'!$B:$G,5,0),"") ->  | P124: =IF(L124<>"",VLOOKUP(L124,'Tabela de preços'!$B:$G,6,0),"") ->  | AR124: 122902
D125: =IF(C125<>"",IFERROR(VLOOKUP(CONCATENATE($C$104,$C$105,C125),'Base de dados'!D:G,2,0),"Selecionar cor"),"") ->  | E125: =IF(D125<>"",IFERROR(VLOOKUP(D125,'Tabela de preços'!$B:$G,6,0),"-"),"") ->  | F125: =IF(C125<>"",IFERROR(VLOOKUP(CONCATENATE($C$104,$C$105,C125),'Base de dados'!D:G,3,0),"Selecionar cor"),"") ->  | G125: =IF(F125<>"",IFERROR(VLOOKUP(F125,'Tabela de preços'!$B:$G,6,0),"-"),"") ->  | H125: =IF(C125<>"",IFERROR(VLOOKUP(CONCATENATE($C$104,$C$105,C125),'Base de dados'!D:G,4,0),"Selecionar cor"),"") ->  | I125: =IF(H125<>"",IFERROR(VLOOKUP(H125,'Tabela de preços'!$B:$G,6,0),"-"),"") ->  | J125: 0 | L125: =IF(OR(+'Ordenar Auto'!$Q$5=0,+'Ordenar Auto'!$Q$6=0,+'Ordenar Auto'!$Q$7=0,+'Ordenar Auto'!$Q$8=0,+'Ordenar Auto'!$Q$9=0,+'Ordenar Auto'!$Q$10=0,+'Ordenar Auto'!$Q$11=0,+'Ordenar Auto'!$Q$12=0,+'Ordenar Auto'!$Q$13=0,'Ordenar Auto'!$Q$14=0,'Ordenar Auto'!$Q$15=0,'Ordenar Auto'!$Q$16=0),+'Ordenar Auto'!Q17,+'Ordenar Auto'!Q16) ->  | M125: =IF(L125<>"",VLOOKUP(L125,'Tabela de preços'!$B:$G,3,0),"") ->  | N125: =VLOOKUP(L125,'Ordenar Auto'!Q:R,2,0) ->  | O125: =IF(L125<>"",VLOOKUP(L125,'Tabela de preços'!$B:$G,5,0),"") ->  | P125: =IF(L125<>"",VLOOKUP(L125,'Tabela de preços'!$B:$G,6,0),"") ->  | AR125: 127902
D126: =IF(C126<>"",IFERROR(VLOOKUP(CONCATENATE($C$104,$C$105,C126),'Base de dados'!D:G,2,0),"Selecionar cor"),"") ->  | E126: =IF(D126<>"",IFERROR(VLOOKUP(D126,'Tabela de preços'!$B:$G,6,0),"-"),"") ->  | F126: =IF(C126<>"",IFERROR(VLOOKUP(CONCATENATE($C$104,$C$105,C126),'Base de dados'!D:G,3,0),"Selecionar cor"),"") ->  | G126: =IF(F126<>"",IFERROR(VLOOKUP(F126,'Tabela de preços'!$B:$G,6,0),"-"),"") ->  | H126: =IF(C126<>"",IFERROR(VLOOKUP(CONCATENATE($C$104,$C$105,C126),'Base de dados'!D:G,4,0),"Selecionar cor"),"") ->  | I126: =IF(H126<>"",IFERROR(VLOOKUP(H126,'Tabela de preços'!$B:$G,6,0),"-"),"") ->  | J126: 0 | L126: =IF(OR(+'Ordenar Auto'!$Q$5=0,+'Ordenar Auto'!$Q$6=0,+'Ordenar Auto'!$Q$7=0,+'Ordenar Auto'!$Q$8=0,+'Ordenar Auto'!$Q$9=0,+'Ordenar Auto'!$Q$10=0,+'Ordenar Auto'!$Q$11=0,+'Ordenar Auto'!$Q$12=0,+'Ordenar Auto'!$Q$13=0,'Ordenar Auto'!$Q$14=0,'Ordenar Auto'!$Q$15=0,'Ordenar Auto'!$Q$16=0,'Ordenar Auto'!$Q$17=0),+'Ordenar Auto'!Q18,+'Ordenar Auto'!Q17) ->  | M126: =IF(L126<>"",VLOOKUP(L126,'Tabela de preços'!$B:$G,3,0),"") ->  | N126: =VLOOKUP(L126,'Ordenar Auto'!Q:R,2,0) ->  | O126: =IF(L126<>"",VLOOKUP(L126,'Tabela de preços'!$B:$G,5,0),"") ->  | P126: =IF(L126<>"",VLOOKUP(L126,'Tabela de preços'!$B:$G,6,0),"") ->  | AR126: 127903
D127: =IF(C127<>"",IFERROR(VLOOKUP(CONCATENATE($C$104,$C$105,C127),'Base de dados'!D:G,2,0),"Selecionar cor"),"") ->  | E127: =IF(D127<>"",IFERROR(VLOOKUP(D127,'Tabela de preços'!$B:$G,6,0),"-"),"") ->  | F127: =IF(C127<>"",IFERROR(VLOOKUP(CONCATENATE($C$104,$C$105,C127),'Base de dados'!D:G,3,0),"Selecionar cor"),"") ->  | G127: =IF(F127<>"",IFERROR(VLOOKUP(F127,'Tabela de preços'!$B:$G,6,0),"-"),"") ->  | H127: =IF(C127<>"",IFERROR(VLOOKUP(CONCATENATE($C$104,$C$105,C127),'Base de dados'!D:G,4,0),"Selecionar cor"),"") ->  | I127: =IF(H127<>"",IFERROR(VLOOKUP(H127,'Tabela de preços'!$B:$G,6,0),"-"),"") ->  | J127: 0 | L127: =IF(OR(+'Ordenar Auto'!$Q$5=0,+'Ordenar Auto'!$Q$6=0,+'Ordenar Auto'!$Q$7=0,+'Ordenar Auto'!$Q$8=0,+'Ordenar Auto'!$Q$9=0,+'Ordenar Auto'!$Q$10=0,+'Ordenar Auto'!$Q$11=0,+'Ordenar Auto'!$Q$12=0,+'Ordenar Auto'!$Q$13=0,'Ordenar Auto'!$Q$14=0,'Ordenar Auto'!$Q$15=0,'Ordenar Auto'!$Q$16=0,'Ordenar Auto'!$Q$17=0,'Ordenar Auto'!$Q$18=0),+'Ordenar Auto'!Q19,+'Ordenar Auto'!Q18) ->  | M127: =IF(L127<>"",VLOOKUP(L127,'Tabela de preços'!$B:$G,3,0),"") ->  | N127: =VLOOKUP(L127,'Ordenar Auto'!Q:R,2,0) ->  | O127: =IF(L127<>"",VLOOKUP(L127,'Tabela de preços'!$B:$G,5,0),"") ->  | P127: =IF(L127<>"",VLOOKUP(L127,'Tabela de preços'!$B:$G,6,0),"") ->  | AR127: 133111
D128: =IF(C128<>"",IFERROR(VLOOKUP(CONCATENATE($C$104,$C$105,C128),'Base de dados'!D:G,2,0),"Selecionar cor"),"") ->  | E128: =IF(D128<>"",IFERROR(VLOOKUP(D128,'Tabela de preços'!$B:$G,6,0),"-"),"") ->  | F128: =IF(C128<>"",IFERROR(VLOOKUP(CONCATENATE($C$104,$C$105,C128),'Base de dados'!D:G,3,0),"Selecionar cor"),"") ->  | G128: =IF(F128<>"",IFERROR(VLOOKUP(F128,'Tabela de preços'!$B:$G,6,0),"-"),"") ->  | H128: =IF(C128<>"",IFERROR(VLOOKUP(CONCATENATE($C$104,$C$105,C128),'Base de dados'!D:G,4,0),"Selecionar cor"),"") ->  | I128: =IF(H128<>"",IFERROR(VLOOKUP(H128,'Tabela de preços'!$B:$G,6,0),"-"),"") ->  | J128: 0 | L128: =IF(OR(+'Ordenar Auto'!$Q$5=0,+'Ordenar Auto'!$Q$6=0,+'Ordenar Auto'!$Q$7=0,+'Ordenar Auto'!$Q$8=0,+'Ordenar Auto'!$Q$9=0,+'Ordenar Auto'!$Q$10=0,+'Ordenar Auto'!$Q$11=0,+'Ordenar Auto'!$Q$12=0,+'Ordenar Auto'!$Q$13=0,'Ordenar Auto'!$Q$14=0,'Ordenar Auto'!$Q$15=0,'Ordenar Auto'!$Q$16=0,'Ordenar Auto'!$Q$17=0,'Ordenar Auto'!$Q$18=0,'Ordenar Auto'!$Q$19=0),+'Ordenar Auto'!Q20,+'Ordenar Auto'!Q19) ->  | M128: =IF(L128<>"",VLOOKUP(L128,'Tabela de preços'!$B:$G,3,0),"") ->  | N128: =VLOOKUP(L128,'Ordenar Auto'!Q:R,2,0) ->  | O128: =IF(L128<>"",VLOOKUP(L128,'Tabela de preços'!$B:$G,5,0),"") ->  | P128: =IF(L128<>"",VLOOKUP(L128,'Tabela de preços'!$B:$G,6,0),"") ->  | AR128: 133119
D129: =IF(C129<>"",IFERROR(VLOOKUP(CONCATENATE($C$104,$C$105,C129),'Base de dados'!D:G,2,0),"Selecionar cor"),"") ->  | E129: =IF(D129<>"",IFERROR(VLOOKUP(D129,'Tabela de preços'!$B:$G,6,0),"-"),"") ->  | F129: =IF(C129<>"",IFERROR(VLOOKUP(CONCATENATE($C$104,$C$105,C129),'Base de dados'!D:G,3,0),"Selecionar cor"),"") ->  | G129: =IF(F129<>"",IFERROR(VLOOKUP(F129,'Tabela de preços'!$B:$G,6,0),"-"),"") ->  | H129: =IF(C129<>"",IFERROR(VLOOKUP(CONCATENATE($C$104,$C$105,C129),'Base de dados'!D:G,4,0),"Selecionar cor"),"") ->  | I129: =IF(H129<>"",IFERROR(VLOOKUP(H129,'Tabela de preços'!$B:$G,6,0),"-"),"") ->  | J129: 0 | L129: =IF(OR(+'Ordenar Auto'!$Q$5=0,+'Ordenar Auto'!$Q$6=0,+'Ordenar Auto'!$Q$7=0,+'Ordenar Auto'!$Q$8=0,+'Ordenar Auto'!$Q$9=0,+'Ordenar Auto'!$Q$10=0,+'Ordenar Auto'!$Q$11=0,+'Ordenar Auto'!$Q$12=0,+'Ordenar Auto'!$Q$13=0,'Ordenar Auto'!$Q$14=0,'Ordenar Auto'!$Q$15=0,'Ordenar Auto'!$Q$16=0,'Ordenar Auto'!$Q$17=0,'Ordenar Auto'!$Q$18=0,'Ordenar Auto'!$Q$19=0,'Ordenar Auto'!$Q$20=0),+'Ordenar Auto'!Q21,+'Ordenar Auto'!Q20) ->  | M129: =IF(L129<>"",VLOOKUP(L129,'Tabela de preços'!$B:$G,3,0),"") ->  | N129: =VLOOKUP(L129,'Ordenar Auto'!Q:R,2,0) ->  | O129: =IF(L129<>"",VLOOKUP(L129,'Tabela de preços'!$B:$G,5,0),"") ->  | P129: =IF(L129<>"",VLOOKUP(L129,'Tabela de preços'!$B:$G,6,0),"") ->  | AR129: 138101
D130: =IF(C130<>"",IFERROR(VLOOKUP(CONCATENATE($C$104,$C$105,C130),'Base de dados'!D:G,2,0),"Selecionar cor"),"") ->  | E130: =IF(D130<>"",IFERROR(VLOOKUP(D130,'Tabela de preços'!$B:$G,6,0),"-"),"") ->  | F130: =IF(C130<>"",IFERROR(VLOOKUP(CONCATENATE($C$104,$C$105,C130),'Base de dados'!D:G,3,0),"Selecionar cor"),"") ->  | G130: =IF(F130<>"",IFERROR(VLOOKUP(F130,'Tabela de preços'!$B:$G,6,0),"-"),"") ->  | H130: =IF(C130<>"",IFERROR(VLOOKUP(CONCATENATE($C$104,$C$105,C130),'Base de dados'!D:G,4,0),"Selecionar cor"),"") ->  | I130: =IF(H130<>"",IFERROR(VLOOKUP(H130,'Tabela de preços'!$B:$G,6,0),"-"),"") ->  | J130: 0 | L130: =IF(OR(+'Ordenar Auto'!$Q$5=0,+'Ordenar Auto'!$Q$6=0,+'Ordenar Auto'!$Q$7=0,+'Ordenar Auto'!$Q$8=0,+'Ordenar Auto'!$Q$9=0,+'Ordenar Auto'!$Q$10=0,+'Ordenar Auto'!$Q$11=0,+'Ordenar Auto'!$Q$12=0,+'Ordenar Auto'!$Q$13=0,'Ordenar Auto'!$Q$14=0,'Ordenar Auto'!$Q$15=0,'Ordenar Auto'!$Q$16=0,'Ordenar Auto'!$Q$17=0,'Ordenar Auto'!$Q$18=0,'Ordenar Auto'!$Q$19=0,'Ordenar Auto'!$Q$20=0,'Ordenar Auto'!$Q$21=0),+'Ordenar Auto'!Q22,+'Ordenar Auto'!Q21) ->  | M130: =IF(L130<>"",VLOOKUP(L130,'Tabela de preços'!$B:$G,3,0),"") ->  | N130: =VLOOKUP(L130,'Ordenar Auto'!Q:R,2,0) ->  | O130: =IF(L130<>"",VLOOKUP(L130,'Tabela de preços'!$B:$G,5,0),"") ->  | P130: =IF(L130<>"",VLOOKUP(L130,'Tabela de preços'!$B:$G,6,0),"") ->  | AR130: 138109
D131: =IF(C131<>"",IFERROR(VLOOKUP(CONCATENATE($C$104,$C$105,C131),'Base de dados'!D:G,2,0),"Selecionar cor"),"") ->  | E131: =IF(D131<>"",IFERROR(VLOOKUP(D131,'Tabela de preços'!$B:$G,6,0),"-"),"") ->  | F131: =IF(C131<>"",IFERROR(VLOOKUP(CONCATENATE($C$104,$C$105,C131),'Base de dados'!D:G,3,0),"Selecionar cor"),"") ->  | G131: =IF(F131<>"",IFERROR(VLOOKUP(F131,'Tabela de preços'!$B:$G,6,0),"-"),"") ->  | H131: =IF(C131<>"",IFERROR(VLOOKUP(CONCATENATE($C$104,$C$105,C131),'Base de dados'!D:G,4,0),"Selecionar cor"),"") ->  | I131: =IF(H131<>"",IFERROR(VLOOKUP(H131,'Tabela de preços'!$B:$G,6,0),"-"),"") ->  | J131: 0 | L131: =IF(OR(+'Ordenar Auto'!$Q$5=0,+'Ordenar Auto'!$Q$6=0,+'Ordenar Auto'!$Q$7=0,+'Ordenar Auto'!$Q$8=0,+'Ordenar Auto'!$Q$9=0,+'Ordenar Auto'!$Q$10=0,+'Ordenar Auto'!$Q$11=0,+'Ordenar Auto'!$Q$12=0,+'Ordenar Auto'!$Q$13=0,'Ordenar Auto'!$Q$14=0,'Ordenar Auto'!$Q$15=0,'Ordenar Auto'!$Q$16=0,'Ordenar Auto'!$Q$17=0,'Ordenar Auto'!$Q$18=0,'Ordenar Auto'!$Q$19=0,'Ordenar Auto'!$Q$20=0,'Ordenar Auto'!$Q$21=0,'Ordenar Auto'!$Q$22=0),+'Ordenar Auto'!Q23,+'Ordenar Auto'!Q22) ->  | M131: =IF(L131<>"",VLOOKUP(L131,'Tabela de preços'!$B:$G,3,0),"") ->  | N131: =VLOOKUP(L131,'Ordenar Auto'!Q:R,2,0) ->  | O131: =IF(L131<>"",VLOOKUP(L131,'Tabela de preços'!$B:$G,5,0),"") ->  | P131: =IF(L131<>"",VLOOKUP(L131,'Tabela de preços'!$B:$G,6,0),"") ->  | AR131: 138121
D132: =IF(C132<>"",IFERROR(VLOOKUP(CONCATENATE($C$104,$C$105,C132),'Base de dados'!D:G,2,0),"Selecionar cor"),"") ->  | E132: =IF(D132<>"",IFERROR(VLOOKUP(D132,'Tabela de preços'!$B:$G,6,0),"-"),"") ->  | F132: =IF(C132<>"",IFERROR(VLOOKUP(CONCATENATE($C$104,$C$105,C132),'Base de dados'!D:G,3,0),"Selecionar cor"),"") ->  | G132: =IF(F132<>"",IFERROR(VLOOKUP(F132,'Tabela de preços'!$B:$G,6,0),"-"),"") ->  | H132: =IF(C132<>"",IFERROR(VLOOKUP(CONCATENATE($C$104,$C$105,C132),'Base de dados'!D:G,4,0),"Selecionar cor"),"") ->  | I132: =IF(H132<>"",IFERROR(VLOOKUP(H132,'Tabela de preços'!$B:$G,6,0),"-"),"") ->  | J132: 0 | L132: =IF(OR(+'Ordenar Auto'!$Q$5=0,+'Ordenar Auto'!$Q$6=0,+'Ordenar Auto'!$Q$7=0,+'Ordenar Auto'!$Q$8=0,+'Ordenar Auto'!$Q$9=0,+'Ordenar Auto'!$Q$10=0,+'Ordenar Auto'!$Q$11=0,+'Ordenar Auto'!$Q$12=0,+'Ordenar Auto'!$Q$13=0,'Ordenar Auto'!$Q$14=0,'Ordenar Auto'!$Q$15=0,'Ordenar Auto'!$Q$16=0,'Ordenar Auto'!$Q$17=0,'Ordenar Auto'!$Q$18=0,'Ordenar Auto'!$Q$19=0,'Ordenar Auto'!$Q$20=0,'Ordenar Auto'!$Q$21=0,'Ordenar Auto'!$Q$22=0,'Ordenar Auto'!$Q$23=0),+'Ordenar Auto'!Q24,+'Ordenar Auto'!Q23) ->  | M132: =IF(L132<>"",VLOOKUP(L132,'Tabela de preços'!$B:$G,3,0),"") ->  | N132: =VLOOKUP(L132,'Ordenar Auto'!Q:R,2,0) ->  | O132: =IF(L132<>"",VLOOKUP(L132,'Tabela de preços'!$B:$G,5,0),"") ->  | P132: =IF(L132<>"",VLOOKUP(L132,'Tabela de preços'!$B:$G,6,0),"") ->  | AR132: 138129
D133: =IF(C133<>"",IFERROR(VLOOKUP(CONCATENATE($C$104,$C$105,C133),'Base de dados'!D:G,2,0),"Selecionar cor"),"") ->  | E133: =IF(D133<>"",IFERROR(VLOOKUP(D133,'Tabela de preços'!$B:$G,6,0),"-"),"") ->  | F133: =IF(C133<>"",IFERROR(VLOOKUP(CONCATENATE($C$104,$C$105,C133),'Base de dados'!D:G,3,0),"Selecionar cor"),"") ->  | G133: =IF(F133<>"",IFERROR(VLOOKUP(F133,'Tabela de preços'!$B:$G,6,0),"-"),"") ->  | H133: =IF(C133<>"",IFERROR(VLOOKUP(CONCATENATE($C$104,$C$105,C133),'Base de dados'!D:G,4,0),"Selecionar cor"),"") ->  | I133: =IF(H133<>"",IFERROR(VLOOKUP(H133,'Tabela de preços'!$B:$G,6,0),"-"),"") ->  | J133: 0 | L133: =IF(OR(+'Ordenar Auto'!$Q$5=0,+'Ordenar Auto'!$Q$6=0,+'Ordenar Auto'!$Q$7=0,+'Ordenar Auto'!$Q$8=0,+'Ordenar Auto'!$Q$9=0,+'Ordenar Auto'!$Q$10=0,+'Ordenar Auto'!$Q$11=0,+'Ordenar Auto'!$Q$12=0,+'Ordenar Auto'!$Q$13=0,'Ordenar Auto'!$Q$14=0,'Ordenar Auto'!$Q$15=0,'Ordenar Auto'!$Q$16=0,'Ordenar Auto'!$Q$17=0,'Ordenar Auto'!$Q$18=0,'Ordenar Auto'!$Q$19=0,'Ordenar Auto'!$Q$20=0,'Ordenar Auto'!$Q$21=0,'Ordenar Auto'!$Q$22=0,'Ordenar Auto'!$Q$23=0,'Ordenar Auto'!$Q$24=0),+'Ordenar Auto'!Q25,+'Ordenar Auto'!Q24) ->  | M133: =IF(L133<>"",VLOOKUP(L133,'Tabela de preços'!$B:$G,3,0),"") ->  | N133: =VLOOKUP(L133,'Ordenar Auto'!Q:R,2,0) ->  | O133: =IF(L133<>"",VLOOKUP(L133,'Tabela de preços'!$B:$G,5,0),"") ->  | P133: =IF(L133<>"",VLOOKUP(L133,'Tabela de preços'!$B:$G,6,0),"") ->  | AR133: 138131
D134: =IF(C134<>"",IFERROR(VLOOKUP(CONCATENATE($C$104,$C$105,C134),'Base de dados'!D:G,2,0),"Selecionar cor"),"") ->  | E134: =IF(D134<>"",IFERROR(VLOOKUP(D134,'Tabela de preços'!$B:$G,6,0),"-"),"") ->  | F134: =IF(C134<>"",IFERROR(VLOOKUP(CONCATENATE($C$104,$C$105,C134),'Base de dados'!D:G,3,0),"Selecionar cor"),"") ->  | G134: =IF(F134<>"",IFERROR(VLOOKUP(F134,'Tabela de preços'!$B:$G,6,0),"-"),"") ->  | H134: =IF(C134<>"",IFERROR(VLOOKUP(CONCATENATE($C$104,$C$105,C134),'Base de dados'!D:G,4,0),"Selecionar cor"),"") ->  | I134: =IF(H134<>"",IFERROR(VLOOKUP(H134,'Tabela de preços'!$B:$G,6,0),"-"),"") ->  | J134: 0 | L134: =IF(OR(+'Ordenar Auto'!$Q$5=0,+'Ordenar Auto'!$Q$6=0,+'Ordenar Auto'!$Q$7=0,+'Ordenar Auto'!$Q$8=0,+'Ordenar Auto'!$Q$9=0,+'Ordenar Auto'!$Q$10=0,+'Ordenar Auto'!$Q$11=0,+'Ordenar Auto'!$Q$12=0,+'Ordenar Auto'!$Q$13=0,'Ordenar Auto'!$Q$14=0,'Ordenar Auto'!$Q$15=0,'Ordenar Auto'!$Q$16=0,'Ordenar Auto'!$Q$17=0,'Ordenar Auto'!$Q$18=0,'Ordenar Auto'!$Q$19=0,'Ordenar Auto'!$Q$20=0,'Ordenar Auto'!$Q$21=0,'Ordenar Auto'!$Q$22=0,'Ordenar Auto'!$Q$23=0,'Ordenar Auto'!$Q$24=0,'Ordenar Auto'!$Q$25=0),+'Ordenar Auto'!Q26,+'Ordenar Auto'!Q25) ->  | M134: =IF(L134<>"",VLOOKUP(L134,'Tabela de preços'!$B:$G,3,0),"") ->  | N134: =VLOOKUP(L134,'Ordenar Auto'!Q:R,2,0) ->  | O134: =IF(L134<>"",VLOOKUP(L134,'Tabela de preços'!$B:$G,5,0),"") ->  | P134: =IF(L134<>"",VLOOKUP(L134,'Tabela de preços'!$B:$G,6,0),"") ->  | AR134: 138139
D135: =IF(C135<>"",IFERROR(VLOOKUP(CONCATENATE($C$104,$C$105,C135),'Base de dados'!D:G,2,0),"Selecionar cor"),"") ->  | E135: =IF(D135<>"",IFERROR(VLOOKUP(D135,'Tabela de preços'!$B:$G,6,0),"-"),"") ->  | F135: =IF(C135<>"",IFERROR(VLOOKUP(CONCATENATE($C$104,$C$105,C135),'Base de dados'!D:G,3,0),"Selecionar cor"),"") ->  | G135: =IF(F135<>"",IFERROR(VLOOKUP(F135,'Tabela de preços'!$B:$G,6,0),"-"),"") ->  | H135: =IF(C135<>"",IFERROR(VLOOKUP(CONCATENATE($C$104,$C$105,C135),'Base de dados'!D:G,4,0),"Selecionar cor"),"") ->  | I135: =IF(H135<>"",IFERROR(VLOOKUP(H135,'Tabela de preços'!$B:$G,6,0),"-"),"") ->  | J135: 0 | L135: =IF(OR(+'Ordenar Auto'!$Q$5=0,+'Ordenar Auto'!$Q$6=0,+'Ordenar Auto'!$Q$7=0,+'Ordenar Auto'!$Q$8=0,+'Ordenar Auto'!$Q$9=0,+'Ordenar Auto'!$Q$10=0,+'Ordenar Auto'!$Q$11=0,+'Ordenar Auto'!$Q$12=0,+'Ordenar Auto'!$Q$13=0,'Ordenar Auto'!$Q$14=0,'Ordenar Auto'!$Q$15=0,'Ordenar Auto'!$Q$16=0,'Ordenar Auto'!$Q$17=0,'Ordenar Auto'!$Q$18=0,'Ordenar Auto'!$Q$19=0,'Ordenar Auto'!$Q$20=0,'Ordenar Auto'!$Q$21=0,'Ordenar Auto'!$Q$22=0,'Ordenar Auto'!$Q$23=0,'Ordenar Auto'!$Q$24=0,'Ordenar Auto'!$Q$25=0,'Ordenar Auto'!$Q$26=0),+'Ordenar Auto'!Q27,+'Ordenar Auto'!Q26) ->  | M135: =IF(L135<>"",VLOOKUP(L135,'Tabela de preços'!$B:$G,3,0),"") ->  | N135: =VLOOKUP(L135,'Ordenar Auto'!Q:R,2,0) ->  | O135: =IF(L135<>"",VLOOKUP(L135,'Tabela de preços'!$B:$G,5,0),"") ->  | P135: =IF(L135<>"",VLOOKUP(L135,'Tabela de preços'!$B:$G,6,0),"") ->  | AR135: 138141
D136: =IF(C136<>"",IFERROR(VLOOKUP(CONCATENATE($C$104,$C$105,C136),'Base de dados'!D:G,2,0),"Selecionar cor"),"") ->  | E136: =IF(D136<>"",IFERROR(VLOOKUP(D136,'Tabela de preços'!$B:$G,6,0),"-"),"") ->  | F136: =IF(C136<>"",IFERROR(VLOOKUP(CONCATENATE($C$104,$C$105,C136),'Base de dados'!D:G,3,0),"Selecionar cor"),"") ->  | G136: =IF(F136<>"",IFERROR(VLOOKUP(F136,'Tabela de preços'!$B:$G,6,0),"-"),"") ->  | H136: =IF(C136<>"",IFERROR(VLOOKUP(CONCATENATE($C$104,$C$105,C136),'Base de dados'!D:G,4,0),"Selecionar cor"),"") ->  | I136: =IF(H136<>"",IFERROR(VLOOKUP(H136,'Tabela de preços'!$B:$G,6,0),"-"),"") ->  | J136: 0 | L136: =IF(OR(+'Ordenar Auto'!$Q$5=0,+'Ordenar Auto'!$Q$6=0,+'Ordenar Auto'!$Q$7=0,+'Ordenar Auto'!$Q$8=0,+'Ordenar Auto'!$Q$9=0,+'Ordenar Auto'!$Q$10=0,+'Ordenar Auto'!$Q$11=0,+'Ordenar Auto'!$Q$12=0,+'Ordenar Auto'!$Q$13=0,'Ordenar Auto'!$Q$14=0,'Ordenar Auto'!$Q$15=0,'Ordenar Auto'!$Q$16=0,'Ordenar Auto'!$Q$17=0,'Ordenar Auto'!$Q$18=0,'Ordenar Auto'!$Q$19=0,'Ordenar Auto'!$Q$20=0,'Ordenar Auto'!$Q$21=0,'Ordenar Auto'!$Q$22=0,'Ordenar Auto'!$Q$23=0,'Ordenar Auto'!$Q$24=0,'Ordenar Auto'!$Q$25=0,'Ordenar Auto'!$Q$26=0,'Ordenar Auto'!$Q$27=0),+'Ordenar Auto'!Q28,+'Ordenar Auto'!Q27) ->  | M136: =IF(L136<>"",VLOOKUP(L136,'Tabela de preços'!$B:$G,3,0),"") ->  | N136: =VLOOKUP(L136,'Ordenar Auto'!Q:R,2,0) ->  | O136: =IF(L136<>"",VLOOKUP(L136,'Tabela de preços'!$B:$G,5,0),"") ->  | P136: =IF(L136<>"",VLOOKUP(L136,'Tabela de preços'!$B:$G,6,0),"") ->  | AR136: 138149
D137: =IF(C137<>"",IFERROR(VLOOKUP(CONCATENATE($C$104,$C$105,C137),'Base de dados'!D:G,2,0),"Selecionar cor"),"") ->  | E137: =IF(D137<>"",IFERROR(VLOOKUP(D137,'Tabela de preços'!$B:$G,6,0),"-"),"") ->  | F137: =IF(C137<>"",IFERROR(VLOOKUP(CONCATENATE($C$104,$C$105,C137),'Base de dados'!D:G,3,0),"Selecionar cor"),"") ->  | G137: =IF(F137<>"",IFERROR(VLOOKUP(F137,'Tabela de preços'!$B:$G,6,0),"-"),"") ->  | H137: =IF(C137<>"",IFERROR(VLOOKUP(CONCATENATE($C$104,$C$105,C137),'Base de dados'!D:G,4,0),"Selecionar cor"),"") ->  | I137: =IF(H137<>"",IFERROR(VLOOKUP(H137,'Tabela de preços'!$B:$G,6,0),"-"),"") ->  | J137: 0 | L137: =IF(OR(+'Ordenar Auto'!$Q$5=0,+'Ordenar Auto'!$Q$6=0,+'Ordenar Auto'!$Q$7=0,+'Ordenar Auto'!$Q$8=0,+'Ordenar Auto'!$Q$9=0,+'Ordenar Auto'!$Q$10=0,+'Ordenar Auto'!$Q$11=0,+'Ordenar Auto'!$Q$12=0,+'Ordenar Auto'!$Q$13=0,'Ordenar Auto'!$Q$14=0,'Ordenar Auto'!$Q$15=0,'Ordenar Auto'!$Q$16=0,'Ordenar Auto'!$Q$17=0,'Ordenar Auto'!$Q$18=0,'Ordenar Auto'!$Q$19=0,'Ordenar Auto'!$Q$20=0,'Ordenar Auto'!$Q$21=0,'Ordenar Auto'!$Q$22=0,'Ordenar Auto'!$Q$23=0,'Ordenar Auto'!$Q$24=0,'Ordenar Auto'!$Q$25=0,'Ordenar Auto'!$Q$26=0,'Ordenar Auto'!$Q$27=0,'Ordenar Auto'!$Q$28=0),+'Ordenar Auto'!Q29,+'Ordenar Auto'!Q28) ->  | M137: =IF(L137<>"",VLOOKUP(L137,'Tabela de preços'!$B:$G,3,0),"") ->  | N137: =VLOOKUP(L137,'Ordenar Auto'!Q:R,2,0) ->  | O137: =IF(L137<>"",VLOOKUP(L137,'Tabela de preços'!$B:$G,5,0),"") ->  | P137: =IF(L137<>"",VLOOKUP(L137,'Tabela de preços'!$B:$G,6,0),"") ->  | AR137: 138151
D138: =IF(C138<>"",IFERROR(VLOOKUP(CONCATENATE($C$104,$C$105,C138),'Base de dados'!D:G,2,0),"Selecionar cor"),"") ->  | E138: =IF(D138<>"",IFERROR(VLOOKUP(D138,'Tabela de preços'!$B:$G,6,0),"-"),"") ->  | F138: =IF(C138<>"",IFERROR(VLOOKUP(CONCATENATE($C$104,$C$105,C138),'Base de dados'!D:G,3,0),"Selecionar cor"),"") ->  | G138: =IF(F138<>"",IFERROR(VLOOKUP(F138,'Tabela de preços'!$B:$G,6,0),"-"),"") ->  | H138: =IF(C138<>"",IFERROR(VLOOKUP(CONCATENATE($C$104,$C$105,C138),'Base de dados'!D:G,4,0),"Selecionar cor"),"") ->  | I138: =IF(H138<>"",IFERROR(VLOOKUP(H138,'Tabela de preços'!$B:$G,6,0),"-"),"") ->  | J138: 0 | L138: =IF(OR(+'Ordenar Auto'!$Q$5=0,+'Ordenar Auto'!$Q$6=0,+'Ordenar Auto'!$Q$7=0,+'Ordenar Auto'!$Q$8=0,+'Ordenar Auto'!$Q$9=0,+'Ordenar Auto'!$Q$10=0,+'Ordenar Auto'!$Q$11=0,+'Ordenar Auto'!$Q$12=0,+'Ordenar Auto'!$Q$13=0,'Ordenar Auto'!$Q$14=0,'Ordenar Auto'!$Q$15=0,'Ordenar Auto'!$Q$16=0,'Ordenar Auto'!$Q$17=0,'Ordenar Auto'!$Q$18=0,'Ordenar Auto'!$Q$19=0,'Ordenar Auto'!$Q$20=0,'Ordenar Auto'!$Q$21=0,'Ordenar Auto'!$Q$22=0,'Ordenar Auto'!$Q$23=0,'Ordenar Auto'!$Q$24=0,'Ordenar Auto'!$Q$25=0,'Ordenar Auto'!$Q$26=0,'Ordenar Auto'!$Q$27=0,'Ordenar Auto'!$Q$28=0,'Ordenar Auto'!$Q$29=0),+'Ordenar Auto'!Q30,+'Ordenar Auto'!Q29) ->  | M138: =IF(L138<>"",VLOOKUP(L138,'Tabela de preços'!$B:$G,3,0),"") ->  | N138: =VLOOKUP(L138,'Ordenar Auto'!Q:R,2,0) ->  | O138: =IF(L138<>"",VLOOKUP(L138,'Tabela de preços'!$B:$G,5,0),"") ->  | P138: =IF(L138<>"",VLOOKUP(L138,'Tabela de preços'!$B:$G,6,0),"") ->  | AR138: 138159
D139: =IF(C139<>"",IFERROR(VLOOKUP(CONCATENATE($C$104,$C$105,C139),'Base de dados'!D:G,2,0),"Selecionar cor"),"") ->  | E139: =IF(D139<>"",IFERROR(VLOOKUP(D139,'Tabela de preços'!$B:$G,6,0),"-"),"") ->  | F139: =IF(C139<>"",IFERROR(VLOOKUP(CONCATENATE($C$104,$C$105,C139),'Base de dados'!D:G,3,0),"Selecionar cor"),"") ->  | G139: =IF(F139<>"",IFERROR(VLOOKUP(F139,'Tabela de preços'!$B:$G,6,0),"-"),"") ->  | H139: =IF(C139<>"",IFERROR(VLOOKUP(CONCATENATE($C$104,$C$105,C139),'Base de dados'!D:G,4,0),"Selecionar cor"),"") ->  | I139: =IF(H139<>"",IFERROR(VLOOKUP(H139,'Tabela de preços'!$B:$G,6,0),"-"),"") ->  | J139: 0 | L139: =IF(OR(+'Ordenar Auto'!$Q$5=0,+'Ordenar Auto'!$Q$6=0,+'Ordenar Auto'!$Q$7=0,+'Ordenar Auto'!$Q$8=0,+'Ordenar Auto'!$Q$9=0,+'Ordenar Auto'!$Q$10=0,+'Ordenar Auto'!$Q$11=0,+'Ordenar Auto'!$Q$12=0,+'Ordenar Auto'!$Q$13=0,'Ordenar Auto'!$Q$14=0,'Ordenar Auto'!$Q$15=0,'Ordenar Auto'!$Q$16=0,'Ordenar Auto'!$Q$17=0,'Ordenar Auto'!$Q$18=0,'Ordenar Auto'!$Q$19=0,'Ordenar Auto'!$Q$20=0,'Ordenar Auto'!$Q$21=0,'Ordenar Auto'!$Q$22=0,'Ordenar Auto'!$Q$23=0,'Ordenar Auto'!$Q$24=0,'Ordenar Auto'!$Q$25=0,'Ordenar Auto'!$Q$26=0,'Ordenar Auto'!$Q$27=0,'Ordenar Auto'!$Q$28=0,'Ordenar Auto'!$Q$29=0,'Ordenar Auto'!$Q$30=0),+'Ordenar Auto'!Q31,+'Ordenar Auto'!Q30) ->  | M139: =IF(L139<>"",VLOOKUP(L139,'Tabela de preços'!$B:$G,3,0),"") ->  | N139: =VLOOKUP(L139,'Ordenar Auto'!Q:R,2,0) ->  | O139: =IF(L139<>"",VLOOKUP(L139,'Tabela de preços'!$B:$G,5,0),"") ->  | P139: =IF(L139<>"",VLOOKUP(L139,'Tabela de preços'!$B:$G,6,0),"") ->  | AR139: 138165
B140: =IFERROR(IF(L_=$L$71,IF($AC$49<>0,SUM($B$114:$B$139,$H$94)-$AA$49,SUM($B$114:$B$139,$H$94)),""),"") ->  | C140: =IF(L_=L71,"Caixa de Alvenaria","") ->  | D140: =IF(C140<>"",IFERROR(VLOOKUP(CONCATENATE($C$104,$C$105,C140),'Base de dados'!D:G,2,0),"Selecionar cor"),"") ->  | E140: =IF(D140<>"",IFERROR(VLOOKUP(D140,'Tabela de preços'!$B:$G,6,0),"-"),"") ->  | F140: =IF(C140<>"",IFERROR(VLOOKUP(CONCATENATE($C$104,$C$105,C140),'Base de dados'!D:G,3,0),"Selecionar cor"),"") ->  | G140: =IF(F140<>"",IFERROR(VLOOKUP(F140,'Tabela de preços'!$B:$G,6,0),"-"),"") ->  | H140: =IF(C140<>"",IFERROR(VLOOKUP(CONCATENATE($C$104,$C$105,C140),'Base de dados'!D:G,4,0),"Selecionar cor"),"") ->  | I140: =IF(H140<>"",IFERROR(VLOOKUP(H140,'Tabela de preços'!$B:$G,6,0),"-"),"") ->  | J140: =IF($B$140="",0,(N39+Q39+T39)*B140) -> 0 | L140: =IF(OR(+'Ordenar Auto'!$Q$5=0,+'Ordenar Auto'!$Q$6=0,+'Ordenar Auto'!$Q$7=0,+'Ordenar Auto'!$Q$8=0,+'Ordenar Auto'!$Q$9=0,+'Ordenar Auto'!$Q$10=0,+'Ordenar Auto'!$Q$11=0,+'Ordenar Auto'!$Q$12=0,+'Ordenar Auto'!$Q$13=0,'Ordenar Auto'!$Q$14=0,'Ordenar Auto'!$Q$15=0,'Ordenar Auto'!$Q$16=0,'Ordenar Auto'!$Q$17=0,'Ordenar Auto'!$Q$18=0,'Ordenar Auto'!$Q$19=0,'Ordenar Auto'!$Q$20=0,'Ordenar Auto'!$Q$21=0,'Ordenar Auto'!$Q$22=0,'Ordenar Auto'!$Q$23=0,'Ordenar Auto'!$Q$24=0,'Ordenar Auto'!$Q$25=0,'Ordenar Auto'!$Q$26=0,'Ordenar Auto'!$Q$27=0,'Ordenar Auto'!$Q$28=0,'Ordenar Auto'!$Q$29=0,'Ordenar Auto'!$Q$30=0,'Ordenar Auto'!$Q$31=0),+'Ordenar Auto'!Q32,+'Ordenar Auto'!Q31) ->  | M140: =IF(L140<>"",VLOOKUP(L140,'Tabela de preços'!$B:$G,3,0),"") ->  | N140: =VLOOKUP(L140,'Ordenar Auto'!Q:R,2,0) ->  | O140: =IF(L140<>"",VLOOKUP(L140,'Tabela de preços'!$B:$G,5,0),"") ->  | P140: =IF(L140<>"",VLOOKUP(L140,'Tabela de preços'!$B:$G,6,0),"") ->  | AR140: 138169
B141: =IFERROR(IF(OR(L_=R.8,L_=$L$71),IF($AC$49<>0,SUM($B$114:$B$139,$H$94)-$AA$49,SUM($B$114:$B$139,$H$94)),""),"") ->  | C141: =IF(OR(L_=R.8,L_=$L$71),"Caixa de Aparelhagem","") ->  | D141: =IF(C141<>"",IFERROR(VLOOKUP(CONCATENATE($C$104,$C$105,C141),'Base de dados'!D:G,2,0),"Selecionar cor"),"") ->  | E141: =IF(D141<>"",IFERROR(VLOOKUP(D141,'Tabela de preços'!$B:$G,6,0),"-"),"") ->  | F141: =IF(C141<>"",IFERROR(VLOOKUP(CONCATENATE($C$104,$C$105,C141),'Base de dados'!D:G,3,0),"Selecionar cor"),"") ->  | G141: =IF(F141<>"",IFERROR(VLOOKUP(F141,'Tabela de preços'!$B:$G,6,0),"-"),"") ->  | H141: =IF(C141<>"",IFERROR(VLOOKUP(CONCATENATE($C$104,$C$105,C141),'Base de dados'!D:G,4,0),"Selecionar cor"),"") ->  | I141: =IF(H141<>"",IFERROR(VLOOKUP(H141,'Tabela de preços'!$B:$G,6,0),"-"),"") ->  | J141: =IF($B$141="",0,(N40+Q40+T40)*B141) -> 0 | L141: =IF(OR(+'Ordenar Auto'!$Q$5=0,+'Ordenar Auto'!$Q$6=0,+'Ordenar Auto'!$Q$7=0,+'Ordenar Auto'!$Q$8=0,+'Ordenar Auto'!$Q$9=0,+'Ordenar Auto'!$Q$10=0,+'Ordenar Auto'!$Q$11=0,+'Ordenar Auto'!$Q$12=0,+'Ordenar Auto'!$Q$13=0,'Ordenar Auto'!$Q$14=0,'Ordenar Auto'!$Q$15=0,'Ordenar Auto'!$Q$16=0,'Ordenar Auto'!$Q$17=0,'Ordenar Auto'!$Q$18=0,'Ordenar Auto'!$Q$19=0,'Ordenar Auto'!$Q$20=0,'Ordenar Auto'!$Q$21=0,'Ordenar Auto'!$Q$22=0,'Ordenar Auto'!$Q$23=0,'Ordenar Auto'!$Q$24=0,'Ordenar Auto'!$Q$25=0,'Ordenar Auto'!$Q$26=0,'Ordenar Auto'!$Q$27=0,'Ordenar Auto'!$Q$28=0,'Ordenar Auto'!$Q$29=0,'Ordenar Auto'!$Q$30=0,'Ordenar Auto'!$Q$31=0,'Ordenar Auto'!$Q$32=0),+'Ordenar Auto'!Q33,+'Ordenar Auto'!Q32) ->  | M141: =IF(L141<>"",VLOOKUP(L141,'Tabela de preços'!$B:$G,3,0),"") ->  | N141: =VLOOKUP(L141,'Ordenar Auto'!Q:R,2,0) ->  | O141: =IF(L141<>"",VLOOKUP(L141,'Tabela de preços'!$B:$G,5,0),"") ->  | P141: =IF(L141<>"",VLOOKUP(L141,'Tabela de preços'!$B:$G,6,0),"") ->  | AR141: 138201
B142: Quantidade | C142: Quadros Múltiplos | D142: Referência | E142: Grupo | F142: Referência | G142: Grupo | H142: Referência | I142: Grupo | L142: =IF(OR(+'Ordenar Auto'!$Q$5=0,+'Ordenar Auto'!$Q$6=0,+'Ordenar Auto'!$Q$7=0,+'Ordenar Auto'!$Q$8=0,+'Ordenar Auto'!$Q$9=0,+'Ordenar Auto'!$Q$10=0,+'Ordenar Auto'!$Q$11=0,+'Ordenar Auto'!$Q$12=0,+'Ordenar Auto'!$Q$13=0,'Ordenar Auto'!$Q$14=0,'Ordenar Auto'!$Q$15=0,'Ordenar Auto'!$Q$16=0,'Ordenar Auto'!$Q$17=0,'Ordenar Auto'!$Q$18=0,'Ordenar Auto'!$Q$19=0,'Ordenar Auto'!$Q$20=0,'Ordenar Auto'!$Q$21=0,'Ordenar Auto'!$Q$22=0,'Ordenar Auto'!$Q$23=0,'Ordenar Auto'!$Q$24=0,'Ordenar Auto'!$Q$25=0,'Ordenar Auto'!$Q$26=0,'Ordenar Auto'!$Q$27=0,'Ordenar Auto'!$Q$28=0,'Ordenar Auto'!$Q$29=0,'Ordenar Auto'!$Q$30=0,'Ordenar Auto'!$Q$31=0,'Ordenar Auto'!$Q$32=0,'Ordenar Auto'!$Q$33=0),+'Ordenar Auto'!Q34,+'Ordenar Auto'!Q33) ->  | M142: =IF(L142<>"",VLOOKUP(L142,'Tabela de preços'!$B:$G,3,0),"") ->  | N142: =VLOOKUP(L142,'Ordenar Auto'!Q:R,2,0) ->  | O142: =IF(L142<>"",VLOOKUP(L142,'Tabela de preços'!$B:$G,5,0),"") ->  | P142: =IF(L142<>"",VLOOKUP(L142,'Tabela de preços'!$B:$G,6,0),"") ->  | AR142: 138209
D143: =IF(C143<>"",IFERROR(VLOOKUP(CONCATENATE($C$104,$C$105,C143),'Base de dados'!D:G,2,0),"Selecionar cor"),"") ->  | E143: =IF(D143<>"",IFERROR(VLOOKUP(D143,'Tabela de preços'!$B:$G,6,0),"-"),"") ->  | F143: =IF(C143<>"",IFERROR(VLOOKUP(CONCATENATE($C$104,$C$105,C143),'Base de dados'!D:G,3,0),"Selecionar cor"),"") ->  | G143: =IF(F143<>"",IFERROR(VLOOKUP(F143,'Tabela de preços'!$B:$G,6,0),"-"),"") ->  | H143: =IF(C143<>"",IFERROR(VLOOKUP(CONCATENATE($C$104,$C$105,C143),'Base de dados'!D:G,4,0),"Selecionar cor"),"") ->  | I143: =IF(H143<>"",IFERROR(VLOOKUP(H143,'Tabela de preços'!$B:$G,6,0),"-"),"") ->  | J143: =IF(D143="preencher manual",0,(N42+Q42+T42)*B143) -> 0 | L143: =IF(OR(+'Ordenar Auto'!$Q$5=0,+'Ordenar Auto'!$Q$6=0,+'Ordenar Auto'!$Q$7=0,+'Ordenar Auto'!$Q$8=0,+'Ordenar Auto'!$Q$9=0,+'Ordenar Auto'!$Q$10=0,+'Ordenar Auto'!$Q$11=0,+'Ordenar Auto'!$Q$12=0,+'Ordenar Auto'!$Q$13=0,'Ordenar Auto'!$Q$14=0,'Ordenar Auto'!$Q$15=0,'Ordenar Auto'!$Q$16=0,'Ordenar Auto'!$Q$17=0,'Ordenar Auto'!$Q$18=0,'Ordenar Auto'!$Q$19=0,'Ordenar Auto'!$Q$20=0,'Ordenar Auto'!$Q$21=0,'Ordenar Auto'!$Q$22=0,'Ordenar Auto'!$Q$23=0,'Ordenar Auto'!$Q$24=0,'Ordenar Auto'!$Q$25=0,'Ordenar Auto'!$Q$26=0,'Ordenar Auto'!$Q$27=0,'Ordenar Auto'!$Q$28=0,'Ordenar Auto'!$Q$29=0,'Ordenar Auto'!$Q$30=0,'Ordenar Auto'!$Q$31=0,'Ordenar Auto'!$Q$32=0,'Ordenar Auto'!$Q$33=0,'Ordenar Auto'!$Q$34=0),+'Ordenar Auto'!Q35,+'Ordenar Auto'!Q34) ->  | M143: =IF(L143<>"",VLOOKUP(L143,'Tabela de preços'!$B:$G,3,0),"") ->  | N143: =VLOOKUP(L143,'Ordenar Auto'!Q:R,2,0) ->  | O143: =IF(L143<>"",VLOOKUP(L143,'Tabela de preços'!$B:$G,5,0),"") ->  | P143: =IF(L143<>"",VLOOKUP(L143,'Tabela de preços'!$B:$G,6,0),"") ->  | AR143: 140302
D144: =IF(C144<>"",IFERROR(VLOOKUP(CONCATENATE($C$104,$C$105,C144),'Base de dados'!D:G,2,0),"Selecionar cor"),"") ->  | E144: =IF(D144<>"",IFERROR(VLOOKUP(D144,'Tabela de preços'!$B:$G,6,0),"-"),"") ->  | F144: =IF(C144<>"",IFERROR(VLOOKUP(CONCATENATE($C$104,$C$105,C144),'Base de dados'!D:G,3,0),"Selecionar cor"),"") ->  | G144: =IF(F144<>"",IFERROR(VLOOKUP(F144,'Tabela de preços'!$B:$G,6,0),"-"),"") ->  | H144: =IF(C144<>"",IFERROR(VLOOKUP(CONCATENATE($C$104,$C$105,C144),'Base de dados'!D:G,4,0),"Selecionar cor"),"") ->  | I144: =IF(H144<>"",IFERROR(VLOOKUP(H144,'Tabela de preços'!$B:$G,6,0),"-"),"") ->  | J144: =IF(D144="preencher manual",0,(N43+Q43+T43)*B144) -> 0 | L144: =IF(OR(+'Ordenar Auto'!$Q$5=0,+'Ordenar Auto'!$Q$6=0,+'Ordenar Auto'!$Q$7=0,+'Ordenar Auto'!$Q$8=0,+'Ordenar Auto'!$Q$9=0,+'Ordenar Auto'!$Q$10=0,+'Ordenar Auto'!$Q$11=0,+'Ordenar Auto'!$Q$12=0,+'Ordenar Auto'!$Q$13=0,'Ordenar Auto'!$Q$14=0,'Ordenar Auto'!$Q$15=0,'Ordenar Auto'!$Q$16=0,'Ordenar Auto'!$Q$17=0,'Ordenar Auto'!$Q$18=0,'Ordenar Auto'!$Q$19=0,'Ordenar Auto'!$Q$20=0,'Ordenar Auto'!$Q$21=0,'Ordenar Auto'!$Q$22=0,'Ordenar Auto'!$Q$23=0,'Ordenar Auto'!$Q$24=0,'Ordenar Auto'!$Q$25=0,'Ordenar Auto'!$Q$26=0,'Ordenar Auto'!$Q$27=0,'Ordenar Auto'!$Q$28=0,'Ordenar Auto'!$Q$29=0,'Ordenar Auto'!$Q$30=0,'Ordenar Auto'!$Q$31=0,'Ordenar Auto'!$Q$32=0,'Ordenar Auto'!$Q$33=0,'Ordenar Auto'!$Q$34=0,'Ordenar Auto'!$Q$35=0),+'Ordenar Auto'!Q36,+'Ordenar Auto'!Q35) ->  | M144: =IF(L144<>"",VLOOKUP(L144,'Tabela de preços'!$B:$G,3,0),"") ->  | N144: =VLOOKUP(L144,'Ordenar Auto'!Q:R,2,0) ->  | O144: =IF(L144<>"",VLOOKUP(L144,'Tabela de preços'!$B:$G,5,0),"") ->  | P144: =IF(L144<>"",VLOOKUP(L144,'Tabela de preços'!$B:$G,6,0),"") ->  | AR144: 140309
D145: =IF(C145<>"",IFERROR(VLOOKUP(CONCATENATE($C$104,$C$105,C145),'Base de dados'!D:G,2,0),"Selecionar cor"),"") ->  | E145: =IF(D145<>"",IFERROR(VLOOKUP(D145,'Tabela de preços'!$B:$G,6,0),"-"),"") ->  | F145: =IF(C145<>"",IFERROR(VLOOKUP(CONCATENATE($C$104,$C$105,C145),'Base de dados'!D:G,3,0),"Selecionar cor"),"") ->  | G145: =IF(F145<>"",IFERROR(VLOOKUP(F145,'Tabela de preços'!$B:$G,6,0),"-"),"") ->  | H145: =IF(C145<>"",IFERROR(VLOOKUP(CONCATENATE($C$104,$C$105,C145),'Base de dados'!D:G,4,0),"Selecionar cor"),"") ->  | I145: =IF(H145<>"",IFERROR(VLOOKUP(H145,'Tabela de preços'!$B:$G,6,0),"-"),"") ->  | J145: 0 | L145: =IF(OR(+'Ordenar Auto'!$Q$5=0,+'Ordenar Auto'!$Q$6=0,+'Ordenar Auto'!$Q$7=0,+'Ordenar Auto'!$Q$8=0,+'Ordenar Auto'!$Q$9=0,+'Ordenar Auto'!$Q$10=0,+'Ordenar Auto'!$Q$11=0,+'Ordenar Auto'!$Q$12=0,+'Ordenar Auto'!$Q$13=0,'Ordenar Auto'!$Q$14=0,'Ordenar Auto'!$Q$15=0,'Ordenar Auto'!$Q$16=0,'Ordenar Auto'!$Q$17=0,'Ordenar Auto'!$Q$18=0,'Ordenar Auto'!$Q$19=0,'Ordenar Auto'!$Q$20=0,'Ordenar Auto'!$Q$21=0,'Ordenar Auto'!$Q$22=0,'Ordenar Auto'!$Q$23=0,'Ordenar Auto'!$Q$24=0,'Ordenar Auto'!$Q$25=0,'Ordenar Auto'!$Q$26=0,'Ordenar Auto'!$Q$27=0,'Ordenar Auto'!$Q$28=0,'Ordenar Auto'!$Q$29=0,'Ordenar Auto'!$Q$30=0,'Ordenar Auto'!$Q$31=0,'Ordenar Auto'!$Q$32=0,'Ordenar Auto'!$Q$33=0,'Ordenar Auto'!$Q$34=0,'Ordenar Auto'!$Q$35=0,'Ordenar Auto'!$Q$36=0),+'Ordenar Auto'!Q37,+'Ordenar Auto'!Q36) ->  | M145: =IF(L145<>"",VLOOKUP(L145,'Tabela de preços'!$B:$G,3,0),"") ->  | N145: =VLOOKUP(L145,'Ordenar Auto'!Q:R,2,0) ->  | O145: =IF(L145<>"",VLOOKUP(L145,'Tabela de preços'!$B:$G,5,0),"") ->  | P145: =IF(L145<>"",VLOOKUP(L145,'Tabela de preços'!$B:$G,6,0),"") ->  | AR145: 140701
D146: =IF(C146<>"",IFERROR(VLOOKUP(CONCATENATE($C$104,$C$105,C146),'Base de dados'!D:G,2,0),"Selecionar cor"),"") ->  | E146: =IF(D146<>"",IFERROR(VLOOKUP(D146,'Tabela de preços'!$B:$G,6,0),"-"),"") ->  | F146: =IF(C146<>"",IFERROR(VLOOKUP(CONCATENATE($C$104,$C$105,C146),'Base de dados'!D:G,3,0),"Selecionar cor"),"") ->  | G146: =IF(F146<>"",IFERROR(VLOOKUP(F146,'Tabela de preços'!$B:$G,6,0),"-"),"") ->  | H146: =IF(C146<>"",IFERROR(VLOOKUP(CONCATENATE($C$104,$C$105,C146),'Base de dados'!D:G,4,0),"Selecionar cor"),"") ->  | I146: =IF(H146<>"",IFERROR(VLOOKUP(H146,'Tabela de preços'!$B:$G,6,0),"-"),"") ->  | J146: 0 | L146: =IF(OR(+'Ordenar Auto'!$Q$5=0,+'Ordenar Auto'!$Q$6=0,+'Ordenar Auto'!$Q$7=0,+'Ordenar Auto'!$Q$8=0,+'Ordenar Auto'!$Q$9=0,+'Ordenar Auto'!$Q$10=0,+'Ordenar Auto'!$Q$11=0,+'Ordenar Auto'!$Q$12=0,+'Ordenar Auto'!$Q$13=0,'Ordenar Auto'!$Q$14=0,'Ordenar Auto'!$Q$15=0,'Ordenar Auto'!$Q$16=0,'Ordenar Auto'!$Q$17=0,'Ordenar Auto'!$Q$18=0,'Ordenar Auto'!$Q$19=0,'Ordenar Auto'!$Q$20=0,'Ordenar Auto'!$Q$21=0,'Ordenar Auto'!$Q$22=0,'Ordenar Auto'!$Q$23=0,'Ordenar Auto'!$Q$24=0,'Ordenar Auto'!$Q$25=0,'Ordenar Auto'!$Q$26=0,'Ordenar Auto'!$Q$27=0,'Ordenar Auto'!$Q$28=0,'Ordenar Auto'!$Q$29=0,'Ordenar Auto'!$Q$30=0,'Ordenar Auto'!$Q$31=0,'Ordenar Auto'!$Q$32=0,'Ordenar Auto'!$Q$33=0,'Ordenar Auto'!$Q$34=0,'Ordenar Auto'!$Q$35=0,'Ordenar Auto'!$Q$36=0,'Ordenar Auto'!$Q$37=0),+'Ordenar Auto'!Q38,+'Ordenar Auto'!Q37) ->  | M146: =IF(L146<>"",VLOOKUP(L146,'Tabela de preços'!$B:$G,3,0),"") ->  | N146: =VLOOKUP(L146,'Ordenar Auto'!Q:R,2,0) ->  | O146: =IF(L146<>"",VLOOKUP(L146,'Tabela de preços'!$B:$G,5,0),"") ->  | P146: =IF(L146<>"",VLOOKUP(L146,'Tabela de preços'!$B:$G,6,0),"") ->  | AR146: 140901
D147: =IF(C147<>"",IFERROR(VLOOKUP(CONCATENATE($C$104,$C$105,C147),'Base de dados'!D:G,2,0),"Selecionar cor"),"") ->  | E147: =IF(D147<>"",IFERROR(VLOOKUP(D147,'Tabela de preços'!$B:$G,6,0),"-"),"") ->  | F147: =IF(C147<>"",IFERROR(VLOOKUP(CONCATENATE($C$104,$C$105,C147),'Base de dados'!D:G,3,0),"Selecionar cor"),"") ->  | G147: =IF(F147<>"",IFERROR(VLOOKUP(F147,'Tabela de preços'!$B:$G,6,0),"-"),"") ->  | H147: =IF(C147<>"",IFERROR(VLOOKUP(CONCATENATE($C$104,$C$105,C147),'Base de dados'!D:G,4,0),"Selecionar cor"),"") ->  | I147: =IF(H147<>"",IFERROR(VLOOKUP(H147,'Tabela de preços'!$B:$G,6,0),"-"),"") ->  | J147: 0 | L147: =IF(OR(+'Ordenar Auto'!$Q$5=0,+'Ordenar Auto'!$Q$6=0,+'Ordenar Auto'!$Q$7=0,+'Ordenar Auto'!$Q$8=0,+'Ordenar Auto'!$Q$9=0,+'Ordenar Auto'!$Q$10=0,+'Ordenar Auto'!$Q$11=0,+'Ordenar Auto'!$Q$12=0,+'Ordenar Auto'!$Q$13=0,'Ordenar Auto'!$Q$14=0,'Ordenar Auto'!$Q$15=0,'Ordenar Auto'!$Q$16=0,'Ordenar Auto'!$Q$17=0,'Ordenar Auto'!$Q$18=0,'Ordenar Auto'!$Q$19=0,'Ordenar Auto'!$Q$20=0,'Ordenar Auto'!$Q$21=0,'Ordenar Auto'!$Q$22=0,'Ordenar Auto'!$Q$23=0,'Ordenar Auto'!$Q$24=0,'Ordenar Auto'!$Q$25=0,'Ordenar Auto'!$Q$26=0,'Ordenar Auto'!$Q$27=0,'Ordenar Auto'!$Q$28=0,'Ordenar Auto'!$Q$29=0,'Ordenar Auto'!$Q$30=0,'Ordenar Auto'!$Q$31=0,'Ordenar Auto'!$Q$32=0,'Ordenar Auto'!$Q$33=0,'Ordenar Auto'!$Q$34=0,'Ordenar Auto'!$Q$35=0,'Ordenar Auto'!$Q$36=0,'Ordenar Auto'!$Q$37=0,'Ordenar Auto'!$Q$38=0),+'Ordenar Auto'!Q39,+'Ordenar Auto'!Q38) ->  | M147: =IF(L147<>"",VLOOKUP(L147,'Tabela de preços'!$B:$G,3,0),"") ->  | N147: =VLOOKUP(L147,'Ordenar Auto'!Q:R,2,0) ->  | O147: =IF(L147<>"",VLOOKUP(L147,'Tabela de preços'!$B:$G,5,0),"") ->  | P147: =IF(L147<>"",VLOOKUP(L147,'Tabela de preços'!$B:$G,6,0),"") ->  | AR147: 141202
D148: =IF(C148<>"",IFERROR(VLOOKUP(CONCATENATE($C$104,$C$105,C148),'Base de dados'!D:G,2,0),"Selecionar cor"),"") ->  | E148: =IF(D148<>"",IFERROR(VLOOKUP(D148,'Tabela de preços'!$B:$G,6,0),"-"),"") ->  | F148: =IF(C148<>"",IFERROR(VLOOKUP(CONCATENATE($C$104,$C$105,C148),'Base de dados'!D:G,3,0),"Selecionar cor"),"") ->  | G148: =IF(F148<>"",IFERROR(VLOOKUP(F148,'Tabela de preços'!$B:$G,6,0),"-"),"") ->  | H148: =IF(C148<>"",IFERROR(VLOOKUP(CONCATENATE($C$104,$C$105,C148),'Base de dados'!D:G,4,0),"Selecionar cor"),"") ->  | I148: =IF(H148<>"",IFERROR(VLOOKUP(H148,'Tabela de preços'!$B:$G,6,0),"-"),"") ->  | J148: 0 | L148: =IF(OR(+'Ordenar Auto'!$Q$5=0,+'Ordenar Auto'!$Q$6=0,+'Ordenar Auto'!$Q$7=0,+'Ordenar Auto'!$Q$8=0,+'Ordenar Auto'!$Q$9=0,+'Ordenar Auto'!$Q$10=0,+'Ordenar Auto'!$Q$11=0,+'Ordenar Auto'!$Q$12=0,+'Ordenar Auto'!$Q$13=0,'Ordenar Auto'!$Q$14=0,'Ordenar Auto'!$Q$15=0,'Ordenar Auto'!$Q$16=0,'Ordenar Auto'!$Q$17=0,'Ordenar Auto'!$Q$18=0,'Ordenar Auto'!$Q$19=0,'Ordenar Auto'!$Q$20=0,'Ordenar Auto'!$Q$21=0,'Ordenar Auto'!$Q$22=0,'Ordenar Auto'!$Q$23=0,'Ordenar Auto'!$Q$24=0,'Ordenar Auto'!$Q$25=0,'Ordenar Auto'!$Q$26=0,'Ordenar Auto'!$Q$27=0,'Ordenar Auto'!$Q$28=0,'Ordenar Auto'!$Q$29=0,'Ordenar Auto'!$Q$30=0,'Ordenar Auto'!$Q$31=0,'Ordenar Auto'!$Q$32=0,'Ordenar Auto'!$Q$33=0,'Ordenar Auto'!$Q$34=0,'Ordenar Auto'!$Q$35=0,'Ordenar Auto'!$Q$36=0,'Ordenar Auto'!$Q$37=0,'Ordenar Auto'!$Q$38=0,'Ordenar Auto'!$Q$39=0),+'Ordenar Auto'!Q40,+'Ordenar Auto'!Q39) ->  | M148: =IF(L148<>"",VLOOKUP(L148,'Tabela de preços'!$B:$G,3,0),"") ->  | N148: =VLOOKUP(L148,'Ordenar Auto'!Q:R,2,0) ->  | O148: =IF(L148<>"",VLOOKUP(L148,'Tabela de preços'!$B:$G,5,0),"") ->  | P148: =IF(L148<>"",VLOOKUP(L148,'Tabela de preços'!$B:$G,6,0),"") ->  | AR148: 141209
D149: =IF(C149<>"",IFERROR(VLOOKUP(CONCATENATE($C$104,$C$105,C149),'Base de dados'!D:G,2,0),"Selecionar cor"),"") ->  | E149: =IF(D149<>"",IFERROR(VLOOKUP(D149,'Tabela de preços'!$B:$G,6,0),"-"),"") ->  | F149: =IF(C149<>"",IFERROR(VLOOKUP(CONCATENATE($C$104,$C$105,C149),'Base de dados'!D:G,3,0),"Selecionar cor"),"") ->  | G149: =IF(F149<>"",IFERROR(VLOOKUP(F149,'Tabela de preços'!$B:$G,6,0),"-"),"") ->  | H149: =IF(C149<>"",IFERROR(VLOOKUP(CONCATENATE($C$104,$C$105,C149),'Base de dados'!D:G,4,0),"Selecionar cor"),"") ->  | I149: =IF(H149<>"",IFERROR(VLOOKUP(H149,'Tabela de preços'!$B:$G,6,0),"-"),"") ->  | J149: 0 | L149: =IF(OR(+'Ordenar Auto'!$Q$5=0,+'Ordenar Auto'!$Q$6=0,+'Ordenar Auto'!$Q$7=0,+'Ordenar Auto'!$Q$8=0,+'Ordenar Auto'!$Q$9=0,+'Ordenar Auto'!$Q$10=0,+'Ordenar Auto'!$Q$11=0,+'Ordenar Auto'!$Q$12=0,+'Ordenar Auto'!$Q$13=0,'Ordenar Auto'!$Q$14=0,'Ordenar Auto'!$Q$15=0,'Ordenar Auto'!$Q$16=0,'Ordenar Auto'!$Q$17=0,'Ordenar Auto'!$Q$18=0,'Ordenar Auto'!$Q$19=0,'Ordenar Auto'!$Q$20=0,'Ordenar Auto'!$Q$21=0,'Ordenar Auto'!$Q$22=0,'Ordenar Auto'!$Q$23=0,'Ordenar Auto'!$Q$24=0,'Ordenar Auto'!$Q$25=0,'Ordenar Auto'!$Q$26=0,'Ordenar Auto'!$Q$27=0,'Ordenar Auto'!$Q$28=0,'Ordenar Auto'!$Q$29=0,'Ordenar Auto'!$Q$30=0,'Ordenar Auto'!$Q$31=0,'Ordenar Auto'!$Q$32=0,'Ordenar Auto'!$Q$33=0,'Ordenar Auto'!$Q$34=0,'Ordenar Auto'!$Q$35=0,'Ordenar Auto'!$Q$36=0,'Ordenar Auto'!$Q$37=0,'Ordenar Auto'!$Q$38=0,'Ordenar Auto'!$Q$39=0,'Ordenar Auto'!$Q$40=0),+'Ordenar Auto'!Q41,+'Ordenar Auto'!Q40) ->  | M149: =IF(L149<>"",VLOOKUP(L149,'Tabela de preços'!$B:$G,3,0),"") ->  | N149: =VLOOKUP(L149,'Ordenar Auto'!Q:R,2,0) ->  | O149: =IF(L149<>"",VLOOKUP(L149,'Tabela de preços'!$B:$G,5,0),"") ->  | P149: =IF(L149<>"",VLOOKUP(L149,'Tabela de preços'!$B:$G,6,0),"") ->  | AR149: 142702
D150: =IF(C150<>"",IFERROR(VLOOKUP(CONCATENATE($C$104,$C$105,C150),'Base de dados'!D:G,2,0),"Selecionar cor"),"") ->  | E150: =IF(D150<>"",IFERROR(VLOOKUP(D150,'Tabela de preços'!$B:$G,6,0),"-"),"") ->  | F150: =IF(C150<>"",IFERROR(VLOOKUP(CONCATENATE($C$104,$C$105,C150),'Base de dados'!D:G,3,0),"Selecionar cor"),"") ->  | G150: =IF(F150<>"",IFERROR(VLOOKUP(F150,'Tabela de preços'!$B:$G,6,0),"-"),"") ->  | H150: =IF(C150<>"",IFERROR(VLOOKUP(CONCATENATE($C$104,$C$105,C150),'Base de dados'!D:G,4,0),"Selecionar cor"),"") ->  | I150: =IF(H150<>"",IFERROR(VLOOKUP(H150,'Tabela de preços'!$B:$G,6,0),"-"),"") ->  | J150: 0 | L150: =IF(OR(+'Ordenar Auto'!$Q$5=0,+'Ordenar Auto'!$Q$6=0,+'Ordenar Auto'!$Q$7=0,+'Ordenar Auto'!$Q$8=0,+'Ordenar Auto'!$Q$9=0,+'Ordenar Auto'!$Q$10=0,+'Ordenar Auto'!$Q$11=0,+'Ordenar Auto'!$Q$12=0,+'Ordenar Auto'!$Q$13=0,'Ordenar Auto'!$Q$14=0,'Ordenar Auto'!$Q$15=0,'Ordenar Auto'!$Q$16=0,'Ordenar Auto'!$Q$17=0,'Ordenar Auto'!$Q$18=0,'Ordenar Auto'!$Q$19=0,'Ordenar Auto'!$Q$20=0,'Ordenar Auto'!$Q$21=0,'Ordenar Auto'!$Q$22=0,'Ordenar Auto'!$Q$23=0,'Ordenar Auto'!$Q$24=0,'Ordenar Auto'!$Q$25=0,'Ordenar Auto'!$Q$26=0,'Ordenar Auto'!$Q$27=0,'Ordenar Auto'!$Q$28=0,'Ordenar Auto'!$Q$29=0,'Ordenar Auto'!$Q$30=0,'Ordenar Auto'!$Q$31=0,'Ordenar Auto'!$Q$32=0,'Ordenar Auto'!$Q$33=0,'Ordenar Auto'!$Q$34=0,'Ordenar Auto'!$Q$35=0,'Ordenar Auto'!$Q$36=0,'Ordenar Auto'!$Q$37=0,'Ordenar Auto'!$Q$38=0,'Ordenar Auto'!$Q$39=0,'Ordenar Auto'!$Q$40=0,'Ordenar Auto'!$Q$41=0),+'Ordenar Auto'!Q42,+'Ordenar Auto'!Q41) ->  | M150: =IF(L150<>"",VLOOKUP(L150,'Tabela de preços'!$B:$G,3,0),"") ->  | N150: =VLOOKUP(L150,'Ordenar Auto'!Q:R,2,0) ->  | O150: =IF(L150<>"",VLOOKUP(L150,'Tabela de preços'!$B:$G,5,0),"") ->  | P150: =IF(L150<>"",VLOOKUP(L150,'Tabela de preços'!$B:$G,6,0),"") ->  | AR150: 142709
B151: Quantidade | C151: Referências Adicionais (Inserir manualmente com base na tabela de preços de aparelhagem mural) | H151: Referência | I151: Grupo | L151: =IF(OR(+'Ordenar Auto'!$Q$5=0,+'Ordenar Auto'!$Q$6=0,+'Ordenar Auto'!$Q$7=0,+'Ordenar Auto'!$Q$8=0,+'Ordenar Auto'!$Q$9=0,+'Ordenar Auto'!$Q$10=0,+'Ordenar Auto'!$Q$11=0,+'Ordenar Auto'!$Q$12=0,+'Ordenar Auto'!$Q$13=0,'Ordenar Auto'!$Q$14=0,'Ordenar Auto'!$Q$15=0,'Ordenar Auto'!$Q$16=0,'Ordenar Auto'!$Q$17=0,'Ordenar Auto'!$Q$18=0,'Ordenar Auto'!$Q$19=0,'Ordenar Auto'!$Q$20=0,'Ordenar Auto'!$Q$21=0,'Ordenar Auto'!$Q$22=0,'Ordenar Auto'!$Q$23=0,'Ordenar Auto'!$Q$24=0,'Ordenar Auto'!$Q$25=0,'Ordenar Auto'!$Q$26=0,'Ordenar Auto'!$Q$27=0,'Ordenar Auto'!$Q$28=0,'Ordenar Auto'!$Q$29=0,'Ordenar Auto'!$Q$30=0,'Ordenar Auto'!$Q$31=0,'Ordenar Auto'!$Q$32=0,'Ordenar Auto'!$Q$33=0,'Ordenar Auto'!$Q$34=0,'Ordenar Auto'!$Q$35=0,'Ordenar Auto'!$Q$36=0,'Ordenar Auto'!$Q$37=0,'Ordenar Auto'!$Q$38=0,'Ordenar Auto'!$Q$39=0,'Ordenar Auto'!$Q$40=0,'Ordenar Auto'!$Q$41=0,'Ordenar Auto'!$Q$42=0),+'Ordenar Auto'!Q43,+'Ordenar Auto'!Q42) ->  | M151: =IF(L151<>"",VLOOKUP(L151,'Tabela de preços'!$B:$G,3,0),"") ->  | N151: =VLOOKUP(L151,'Ordenar Auto'!Q:R,2,0) ->  | O151: =IF(L151<>"",VLOOKUP(L151,'Tabela de preços'!$B:$G,5,0),"") ->  | P151: =IF(L151<>"",VLOOKUP(L151,'Tabela de preços'!$B:$G,6,0),"") ->  | AR151: 143102
C152: =IFERROR(VLOOKUP(H152,'Tabela de preços'!$B:$D,3,0),"") ->  | I152: =IF(H152<>"",IFERROR(VLOOKUP(H152,'Tabela de preços'!$B:$G,6,0),"-"),"") ->  | J152: =(T51)*B152 -> 0 | L152: =IF(OR(+'Ordenar Auto'!$Q$5=0,+'Ordenar Auto'!$Q$6=0,+'Ordenar Auto'!$Q$7=0,+'Ordenar Auto'!$Q$8=0,+'Ordenar Auto'!$Q$9=0,+'Ordenar Auto'!$Q$10=0,+'Ordenar Auto'!$Q$11=0,+'Ordenar Auto'!$Q$12=0,+'Ordenar Auto'!$Q$13=0,'Ordenar Auto'!$Q$14=0,'Ordenar Auto'!$Q$15=0,'Ordenar Auto'!$Q$16=0,'Ordenar Auto'!$Q$17=0,'Ordenar Auto'!$Q$18=0,'Ordenar Auto'!$Q$19=0,'Ordenar Auto'!$Q$20=0,'Ordenar Auto'!$Q$21=0,'Ordenar Auto'!$Q$22=0,'Ordenar Auto'!$Q$23=0,'Ordenar Auto'!$Q$24=0,'Ordenar Auto'!$Q$25=0,'Ordenar Auto'!$Q$26=0,'Ordenar Auto'!$Q$27=0,'Ordenar Auto'!$Q$28=0,'Ordenar Auto'!$Q$29=0,'Ordenar Auto'!$Q$30=0,'Ordenar Auto'!$Q$31=0,'Ordenar Auto'!$Q$32=0,'Ordenar Auto'!$Q$33=0,'Ordenar Auto'!$Q$34=0,'Ordenar Auto'!$Q$35=0,'Ordenar Auto'!$Q$36=0,'Ordenar Auto'!$Q$37=0,'Ordenar Auto'!$Q$38=0,'Ordenar Auto'!$Q$39=0,'Ordenar Auto'!$Q$40=0,'Ordenar Auto'!$Q$41=0,'Ordenar Auto'!$Q$42=0,'Ordenar Auto'!$Q$43=0),+'Ordenar Auto'!Q44,+'Ordenar Auto'!Q43) ->  | M152: =IF(L152<>"",VLOOKUP(L152,'Tabela de preços'!$B:$G,3,0),"") ->  | N152: =VLOOKUP(L152,'Ordenar Auto'!Q:R,2,0) ->  | O152: =IF(L152<>"",VLOOKUP(L152,'Tabela de preços'!$B:$G,5,0),"") ->  | P152: =IF(L152<>"",VLOOKUP(L152,'Tabela de preços'!$B:$G,6,0),"") ->  | AR152: 143104
C153: =IFERROR(VLOOKUP(H153,'Tabela de preços'!$B:$D,3,0),"") ->  | I153: =IF(H153<>"",IFERROR(VLOOKUP(H153,'Tabela de preços'!$B:$G,6,0),"-"),"") ->  | J153: 0 | L153: =IF(OR(+'Ordenar Auto'!$Q$5=0,+'Ordenar Auto'!$Q$6=0,+'Ordenar Auto'!$Q$7=0,+'Ordenar Auto'!$Q$8=0,+'Ordenar Auto'!$Q$9=0,+'Ordenar Auto'!$Q$10=0,+'Ordenar Auto'!$Q$11=0,+'Ordenar Auto'!$Q$12=0,+'Ordenar Auto'!$Q$13=0,'Ordenar Auto'!$Q$14=0,'Ordenar Auto'!$Q$15=0,'Ordenar Auto'!$Q$16=0,'Ordenar Auto'!$Q$17=0,'Ordenar Auto'!$Q$18=0,'Ordenar Auto'!$Q$19=0,'Ordenar Auto'!$Q$20=0,'Ordenar Auto'!$Q$21=0,'Ordenar Auto'!$Q$22=0,'Ordenar Auto'!$Q$23=0,'Ordenar Auto'!$Q$24=0,'Ordenar Auto'!$Q$25=0,'Ordenar Auto'!$Q$26=0,'Ordenar Auto'!$Q$27=0,'Ordenar Auto'!$Q$28=0,'Ordenar Auto'!$Q$29=0,'Ordenar Auto'!$Q$30=0,'Ordenar Auto'!$Q$31=0,'Ordenar Auto'!$Q$32=0,'Ordenar Auto'!$Q$33=0,'Ordenar Auto'!$Q$34=0,'Ordenar Auto'!$Q$35=0,'Ordenar Auto'!$Q$36=0,'Ordenar Auto'!$Q$37=0,'Ordenar Auto'!$Q$38=0,'Ordenar Auto'!$Q$39=0,'Ordenar Auto'!$Q$40=0,'Ordenar Auto'!$Q$41=0,'Ordenar Auto'!$Q$42=0,'Ordenar Auto'!$Q$43=0,'Ordenar Auto'!$Q$44=0),+'Ordenar Auto'!Q45,+'Ordenar Auto'!Q44) ->  | M153: =IF(L153<>"",VLOOKUP(L153,'Tabela de preços'!$B:$G,3,0),"") ->  | N153: =VLOOKUP(L153,'Ordenar Auto'!Q:R,2,0) ->  | O153: =IF(L153<>"",VLOOKUP(L153,'Tabela de preços'!$B:$G,5,0),"") ->  | P153: =IF(L153<>"",VLOOKUP(L153,'Tabela de preços'!$B:$G,6,0),"") ->  | AR153: 143109
C154: =IFERROR(VLOOKUP(H154,'Tabela de preços'!$B:$D,3,0),"") ->  | I154: =IF(H154<>"",IFERROR(VLOOKUP(H154,'Tabela de preços'!$B:$G,6,0),"-"),"") ->  | J154: 0 | L154: =IF(OR(+'Ordenar Auto'!$Q$5=0,+'Ordenar Auto'!$Q$6=0,+'Ordenar Auto'!$Q$7=0,+'Ordenar Auto'!$Q$8=0,+'Ordenar Auto'!$Q$9=0,+'Ordenar Auto'!$Q$10=0,+'Ordenar Auto'!$Q$11=0,+'Ordenar Auto'!$Q$12=0,+'Ordenar Auto'!$Q$13=0,'Ordenar Auto'!$Q$14=0,'Ordenar Auto'!$Q$15=0,'Ordenar Auto'!$Q$16=0,'Ordenar Auto'!$Q$17=0,'Ordenar Auto'!$Q$18=0,'Ordenar Auto'!$Q$19=0,'Ordenar Auto'!$Q$20=0,'Ordenar Auto'!$Q$21=0,'Ordenar Auto'!$Q$22=0,'Ordenar Auto'!$Q$23=0,'Ordenar Auto'!$Q$24=0,'Ordenar Auto'!$Q$25=0,'Ordenar Auto'!$Q$26=0,'Ordenar Auto'!$Q$27=0,'Ordenar Auto'!$Q$28=0,'Ordenar Auto'!$Q$29=0,'Ordenar Auto'!$Q$30=0,'Ordenar Auto'!$Q$31=0,'Ordenar Auto'!$Q$32=0,'Ordenar Auto'!$Q$33=0,'Ordenar Auto'!$Q$34=0,'Ordenar Auto'!$Q$35=0,'Ordenar Auto'!$Q$36=0,'Ordenar Auto'!$Q$37=0,'Ordenar Auto'!$Q$38=0,'Ordenar Auto'!$Q$39=0,'Ordenar Auto'!$Q$40=0,'Ordenar Auto'!$Q$41=0,'Ordenar Auto'!$Q$42=0,'Ordenar Auto'!$Q$43=0,'Ordenar Auto'!$Q$44=0,'Ordenar Auto'!$Q$45=0),+'Ordenar Auto'!Q46,+'Ordenar Auto'!Q45) ->  | M154: =IF(L154<>"",VLOOKUP(L154,'Tabela de preços'!$B:$G,3,0),"") ->  | N154: =VLOOKUP(L154,'Ordenar Auto'!Q:R,2,0) ->  | O154: =IF(L154<>"",VLOOKUP(L154,'Tabela de preços'!$B:$G,5,0),"") ->  | P154: =IF(L154<>"",VLOOKUP(L154,'Tabela de preços'!$B:$G,6,0),"") ->  | AR154: 143202
C155: =IFERROR(VLOOKUP(H155,'Tabela de preços'!$B:$D,3,0),"") ->  | I155: =IF(H155<>"",IFERROR(VLOOKUP(H155,'Tabela de preços'!$B:$G,6,0),"-"),"") ->  | J155: 0 | L155: =IF(OR(+'Ordenar Auto'!$Q$5=0,+'Ordenar Auto'!$Q$6=0,+'Ordenar Auto'!$Q$7=0,+'Ordenar Auto'!$Q$8=0,+'Ordenar Auto'!$Q$9=0,+'Ordenar Auto'!$Q$10=0,+'Ordenar Auto'!$Q$11=0,+'Ordenar Auto'!$Q$12=0,+'Ordenar Auto'!$Q$13=0,'Ordenar Auto'!$Q$14=0,'Ordenar Auto'!$Q$15=0,'Ordenar Auto'!$Q$16=0,'Ordenar Auto'!$Q$17=0,'Ordenar Auto'!$Q$18=0,'Ordenar Auto'!$Q$19=0,'Ordenar Auto'!$Q$20=0,'Ordenar Auto'!$Q$21=0,'Ordenar Auto'!$Q$22=0,'Ordenar Auto'!$Q$23=0,'Ordenar Auto'!$Q$24=0,'Ordenar Auto'!$Q$25=0,'Ordenar Auto'!$Q$26=0,'Ordenar Auto'!$Q$27=0,'Ordenar Auto'!$Q$28=0,'Ordenar Auto'!$Q$29=0,'Ordenar Auto'!$Q$30=0,'Ordenar Auto'!$Q$31=0,'Ordenar Auto'!$Q$32=0,'Ordenar Auto'!$Q$33=0,'Ordenar Auto'!$Q$34=0,'Ordenar Auto'!$Q$35=0,'Ordenar Auto'!$Q$36=0,'Ordenar Auto'!$Q$37=0,'Ordenar Auto'!$Q$38=0,'Ordenar Auto'!$Q$39=0,'Ordenar Auto'!$Q$40=0,'Ordenar Auto'!$Q$41=0,'Ordenar Auto'!$Q$42=0,'Ordenar Auto'!$Q$43=0,'Ordenar Auto'!$Q$44=0,'Ordenar Auto'!$Q$45=0,'Ordenar Auto'!$Q$46=0),+'Ordenar Auto'!Q47,+'Ordenar Auto'!Q46) ->  | M155: =IF(L155<>"",VLOOKUP(L155,'Tabela de preços'!$B:$G,3,0),"") ->  | N155: =VLOOKUP(L155,'Ordenar Auto'!Q:R,2,0) ->  | O155: =IF(L155<>"",VLOOKUP(L155,'Tabela de preços'!$B:$G,5,0),"") ->  | P155: =IF(L155<>"",VLOOKUP(L155,'Tabela de preços'!$B:$G,6,0),"") ->  | AR155: 143204
C156: =IFERROR(VLOOKUP(H156,'Tabela de preços'!$B:$D,3,0),"") ->  | I156: =IF(H156<>"",IFERROR(VLOOKUP(H156,'Tabela de preços'!$B:$G,6,0),"-"),"") ->  | J156: 0 | L156: =IF(OR(+'Ordenar Auto'!$Q$5=0,+'Ordenar Auto'!$Q$6=0,+'Ordenar Auto'!$Q$7=0,+'Ordenar Auto'!$Q$8=0,+'Ordenar Auto'!$Q$9=0,+'Ordenar Auto'!$Q$10=0,+'Ordenar Auto'!$Q$11=0,+'Ordenar Auto'!$Q$12=0,+'Ordenar Auto'!$Q$13=0,'Ordenar Auto'!$Q$14=0,'Ordenar Auto'!$Q$15=0,'Ordenar Auto'!$Q$16=0,'Ordenar Auto'!$Q$17=0,'Ordenar Auto'!$Q$18=0,'Ordenar Auto'!$Q$19=0,'Ordenar Auto'!$Q$20=0,'Ordenar Auto'!$Q$21=0,'Ordenar Auto'!$Q$22=0,'Ordenar Auto'!$Q$23=0,'Ordenar Auto'!$Q$24=0,'Ordenar Auto'!$Q$25=0,'Ordenar Auto'!$Q$26=0,'Ordenar Auto'!$Q$27=0,'Ordenar Auto'!$Q$28=0,'Ordenar Auto'!$Q$29=0,'Ordenar Auto'!$Q$30=0,'Ordenar Auto'!$Q$31=0,'Ordenar Auto'!$Q$32=0,'Ordenar Auto'!$Q$33=0,'Ordenar Auto'!$Q$34=0,'Ordenar Auto'!$Q$35=0,'Ordenar Auto'!$Q$36=0,'Ordenar Auto'!$Q$37=0,'Ordenar Auto'!$Q$38=0,'Ordenar Auto'!$Q$39=0,'Ordenar Auto'!$Q$40=0,'Ordenar Auto'!$Q$41=0,'Ordenar Auto'!$Q$42=0,'Ordenar Auto'!$Q$43=0,'Ordenar Auto'!$Q$44=0,'Ordenar Auto'!$Q$45=0,'Ordenar Auto'!$Q$46=0,'Ordenar Auto'!$Q$47=0),+'Ordenar Auto'!Q48,+'Ordenar Auto'!Q47) ->  | M156: =IF(L156<>"",VLOOKUP(L156,'Tabela de preços'!$B:$G,3,0),"") ->  | N156: =VLOOKUP(L156,'Ordenar Auto'!Q:R,2,0) ->  | O156: =IF(L156<>"",VLOOKUP(L156,'Tabela de preços'!$B:$G,5,0),"") ->  | P156: =IF(L156<>"",VLOOKUP(L156,'Tabela de preços'!$B:$G,6,0),"") ->  | AR156: 143207
C157: =IFERROR(VLOOKUP(H157,'Tabela de preços'!$B:$D,3,0),"") ->  | I157: =IF(H157<>"",IFERROR(VLOOKUP(H157,'Tabela de preços'!$B:$G,6,0),"-"),"") ->  | J157: 0 | L157: =IF(OR(+'Ordenar Auto'!$Q$5=0,+'Ordenar Auto'!$Q$6=0,+'Ordenar Auto'!$Q$7=0,+'Ordenar Auto'!$Q$8=0,+'Ordenar Auto'!$Q$9=0,+'Ordenar Auto'!$Q$10=0,+'Ordenar Auto'!$Q$11=0,+'Ordenar Auto'!$Q$12=0,+'Ordenar Auto'!$Q$13=0,'Ordenar Auto'!$Q$14=0,'Ordenar Auto'!$Q$15=0,'Ordenar Auto'!$Q$16=0,'Ordenar Auto'!$Q$17=0,'Ordenar Auto'!$Q$18=0,'Ordenar Auto'!$Q$19=0,'Ordenar Auto'!$Q$20=0,'Ordenar Auto'!$Q$21=0,'Ordenar Auto'!$Q$22=0,'Ordenar Auto'!$Q$23=0,'Ordenar Auto'!$Q$24=0,'Ordenar Auto'!$Q$25=0,'Ordenar Auto'!$Q$26=0,'Ordenar Auto'!$Q$27=0,'Ordenar Auto'!$Q$28=0,'Ordenar Auto'!$Q$29=0,'Ordenar Auto'!$Q$30=0,'Ordenar Auto'!$Q$31=0,'Ordenar Auto'!$Q$32=0,'Ordenar Auto'!$Q$33=0,'Ordenar Auto'!$Q$34=0,'Ordenar Auto'!$Q$35=0,'Ordenar Auto'!$Q$36=0,'Ordenar Auto'!$Q$37=0,'Ordenar Auto'!$Q$38=0,'Ordenar Auto'!$Q$39=0,'Ordenar Auto'!$Q$40=0,'Ordenar Auto'!$Q$41=0,'Ordenar Auto'!$Q$42=0,'Ordenar Auto'!$Q$43=0,'Ordenar Auto'!$Q$44=0,'Ordenar Auto'!$Q$45=0,'Ordenar Auto'!$Q$46=0,'Ordenar Auto'!$Q$47=0,'Ordenar Auto'!$Q$48=0),+'Ordenar Auto'!Q49,+'Ordenar Auto'!Q48) ->  | M157: =IF(L157<>"",VLOOKUP(L157,'Tabela de preços'!$B:$G,3,0),"") ->  | N157: =VLOOKUP(L157,'Ordenar Auto'!Q:R,2,0) ->  | O157: =IF(L157<>"",VLOOKUP(L157,'Tabela de preços'!$B:$G,5,0),"") ->  | P157: =IF(L157<>"",VLOOKUP(L157,'Tabela de preços'!$B:$G,6,0),"") ->  | AR157: 143209
C158: =IFERROR(VLOOKUP(H158,'Tabela de preços'!$B:$D,3,0),"") ->  | I158: =IF(H158<>"",IFERROR(VLOOKUP(H158,'Tabela de preços'!$B:$G,6,0),"-"),"") ->  | J158: 0 | L158: =IF(OR(+'Ordenar Auto'!$Q$5=0,+'Ordenar Auto'!$Q$6=0,+'Ordenar Auto'!$Q$7=0,+'Ordenar Auto'!$Q$8=0,+'Ordenar Auto'!$Q$9=0,+'Ordenar Auto'!$Q$10=0,+'Ordenar Auto'!$Q$11=0,+'Ordenar Auto'!$Q$12=0,+'Ordenar Auto'!$Q$13=0,'Ordenar Auto'!$Q$14=0,'Ordenar Auto'!$Q$15=0,'Ordenar Auto'!$Q$16=0,'Ordenar Auto'!$Q$17=0,'Ordenar Auto'!$Q$18=0,'Ordenar Auto'!$Q$19=0,'Ordenar Auto'!$Q$20=0,'Ordenar Auto'!$Q$21=0,'Ordenar Auto'!$Q$22=0,'Ordenar Auto'!$Q$23=0,'Ordenar Auto'!$Q$24=0,'Ordenar Auto'!$Q$25=0,'Ordenar Auto'!$Q$26=0,'Ordenar Auto'!$Q$27=0,'Ordenar Auto'!$Q$28=0,'Ordenar Auto'!$Q$29=0,'Ordenar Auto'!$Q$30=0,'Ordenar Auto'!$Q$31=0,'Ordenar Auto'!$Q$32=0,'Ordenar Auto'!$Q$33=0,'Ordenar Auto'!$Q$34=0,'Ordenar Auto'!$Q$35=0,'Ordenar Auto'!$Q$36=0,'Ordenar Auto'!$Q$37=0,'Ordenar Auto'!$Q$38=0,'Ordenar Auto'!$Q$39=0,'Ordenar Auto'!$Q$40=0,'Ordenar Auto'!$Q$41=0,'Ordenar Auto'!$Q$42=0,'Ordenar Auto'!$Q$43=0,'Ordenar Auto'!$Q$44=0,'Ordenar Auto'!$Q$45=0,'Ordenar Auto'!$Q$46=0,'Ordenar Auto'!$Q$47=0,'Ordenar Auto'!$Q$48=0,'Ordenar Auto'!$Q$49=0),+'Ordenar Auto'!Q50,+'Ordenar Auto'!Q49) ->  | M158: =IF(L158<>"",VLOOKUP(L158,'Tabela de preços'!$B:$G,3,0),"") ->  | N158: =VLOOKUP(L158,'Ordenar Auto'!Q:R,2,0) ->  | O158: =IF(L158<>"",VLOOKUP(L158,'Tabela de preços'!$B:$G,5,0),"") ->  | P158: =IF(L158<>"",VLOOKUP(L158,'Tabela de preços'!$B:$G,6,0),"") ->  | AR158: 146809
C159: =IFERROR(VLOOKUP(H159,'Tabela de preços'!$B:$D,3,0),"") ->  | I159: =IF(H159<>"",IFERROR(VLOOKUP(H159,'Tabela de preços'!$B:$G,6,0),"-"),"") ->  | J159: 0 | L159: =IF(OR(+'Ordenar Auto'!$Q$5=0,+'Ordenar Auto'!$Q$6=0,+'Ordenar Auto'!$Q$7=0,+'Ordenar Auto'!$Q$8=0,+'Ordenar Auto'!$Q$9=0,+'Ordenar Auto'!$Q$10=0,+'Ordenar Auto'!$Q$11=0,+'Ordenar Auto'!$Q$12=0,+'Ordenar Auto'!$Q$13=0,'Ordenar Auto'!$Q$14=0,'Ordenar Auto'!$Q$15=0,'Ordenar Auto'!$Q$16=0,'Ordenar Auto'!$Q$17=0,'Ordenar Auto'!$Q$18=0,'Ordenar Auto'!$Q$19=0,'Ordenar Auto'!$Q$20=0,'Ordenar Auto'!$Q$21=0,'Ordenar Auto'!$Q$22=0,'Ordenar Auto'!$Q$23=0,'Ordenar Auto'!$Q$24=0,'Ordenar Auto'!$Q$25=0,'Ordenar Auto'!$Q$26=0,'Ordenar Auto'!$Q$27=0,'Ordenar Auto'!$Q$28=0,'Ordenar Auto'!$Q$29=0,'Ordenar Auto'!$Q$30=0,'Ordenar Auto'!$Q$31=0,'Ordenar Auto'!$Q$32=0,'Ordenar Auto'!$Q$33=0,'Ordenar Auto'!$Q$34=0,'Ordenar Auto'!$Q$35=0,'Ordenar Auto'!$Q$36=0,'Ordenar Auto'!$Q$37=0,'Ordenar Auto'!$Q$38=0,'Ordenar Auto'!$Q$39=0,'Ordenar Auto'!$Q$40=0,'Ordenar Auto'!$Q$41=0,'Ordenar Auto'!$Q$42=0,'Ordenar Auto'!$Q$43=0,'Ordenar Auto'!$Q$44=0,'Ordenar Auto'!$Q$45=0,'Ordenar Auto'!$Q$46=0,'Ordenar Auto'!$Q$47=0,'Ordenar Auto'!$Q$48=0,'Ordenar Auto'!$Q$49=0,'Ordenar Auto'!$Q$50=0),+'Ordenar Auto'!Q51,+'Ordenar Auto'!Q50) ->  | M159: =IF(L159<>"",VLOOKUP(L159,'Tabela de preços'!$B:$G,3,0),"") ->  | N159: =VLOOKUP(L159,'Ordenar Auto'!Q:R,2,0) ->  | O159: =IF(L159<>"",VLOOKUP(L159,'Tabela de preços'!$B:$G,5,0),"") ->  | P159: =IF(L159<>"",VLOOKUP(L159,'Tabela de preços'!$B:$G,6,0),"") ->  | AR159: 146909
C160: =IFERROR(VLOOKUP(H160,'Tabela de preços'!$B:$D,3,0),"") ->  | I160: =IF(H160<>"",IFERROR(VLOOKUP(H160,'Tabela de preços'!$B:$G,6,0),"-"),"") ->  | J160: 0 | L160: =IF(OR(+'Ordenar Auto'!$Q$5=0,+'Ordenar Auto'!$Q$6=0,+'Ordenar Auto'!$Q$7=0,+'Ordenar Auto'!$Q$8=0,+'Ordenar Auto'!$Q$9=0,+'Ordenar Auto'!$Q$10=0,+'Ordenar Auto'!$Q$11=0,+'Ordenar Auto'!$Q$12=0,+'Ordenar Auto'!$Q$13=0,'Ordenar Auto'!$Q$14=0,'Ordenar Auto'!$Q$15=0,'Ordenar Auto'!$Q$16=0,'Ordenar Auto'!$Q$17=0,'Ordenar Auto'!$Q$18=0,'Ordenar Auto'!$Q$19=0,'Ordenar Auto'!$Q$20=0,'Ordenar Auto'!$Q$21=0,'Ordenar Auto'!$Q$22=0,'Ordenar Auto'!$Q$23=0,'Ordenar Auto'!$Q$24=0,'Ordenar Auto'!$Q$25=0,'Ordenar Auto'!$Q$26=0,'Ordenar Auto'!$Q$27=0,'Ordenar Auto'!$Q$28=0,'Ordenar Auto'!$Q$29=0,'Ordenar Auto'!$Q$30=0,'Ordenar Auto'!$Q$31=0,'Ordenar Auto'!$Q$32=0,'Ordenar Auto'!$Q$33=0,'Ordenar Auto'!$Q$34=0,'Ordenar Auto'!$Q$35=0,'Ordenar Auto'!$Q$36=0,'Ordenar Auto'!$Q$37=0,'Ordenar Auto'!$Q$38=0,'Ordenar Auto'!$Q$39=0,'Ordenar Auto'!$Q$40=0,'Ordenar Auto'!$Q$41=0,'Ordenar Auto'!$Q$42=0,'Ordenar Auto'!$Q$43=0,'Ordenar Auto'!$Q$44=0,'Ordenar Auto'!$Q$45=0,'Ordenar Auto'!$Q$46=0,'Ordenar Auto'!$Q$47=0,'Ordenar Auto'!$Q$48=0,'Ordenar Auto'!$Q$49=0,'Ordenar Auto'!$Q$50=0,'Ordenar Auto'!$Q$51=0),+'Ordenar Auto'!Q52,+'Ordenar Auto'!Q51) ->  | M160: =IF(L160<>"",VLOOKUP(L160,'Tabela de preços'!$B:$G,3,0),"") ->  | N160: =VLOOKUP(L160,'Ordenar Auto'!Q:R,2,0) ->  | O160: =IF(L160<>"",VLOOKUP(L160,'Tabela de preços'!$B:$G,5,0),"") ->  | P160: =IF(L160<>"",VLOOKUP(L160,'Tabela de preços'!$B:$G,6,0),"") ->  | AR160: 148002
C161: =IFERROR(VLOOKUP(H161,'Tabela de preços'!$B:$D,3,0),"") ->  | I161: =IF(H161<>"",IFERROR(VLOOKUP(H161,'Tabela de preços'!$B:$G,6,0),"-"),"") ->  | J161: 0 | L161: =IF(OR(+'Ordenar Auto'!$Q$5=0,+'Ordenar Auto'!$Q$6=0,+'Ordenar Auto'!$Q$7=0,+'Ordenar Auto'!$Q$8=0,+'Ordenar Auto'!$Q$9=0,+'Ordenar Auto'!$Q$10=0,+'Ordenar Auto'!$Q$11=0,+'Ordenar Auto'!$Q$12=0,+'Ordenar Auto'!$Q$13=0,'Ordenar Auto'!$Q$14=0,'Ordenar Auto'!$Q$15=0,'Ordenar Auto'!$Q$16=0,'Ordenar Auto'!$Q$17=0,'Ordenar Auto'!$Q$18=0,'Ordenar Auto'!$Q$19=0,'Ordenar Auto'!$Q$20=0,'Ordenar Auto'!$Q$21=0,'Ordenar Auto'!$Q$22=0,'Ordenar Auto'!$Q$23=0,'Ordenar Auto'!$Q$24=0,'Ordenar Auto'!$Q$25=0,'Ordenar Auto'!$Q$26=0,'Ordenar Auto'!$Q$27=0,'Ordenar Auto'!$Q$28=0,'Ordenar Auto'!$Q$29=0,'Ordenar Auto'!$Q$30=0,'Ordenar Auto'!$Q$31=0,'Ordenar Auto'!$Q$32=0,'Ordenar Auto'!$Q$33=0,'Ordenar Auto'!$Q$34=0,'Ordenar Auto'!$Q$35=0,'Ordenar Auto'!$Q$36=0,'Ordenar Auto'!$Q$37=0,'Ordenar Auto'!$Q$38=0,'Ordenar Auto'!$Q$39=0,'Ordenar Auto'!$Q$40=0,'Ordenar Auto'!$Q$41=0,'Ordenar Auto'!$Q$42=0,'Ordenar Auto'!$Q$43=0,'Ordenar Auto'!$Q$44=0,'Ordenar Auto'!$Q$45=0,'Ordenar Auto'!$Q$46=0,'Ordenar Auto'!$Q$47=0,'Ordenar Auto'!$Q$48=0,'Ordenar Auto'!$Q$49=0,'Ordenar Auto'!$Q$50=0,'Ordenar Auto'!$Q$51=0,'Ordenar Auto'!$Q$52=0),+'Ordenar Auto'!Q53,+'Ordenar Auto'!Q52) ->  | M161: =IF(L161<>"",VLOOKUP(L161,'Tabela de preços'!$B:$G,3,0),"") ->  | N161: =VLOOKUP(L161,'Ordenar Auto'!Q:R,2,0) ->  | O161: =IF(L161<>"",VLOOKUP(L161,'Tabela de preços'!$B:$G,5,0),"") ->  | P161: =IF(L161<>"",VLOOKUP(L161,'Tabela de preços'!$B:$G,6,0),"") ->  | AR161: 148009
C162: =IFERROR(VLOOKUP(H162,'Tabela de preços'!$B:$D,3,0),"") ->  | I162: =IF(H162<>"",IFERROR(VLOOKUP(H162,'Tabela de preços'!$B:$G,6,0),"-"),"") ->  | J162: 0 | L162: =IF(OR(+'Ordenar Auto'!$Q$5=0,+'Ordenar Auto'!$Q$6=0,+'Ordenar Auto'!$Q$7=0,+'Ordenar Auto'!$Q$8=0,+'Ordenar Auto'!$Q$9=0,+'Ordenar Auto'!$Q$10=0,+'Ordenar Auto'!$Q$11=0,+'Ordenar Auto'!$Q$12=0,+'Ordenar Auto'!$Q$13=0,'Ordenar Auto'!$Q$14=0,'Ordenar Auto'!$Q$15=0,'Ordenar Auto'!$Q$16=0,'Ordenar Auto'!$Q$17=0,'Ordenar Auto'!$Q$18=0,'Ordenar Auto'!$Q$19=0,'Ordenar Auto'!$Q$20=0,'Ordenar Auto'!$Q$21=0,'Ordenar Auto'!$Q$22=0,'Ordenar Auto'!$Q$23=0,'Ordenar Auto'!$Q$24=0,'Ordenar Auto'!$Q$25=0,'Ordenar Auto'!$Q$26=0,'Ordenar Auto'!$Q$27=0,'Ordenar Auto'!$Q$28=0,'Ordenar Auto'!$Q$29=0,'Ordenar Auto'!$Q$30=0,'Ordenar Auto'!$Q$31=0,'Ordenar Auto'!$Q$32=0,'Ordenar Auto'!$Q$33=0,'Ordenar Auto'!$Q$34=0,'Ordenar Auto'!$Q$35=0,'Ordenar Auto'!$Q$36=0,'Ordenar Auto'!$Q$37=0,'Ordenar Auto'!$Q$38=0,'Ordenar Auto'!$Q$39=0,'Ordenar Auto'!$Q$40=0,'Ordenar Auto'!$Q$41=0,'Ordenar Auto'!$Q$42=0,'Ordenar Auto'!$Q$43=0,'Ordenar Auto'!$Q$44=0,'Ordenar Auto'!$Q$45=0,'Ordenar Auto'!$Q$46=0,'Ordenar Auto'!$Q$47=0,'Ordenar Auto'!$Q$48=0,'Ordenar Auto'!$Q$49=0,'Ordenar Auto'!$Q$50=0,'Ordenar Auto'!$Q$51=0,'Ordenar Auto'!$Q$52=0,'Ordenar Auto'!$Q$53=0),+'Ordenar Auto'!Q54,+'Ordenar Auto'!Q53) ->  | M162: =IF(L162<>"",VLOOKUP(L162,'Tabela de preços'!$B:$G,3,0),"") ->  | N162: =VLOOKUP(L162,'Ordenar Auto'!Q:R,2,0) ->  | O162: =IF(L162<>"",VLOOKUP(L162,'Tabela de preços'!$B:$G,5,0),"") ->  | P162: =IF(L162<>"",VLOOKUP(L162,'Tabela de preços'!$B:$G,6,0),"") ->  | AR162: 148402
C163: =IFERROR(VLOOKUP(H163,'Tabela de preços'!$B:$D,3,0),"") ->  | I163: =IF(H163<>"",IFERROR(VLOOKUP(H163,'Tabela de preços'!$B:$G,6,0),"-"),"") ->  | J163: 0 | L163: =IF(OR(+'Ordenar Auto'!$Q$5=0,+'Ordenar Auto'!$Q$6=0,+'Ordenar Auto'!$Q$7=0,+'Ordenar Auto'!$Q$8=0,+'Ordenar Auto'!$Q$9=0,+'Ordenar Auto'!$Q$10=0,+'Ordenar Auto'!$Q$11=0,+'Ordenar Auto'!$Q$12=0,+'Ordenar Auto'!$Q$13=0,'Ordenar Auto'!$Q$14=0,'Ordenar Auto'!$Q$15=0,'Ordenar Auto'!$Q$16=0,'Ordenar Auto'!$Q$17=0,'Ordenar Auto'!$Q$18=0,'Ordenar Auto'!$Q$19=0,'Ordenar Auto'!$Q$20=0,'Ordenar Auto'!$Q$21=0,'Ordenar Auto'!$Q$22=0,'Ordenar Auto'!$Q$23=0,'Ordenar Auto'!$Q$24=0,'Ordenar Auto'!$Q$25=0,'Ordenar Auto'!$Q$26=0,'Ordenar Auto'!$Q$27=0,'Ordenar Auto'!$Q$28=0,'Ordenar Auto'!$Q$29=0,'Ordenar Auto'!$Q$30=0,'Ordenar Auto'!$Q$31=0,'Ordenar Auto'!$Q$32=0,'Ordenar Auto'!$Q$33=0,'Ordenar Auto'!$Q$34=0,'Ordenar Auto'!$Q$35=0,'Ordenar Auto'!$Q$36=0,'Ordenar Auto'!$Q$37=0,'Ordenar Auto'!$Q$38=0,'Ordenar Auto'!$Q$39=0,'Ordenar Auto'!$Q$40=0,'Ordenar Auto'!$Q$41=0,'Ordenar Auto'!$Q$42=0,'Ordenar Auto'!$Q$43=0,'Ordenar Auto'!$Q$44=0,'Ordenar Auto'!$Q$45=0,'Ordenar Auto'!$Q$46=0,'Ordenar Auto'!$Q$47=0,'Ordenar Auto'!$Q$48=0,'Ordenar Auto'!$Q$49=0,'Ordenar Auto'!$Q$50=0,'Ordenar Auto'!$Q$51=0,'Ordenar Auto'!$Q$52=0,'Ordenar Auto'!$Q$53=0,'Ordenar Auto'!$Q$54=0),+'Ordenar Auto'!Q55,+'Ordenar Auto'!Q54) ->  | M163: =IF(L163<>"",VLOOKUP(L163,'Tabela de preços'!$B:$G,3,0),"") ->  | N163: =VLOOKUP(L163,'Ordenar Auto'!Q:R,2,0) ->  | O163: =IF(L163<>"",VLOOKUP(L163,'Tabela de preços'!$B:$G,5,0),"") ->  | P163: =IF(L163<>"",VLOOKUP(L163,'Tabela de preços'!$B:$G,6,0),"") ->  | AR163: 148404
C164: =IFERROR(VLOOKUP(H164,'Tabela de preços'!$B:$D,3,0),"") ->  | I164: =IF(H164<>"",IFERROR(VLOOKUP(H164,'Tabela de preços'!$B:$G,6,0),"-"),"") ->  | J164: 0 | L164: =IF(OR(+'Ordenar Auto'!$Q$5=0,+'Ordenar Auto'!$Q$6=0,+'Ordenar Auto'!$Q$7=0,+'Ordenar Auto'!$Q$8=0,+'Ordenar Auto'!$Q$9=0,+'Ordenar Auto'!$Q$10=0,+'Ordenar Auto'!$Q$11=0,+'Ordenar Auto'!$Q$12=0,+'Ordenar Auto'!$Q$13=0,'Ordenar Auto'!$Q$14=0,'Ordenar Auto'!$Q$15=0,'Ordenar Auto'!$Q$16=0,'Ordenar Auto'!$Q$17=0,'Ordenar Auto'!$Q$18=0,'Ordenar Auto'!$Q$19=0,'Ordenar Auto'!$Q$20=0,'Ordenar Auto'!$Q$21=0,'Ordenar Auto'!$Q$22=0,'Ordenar Auto'!$Q$23=0,'Ordenar Auto'!$Q$24=0,'Ordenar Auto'!$Q$25=0,'Ordenar Auto'!$Q$26=0,'Ordenar Auto'!$Q$27=0,'Ordenar Auto'!$Q$28=0,'Ordenar Auto'!$Q$29=0,'Ordenar Auto'!$Q$30=0,'Ordenar Auto'!$Q$31=0,'Ordenar Auto'!$Q$32=0,'Ordenar Auto'!$Q$33=0,'Ordenar Auto'!$Q$34=0,'Ordenar Auto'!$Q$35=0,'Ordenar Auto'!$Q$36=0,'Ordenar Auto'!$Q$37=0,'Ordenar Auto'!$Q$38=0,'Ordenar Auto'!$Q$39=0,'Ordenar Auto'!$Q$40=0,'Ordenar Auto'!$Q$41=0,'Ordenar Auto'!$Q$42=0,'Ordenar Auto'!$Q$43=0,'Ordenar Auto'!$Q$44=0,'Ordenar Auto'!$Q$45=0,'Ordenar Auto'!$Q$46=0,'Ordenar Auto'!$Q$47=0,'Ordenar Auto'!$Q$48=0,'Ordenar Auto'!$Q$49=0,'Ordenar Auto'!$Q$50=0,'Ordenar Auto'!$Q$51=0,'Ordenar Auto'!$Q$52=0,'Ordenar Auto'!$Q$53=0,'Ordenar Auto'!$Q$54=0,'Ordenar Auto'!$Q$55=0),+'Ordenar Auto'!Q56,+'Ordenar Auto'!Q55) ->  | M164: =IF(L164<>"",VLOOKUP(L164,'Tabela de preços'!$B:$G,3,0),"") ->  | N164: =VLOOKUP(L164,'Ordenar Auto'!Q:R,2,0) ->  | O164: =IF(L164<>"",VLOOKUP(L164,'Tabela de preços'!$B:$G,5,0),"") ->  | P164: =IF(L164<>"",VLOOKUP(L164,'Tabela de preços'!$B:$G,6,0),"") ->  | AR164: 148409
C165: =IFERROR(VLOOKUP(H165,'Tabela de preços'!$B:$D,3,0),"") ->  | I165: =IF(H165<>"",IFERROR(VLOOKUP(H165,'Tabela de preços'!$B:$G,6,0),"-"),"") ->  | J165: 0 | L165: =IF(OR(+'Ordenar Auto'!$Q$5=0,+'Ordenar Auto'!$Q$6=0,+'Ordenar Auto'!$Q$7=0,+'Ordenar Auto'!$Q$8=0,+'Ordenar Auto'!$Q$9=0,+'Ordenar Auto'!$Q$10=0,+'Ordenar Auto'!$Q$11=0,+'Ordenar Auto'!$Q$12=0,+'Ordenar Auto'!$Q$13=0,'Ordenar Auto'!$Q$14=0,'Ordenar Auto'!$Q$15=0,'Ordenar Auto'!$Q$16=0,'Ordenar Auto'!$Q$17=0,'Ordenar Auto'!$Q$18=0,'Ordenar Auto'!$Q$19=0,'Ordenar Auto'!$Q$20=0,'Ordenar Auto'!$Q$21=0,'Ordenar Auto'!$Q$22=0,'Ordenar Auto'!$Q$23=0,'Ordenar Auto'!$Q$24=0,'Ordenar Auto'!$Q$25=0,'Ordenar Auto'!$Q$26=0,'Ordenar Auto'!$Q$27=0,'Ordenar Auto'!$Q$28=0,'Ordenar Auto'!$Q$29=0,'Ordenar Auto'!$Q$30=0,'Ordenar Auto'!$Q$31=0,'Ordenar Auto'!$Q$32=0,'Ordenar Auto'!$Q$33=0,'Ordenar Auto'!$Q$34=0,'Ordenar Auto'!$Q$35=0,'Ordenar Auto'!$Q$36=0,'Ordenar Auto'!$Q$37=0,'Ordenar Auto'!$Q$38=0,'Ordenar Auto'!$Q$39=0,'Ordenar Auto'!$Q$40=0,'Ordenar Auto'!$Q$41=0,'Ordenar Auto'!$Q$42=0,'Ordenar Auto'!$Q$43=0,'Ordenar Auto'!$Q$44=0,'Ordenar Auto'!$Q$45=0,'Ordenar Auto'!$Q$46=0,'Ordenar Auto'!$Q$47=0,'Ordenar Auto'!$Q$48=0,'Ordenar Auto'!$Q$49=0,'Ordenar Auto'!$Q$50=0,'Ordenar Auto'!$Q$51=0,'Ordenar Auto'!$Q$52=0,'Ordenar Auto'!$Q$53=0,'Ordenar Auto'!$Q$54=0,'Ordenar Auto'!$Q$55=0,'Ordenar Auto'!$Q$56=0),+'Ordenar Auto'!Q57,+'Ordenar Auto'!Q56) ->  | M165: =IF(L165<>"",VLOOKUP(L165,'Tabela de preços'!$B:$G,3,0),"") ->  | N165: =VLOOKUP(L165,'Ordenar Auto'!Q:R,2,0) ->  | O165: =IF(L165<>"",VLOOKUP(L165,'Tabela de preços'!$B:$G,5,0),"") ->  | P165: =IF(L165<>"",VLOOKUP(L165,'Tabela de preços'!$B:$G,6,0),"") ->  | AR165: 161003
H166: Total Tabela : | J166: =SUM(J114:J165) -> 0 | L166: =IF(OR(+'Ordenar Auto'!$Q$5=0,+'Ordenar Auto'!$Q$6=0,+'Ordenar Auto'!$Q$7=0,+'Ordenar Auto'!$Q$8=0,+'Ordenar Auto'!$Q$9=0,+'Ordenar Auto'!$Q$10=0,+'Ordenar Auto'!$Q$11=0,+'Ordenar Auto'!$Q$12=0,+'Ordenar Auto'!$Q$13=0,'Ordenar Auto'!$Q$14=0,'Ordenar Auto'!$Q$15=0,'Ordenar Auto'!$Q$16=0,'Ordenar Auto'!$Q$17=0,'Ordenar Auto'!$Q$18=0,'Ordenar Auto'!$Q$19=0,'Ordenar Auto'!$Q$20=0,'Ordenar Auto'!$Q$21=0,'Ordenar Auto'!$Q$22=0,'Ordenar Auto'!$Q$23=0,'Ordenar Auto'!$Q$24=0,'Ordenar Auto'!$Q$25=0,'Ordenar Auto'!$Q$26=0,'Ordenar Auto'!$Q$27=0,'Ordenar Auto'!$Q$28=0,'Ordenar Auto'!$Q$29=0,'Ordenar Auto'!$Q$30=0,'Ordenar Auto'!$Q$31=0,'Ordenar Auto'!$Q$32=0,'Ordenar Auto'!$Q$33=0,'Ordenar Auto'!$Q$34=0,'Ordenar Auto'!$Q$35=0,'Ordenar Auto'!$Q$36=0,'Ordenar Auto'!$Q$37=0,'Ordenar Auto'!$Q$38=0,'Ordenar Auto'!$Q$39=0,'Ordenar Auto'!$Q$40=0,'Ordenar Auto'!$Q$41=0,'Ordenar Auto'!$Q$42=0,'Ordenar Auto'!$Q$43=0,'Ordenar Auto'!$Q$44=0,'Ordenar Auto'!$Q$45=0,'Ordenar Auto'!$Q$46=0,'Ordenar Auto'!$Q$47=0,'Ordenar Auto'!$Q$48=0,'Ordenar Auto'!$Q$49=0,'Ordenar Auto'!$Q$50=0,'Ordenar Auto'!$Q$51=0,'Ordenar Auto'!$Q$52=0,'Ordenar Auto'!$Q$53=0,'Ordenar Auto'!$Q$54=0,'Ordenar Auto'!$Q$55=0,'Ordenar Auto'!$Q$56=0,'Ordenar Auto'!$Q$57=0),+'Ordenar Auto'!Q58,+'Ordenar Auto'!Q57) ->  | M166: =IF(L166<>"",VLOOKUP(L166,'Tabela de preços'!$B:$G,3,0),"") ->  | N166: =VLOOKUP(L166,'Ordenar Auto'!Q:R,2,0) ->  | O166: =IF(L166<>"",VLOOKUP(L166,'Tabela de preços'!$B:$G,5,0),"") ->  | P166: =IF(L166<>"",VLOOKUP(L166,'Tabela de preços'!$B:$G,6,0),"") ->  | AR166: 161013
B167: Grupo de Desconto: | C167: Desconto | H167: Total Líquido : | J167: =W65 -> 0 | L167: =IF(OR(+'Ordenar Auto'!$Q$5=0,+'Ordenar Auto'!$Q$6=0,+'Ordenar Auto'!$Q$7=0,+'Ordenar Auto'!$Q$8=0,+'Ordenar Auto'!$Q$9=0,+'Ordenar Auto'!$Q$10=0,+'Ordenar Auto'!$Q$11=0,+'Ordenar Auto'!$Q$12=0,+'Ordenar Auto'!$Q$13=0,'Ordenar Auto'!$Q$14=0,'Ordenar Auto'!$Q$15=0,'Ordenar Auto'!$Q$16=0,'Ordenar Auto'!$Q$17=0,'Ordenar Auto'!$Q$18=0,'Ordenar Auto'!$Q$19=0,'Ordenar Auto'!$Q$20=0,'Ordenar Auto'!$Q$21=0,'Ordenar Auto'!$Q$22=0,'Ordenar Auto'!$Q$23=0,'Ordenar Auto'!$Q$24=0,'Ordenar Auto'!$Q$25=0,'Ordenar Auto'!$Q$26=0,'Ordenar Auto'!$Q$27=0,'Ordenar Auto'!$Q$28=0,'Ordenar Auto'!$Q$29=0,'Ordenar Auto'!$Q$30=0,'Ordenar Auto'!$Q$31=0,'Ordenar Auto'!$Q$32=0,'Ordenar Auto'!$Q$33=0,'Ordenar Auto'!$Q$34=0,'Ordenar Auto'!$Q$35=0,'Ordenar Auto'!$Q$36=0,'Ordenar Auto'!$Q$37=0,'Ordenar Auto'!$Q$38=0,'Ordenar Auto'!$Q$39=0,'Ordenar Auto'!$Q$40=0,'Ordenar Auto'!$Q$41=0,'Ordenar Auto'!$Q$42=0,'Ordenar Auto'!$Q$43=0,'Ordenar Auto'!$Q$44=0,'Ordenar Auto'!$Q$45=0,'Ordenar Auto'!$Q$46=0,'Ordenar Auto'!$Q$47=0,'Ordenar Auto'!$Q$48=0,'Ordenar Auto'!$Q$49=0,'Ordenar Auto'!$Q$50=0,'Ordenar Auto'!$Q$51=0,'Ordenar Auto'!$Q$52=0,'Ordenar Auto'!$Q$53=0,'Ordenar Auto'!$Q$54=0,'Ordenar Auto'!$Q$55=0,'Ordenar Auto'!$Q$56=0,'Ordenar Auto'!$Q$57=0,'Ordenar Auto'!$Q$58=0),+'Ordenar Auto'!Q59,+'Ordenar Auto'!Q58) ->  | M167: =IF(L167<>"",VLOOKUP(L167,'Tabela de preços'!$B:$G,3,0),"") ->  | N167: =VLOOKUP(L167,'Ordenar Auto'!Q:R,2,0) ->  | O167: =IF(L167<>"",VLOOKUP(L167,'Tabela de preços'!$B:$G,5,0),"") ->  | P167: =IF(L167<>"",VLOOKUP(L167,'Tabela de preços'!$B:$G,6,0),"") ->  | AR167: 164701
H168: Total Líq. Corrigido* : | J168: =IFERROR(J167-AC49,J167) -> 0 | L168: =IF(OR(+'Ordenar Auto'!$Q$5=0,+'Ordenar Auto'!$Q$6=0,+'Ordenar Auto'!$Q$7=0,+'Ordenar Auto'!$Q$8=0,+'Ordenar Auto'!$Q$9=0,+'Ordenar Auto'!$Q$10=0,+'Ordenar Auto'!$Q$11=0,+'Ordenar Auto'!$Q$12=0,+'Ordenar Auto'!$Q$13=0,'Ordenar Auto'!$Q$14=0,'Ordenar Auto'!$Q$15=0,'Ordenar Auto'!$Q$16=0,'Ordenar Auto'!$Q$17=0,'Ordenar Auto'!$Q$18=0,'Ordenar Auto'!$Q$19=0,'Ordenar Auto'!$Q$20=0,'Ordenar Auto'!$Q$21=0,'Ordenar Auto'!$Q$22=0,'Ordenar Auto'!$Q$23=0,'Ordenar Auto'!$Q$24=0,'Ordenar Auto'!$Q$25=0,'Ordenar Auto'!$Q$26=0,'Ordenar Auto'!$Q$27=0,'Ordenar Auto'!$Q$28=0,'Ordenar Auto'!$Q$29=0,'Ordenar Auto'!$Q$30=0,'Ordenar Auto'!$Q$31=0,'Ordenar Auto'!$Q$32=0,'Ordenar Auto'!$Q$33=0,'Ordenar Auto'!$Q$34=0,'Ordenar Auto'!$Q$35=0,'Ordenar Auto'!$Q$36=0,'Ordenar Auto'!$Q$37=0,'Ordenar Auto'!$Q$38=0,'Ordenar Auto'!$Q$39=0,'Ordenar Auto'!$Q$40=0,'Ordenar Auto'!$Q$41=0,'Ordenar Auto'!$Q$42=0,'Ordenar Auto'!$Q$43=0,'Ordenar Auto'!$Q$44=0,'Ordenar Auto'!$Q$45=0,'Ordenar Auto'!$Q$46=0,'Ordenar Auto'!$Q$47=0,'Ordenar Auto'!$Q$48=0,'Ordenar Auto'!$Q$49=0,'Ordenar Auto'!$Q$50=0,'Ordenar Auto'!$Q$51=0,'Ordenar Auto'!$Q$52=0,'Ordenar Auto'!$Q$53=0,'Ordenar Auto'!$Q$54=0,'Ordenar Auto'!$Q$55=0,'Ordenar Auto'!$Q$56=0,'Ordenar Auto'!$Q$57=0,'Ordenar Auto'!$Q$58=0,'Ordenar Auto'!$Q$59=0),+'Ordenar Auto'!Q60,+'Ordenar Auto'!Q59) ->  | M168: =IF(L168<>"",VLOOKUP(L168,'Tabela de preços'!$B:$G,3,0),"") ->  | N168: =VLOOKUP(L168,'Ordenar Auto'!Q:R,2,0) ->  | O168: =IF(L168<>"",VLOOKUP(L168,'Tabela de preços'!$B:$G,5,0),"") ->  | P168: =IF(L168<>"",VLOOKUP(L168,'Tabela de preços'!$B:$G,6,0),"") ->  | AR168: 167504
B169: 20 | C169: 0 | H169: =IF(J167<>J168,IF(SUM(AA57:AA64)<>0,CONCATENATE("Foram retirados ",SUM(AA57:AA64)," quadros simples à proposta"),""),IF(AA49>Z49,"N.º de quadros múltiplos superior ao n.º de quadros simples. Pfv verifque.","")) ->  | L169: =IF(OR(+'Ordenar Auto'!$Q$5=0,+'Ordenar Auto'!$Q$6=0,+'Ordenar Auto'!$Q$7=0,+'Ordenar Auto'!$Q$8=0,+'Ordenar Auto'!$Q$9=0,+'Ordenar Auto'!$Q$10=0,+'Ordenar Auto'!$Q$11=0,+'Ordenar Auto'!$Q$12=0,+'Ordenar Auto'!$Q$13=0,'Ordenar Auto'!$Q$14=0,'Ordenar Auto'!$Q$15=0,'Ordenar Auto'!$Q$16=0,'Ordenar Auto'!$Q$17=0,'Ordenar Auto'!$Q$18=0,'Ordenar Auto'!$Q$19=0,'Ordenar Auto'!$Q$20=0,'Ordenar Auto'!$Q$21=0,'Ordenar Auto'!$Q$22=0,'Ordenar Auto'!$Q$23=0,'Ordenar Auto'!$Q$24=0,'Ordenar Auto'!$Q$25=0,'Ordenar Auto'!$Q$26=0,'Ordenar Auto'!$Q$27=0,'Ordenar Auto'!$Q$28=0,'Ordenar Auto'!$Q$29=0,'Ordenar Auto'!$Q$30=0,'Ordenar Auto'!$Q$31=0,'Ordenar Auto'!$Q$32=0,'Ordenar Auto'!$Q$33=0,'Ordenar Auto'!$Q$34=0,'Ordenar Auto'!$Q$35=0,'Ordenar Auto'!$Q$36=0,'Ordenar Auto'!$Q$37=0,'Ordenar Auto'!$Q$38=0,'Ordenar Auto'!$Q$39=0,'Ordenar Auto'!$Q$40=0,'Ordenar Auto'!$Q$41=0,'Ordenar Auto'!$Q$42=0,'Ordenar Auto'!$Q$43=0,'Ordenar Auto'!$Q$44=0,'Ordenar Auto'!$Q$45=0,'Ordenar Auto'!$Q$46=0,'Ordenar Auto'!$Q$47=0,'Ordenar Auto'!$Q$48=0,'Ordenar Auto'!$Q$49=0,'Ordenar Auto'!$Q$50=0,'Ordenar Auto'!$Q$51=0,'Ordenar Auto'!$Q$52=0,'Ordenar Auto'!$Q$53=0,'Ordenar Auto'!$Q$54=0,'Ordenar Auto'!$Q$55=0,'Ordenar Auto'!$Q$56=0,'Ordenar Auto'!$Q$57=0,'Ordenar Auto'!$Q$58=0,'Ordenar Auto'!$Q$59=0,'Ordenar Auto'!$Q$60=0),+'Ordenar Auto'!Q61,+'Ordenar Auto'!Q60) ->  | M169: =IF(L169<>"",VLOOKUP(L169,'Tabela de preços'!$B:$G,3,0),"") ->  | N169: =VLOOKUP(L169,'Ordenar Auto'!Q:R,2,0) ->  | O169: =IF(L169<>"",VLOOKUP(L169,'Tabela de preços'!$B:$G,5,0),"") ->  | P169: =IF(L169<>"",VLOOKUP(L169,'Tabela de preços'!$B:$G,6,0),"") ->  | AR169: 167601
B170: 21 | C170: 0 | G170: =IF(H169<>"","* Nota:","") ->  | L170: =IF(OR(+'Ordenar Auto'!$Q$5=0,+'Ordenar Auto'!$Q$6=0,+'Ordenar Auto'!$Q$7=0,+'Ordenar Auto'!$Q$8=0,+'Ordenar Auto'!$Q$9=0,+'Ordenar Auto'!$Q$10=0,+'Ordenar Auto'!$Q$11=0,+'Ordenar Auto'!$Q$12=0,+'Ordenar Auto'!$Q$13=0,'Ordenar Auto'!$Q$14=0,'Ordenar Auto'!$Q$15=0,'Ordenar Auto'!$Q$16=0,'Ordenar Auto'!$Q$17=0,'Ordenar Auto'!$Q$18=0,'Ordenar Auto'!$Q$19=0,'Ordenar Auto'!$Q$20=0,'Ordenar Auto'!$Q$21=0,'Ordenar Auto'!$Q$22=0,'Ordenar Auto'!$Q$23=0,'Ordenar Auto'!$Q$24=0,'Ordenar Auto'!$Q$25=0,'Ordenar Auto'!$Q$26=0,'Ordenar Auto'!$Q$27=0,'Ordenar Auto'!$Q$28=0,'Ordenar Auto'!$Q$29=0,'Ordenar Auto'!$Q$30=0,'Ordenar Auto'!$Q$31=0,'Ordenar Auto'!$Q$32=0,'Ordenar Auto'!$Q$33=0,'Ordenar Auto'!$Q$34=0,'Ordenar Auto'!$Q$35=0,'Ordenar Auto'!$Q$36=0,'Ordenar Auto'!$Q$37=0,'Ordenar Auto'!$Q$38=0,'Ordenar Auto'!$Q$39=0,'Ordenar Auto'!$Q$40=0,'Ordenar Auto'!$Q$41=0,'Ordenar Auto'!$Q$42=0,'Ordenar Auto'!$Q$43=0,'Ordenar Auto'!$Q$44=0,'Ordenar Auto'!$Q$45=0,'Ordenar Auto'!$Q$46=0,'Ordenar Auto'!$Q$47=0,'Ordenar Auto'!$Q$48=0,'Ordenar Auto'!$Q$49=0,'Ordenar Auto'!$Q$50=0,'Ordenar Auto'!$Q$51=0,'Ordenar Auto'!$Q$52=0,'Ordenar Auto'!$Q$53=0,'Ordenar Auto'!$Q$54=0,'Ordenar Auto'!$Q$55=0,'Ordenar Auto'!$Q$56=0,'Ordenar Auto'!$Q$57=0,'Ordenar Auto'!$Q$58=0,'Ordenar Auto'!$Q$59=0,'Ordenar Auto'!$Q$60=0,'Ordenar Auto'!$Q$61=0),+'Ordenar Auto'!Q62,+'Ordenar Auto'!Q61) ->  | M170: =IF(L170<>"",VLOOKUP(L170,'Tabela de preços'!$B:$G,3,0),"") ->  | N170: =VLOOKUP(L170,'Ordenar Auto'!Q:R,2,0) ->  | O170: =IF(L170<>"",VLOOKUP(L170,'Tabela de preços'!$B:$G,5,0),"") ->  | P170: =IF(L170<>"",VLOOKUP(L170,'Tabela de preços'!$B:$G,6,0),"") ->  | AR170: 167602
B171: 22 | C171: 0 | L171: =IF(OR(+'Ordenar Auto'!$Q$5=0,+'Ordenar Auto'!$Q$6=0,+'Ordenar Auto'!$Q$7=0,+'Ordenar Auto'!$Q$8=0,+'Ordenar Auto'!$Q$9=0,+'Ordenar Auto'!$Q$10=0,+'Ordenar Auto'!$Q$11=0,+'Ordenar Auto'!$Q$12=0,+'Ordenar Auto'!$Q$13=0,'Ordenar Auto'!$Q$14=0,'Ordenar Auto'!$Q$15=0,'Ordenar Auto'!$Q$16=0,'Ordenar Auto'!$Q$17=0,'Ordenar Auto'!$Q$18=0,'Ordenar Auto'!$Q$19=0,'Ordenar Auto'!$Q$20=0,'Ordenar Auto'!$Q$21=0,'Ordenar Auto'!$Q$22=0,'Ordenar Auto'!$Q$23=0,'Ordenar Auto'!$Q$24=0,'Ordenar Auto'!$Q$25=0,'Ordenar Auto'!$Q$26=0,'Ordenar Auto'!$Q$27=0,'Ordenar Auto'!$Q$28=0,'Ordenar Auto'!$Q$29=0,'Ordenar Auto'!$Q$30=0,'Ordenar Auto'!$Q$31=0,'Ordenar Auto'!$Q$32=0,'Ordenar Auto'!$Q$33=0,'Ordenar Auto'!$Q$34=0,'Ordenar Auto'!$Q$35=0,'Ordenar Auto'!$Q$36=0,'Ordenar Auto'!$Q$37=0,'Ordenar Auto'!$Q$38=0,'Ordenar Auto'!$Q$39=0,'Ordenar Auto'!$Q$40=0,'Ordenar Auto'!$Q$41=0,'Ordenar Auto'!$Q$42=0,'Ordenar Auto'!$Q$43=0,'Ordenar Auto'!$Q$44=0,'Ordenar Auto'!$Q$45=0,'Ordenar Auto'!$Q$46=0,'Ordenar Auto'!$Q$47=0,'Ordenar Auto'!$Q$48=0,'Ordenar Auto'!$Q$49=0,'Ordenar Auto'!$Q$50=0,'Ordenar Auto'!$Q$51=0,'Ordenar Auto'!$Q$52=0,'Ordenar Auto'!$Q$53=0,'Ordenar Auto'!$Q$54=0,'Ordenar Auto'!$Q$55=0,'Ordenar Auto'!$Q$56=0,'Ordenar Auto'!$Q$57=0,'Ordenar Auto'!$Q$58=0,'Ordenar Auto'!$Q$59=0,'Ordenar Auto'!$Q$60=0,'Ordenar Auto'!$Q$61=0,'Ordenar Auto'!$Q$62=0),+'Ordenar Auto'!Q63,+'Ordenar Auto'!Q62) ->  | M171: =IF(L171<>"",VLOOKUP(L171,'Tabela de preços'!$B:$G,3,0),"") ->  | N171: =VLOOKUP(L171,'Ordenar Auto'!Q:R,2,0) ->  | O171: =IF(L171<>"",VLOOKUP(L171,'Tabela de preços'!$B:$G,5,0),"") ->  | P171: =IF(L171<>"",VLOOKUP(L171,'Tabela de preços'!$B:$G,6,0),"") ->  | AR171: 167603
B172: 23 | C172: 0 | L172: =IF(OR(+'Ordenar Auto'!$Q$5=0,+'Ordenar Auto'!$Q$6=0,+'Ordenar Auto'!$Q$7=0,+'Ordenar Auto'!$Q$8=0,+'Ordenar Auto'!$Q$9=0,+'Ordenar Auto'!$Q$10=0,+'Ordenar Auto'!$Q$11=0,+'Ordenar Auto'!$Q$12=0,+'Ordenar Auto'!$Q$13=0,'Ordenar Auto'!$Q$14=0,'Ordenar Auto'!$Q$15=0,'Ordenar Auto'!$Q$16=0,'Ordenar Auto'!$Q$17=0,'Ordenar Auto'!$Q$18=0,'Ordenar Auto'!$Q$19=0,'Ordenar Auto'!$Q$20=0,'Ordenar Auto'!$Q$21=0,'Ordenar Auto'!$Q$22=0,'Ordenar Auto'!$Q$23=0,'Ordenar Auto'!$Q$24=0,'Ordenar Auto'!$Q$25=0,'Ordenar Auto'!$Q$26=0,'Ordenar Auto'!$Q$27=0,'Ordenar Auto'!$Q$28=0,'Ordenar Auto'!$Q$29=0,'Ordenar Auto'!$Q$30=0,'Ordenar Auto'!$Q$31=0,'Ordenar Auto'!$Q$32=0,'Ordenar Auto'!$Q$33=0,'Ordenar Auto'!$Q$34=0,'Ordenar Auto'!$Q$35=0,'Ordenar Auto'!$Q$36=0,'Ordenar Auto'!$Q$37=0,'Ordenar Auto'!$Q$38=0,'Ordenar Auto'!$Q$39=0,'Ordenar Auto'!$Q$40=0,'Ordenar Auto'!$Q$41=0,'Ordenar Auto'!$Q$42=0,'Ordenar Auto'!$Q$43=0,'Ordenar Auto'!$Q$44=0,'Ordenar Auto'!$Q$45=0,'Ordenar Auto'!$Q$46=0,'Ordenar Auto'!$Q$47=0,'Ordenar Auto'!$Q$48=0,'Ordenar Auto'!$Q$49=0,'Ordenar Auto'!$Q$50=0,'Ordenar Auto'!$Q$51=0,'Ordenar Auto'!$Q$52=0,'Ordenar Auto'!$Q$53=0,'Ordenar Auto'!$Q$54=0,'Ordenar Auto'!$Q$55=0,'Ordenar Auto'!$Q$56=0,'Ordenar Auto'!$Q$57=0,'Ordenar Auto'!$Q$58=0,'Ordenar Auto'!$Q$59=0,'Ordenar Auto'!$Q$60=0,'Ordenar Auto'!$Q$61=0,'Ordenar Auto'!$Q$62=0,'Ordenar Auto'!$Q$63=0),+'Ordenar Auto'!Q64,+'Ordenar Auto'!Q63) ->  | M172: =IF(L172<>"",VLOOKUP(L172,'Tabela de preços'!$B:$G,3,0),"") ->  | N172: =VLOOKUP(L172,'Ordenar Auto'!Q:R,2,0) ->  | O172: =IF(L172<>"",VLOOKUP(L172,'Tabela de preços'!$B:$G,5,0),"") ->  | P172: =IF(L172<>"",VLOOKUP(L172,'Tabela de preços'!$B:$G,6,0),"") ->  | AR172: 167801
B173: 24 | C173: 0 | L173: =IF(OR(+'Ordenar Auto'!$Q$5=0,+'Ordenar Auto'!$Q$6=0,+'Ordenar Auto'!$Q$7=0,+'Ordenar Auto'!$Q$8=0,+'Ordenar Auto'!$Q$9=0,+'Ordenar Auto'!$Q$10=0,+'Ordenar Auto'!$Q$11=0,+'Ordenar Auto'!$Q$12=0,+'Ordenar Auto'!$Q$13=0,'Ordenar Auto'!$Q$14=0,'Ordenar Auto'!$Q$15=0,'Ordenar Auto'!$Q$16=0,'Ordenar Auto'!$Q$17=0,'Ordenar Auto'!$Q$18=0,'Ordenar Auto'!$Q$19=0,'Ordenar Auto'!$Q$20=0,'Ordenar Auto'!$Q$21=0,'Ordenar Auto'!$Q$22=0,'Ordenar Auto'!$Q$23=0,'Ordenar Auto'!$Q$24=0,'Ordenar Auto'!$Q$25=0,'Ordenar Auto'!$Q$26=0,'Ordenar Auto'!$Q$27=0,'Ordenar Auto'!$Q$28=0,'Ordenar Auto'!$Q$29=0,'Ordenar Auto'!$Q$30=0,'Ordenar Auto'!$Q$31=0,'Ordenar Auto'!$Q$32=0,'Ordenar Auto'!$Q$33=0,'Ordenar Auto'!$Q$34=0,'Ordenar Auto'!$Q$35=0,'Ordenar Auto'!$Q$36=0,'Ordenar Auto'!$Q$37=0,'Ordenar Auto'!$Q$38=0,'Ordenar Auto'!$Q$39=0,'Ordenar Auto'!$Q$40=0,'Ordenar Auto'!$Q$41=0,'Ordenar Auto'!$Q$42=0,'Ordenar Auto'!$Q$43=0,'Ordenar Auto'!$Q$44=0,'Ordenar Auto'!$Q$45=0,'Ordenar Auto'!$Q$46=0,'Ordenar Auto'!$Q$47=0,'Ordenar Auto'!$Q$48=0,'Ordenar Auto'!$Q$49=0,'Ordenar Auto'!$Q$50=0,'Ordenar Auto'!$Q$51=0,'Ordenar Auto'!$Q$52=0,'Ordenar Auto'!$Q$53=0,'Ordenar Auto'!$Q$54=0,'Ordenar Auto'!$Q$55=0,'Ordenar Auto'!$Q$56=0,'Ordenar Auto'!$Q$57=0,'Ordenar Auto'!$Q$58=0,'Ordenar Auto'!$Q$59=0,'Ordenar Auto'!$Q$60=0,'Ordenar Auto'!$Q$61=0,'Ordenar Auto'!$Q$62=0,'Ordenar Auto'!$Q$63=0,'Ordenar Auto'!$Q$64=0),+'Ordenar Auto'!Q65,+'Ordenar Auto'!Q64) ->  | M173: =IF(L173<>"",VLOOKUP(L173,'Tabela de preços'!$B:$G,3,0),"") ->  | N173: =VLOOKUP(L173,'Ordenar Auto'!Q:R,2,0) ->  | O173: =IF(L173<>"",VLOOKUP(L173,'Tabela de preços'!$B:$G,5,0),"") ->  | P173: =IF(L173<>"",VLOOKUP(L173,'Tabela de preços'!$B:$G,6,0),"") ->  | AR173: 167802
B174: 25 | C174: 0 | L174: =IF(OR(+'Ordenar Auto'!$Q$5=0,+'Ordenar Auto'!$Q$6=0,+'Ordenar Auto'!$Q$7=0,+'Ordenar Auto'!$Q$8=0,+'Ordenar Auto'!$Q$9=0,+'Ordenar Auto'!$Q$10=0,+'Ordenar Auto'!$Q$11=0,+'Ordenar Auto'!$Q$12=0,+'Ordenar Auto'!$Q$13=0,'Ordenar Auto'!$Q$14=0,'Ordenar Auto'!$Q$15=0,'Ordenar Auto'!$Q$16=0,'Ordenar Auto'!$Q$17=0,'Ordenar Auto'!$Q$18=0,'Ordenar Auto'!$Q$19=0,'Ordenar Auto'!$Q$20=0,'Ordenar Auto'!$Q$21=0,'Ordenar Auto'!$Q$22=0,'Ordenar Auto'!$Q$23=0,'Ordenar Auto'!$Q$24=0,'Ordenar Auto'!$Q$25=0,'Ordenar Auto'!$Q$26=0,'Ordenar Auto'!$Q$27=0,'Ordenar Auto'!$Q$28=0,'Ordenar Auto'!$Q$29=0,'Ordenar Auto'!$Q$30=0,'Ordenar Auto'!$Q$31=0,'Ordenar Auto'!$Q$32=0,'Ordenar Auto'!$Q$33=0,'Ordenar Auto'!$Q$34=0,'Ordenar Auto'!$Q$35=0,'Ordenar Auto'!$Q$36=0,'Ordenar Auto'!$Q$37=0,'Ordenar Auto'!$Q$38=0,'Ordenar Auto'!$Q$39=0,'Ordenar Auto'!$Q$40=0,'Ordenar Auto'!$Q$41=0,'Ordenar Auto'!$Q$42=0,'Ordenar Auto'!$Q$43=0,'Ordenar Auto'!$Q$44=0,'Ordenar Auto'!$Q$45=0,'Ordenar Auto'!$Q$46=0,'Ordenar Auto'!$Q$47=0,'Ordenar Auto'!$Q$48=0,'Ordenar Auto'!$Q$49=0,'Ordenar Auto'!$Q$50=0,'Ordenar Auto'!$Q$51=0,'Ordenar Auto'!$Q$52=0,'Ordenar Auto'!$Q$53=0,'Ordenar Auto'!$Q$54=0,'Ordenar Auto'!$Q$55=0,'Ordenar Auto'!$Q$56=0,'Ordenar Auto'!$Q$57=0,'Ordenar Auto'!$Q$58=0,'Ordenar Auto'!$Q$59=0,'Ordenar Auto'!$Q$60=0,'Ordenar Auto'!$Q$61=0,'Ordenar Auto'!$Q$62=0,'Ordenar Auto'!$Q$63=0,'Ordenar Auto'!$Q$64=0,'Ordenar Auto'!$Q$65=0),+'Ordenar Auto'!Q66,+'Ordenar Auto'!Q65) ->  | M174: =IF(L174<>"",VLOOKUP(L174,'Tabela de preços'!$B:$G,3,0),"") ->  | N174: =VLOOKUP(L174,'Ordenar Auto'!Q:R,2,0) ->  | O174: =IF(L174<>"",VLOOKUP(L174,'Tabela de preços'!$B:$G,5,0),"") ->  | P174: =IF(L174<>"",VLOOKUP(L174,'Tabela de preços'!$B:$G,6,0),"") ->  | AR174: 167803
B175: 42 | C175: 0 | L175: =IF(OR(+'Ordenar Auto'!$Q$5=0,+'Ordenar Auto'!$Q$6=0,+'Ordenar Auto'!$Q$7=0,+'Ordenar Auto'!$Q$8=0,+'Ordenar Auto'!$Q$9=0,+'Ordenar Auto'!$Q$10=0,+'Ordenar Auto'!$Q$11=0,+'Ordenar Auto'!$Q$12=0,+'Ordenar Auto'!$Q$13=0,'Ordenar Auto'!$Q$14=0,'Ordenar Auto'!$Q$15=0,'Ordenar Auto'!$Q$16=0,'Ordenar Auto'!$Q$17=0,'Ordenar Auto'!$Q$18=0,'Ordenar Auto'!$Q$19=0,'Ordenar Auto'!$Q$20=0,'Ordenar Auto'!$Q$21=0,'Ordenar Auto'!$Q$22=0,'Ordenar Auto'!$Q$23=0,'Ordenar Auto'!$Q$24=0,'Ordenar Auto'!$Q$25=0,'Ordenar Auto'!$Q$26=0,'Ordenar Auto'!$Q$27=0,'Ordenar Auto'!$Q$28=0,'Ordenar Auto'!$Q$29=0,'Ordenar Auto'!$Q$30=0,'Ordenar Auto'!$Q$31=0,'Ordenar Auto'!$Q$32=0,'Ordenar Auto'!$Q$33=0,'Ordenar Auto'!$Q$34=0,'Ordenar Auto'!$Q$35=0,'Ordenar Auto'!$Q$36=0,'Ordenar Auto'!$Q$37=0,'Ordenar Auto'!$Q$38=0,'Ordenar Auto'!$Q$39=0,'Ordenar Auto'!$Q$40=0,'Ordenar Auto'!$Q$41=0,'Ordenar Auto'!$Q$42=0,'Ordenar Auto'!$Q$43=0,'Ordenar Auto'!$Q$44=0,'Ordenar Auto'!$Q$45=0,'Ordenar Auto'!$Q$46=0,'Ordenar Auto'!$Q$47=0,'Ordenar Auto'!$Q$48=0,'Ordenar Auto'!$Q$49=0,'Ordenar Auto'!$Q$50=0,'Ordenar Auto'!$Q$51=0,'Ordenar Auto'!$Q$52=0,'Ordenar Auto'!$Q$53=0,'Ordenar Auto'!$Q$54=0,'Ordenar Auto'!$Q$55=0,'Ordenar Auto'!$Q$56=0,'Ordenar Auto'!$Q$57=0,'Ordenar Auto'!$Q$58=0,'Ordenar Auto'!$Q$59=0,'Ordenar Auto'!$Q$60=0,'Ordenar Auto'!$Q$61=0,'Ordenar Auto'!$Q$62=0,'Ordenar Auto'!$Q$63=0,'Ordenar Auto'!$Q$64=0,'Ordenar Auto'!$Q$65=0,'Ordenar Auto'!$Q$66=0),+'Ordenar Auto'!Q67,+'Ordenar Auto'!Q66) ->  | M175: =IF(L175<>"",VLOOKUP(L175,'Tabela de preços'!$B:$G,3,0),"") ->  | N175: =VLOOKUP(L175,'Ordenar Auto'!Q:R,2,0) ->  | O175: =IF(L175<>"",VLOOKUP(L175,'Tabela de preços'!$B:$G,5,0),"") ->  | P175: =IF(L175<>"",VLOOKUP(L175,'Tabela de preços'!$B:$G,6,0),"") ->  | AR175: 167804
L176: =IF(OR(+'Ordenar Auto'!$Q$5=0,+'Ordenar Auto'!$Q$6=0,+'Ordenar Auto'!$Q$7=0,+'Ordenar Auto'!$Q$8=0,+'Ordenar Auto'!$Q$9=0,+'Ordenar Auto'!$Q$10=0,+'Ordenar Auto'!$Q$11=0,+'Ordenar Auto'!$Q$12=0,+'Ordenar Auto'!$Q$13=0,'Ordenar Auto'!$Q$14=0,'Ordenar Auto'!$Q$15=0,'Ordenar Auto'!$Q$16=0,'Ordenar Auto'!$Q$17=0,'Ordenar Auto'!$Q$18=0,'Ordenar Auto'!$Q$19=0,'Ordenar Auto'!$Q$20=0,'Ordenar Auto'!$Q$21=0,'Ordenar Auto'!$Q$22=0,'Ordenar Auto'!$Q$23=0,'Ordenar Auto'!$Q$24=0,'Ordenar Auto'!$Q$25=0,'Ordenar Auto'!$Q$26=0,'Ordenar Auto'!$Q$27=0,'Ordenar Auto'!$Q$28=0,'Ordenar Auto'!$Q$29=0,'Ordenar Auto'!$Q$30=0,'Ordenar Auto'!$Q$31=0,'Ordenar Auto'!$Q$32=0,'Ordenar Auto'!$Q$33=0,'Ordenar Auto'!$Q$34=0,'Ordenar Auto'!$Q$35=0,'Ordenar Auto'!$Q$36=0,'Ordenar Auto'!$Q$37=0,'Ordenar Auto'!$Q$38=0,'Ordenar Auto'!$Q$39=0,'Ordenar Auto'!$Q$40=0,'Ordenar Auto'!$Q$41=0,'Ordenar Auto'!$Q$42=0,'Ordenar Auto'!$Q$43=0,'Ordenar Auto'!$Q$44=0,'Ordenar Auto'!$Q$45=0,'Ordenar Auto'!$Q$46=0,'Ordenar Auto'!$Q$47=0,'Ordenar Auto'!$Q$48=0,'Ordenar Auto'!$Q$49=0,'Ordenar Auto'!$Q$50=0,'Ordenar Auto'!$Q$51=0,'Ordenar Auto'!$Q$52=0,'Ordenar Auto'!$Q$53=0,'Ordenar Auto'!$Q$54=0,'Ordenar Auto'!$Q$55=0,'Ordenar Auto'!$Q$56=0,'Ordenar Auto'!$Q$57=0,'Ordenar Auto'!$Q$58=0,'Ordenar Auto'!$Q$59=0,'Ordenar Auto'!$Q$60=0,'Ordenar Auto'!$Q$61=0,'Ordenar Auto'!$Q$62=0,'Ordenar Auto'!$Q$63=0,'Ordenar Auto'!$Q$64=0,'Ordenar Auto'!$Q$65=0,'Ordenar Auto'!$Q$66=0,'Ordenar Auto'!$Q$67=0),+'Ordenar Auto'!Q68,+'Ordenar Auto'!Q67) ->  | M176: =IF(L176<>"",VLOOKUP(L176,'Tabela de preços'!$B:$G,3,0),"") ->  | N176: =VLOOKUP(L176,'Ordenar Auto'!Q:R,2,0) ->  | O176: =IF(L176<>"",VLOOKUP(L176,'Tabela de preços'!$B:$G,5,0),"") ->  | P176: =IF(L176<>"",VLOOKUP(L176,'Tabela de preços'!$B:$G,6,0),"") ->  | AR176: 167901
L177: =IF(OR(+'Ordenar Auto'!$Q$5=0,+'Ordenar Auto'!$Q$6=0,+'Ordenar Auto'!$Q$7=0,+'Ordenar Auto'!$Q$8=0,+'Ordenar Auto'!$Q$9=0,+'Ordenar Auto'!$Q$10=0,+'Ordenar Auto'!$Q$11=0,+'Ordenar Auto'!$Q$12=0,+'Ordenar Auto'!$Q$13=0,'Ordenar Auto'!$Q$14=0,'Ordenar Auto'!$Q$15=0,'Ordenar Auto'!$Q$16=0,'Ordenar Auto'!$Q$17=0,'Ordenar Auto'!$Q$18=0,'Ordenar Auto'!$Q$19=0,'Ordenar Auto'!$Q$20=0,'Ordenar Auto'!$Q$21=0,'Ordenar Auto'!$Q$22=0,'Ordenar Auto'!$Q$23=0,'Ordenar Auto'!$Q$24=0,'Ordenar Auto'!$Q$25=0,'Ordenar Auto'!$Q$26=0,'Ordenar Auto'!$Q$27=0,'Ordenar Auto'!$Q$28=0,'Ordenar Auto'!$Q$29=0,'Ordenar Auto'!$Q$30=0,'Ordenar Auto'!$Q$31=0,'Ordenar Auto'!$Q$32=0,'Ordenar Auto'!$Q$33=0,'Ordenar Auto'!$Q$34=0,'Ordenar Auto'!$Q$35=0,'Ordenar Auto'!$Q$36=0,'Ordenar Auto'!$Q$37=0,'Ordenar Auto'!$Q$38=0,'Ordenar Auto'!$Q$39=0,'Ordenar Auto'!$Q$40=0,'Ordenar Auto'!$Q$41=0,'Ordenar Auto'!$Q$42=0,'Ordenar Auto'!$Q$43=0,'Ordenar Auto'!$Q$44=0,'Ordenar Auto'!$Q$45=0,'Ordenar Auto'!$Q$46=0,'Ordenar Auto'!$Q$47=0,'Ordenar Auto'!$Q$48=0,'Ordenar Auto'!$Q$49=0,'Ordenar Auto'!$Q$50=0,'Ordenar Auto'!$Q$51=0,'Ordenar Auto'!$Q$52=0,'Ordenar Auto'!$Q$53=0,'Ordenar Auto'!$Q$54=0,'Ordenar Auto'!$Q$55=0,'Ordenar Auto'!$Q$56=0,'Ordenar Auto'!$Q$57=0,'Ordenar Auto'!$Q$58=0,'Ordenar Auto'!$Q$59=0,'Ordenar Auto'!$Q$60=0,'Ordenar Auto'!$Q$61=0,'Ordenar Auto'!$Q$62=0,'Ordenar Auto'!$Q$63=0,'Ordenar Auto'!$Q$64=0,'Ordenar Auto'!$Q$65=0,'Ordenar Auto'!$Q$66=0,'Ordenar Auto'!$Q$67=0,'Ordenar Auto'!$Q$68=0),+'Ordenar Auto'!Q69,+'Ordenar Auto'!Q68) ->  | M177: =IF(L177<>"",VLOOKUP(L177,'Tabela de preços'!$B:$G,3,0),"") ->  | N177: =VLOOKUP(L177,'Ordenar Auto'!Q:R,2,0) ->  | O177: =IF(L177<>"",VLOOKUP(L177,'Tabela de preços'!$B:$G,5,0),"") ->  | P177: =IF(L177<>"",VLOOKUP(L177,'Tabela de preços'!$B:$G,6,0),"") ->  | AR177: 167902
L178: =IF(OR(+'Ordenar Auto'!$Q$5=0,+'Ordenar Auto'!$Q$6=0,+'Ordenar Auto'!$Q$7=0,+'Ordenar Auto'!$Q$8=0,+'Ordenar Auto'!$Q$9=0,+'Ordenar Auto'!$Q$10=0,+'Ordenar Auto'!$Q$11=0,+'Ordenar Auto'!$Q$12=0,+'Ordenar Auto'!$Q$13=0,'Ordenar Auto'!$Q$14=0,'Ordenar Auto'!$Q$15=0,'Ordenar Auto'!$Q$16=0,'Ordenar Auto'!$Q$17=0,'Ordenar Auto'!$Q$18=0,'Ordenar Auto'!$Q$19=0,'Ordenar Auto'!$Q$20=0,'Ordenar Auto'!$Q$21=0,'Ordenar Auto'!$Q$22=0,'Ordenar Auto'!$Q$23=0,'Ordenar Auto'!$Q$24=0,'Ordenar Auto'!$Q$25=0,'Ordenar Auto'!$Q$26=0,'Ordenar Auto'!$Q$27=0,'Ordenar Auto'!$Q$28=0,'Ordenar Auto'!$Q$29=0,'Ordenar Auto'!$Q$30=0,'Ordenar Auto'!$Q$31=0,'Ordenar Auto'!$Q$32=0,'Ordenar Auto'!$Q$33=0,'Ordenar Auto'!$Q$34=0,'Ordenar Auto'!$Q$35=0,'Ordenar Auto'!$Q$36=0,'Ordenar Auto'!$Q$37=0,'Ordenar Auto'!$Q$38=0,'Ordenar Auto'!$Q$39=0,'Ordenar Auto'!$Q$40=0,'Ordenar Auto'!$Q$41=0,'Ordenar Auto'!$Q$42=0,'Ordenar Auto'!$Q$43=0,'Ordenar Auto'!$Q$44=0,'Ordenar Auto'!$Q$45=0,'Ordenar Auto'!$Q$46=0,'Ordenar Auto'!$Q$47=0,'Ordenar Auto'!$Q$48=0,'Ordenar Auto'!$Q$49=0,'Ordenar Auto'!$Q$50=0,'Ordenar Auto'!$Q$51=0,'Ordenar Auto'!$Q$52=0,'Ordenar Auto'!$Q$53=0,'Ordenar Auto'!$Q$54=0,'Ordenar Auto'!$Q$55=0,'Ordenar Auto'!$Q$56=0,'Ordenar Auto'!$Q$57=0,'Ordenar Auto'!$Q$58=0,'Ordenar Auto'!$Q$59=0,'Ordenar Auto'!$Q$60=0,'Ordenar Auto'!$Q$61=0,'Ordenar Auto'!$Q$62=0,'Ordenar Auto'!$Q$63=0,'Ordenar Auto'!$Q$64=0,'Ordenar Auto'!$Q$65=0,'Ordenar Auto'!$Q$66=0,'Ordenar Auto'!$Q$67=0,'Ordenar Auto'!$Q$68=0,'Ordenar Auto'!$Q$69=0),+'Ordenar Auto'!Q70,+'Ordenar Auto'!Q69) ->  | M178: =IF(L178<>"",VLOOKUP(L178,'Tabela de preços'!$B:$G,3,0),"") ->  | N178: =VLOOKUP(L178,'Ordenar Auto'!Q:R,2,0) ->  | O178: =IF(L178<>"",VLOOKUP(L178,'Tabela de preços'!$B:$G,5,0),"") ->  | P178: =IF(L178<>"",VLOOKUP(L178,'Tabela de preços'!$B:$G,6,0),"") ->  | AR178: 167903
L179: =IF(OR(+'Ordenar Auto'!$Q$5=0,+'Ordenar Auto'!$Q$6=0,+'Ordenar Auto'!$Q$7=0,+'Ordenar Auto'!$Q$8=0,+'Ordenar Auto'!$Q$9=0,+'Ordenar Auto'!$Q$10=0,+'Ordenar Auto'!$Q$11=0,+'Ordenar Auto'!$Q$12=0,+'Ordenar Auto'!$Q$13=0,'Ordenar Auto'!$Q$14=0,'Ordenar Auto'!$Q$15=0,'Ordenar Auto'!$Q$16=0,'Ordenar Auto'!$Q$17=0,'Ordenar Auto'!$Q$18=0,'Ordenar Auto'!$Q$19=0,'Ordenar Auto'!$Q$20=0,'Ordenar Auto'!$Q$21=0,'Ordenar Auto'!$Q$22=0,'Ordenar Auto'!$Q$23=0,'Ordenar Auto'!$Q$24=0,'Ordenar Auto'!$Q$25=0,'Ordenar Auto'!$Q$26=0,'Ordenar Auto'!$Q$27=0,'Ordenar Auto'!$Q$28=0,'Ordenar Auto'!$Q$29=0,'Ordenar Auto'!$Q$30=0,'Ordenar Auto'!$Q$31=0,'Ordenar Auto'!$Q$32=0,'Ordenar Auto'!$Q$33=0,'Ordenar Auto'!$Q$34=0,'Ordenar Auto'!$Q$35=0,'Ordenar Auto'!$Q$36=0,'Ordenar Auto'!$Q$37=0,'Ordenar Auto'!$Q$38=0,'Ordenar Auto'!$Q$39=0,'Ordenar Auto'!$Q$40=0,'Ordenar Auto'!$Q$41=0,'Ordenar Auto'!$Q$42=0,'Ordenar Auto'!$Q$43=0,'Ordenar Auto'!$Q$44=0,'Ordenar Auto'!$Q$45=0,'Ordenar Auto'!$Q$46=0,'Ordenar Auto'!$Q$47=0,'Ordenar Auto'!$Q$48=0,'Ordenar Auto'!$Q$49=0,'Ordenar Auto'!$Q$50=0,'Ordenar Auto'!$Q$51=0,'Ordenar Auto'!$Q$52=0,'Ordenar Auto'!$Q$53=0,'Ordenar Auto'!$Q$54=0,'Ordenar Auto'!$Q$55=0,'Ordenar Auto'!$Q$56=0,'Ordenar Auto'!$Q$57=0,'Ordenar Auto'!$Q$58=0,'Ordenar Auto'!$Q$59=0,'Ordenar Auto'!$Q$60=0,'Ordenar Auto'!$Q$61=0,'Ordenar Auto'!$Q$62=0,'Ordenar Auto'!$Q$63=0,'Ordenar Auto'!$Q$64=0,'Ordenar Auto'!$Q$65=0,'Ordenar Auto'!$Q$66=0,'Ordenar Auto'!$Q$67=0,'Ordenar Auto'!$Q$68=0,'Ordenar Auto'!$Q$69=0,'Ordenar Auto'!$Q$70=0),+'Ordenar Auto'!Q71,+'Ordenar Auto'!Q70) ->  | M179: =IF(L179<>"",VLOOKUP(L179,'Tabela de preços'!$B:$G,3,0),"") ->  | N179: =VLOOKUP(L179,'Ordenar Auto'!Q:R,2,0) ->  | O179: =IF(L179<>"",VLOOKUP(L179,'Tabela de preços'!$B:$G,5,0),"") ->  | P179: =IF(L179<>"",VLOOKUP(L179,'Tabela de preços'!$B:$G,6,0),"") ->  | Q179: =IF(L179<>"",IF(P179=$B$169,O179*$C$169,IF(P179=$B$170,O179*$C$170,IF(P179=$B$171,O179*$C$171,IF(P179=$B$172,O179*$C$172,IF(P179=$B$173,O179*$C$173,IF(P179=$B$174,O179*$C$174,IF(P179=$B$175,O179*$C$175,0))))))),"") ->  | R179: =IF(L179<>"",(O179-Q179)*N179,"") ->  | AR179: 167904
L180: =IF(OR(+'Ordenar Auto'!$Q$5=0,+'Ordenar Auto'!$Q$6=0,+'Ordenar Auto'!$Q$7=0,+'Ordenar Auto'!$Q$8=0,+'Ordenar Auto'!$Q$9=0,+'Ordenar Auto'!$Q$10=0,+'Ordenar Auto'!$Q$11=0,+'Ordenar Auto'!$Q$12=0,+'Ordenar Auto'!$Q$13=0,'Ordenar Auto'!$Q$14=0,'Ordenar Auto'!$Q$15=0,'Ordenar Auto'!$Q$16=0,'Ordenar Auto'!$Q$17=0,'Ordenar Auto'!$Q$18=0,'Ordenar Auto'!$Q$19=0,'Ordenar Auto'!$Q$20=0,'Ordenar Auto'!$Q$21=0,'Ordenar Auto'!$Q$22=0,'Ordenar Auto'!$Q$23=0,'Ordenar Auto'!$Q$24=0,'Ordenar Auto'!$Q$25=0,'Ordenar Auto'!$Q$26=0,'Ordenar Auto'!$Q$27=0,'Ordenar Auto'!$Q$28=0,'Ordenar Auto'!$Q$29=0,'Ordenar Auto'!$Q$30=0,'Ordenar Auto'!$Q$31=0,'Ordenar Auto'!$Q$32=0,'Ordenar Auto'!$Q$33=0,'Ordenar Auto'!$Q$34=0,'Ordenar Auto'!$Q$35=0,'Ordenar Auto'!$Q$36=0,'Ordenar Auto'!$Q$37=0,'Ordenar Auto'!$Q$38=0,'Ordenar Auto'!$Q$39=0,'Ordenar Auto'!$Q$40=0,'Ordenar Auto'!$Q$41=0,'Ordenar Auto'!$Q$42=0,'Ordenar Auto'!$Q$43=0,'Ordenar Auto'!$Q$44=0,'Ordenar Auto'!$Q$45=0,'Ordenar Auto'!$Q$46=0,'Ordenar Auto'!$Q$47=0,'Ordenar Auto'!$Q$48=0,'Ordenar Auto'!$Q$49=0,'Ordenar Auto'!$Q$50=0,'Ordenar Auto'!$Q$51=0,'Ordenar Auto'!$Q$52=0,'Ordenar Auto'!$Q$53=0,'Ordenar Auto'!$Q$54=0,'Ordenar Auto'!$Q$55=0,'Ordenar Auto'!$Q$56=0,'Ordenar Auto'!$Q$57=0,'Ordenar Auto'!$Q$58=0,'Ordenar Auto'!$Q$59=0,'Ordenar Auto'!$Q$60=0,'Ordenar Auto'!$Q$61=0,'Ordenar Auto'!$Q$62=0,'Ordenar Auto'!$Q$63=0,'Ordenar Auto'!$Q$64=0,'Ordenar Auto'!$Q$65=0,'Ordenar Auto'!$Q$66=0,'Ordenar Auto'!$Q$67=0,'Ordenar Auto'!$Q$68=0,'Ordenar Auto'!$Q$69=0,'Ordenar Auto'!$Q$70=0,'Ordenar Auto'!$Q$71=0),+'Ordenar Auto'!Q72,+'Ordenar Auto'!Q71) ->  | M180: =IF(L180<>"",VLOOKUP(L180,'Tabela de preços'!$B:$G,3,0),"") ->  | N180: =VLOOKUP(L180,'Ordenar Auto'!Q:R,2,0) ->  | O180: =IF(L180<>"",VLOOKUP(L180,'Tabela de preços'!$B:$G,5,0),"") ->  | P180: =IF(L180<>"",VLOOKUP(L180,'Tabela de preços'!$B:$G,6,0),"") ->  | AR180: 168000
L181: =IF(OR(+'Ordenar Auto'!$Q$5=0,+'Ordenar Auto'!$Q$6=0,+'Ordenar Auto'!$Q$7=0,+'Ordenar Auto'!$Q$8=0,+'Ordenar Auto'!$Q$9=0,+'Ordenar Auto'!$Q$10=0,+'Ordenar Auto'!$Q$11=0,+'Ordenar Auto'!$Q$12=0,+'Ordenar Auto'!$Q$13=0,'Ordenar Auto'!$Q$14=0,'Ordenar Auto'!$Q$15=0,'Ordenar Auto'!$Q$16=0,'Ordenar Auto'!$Q$17=0,'Ordenar Auto'!$Q$18=0,'Ordenar Auto'!$Q$19=0,'Ordenar Auto'!$Q$20=0,'Ordenar Auto'!$Q$21=0,'Ordenar Auto'!$Q$22=0,'Ordenar Auto'!$Q$23=0,'Ordenar Auto'!$Q$24=0,'Ordenar Auto'!$Q$25=0,'Ordenar Auto'!$Q$26=0,'Ordenar Auto'!$Q$27=0,'Ordenar Auto'!$Q$28=0,'Ordenar Auto'!$Q$29=0,'Ordenar Auto'!$Q$30=0,'Ordenar Auto'!$Q$31=0,'Ordenar Auto'!$Q$32=0,'Ordenar Auto'!$Q$33=0,'Ordenar Auto'!$Q$34=0,'Ordenar Auto'!$Q$35=0,'Ordenar Auto'!$Q$36=0,'Ordenar Auto'!$Q$37=0,'Ordenar Auto'!$Q$38=0,'Ordenar Auto'!$Q$39=0,'Ordenar Auto'!$Q$40=0,'Ordenar Auto'!$Q$41=0,'Ordenar Auto'!$Q$42=0,'Ordenar Auto'!$Q$43=0,'Ordenar Auto'!$Q$44=0,'Ordenar Auto'!$Q$45=0,'Ordenar Auto'!$Q$46=0,'Ordenar Auto'!$Q$47=0,'Ordenar Auto'!$Q$48=0,'Ordenar Auto'!$Q$49=0,'Ordenar Auto'!$Q$50=0,'Ordenar Auto'!$Q$51=0,'Ordenar Auto'!$Q$52=0,'Ordenar Auto'!$Q$53=0,'Ordenar Auto'!$Q$54=0,'Ordenar Auto'!$Q$55=0,'Ordenar Auto'!$Q$56=0,'Ordenar Auto'!$Q$57=0,'Ordenar Auto'!$Q$58=0,'Ordenar Auto'!$Q$59=0,'Ordenar Auto'!$Q$60=0,'Ordenar Auto'!$Q$61=0,'Ordenar Auto'!$Q$62=0,'Ordenar Auto'!$Q$63=0,'Ordenar Auto'!$Q$64=0,'Ordenar Auto'!$Q$65=0,'Ordenar Auto'!$Q$66=0,'Ordenar Auto'!$Q$67=0,'Ordenar Auto'!$Q$68=0,'Ordenar Auto'!$Q$69=0,'Ordenar Auto'!$Q$70=0,'Ordenar Auto'!$Q$71=0,'Ordenar Auto'!$Q$72=0),+'Ordenar Auto'!Q73,+'Ordenar Auto'!Q72) ->  | M181: =IF(L181<>"",VLOOKUP(L181,'Tabela de preços'!$B:$G,3,0),"") ->  | N181: =VLOOKUP(L181,'Ordenar Auto'!Q:R,2,0) ->  | O181: =IF(L181<>"",VLOOKUP(L181,'Tabela de preços'!$B:$G,5,0),"") ->  | P181: =IF(L181<>"",VLOOKUP(L181,'Tabela de preços'!$B:$G,6,0),"") ->  | AR181: 168001
N182: Total : | Q182: =+SUMPRODUCT((N114:N181),(O114:O181)) -> 0 | AR182: 168050
L183: Assinatura / Carimbo : | N183: Total Descontos : | Q183: =+SUMPRODUCT((N114:N181),(Q114:Q181)) -> 0 | AR183: 168055
N184: Total Líquido : | Q184: =SUM(R114:R181) -> 0 | AR184: 168100
AR185: 168105
AR186: 168107
AR187: 168200
AR188: 168205
AR189: 168207
AR190: 168300
AR191: 168305
AR192: 168307
AR193: 168400
AR194: 168405
AR195: 168407
AR196: 168601
AR197: 169100
AR198: 169105
AR199: 169107
AR200: 169200
AR201: 169205
AR202: 169207
... 2048 more rows

Sheet Tabela de preços
A1: Grupo | B1: Ref. | C1: EAN | D1: Designação | E1: Embalagem | F1: Preço unitário em euros | G1: Grupo
A2: 24 | B2: 161 | C2: 4011334218814 | D2: Sonda temperatura chão / remota | E2: 1 | F2: 27.96 | G2: 24
A3: 24 | B3: 1037 | C3: 4011334003144 | D3: 1930/Glas - obtur. p/saída cabo, brc | E3: 1 | F3: 13.51 | G3: 24
A4: 24 | B4: 1040 | C4: 4011334003205 | D4: 1930/Glas - espelho USB/altif, branc | E4: 1 | F4: 13.51 | G4: 24
A5: 24 | B5: 1061 | C5: 4011334003779 | D5: Tomada equipotencial dupla | E5: 1 | F5: 26.83 | G5: 24
A6: 24 | B6: 1090 | C6: 4011334005988 | D6: Glas - centro x1 vidro, transp | E6: 1 | F6: 23.25 | G6: 24
A7: 24 | B7: 1091 | C7: 4011334006022 | D7: Glas - quadro x1 vidro, transp | E7: 1 | F7: 23.26 | G7: 24
A8: 24 | B8: 1094 | C8: 4011334006145 | D8: Glas - centro final vidro, transp | E8: 1 | F8: 25.37 | G8: 24
A9: 24 | B9: 1095 | C9: 4011334006183 | D9: Glas - centro interm. vidro, transp | E9: 1 | F9: 47.48 | G9: 24
A10: 24 | B10: 1102 | C10: 4011334006480 | D10: Glas - quadro x2 vidro, transp | E10: 1 | F10: 44.43 | G10: 24
A11: 23 | B11: 1220 | C11: 4011334009481 | D11: Difusor p/ lâmp. E14 plana, transparente | E11: 1 | F11: 3.39 | G11: 23
A12: 24 | B12: 1221 | C12: 4011334009498 | D12: 1930/Glas - tampa p/ bot.E10, transp | E12: 1 | F12: 11.81 | G12: 24
A13: 24 | B13: 1222 | C13: 4011334009504 | D13: 1930/Glas - tampa p/ bot.E10, encarn | E13: 1 | F13: 13.21 | G13: 24
A14: 24 | B14: 1225 | C14: 4011334009511 | D14: 1930/Glas - tecla p/ bot. E10, branc | E14: 1 | F14: 11.81 | G14: 24
A15: 24 | B15: 1226 | C15: 4011334212706 | D15: 1930/Glas - tecla "luz" p/bot, branc | E15: 1 | F15: 13.12 | G15: 24
A16: 24 | B16: 1227 | C16: 4011334212713 | D16: 1930/Glas - tecla "camp" p/bot, brc | E16: 1 | F16: 13.12 | G16: 24
A17: 24 | B17: 1229 | C17: 4011334009535 | D17: 1930/Glas - tecla p/ bot.E10, encarn | E17: 1 | F17: 13.21 | G17: 24
A18: 23 | B18: 1230 | C18: 4011334009542 | D18: Difusor p/ lâmp. E14, transparente | E18: 1 | F18: 3.39 | G18: 23
A19: 23 | B19: 1231 | C19: 4011334009559 | D19: Difusor p/ lâmp. E14, encarnado | E19: 1 | F19: 3.39 | G19: 23
A20: 23 | B20: 1232 | C20: 4011334009566 | D20: Difusor p/ lâmp. E14, verde | E20: 1 | F20: 3.39 | G20: 23
A21: 23 | B21: 1279 | C21: 4011334010456 | D21: Botão difusor p/ lâmp. E10, encarnado | E21: 1 | F21: 3.69 | G21: 23
A22: 23 | B22: 1280 | C22: 4011334010463 | D22: Difusor p/ lâmp. E10, transparente | E22: 1 | F22: 2.42 | G22: 23
A23: 23 | B23: 1281 | C23: 4011334010470 | D23: Difusor p/ lâmp. E10, encarnado | E23: 1 | F23: 2.42 | G23: 23
A24: 23 | B24: 1282 | C24: 4011334010487 | D24: Difusor p/ lâmp. E10, amarelo | E24: 1 | F24: 2.42 | G24: 23
A25: 23 | B25: 1283 | C25: 4011334010494 | D25: Difusor p/ lâmp. E10, verde | E25: 1 | F25: 2.42 | G25: 23
A26: 24 | B26: 1311 | C26: 4011334213536 | D26: TS - centro vidro 1 BP facetado, transp | E26: 1 | F26: 67.27 | G26: 24
A27: 24 | B27: 1321 | C27: 4011334213543 | D27: TS - centro vidro 2 BP facetado, transp | E27: 1 | F27: 75.03 | G27: 24
A28: 24 | B28: 1341 | C28: 4011334213550 | D28: TS - centro vidro 4 BP facetado, transp | E28: 1 | F28: 99.42 | G28: 24
A29: 24 | B29: 1366 | C29: 4011334253730 | D29: TS - centro vidro 6 BP facetado, transp | E29: 1 | F29: 238.69 | G29: 24
A30: 24 | B30: 1388 | C30: 4011334253747 | D30: TS - centro vidro 8 BP facetado, transp | E30: 1 | F30: 304.57 | G30: 24
A31: 24 | B31: 1391 | C31: 4011334249306 | D31: TS - centro vidro 1 BP, transp | E31: 1 | F31: 67.27 | G31: 24
A32: 24 | B32: 1392 | C32: 4011334249313 | D32: TS - centro vidro 2 BP, transp | E32: 1 | F32: 75.03 | G32: 24
A33: 24 | B33: 1394 | C33: 4011334012931 | D33: TS - centro vidro 4 BP, transp | E33: 1 | F33: 99.42 | G33: 24
A34: 24 | B34: 1407 | C34: 4011334237228 | D34: 1930/Glas - esp. RJ45 simples, branc | E34: 1 | F34: 13.51 | G34: 24
A35: 24 | B35: 1409 | C35: 4011334237242 | D35: 1930/Glas - esp. RJ45 duplo, branco | E35: 1 | F35: 13.51 | G35: 24
A36: 23 | B36: 1601 | C36: 4011334016984 | D36: Lâmpada néon E10, 230V | E36: 1 | F36: 4.9 | G36: 23
A37: 24 | B37: 1647 | C37: 4011334321415 | D37: 1930/Glas - centro+tecla rot, branco | E37: 1 | F37: 9.81 | G37: 24
A38: 23 | B38: 1675 | C38: 4011334282730 | D38: Lâmp. néon c/ term. N, cinzento, 230V | E38: 1 | F38: 3.19 | G38: 23
A39: 23 | B39: 1676 | C39: 4011334293316 | D39: Lâmp. incand. c/ term. N, castanho, 6V | E39: 1 | F39: 5.78 | G39: 23
A40: 23 | B40: 1678 | C40: 4011334293750 | D40: Lâmpada LED E10, branco, 230V | E40: 1 | F40: 11.07 | G40: 23
A41: 23 | B41: 1679 | C41: 4011334293804 | D41: Lâmpada LED E14, branco, 230V | E41: 1 | F41: 19.99 | G41: 23
A42: 23 | B42: 1680 | C42: 4011334304371 | D42: Lâmp. LED c/N p/com.lustre, preto, 230V | E42: 1 | F42: 11.27 | G42: 23
A43: 23 | B43: 1686 | C43: 4011334346883 | D43: LED p/ interrup. e botões, 230V/1mA | E43: 1 | F43: 11.71 | G43: 23
A44: 23 | B44: 1687 | C44: 4011334346890 | D44: LED p/ interrup. e botões, 12-48V | E44: 1 | F44: 11.71 | G44: 23
A45: 24 | B45: 1809 | C45: 4011334216124 | D45: TS - caixa encastrar, oval | E45: 1 | F45: 7.99 | G45: 24
A46: 23 | B46: 1813 | C46: 4011334018483 | D46: Entrada cabos/tubos, creme | E46: 1 | F46: 1.08 | G46: 23
A47: 24 | B47: 1818 | C47: 4011334018575 | D47: Canhão semi-cilind., chaves diferentes | E47: 1 | F47: 28.06 | G47: 24
A48: 24 | B48: 1824 | C48: 4011334216131 | D48: TS - caixa encastrar divisórias, oval | E48: 1 | F48: 7.99 | G48: 24
A49: 23 | B49: 1861 | C49: 4011334018827 | D49: Acess. bloqueio interrup. rot. estores | E49: 1 | F49: 2.71 | G49: 23
A50: 25 | B50: 1870 | C50: 4011334294092 | D50: TS Sensor - caixa dupla encastrar | E50: 1 | F50: 14.83 | G50: 25
A51: 25 | B51: 1871 | C51: 4011334321880 | D51: TS Sensor - caixa dupla encastrar fina | E51: 1 | F51: 14.83 | G51: 25
A52: 23 | B52: 1887 | C52: 4011334329312 | D52: 1930/Glas - bucim espaçador, encarn | E52: 1 | F52: 0.63 | G52: 23
A53: 23 | B53: 1913 | C53: 4011334155430 | D53: Extensão p/ garras | E53: 1 | F53: 1.11 | G53: 23
A54: 23 | B54: 1914 | C54: 4011334352181 | D54: Garra substituição (20un) | E54: 1 | F54: 32.28 | G54: 23
A55: 23 | B55: 1980 | C55: 4011334230762 | D55: Kit modular RJ45 Cat.3 | E55: 1 | F55: 16.55 | G55: 23
A56: 23 | B56: 1985 | C56: 4011334282976 | D56: Kit modular RJ45 Cat.6, blindada | E56: 1 | F56: 26.36 | G56: 23
A57: 23 | B57: 1989 | C57: 4011334284161 | D57: Kit modular 2x RCA, branco/encarnado | E57: 1 | F57: 44.27 | G57: 23
A58: 23 | B58: 1990 | C58: 4011334284178 | D58: Kit modular tampa cega, branco | E58: 1 | F58: 2.6 | G58: 23
A59: 23 | B59: 1992 | C59: 4011334308812 | D59: Kit modular 1x RCA, amarelo | E59: 1 | F59: 23.12 | G59: 23
A60: 23 | B60: 1993 | C60: 4011334308829 | D60: Kit modular 1x S-Video, branco | E60: 1 | F60: 39.5 | G60: 23
A61: 23 | B61: 1994 | C61: 4011334308836 | D61: Kit modular 1x VGA D-sub, branco | E61: 1 | F61: 86.46 | G61: 23
A62: 24 | B62: 2873 | C62: 4011334218715 | D62: Variador rotativo universal (R, L, LED) | E62: 1 | F62: 74.87 | G62: 24
A63: 24 | B63: 2909 | C63: 4011334510055 | D63: Variador rotativo (R, LED) | E63: 1 | F63: 29.08 | G63: 24
A64: 24 | B64: 2913 | C64: 4011334510062 | D64: Módulo de compensação p/ variação LED | E64: 1 | F64: 33.04 | G64: 24
A65: 24 | B65: 2930 | C65: 4011334262305 | D65: Relé de corte | E65: 1 | F65: 76.2 | G65: 24
A66: 24 | B66: 2969 | C66: 4011334192015 | D66: Relé de corte c/ cont. aux. | E66: 1 | F66: 81.61 | G66: 24
A67: 24 | B67: 2973 | C67: 4011334510079 | D67: Variador rotativo universal (R,L,C,LED) | E67: 1 | F67: 79.3 | G67: 24
A68: 24 | B68: 2995 | C68: 4011334413912 | D68: Detector de movimento, 2 fios | E68: 1 | F68: 61.27 | G68: 24
A69: 24 | B69: 2996 | C69: 4011334413738 | D69: Detector de movimento, 3 fios | E69: 1 | F69: 68.07 | G69: 24
A70: 24 | B70: 2997 | C70: 4011334510086 | D70: Potenciómetro rotativo DALI | E70: 1 | F70: 59.48 | G70: 24
A71: 24 | B71: 2998 | C71: 4011334510093 | D71: Potenciómetro rotativo DALI, c/ fonte | E71: 1 | F71: 132.17 | G71: 24
A72: 23 | B72: 3031 | C72: 4011334023326 | D72: Interruptor simples, 10AX 250V | E72: 1 | F72: 6.92 | G72: 23
A73: 23 | B73: 3032 | C73: 4011334023333 | D73: Interruptor bipolar, 10AX 250V | E73: 1 | F73: 8.85 | G73: 23
A74: 23 | B74: 3035 | C74: 4011334023357 | D74: Comutador de lustre, 10AX 250V | E74: 1 | F74: 5.67 | G74: 23
A75: 23 | B75: 3036 | C75: 4011334023388 | D75: Comutador de escada, 10AX 250V | E75: 1 | F75: 3.92 | G75: 23
A76: 23 | B76: 3037 | C76: 4011334023395 | D76: Inversor de grupo, 10AX 250V | E76: 1 | F76: 7.27 | G76: 23
A77: 23 | B77: 3966 | C77: 4011334025160 | D77: Comutador de escada de cordão, 10AX 250V | E77: 1 | F77: 13.52 | G77: 23
A78: 23 | B78: 4468 | C78: 4011334164852 | D78: Saída de cabo | E78: 1 | F78: 7.65 | G78: 23
A79: 23 | B79: 4470 | C79: 4011334029151 | D79: Saída de cabo | E79: 1 | F79: 7.65 | G79: 23
A80: 23 | B80: 4505 | C80: 4011334029519 | D80: Suporte p/ ligadores DIN, duplo | E80: 1 | F80: 6.43 | G80: 23
A81: 24 | B81: 4582 | C81: 4011334437468 | D81: WLAN Access-Point, encastrado | E81: 1 | F81: 264.53 | G81: 24
A82: 24 | B82: 4583 | C82: 4011334437475 | D82: WLAN Access-Point, encastrado, PoE | E82: 1 | F82: 324.15 | G82: 24
A83: 23 | B83: 4586 | C83: 4011334256380 | D83: RJ45 Cat.6a blindada, simples (LSA+) | E83: 1 | F83: 23.56 | G83: 23
A84: 23 | B84: 4587 | C84: 4011334256397 | D84: RJ45 Cat.6a blindada, dupla (LSA+) | E84: 1 | F84: 30.81 | G84: 23
A85: 23 | B85: 4604 | C85: 4011334029700 | D85: Tomada equipotencial encastrada | E85: 1 | F85: 27.95 | G85: 23
A86: 23 | B86: 4605 | C86: 4011334029717 | D86: Ficha equipotencial | E86: 1 | F86: 22.26 | G86: 23
A87: 23 | B87: 4637 | C87: 4011334144496 | D87: Ficha 12V, preto mate | E87: 1 | F87: 3.07 | G87: 23
A88: 24 | B88: 4755 | C88: 4011334171874 | D88: 1930/Glas - tom. Schuko obtur, branc | E88: 1 | F88: 8.27 | G88: 24
A89: 23 | B89: 5031 | C89: 4011334030294 | D89: Botão simples, 1NA, 10A 250V | E89: 1 | F89: 4.14 | G89: 23
A90: 23 | B90: 5035 | C90: 4011334030447 | D90: Botão duplo, 1 entrada, 2NA, 10A 250V | E90: 1 | F90: 8.73 | G90: 23
A91: 23 | B91: 5036 | C91: 4011334030508 | D91: Botão inversor, 1NA+1NF, 10A 250V | E91: 1 | F91: 6.59 | G91: 23
A92: 23 | B92: 5101 | C92: 4011334030751 | D92: Botão simples p/ lâmp. E10, 1NA, 2A 250V | E92: 1 | F92: 8.97 | G92: 23
A93: 24 | B93: 5104 | C93: 4011334030805 | D93: 1930/Glas - botão p/lâmp. E10, branc | E93: 1 | F93: 18.15 | G93: 24
A94: 23 | B94: 81836 | C94: 4011334165453 | D94: Integro - aro fixação 5mm, cinzento | E94: 200 | F94: 1.45 | G94: 23
A95: 23 | B95: 81837 | C95: 4011334165477 | D95: Integro - caixa x1 redonda prof:35mm | E95: 1 | F95: 2.29 | G95: 23
A96: 23 | B96: 91820 | C96: 4011334053125 | D96: Integro - caixa x1 protecção prof:35,5mm | E96: 1 | F96: 2.29 | G96: 23
A97: 23 | B97: 91844 | C97: 4011334053859 | D97: Integro - marcador p/ furações | E97: 1 | F97: 1.1 | G97: 23
A98: 23 | B98: 91853 | C98: 4011334253518 | D98: Integro - junta IP44 | E98: 1 | F98: 1.4 | G98: 23
A99: 23 | B99: 91883 | C99: 4011334053897 | D99: Integro - caixa x1 protecção prof:45,5mm | E99: 1 | F99: 2.49 | G99: 23
A100: 23 | B100: 91887 | C100: 4011334149835 | D100: Integro - caixa x1 protecção prof:38mm | E100: 1 | F100: 2.51 | G100: 23
A101: 23 | B101: 91933 | C101: 4011334195276 | D101: Integro - caixa x3 protecção prof:38mm | E101: 10 | F101: 7.66 | G101: 23
A102: 24 | B102: 100101 | C102: 4011334214885 | D102: 1930 - Quadro montagem superf. x1, preto | E102: 1 | F102: 19.88 | G102: 24
A103: 24 | B103: 100109 | C103: 4011334214892 | D103: 1930 - Quadro montagem superf. x1, branc | E103: 1 | F103: 19.88 | G103: 24
A104: 24 | B104: 100920 | C104: 4011334214908 | D104: 1930/Glas - espelho cego, branco | E104: 1 | F104: 22.72 | G104: 24
A105: 24 | B105: 100921 | C105: 4011334214915 | D105: 1930/Glas - espelho cego, preto | E105: 1 | F105: 22.72 | G105: 24
A106: 24 | B106: 103701 | C106: 4011334003151 | D106: 1930/Glas - obtur. p/saída cabo, prt | E106: 1 | F106: 13.51 | G106: 24
A107: 24 | B107: 103920 | C107: 4011334214922 | D107: 1930/Glas - esp. TV 2 saídas, branco | E107: 1 | F107: 13.51 | G107: 24
A108: 24 | B108: 103921 | C108: 4011334214939 | D108: 1930/Glas - esp. TV 2 saídas, preto | E108: 1 | F108: 13.51 | G108: 24
A109: 24 | B109: 104001 | C109: 4011334003212 | D109: 1930/Glas - espelho USB/altif, preto | E109: 1 | F109: 13.51 | G109: 24
A110: 24 | B110: 106420 | C110: 4011334236245 | D110: 1930/Glas - esp. TV 3 saídas, branco | E110: 1 | F110: 13.51 | G110: 24
A111: 24 | B111: 106421 | C111: 4011334236252 | D111: 1930/Glas - esp. TV 3 saídas, preto | E111: 1 | F111: 13.51 | G111: 24
A112: 24 | B112: 109009 | C112: 4011334440307 | D112: Glas - centro x1 vidro, branco | E112: 1 | F112: 25.56 | G112: 24
A113: 24 | B113: 109109 | C113: 4011334440338 | D113: Glas - quadro x1 vidro, branco | E113: 1 | F113: 25.59 | G113: 24
A114: 24 | B114: 109200 | C114: 4011334387268 | D114: Glas - quadro final vidro, transp | E114: 1 | F114: 26.51 | G114: 24
A115: 24 | B115: 109219 | C115: 4011334440345 | D115: Glas - quadro final vidro, branco | E115: 1 | F115: 29.15 | G115: 24
A116: 24 | B116: 109300 | C116: 4011334387305 | D116: Glas - quadro interm. vidro, transp | E116: 1 | F116: 33.21 | G116: 24
A117: 24 | B117: 109309 | C117: 4011334440352 | D117: Glas - quadro interm. vidro, branco | E117: 1 | F117: 50.39 | G117: 24
A118: 24 | B118: 109409 | C118: 4011334440314 | D118: Glas - centro final vidro, branco | E118: 1 | F118: 27.91 | G118: 24
A119: 24 | B119: 109509 | C119: 4011334440321 | D119: Glas - centro interm. vidro, branco | E119: 1 | F119: 52.24 | G119: 24
A120: 24 | B120: 110209 | C120: 4011334440369 | D120: Glas - quadro x2 vidro, branco | E120: 1 | F120: 48.89 | G120: 24
A121: 24 | B121: 122501 | C121: 4011334009528 | D121: 1930/Glas - tecla p/ bot. E10, preto | E121: 1 | F121: 11.81 | G121: 24
A122: 24 | B122: 122902 | C122: 4011334212881 | D122: 1930/Glas - tecla p/ bot.E10, transp | E122: 1 | F122: 13.21 | G122: 24
A123: 23 | B123: 127902 | C123: 4011334212874 | D123: Botão difusor p/ lâmp. E10, transparente | E123: 1 | F123: 3.69 | G123: 23
A124: 23 | B124: 127903 | C124: 4011334165446 | D124: Botão difusor p/ lâmp. E10, verde | E124: 1 | F124: 3.69 | G124: 23
A125: 24 | B125: 133111 | C125: 4011334291817 | D125: 1930 - Base auto-extinguível, preto | E125: 1 | F125: 8.45 | G125: 24
A126: 24 | B126: 133119 | C126: 4011334291824 | D126: 1930 - Base auto-extinguível, branco | E126: 1 | F126: 8.45 | G126: 24
A127: 24 | B127: 138101 | C127: 4011334214816 | D127: 1930 - quadro x1, preto | E127: 1 | F127: 5.57 | G127: 24
A128: 24 | B128: 138109 | C128: 4011334214823 | D128: 1930 - quadro x1, branco | E128: 1 | F128: 5.19 | G128: 24
A129: 24 | B129: 138121 | C129: 4011334219095 | D129: 1930 - quadro x2, preto | E129: 1 | F129: 13.64 | G129: 24
A130: 24 | B130: 138129 | C130: 4011334219101 | D130: 1930 - quadro x2, branco | E130: 1 | F130: 12.6 | G130: 24
A131: 24 | B131: 138131 | C131: 4011334219118 | D131: 1930 - quadro x3, preto | E131: 1 | F131: 30.51 | G131: 24
A132: 24 | B132: 138139 | C132: 4011334219125 | D132: 1930 - quadro x3, branco | E132: 1 | F132: 30.51 | G132: 24
A133: 24 | B133: 138141 | C133: 4011334249146 | D133: 1930 - quadro final, preto | E133: 1 | F133: 9.09 | G133: 24
A134: 24 | B134: 138149 | C134: 4011334249153 | D134: 1930 - quadro final, branco | E134: 1 | F134: 9.09 | G134: 24
A135: 24 | B135: 138151 | C135: 4011334249160 | D135: 1930 - quadro intermédio, preto | E135: 1 | F135: 11.2 | G135: 24
A136: 24 | B136: 138159 | C136: 4011334249177 | D136: 1930 - quadro intermédio, branco | E136: 1 | F136: 11.2 | G136: 24
A137: 24 | B137: 138165 | C137: 4011334305255 | D137: 1930 - quadro x1 Porzellan, preto | E137: 1 | F137: 31.56 | G137: 24
A138: 24 | B138: 138169 | C138: 4011334305262 | D138: 1930 - quadro x1 Porzellan, branco | E138: 1 | F138: 31.56 | G138: 24
A139: 24 | B139: 138201 | C139: 4011334428602 | D139: 1930 - quadro x1, Ø58mm, preto | E139: 1 | F139: 5.57 | G139: 24
A140: 24 | B140: 138209 | C140: 4011334428596 | D140: 1930 - quadro x1, Ø58mm, branco | E140: 1 | F140: 5.19 | G140: 24
A141: 24 | B141: 140302 | C141: 4011334228035 | D141: Centro p/ tom.equipot.dupla, creme | E141: 1 | F141: 5.12 | G141: 24
A142: 24 | B142: 140309 | C142: 4011334228042 | D142: Centro p/ tom.equipot.dupla, branco | E142: 1 | F142: 5.12 | G142: 24
A143: 24 | B143: 140701 | C143: 4011334237235 | D143: 1930/Glas - esp. RJ45 simples, preto | E143: 1 | F143: 13.51 | G143: 24
A144: 24 | B144: 140901 | C144: 4011334237259 | D144: 1930/Glas - esp. RJ45 duplo, preto | E144: 1 | F144: 13.51 | G144: 24
A145: 23 | B145: 141202 | C145: 4011334226925 | D145: Centro p/ ficha XLR tipo D, creme | E145: 1 | F145: 7.68 | G145: 23
A146: 23 | B146: 141209 | C146: 4011334226932 | D146: Centro p/ ficha XLR tipo D, branco | E146: 1 | F146: 7.68 | G146: 23
A147: 23 | B147: 142702 | C147: 4011334228240 | D147: Centro p/ 3 mód. MINI-COM, creme | E147: 1 | F147: 15.56 | G147: 23
A148: 23 | B148: 142709 | C148: 4011334228257 | D148: Centro p/ 3 mód. MINI-COM, branco | E148: 1 | F148: 15.56 | G148: 23
A149: 23 | B149: 143102 | C149: 4011334272274 | D149: Centro pré-corte Ø18,8mm, creme | E149: 1 | F149: 7.61 | G149: 23
A150: 23 | B150: 143104 | C150: 4011334275749 | D150: Centro pré-corte Ø18,8mm, inox lac | E150: 1 | F150: 15.08 | G150: 23
A151: 23 | B151: 143109 | C151: 4011334272281 | D151: Centro pré-corte Ø18,8mm, branco | E151: 1 | F151: 7.61 | G151: 23
A152: 23 | B152: 143202 | C152: 4011334272298 | D152: Centro pré-corte Ø22,5mm, creme | E152: 1 | F152: 7.61 | G152: 23
A153: 23 | B153: 143204 | C153: 4011334275732 | D153: Centro pré-corte Ø22,5mm, inox lac | E153: 1 | F153: 15.08 | G153: 23
A154: 23 | B154: 143207 | C154: 4011334272304 | D154: Centro pré-corte Ø22,5mm, amarelo | E154: 1 | F154: 14.06 | G154: 23
A155: 23 | B155: 143209 | C155: 4011334272311 | D155: Centro pré-corte Ø22,5mm, branco | E155: 1 | F155: 7.61 | G155: 23
A156: 23 | B156: 146809 | C156: 4011334177487 | D156: Centro tom. RJ11/RJ45, branco | E156: 1 | F156: 3.46 | G156: 23
A157: 23 | B157: 146909 | C157: 4011334177555 | D157: Centro tom. RJ11/RJ45 duplo, branco | E157: 1 | F157: 3.46 | G157: 23
A158: 23 | B158: 148002 | C158: 4011334189275 | D158: Centro FO Duplex-SC, creme | E158: 1 | F158: 15.56 | G158: 23
A159: 23 | B159: 148009 | C159: 4011334189282 | D159: Centro FO Duplex-SC, branco | E159: 1 | F159: 15.56 | G159: 23
A160: 23 | B160: 148402 | C160: 4011334204800 | D160: Centro tomada TV, 4 saídas, creme | E160: 1 | F160: 3.46 | G160: 23
A161: 23 | B161: 148404 | C161: 4011334204862 | D161: Centro tomada TV, 4 saídas, inox lac | E161: 1 | F161: 9.33 | G161: 23
A162: 23 | B162: 148409 | C162: 4011334204824 | D162: Centro tomada TV, 4 saídas, branco | E162: 1 | F162: 3.46 | G162: 23
A163: 23 | B163: 161003 | C163: 4011334195498 | D163: Lâmp. incand. E14, plana, 230V 3W | E163: 1 | F163: 8 | G163: 23
A164: 23 | B164: 161013 | C164: 4011334195504 | D164: Lâmp. incand. E14, 230V 3W | E164: 1 | F164: 8 | G164: 23
A165: 24 | B165: 164701 | C165: 4011334321422 | D165: 1930/Glas - centro+tecla rot, preto | E165: 1 | F165: 9.81 | G165: 24
A166: 23 | B166: 167504 | C166: 4011334282747 | D166: Lâmp. néon c/ term. N, laranja, 230V | E166: 1 | F166: 4.9 | G166: 23
A167: 23 | B167: 167601 | C167: 4011334293323 | D167: Lâmp. incand. c/ term. N, verde, 24V | E167: 1 | F167: 5.78 | G167: 23
A168: 23 | B168: 167602 | C168: 4011334293330 | D168: Lâmp. incand. c/ term. N, amarelo, 12V | E168: 1 | F168: 5.78 | G168: 23
A169: 23 | B169: 167603 | C169: 4011334294757 | D169: Lâmp. incand. c/ term. N, encarnado, 48V | E169: 1 | F169: 9.29 | G169: 23
A170: 23 | B170: 167801 | C170: 4011334293767 | D170: Lâmpada LED E10, encarnado, 230V | E170: 1 | F170: 17.71 | G170: 23
A171: 23 | B171: 167802 | C171: 4011334293774 | D171: Lâmpada LED E10, amarelo, 230V | E171: 1 | F171: 17.71 | G171: 23
A172: 23 | B172: 167803 | C172: 4011334293781 | D172: Lâmpada LED E10, verde, 230V | E172: 1 | F172: 17.71 | G172: 23
A173: 23 | B173: 167804 | C173: 4011334293798 | D173: Lâmpada LED E10, azul, 230V | E173: 10 | F173: 17.71 | G173: 23
A174: 23 | B174: 167901 | C174: 4011334293811 | D174: Lâmpada LED E14, encarnado, 230V | E174: 10 | F174: 19.99 | G174: 23
A175: 23 | B175: 167902 | C175: 4011334293828 | D175: Lâmpada LED E14, amarelo, 230V | E175: 10 | F175: 19.99 | G175: 23
A176: 23 | B176: 167903 | C176: 4011334293835 | D176: Lâmpada LED E14, verde, 230V | E176: 10 | F176: 19.99 | G176: 23
A177: 23 | B177: 167904 | C177: 4011334293842 | D177: Lâmpada LED E14, azul, 230V | E177: 10 | F177: 19.99 | G177: 23
A178: 24 | B178: 168000 | C178: 4011334490906 | D178: LED p/ comandos rotativos, 230V, c/ N | E178: 1 | F178: 32.39 | G178: 24
A179: 24 | B179: 168001 | C179: 4011334499541 | D179: LED p/ comandos rotativos, 230V, s/ N | E179: 1 | F179: 32.39 | G179: 24
A180: 23 | B180: 168050 | C180: 4011334502302 | D180: Q.7 - Módulo LED p/ quadro, envolvente | E180: 1 | F180: 40.76 | G180: 23
A181: 23 | B181: 168055 | C181: 4011334502319 | D181: Q.7 - Módulo LED p/ quadro, downlight | E181: 1 | F181: 35.51 | G181: 23
A182: 23 | B182: 168601 | C182: 4011334353515 | D182: LED p/ interrup. e botões, 230V/0,4mA | E182: 1 | F182: 11.71 | G182: 23
A183: 24 | B183: 181110 | C183: 4011334269915 | D183: TS - botão, cromado | E183: 1 | F183: 34.13 | G183: 24
A184: 24 | B184: 181112 | C184: 4011334269922 | D184: TS - botão, dourado | E184: 1 | F184: 42.3 | G184: 24
A185: 24 | B185: 181113 | C185: 4011334269939 | D185: TS - botão, inox | E185: 1 | F185: 48.6 | G185: 24
A186: 24 | B186: 181200 | C186: 4011334506904 | D186: 1930/Glas - tecla rotativa, dourado | E186: 1 | F186: 29.47 | G186: 24
A187: 23 | B187: 181305 | C187: 4011334018506 | D187: Entrada cabos/tubos, preto | E187: 1 | F187: 1.65 | G187: 23
A188: 23 | B188: 181309 | C188: 4011334018513 | D188: Entrada cabos/tubos, branco | E188: 1 | F188: 1.65 | G188: 23
A189: 23 | B189: 181705 | C189: 4011334018544 | D189: Entrada tubos, preto | E189: 1 | F189: 3.1 | G189: 23
A190: 23 | B190: 181709 | C190: 4011334018551 | D190: Entrada tubos, branco | E190: 1 | F190: 3.1 | G190: 23
A191: 24 | B191: 181801 | C191: 4011334018582 | D191: Canhão semi-cilind., chaves iguais | E191: 1 | F191: 28.06 | G191: 24
A192: 24 | B192: 182305 | C192: 4011334214830 | D192: 1930 - conector mont.superf.multi, preto | E192: 1 | F192: 2.12 | G192: 24
A193: 24 | B193: 182309 | C193: 4011334214854 | D193: 1930 - conector mont.superf.multi, branc | E193: 1 | F193: 2.12 | G193: 24
A194: 23 | B194: 183001 | C194: 4011334333203 | D194: Connect - caixa encastrar CEE | E194: 5 | F194: 10.35 | G194: 23
A195: 23 | B195: 186101 | C195: 4011334389569 | D195: R.x - Bloqueio interrup. rot. estores | E195: 1 | F195: 2.74 | G195: 23
A196: 24 | B196: 189510 | C196: 4011334253969 | D196: TS - parafusos M3,5 x 50mm (par), cromad | E196: 1 | F196: 4.67 | G196: 24
A197: 24 | B197: 189512 | C197: 4011334253976 | D197: TS - parafusos M3,5 x 50mm (par), dourad | E197: 1 | F197: 4.96 | G197: 24
A198: 24 | B198: 189513 | C198: 4011334253983 | D198: TS - parafusos M3,5 x 50mm (par), inox | E198: 1 | F198: 5.16 | G198: 24
A199: 24 | B199: 260415 | C199: 4011334000594 | D199: Tom. carreg. USB A+C 3A redonda, antrac | E199: 1 | F199: 61.27 | G199: 24
A200: 24 | B200: 260419 | C200: 4011334000549 | D200: Tom. carreg. USB A+C 3A redonda, branco | E200: 1 | F200: 61.27 | G200: 24
... 3413 more rows

Sheet Base de dados (hidden)
A1: Série | B1: Cor | C1: Função | D1: BASE | E1: Mecanismo | F1: Centro | G1: Quadro
A2: S.1 | B2: branco mate | C2: Interruptor / Comutador de Escada | D2: =CONCATENATE(A2,B2,C2) -> S.1branco mateInterruptor / Comutador de Escada | E2: 3036 | F2: 16201909 | G2: 10119909
A3: S.1 | B3: branco mate | C3: Comutador de Lustre | D3: S.1branco mateComutador de Lustre | E3: 3035 | F3: 16231909 | G3: 10119909
A4: S.1 | B4: branco mate | C4: Inversor | D4: S.1branco mateInversor | E4: 3037 | F4: 16201909 | G4: 10119909
A5: S.1 | B5: branco mate | C5: Comutador de Escada Duplo | D5: S.1branco mateComutador de Escada Duplo | E5: 303808 | F5: 16231909 | G5: 10119909
A6: S.1 | B6: branco mate | C6: Botão de Pressão Simples 1NA | D6: S.1branco mateBotão de Pressão Simples 1NA | E6: 5031 | F6: 16201909 | G6: 10119909
A7: S.1 | B7: branco mate | C7: Botão de Pressão Duplo 2NA | D7: S.1branco mateBotão de Pressão Duplo 2NA | E7: 5035 | F7: 16231909 | G7: 10119909
A8: S.1 | B8: branco mate | C8: Botão de Pressão Duplo 4NA | D8: S.1branco mateBotão de Pressão Duplo 4NA | E8: 503404 | F8: 16441909 | G8: 10119909
A9: S.1 | B9: branco mate | C9: Comutador para Estores | D9: S.1branco mateComutador para Estores | E9: 303520 | F9: 16251909 | G9: 10119909
A10: S.1 | B10: branco mate | C10: Variador Rotativo | D10: S.1branco mateVariador Rotativo | E10: 296110 | F10: 11371909 | G10: 10119909
A11: S.1 | B11: branco mate | C11: Interruptor de Cartão de Hotel | D11: S.1branco mateInterruptor de Cartão de Hotel | E11: 16409909 | F11: incl. no mec. | G11: 10119909
A12: S.1 | B12: branco mate | C12: Comutador de Escada de Cordão | D12: S.1branco mateComutador de Escada de Cordão | E12: 3966 | F12: 11461909 | G12: 10119909
A13: S.1 | B13: branco mate | C13: Botão de Cordão | D13: S.1branco mateBotão de Cordão | E13: 395619 | F13: 11461909 | G13: 10119909
A14: S.1 | B14: branco mate | C14: Tomada Schuko com Obturadores | D14: S.1branco mateTomada Schuko com Obturadores | E14: 47231909 | F14: incl. no mec. | G14: 10119909
A15: S.1 | B15: branco mate | C15: Tomada Schuko com Tampa e Obturadores | D15: S.1branco mateTomada Schuko com Tampa e Obturadores | E15: 47441909 | F15: incl. no mec. | G15: 10119909
A16: S.1 | B16: branco mate | C16: Tomada Schuko Encarnada, c/ Obturadores | D16: S.1branco mateTomada Schuko Encarnada, c/ Obturadores | E16: 714134 | F16: 17198912 | G16: 10119909
A17: S.1 | B17: branco mate | C17: Tomada Schuko com USB A+C e Obturadores | D17: S.1branco mateTomada Schuko com USB A+C e Obturadores | E17: 48041909 | F17: incl. no mec. | G17: 10119909
A18: S.1 | B18: branco mate | C18: Tomada USB Carregamento | D18: S.1branco mateTomada USB Carregamento | E18: 260209 | F18: 10331909 | G18: 10119909
A19: S.1 | B19: branco mate | C19: Tomada TV/FM | D19: S.1branco mateTomada TV/FM | E19: 450210 | F19: 12031909 | G19: 10119909
A20: S.1 | B20: branco mate | C20: Tomada RJ45 cat.6, Simples, Blindada | D20: S.1branco mateTomada RJ45 cat.6, Simples, Blindada | E20: 455401 | F20: 14071909 | G20: 10119909
A21: S.1 | B21: branco mate | C21: Tomada RJ45 cat.6, Dupla, Blindada | D21: S.1branco mateTomada RJ45 cat.6, Dupla, Blindada | E21: 455501 | F21: 14091909 | G21: 10119909
A22: S.1 | B22: branco mate | C22: Tomada fibra óptica Duplex-SC | D22: S.1branco mateTomada fibra óptica Duplex-SC | E22: 1009FO | F22: 10331909 | G22: 10119909
A23: S.1 | B23: branco mate | C23: BP KNX Comfort 1 tecla | D23: S.1branco mateBP KNX Comfort 1 tecla | E23: 80040001 | F23: 80161780 | G23: 10119909
A24: S.1 | B24: branco mate | C24: BP KNX Comfort 2 teclas | D24: S.1branco mateBP KNX Comfort 2 teclas | E24: 80040001 | F24: 80162780 | G24: 10119909
A25: S.1 | B25: branco mate | C25: BP KNX Comfort 3 teclas | D25: S.1branco mateBP KNX Comfort 3 teclas | E25: 80040001 | F25: 80163780 | G25: 10119909
A26: S.1 | B26: branco mate | C26: BP KNX Comfort 4 teclas | D26: S.1branco mateBP KNX Comfort 4 teclas | E26: 80040001 | F26: 80164780 | G26: 13099909
A27: S.1 | B27: branco mate | C27: Detector movimento KNX 1,1m | D27: S.1branco mateDetector movimento KNX 1,1m | E27: 80262180 | F27: 80960459 | G27: 10119909
A28: S.1 | B28: branco mate | C28: Detector movimento KNX 2,2m | D28: S.1branco mateDetector movimento KNX 2,2m | E28: 80262280 | F28: 80960459 | G28: 10119909
A29: S.1 | B29: branco mate | C29: Termóstato KNX com display | D29: S.1branco mateTermóstato KNX com display | E29: 80440100 | F29: 80960180 | G29: 10119909
A30: S.1 | B30: branco mate | C30: Controlador ambiente KNX com display | D30: S.1branco mateControlador ambiente KNX com display | E30: 80660100 | F30: 80960180 | G30: 10119909
A31: S.1 | B31: branco mate | C31: Quadro Duplo Horizontal | D31: S.1branco mateQuadro Duplo Horizontal | G31: 10129909
A32: S.1 | B32: branco mate | C32: Quadro Duplo Vertical | D32: S.1branco mateQuadro Duplo Vertical | G32: 10129909
A33: S.1 | B33: branco mate | C33: Quadro Triplo Horizontal | D33: S.1branco mateQuadro Triplo Horizontal | G33: 10139909
A34: S.1 | B34: branco mate | C34: Quadro Triplo Vertical | D34: S.1branco mateQuadro Triplo Vertical | G34: 10139909
A35: S.1 | B35: branco mate | C35: Quadro Quádruplo Horizontal | D35: S.1branco mateQuadro Quádruplo Horizontal | G35: 10149909
A36: S.1 | B36: branco mate | C36: Quadro Quádruplo Vertical | D36: S.1branco mateQuadro Quádruplo Vertical | G36: 10149909
A37: S.1 | B37: branco mate | C37: Quadro Quíntuplo Horizontal | D37: S.1branco mateQuadro Quíntuplo Horizontal | G37: 10159909
A38: S.1 | B38: branco mate | C38: Quadro Quíntuplo Vertical | D38: S.1branco mateQuadro Quíntuplo Vertical | G38: 10159909
A39: S.1 | B39: branco | C39: Interruptor / Comutador de Escada | D39: S.1brancoInterruptor / Comutador de Escada | E39: 3036 | F39: 16208989 | G39: 10118989
A40: S.1 | B40: branco | C40: Comutador de Lustre | D40: S.1brancoComutador de Lustre | E40: 3035 | F40: 16238989 | G40: 10118989
A41: S.1 | B41: branco | C41: Inversor | D41: S.1brancoInversor | E41: 3037 | F41: 16208989 | G41: 10118989
A42: S.1 | B42: branco | C42: Comutador de Escada Duplo | D42: S.1brancoComutador de Escada Duplo | E42: 303808 | F42: 16238989 | G42: 10118989
A43: S.1 | B43: branco | C43: Botão de Pressão Simples 1NA | D43: S.1brancoBotão de Pressão Simples 1NA | E43: 5031 | F43: 16208989 | G43: 10118989
A44: S.1 | B44: branco | C44: Botão de Pressão Duplo 2NA | D44: S.1brancoBotão de Pressão Duplo 2NA | E44: 5035 | F44: 16238989 | G44: 10118989
A45: S.1 | B45: branco | C45: Botão de Pressão Duplo 4NA | D45: S.1brancoBotão de Pressão Duplo 4NA | E45: 503404 | F45: 16448989 | G45: 10118989
A46: S.1 | B46: branco | C46: Comutador para Estores | D46: S.1brancoComutador para Estores | E46: 303520 | F46: 16258989 | G46: 10118989
A47: S.1 | B47: branco | C47: Variador Rotativo | D47: S.1brancoVariador Rotativo | E47: 296110 | F47: 11378989 | G47: 10118989
A48: S.1 | B48: branco | C48: Interruptor de Cartão de Hotel | D48: S.1brancoInterruptor de Cartão de Hotel | E48: 16408999 | F48: incl. no mec. | G48: 10118989
A49: S.1 | B49: branco | C49: Comutador de Escada de Cordão | D49: S.1brancoComutador de Escada de Cordão | E49: 3966 | F49: 11468989 | G49: 10118989
A50: S.1 | B50: branco | C50: Botão de Cordão | D50: S.1brancoBotão de Cordão | E50: 395619 | F50: 11468989 | G50: 10118989
A51: S.1 | B51: branco | C51: Tomada Schuko com Obturadores | D51: S.1brancoTomada Schuko com Obturadores | E51: 47238989 | F51: incl. no mec. | G51: 10118989
A52: S.1 | B52: branco | C52: Tomada Schuko com Tampa e Obturadores | D52: S.1brancoTomada Schuko com Tampa e Obturadores | E52: 47448989 | F52: incl. no mec. | G52: 10118989
A53: S.1 | B53: branco | C53: Tomada Schuko Encarnada, c/ Obturadores | D53: S.1brancoTomada Schuko Encarnada, c/ Obturadores | E53: 714134 | F53: 17198912 | G53: 10118989
A54: S.1 | B54: branco | C54: Tomada Schuko com USB A+C e Obturadores | D54: S.1brancoTomada Schuko com USB A+C e Obturadores | E54: 48048989 | F54: incl. no mec. | G54: 10118989
A55: S.1 | B55: branco | C55: Tomada USB Carregamento | D55: S.1brancoTomada USB Carregamento | E55: 260209 | F55: 10338919 | G55: 10118989
A56: S.1 | B56: branco | C56: Tomada TV/FM | D56: S.1brancoTomada TV/FM | E56: 450210 | F56: 12038989 | G56: 10118989
A57: S.1 | B57: branco | C57: Tomada RJ45 cat.6, Simples, Blindada | D57: S.1brancoTomada RJ45 cat.6, Simples, Blindada | E57: 455401 | F57: 14078989 | G57: 10118989
A58: S.1 | B58: branco | C58: Tomada RJ45 cat.6, Dupla, Blindada | D58: S.1brancoTomada RJ45 cat.6, Dupla, Blindada | E58: 455501 | F58: 14098989 | G58: 10118989
A59: S.1 | B59: branco | C59: Tomada fibra óptica Duplex-SC | D59: S.1brancoTomada fibra óptica Duplex-SC | E59: 1009FO | F59: 10338919 | G59: 10118989
A60: S.1 | B60: branco | C60: BP KNX Comfort 1 tecla | D60: S.1brancoBP KNX Comfort 1 tecla | E60: 80040001 | F60: 80161780 | G60: 10118989
A61: S.1 | B61: branco | C61: BP KNX Comfort 2 teclas | D61: S.1brancoBP KNX Comfort 2 teclas | E61: 80040001 | F61: 80162780 | G61: 10118989
A62: S.1 | B62: branco | C62: BP KNX Comfort 3 teclas | D62: S.1brancoBP KNX Comfort 3 teclas | E62: 80040001 | F62: 80163780 | G62: 10118989
A63: S.1 | B63: branco | C63: BP KNX Comfort 4 teclas | D63: S.1brancoBP KNX Comfort 4 teclas | E63: 80040001 | F63: 80164780 | G63: 13098989
A64: S.1 | B64: branco | C64: Detector movimento KNX 1,1m | D64: S.1brancoDetector movimento KNX 1,1m | E64: 80262180 | F64: 80960459 | G64: 10118989
A65: S.1 | B65: branco | C65: Detector movimento KNX 2,2m | D65: S.1brancoDetector movimento KNX 2,2m | E65: 80262280 | F65: 80960459 | G65: 10118989
A66: S.1 | B66: branco | C66: Termóstato KNX com display | D66: =CONCATENATE(A66,B66,C66) -> S.1brancoTermóstato KNX com display | E66: 80440100 | F66: 80960189 | G66: 10118989
A67: S.1 | B67: branco | C67: Controlador ambiente KNX com display | D67: S.1brancoControlador ambiente KNX com display | E67: 80660100 | F67: 80960189 | G67: 10118989
A68: S.1 | B68: branco | C68: Quadro Duplo Horizontal | D68: S.1brancoQuadro Duplo Horizontal | G68: 10128989
A69: S.1 | B69: branco | C69: Quadro Duplo Vertical | D69: S.1brancoQuadro Duplo Vertical | G69: 10128989
A70: S.1 | B70: branco | C70: Quadro Triplo Horizontal | D70: S.1brancoQuadro Triplo Horizontal | G70: 10138989
A71: S.1 | B71: branco | C71: Quadro Triplo Vertical | D71: S.1brancoQuadro Triplo Vertical | G71: 10138989
A72: S.1 | B72: branco | C72: Quadro Quádruplo Horizontal | D72: S.1brancoQuadro Quádruplo Horizontal | G72: 10148989
A73: S.1 | B73: branco | C73: Quadro Quádruplo Vertical | D73: S.1brancoQuadro Quádruplo Vertical | G73: 10148989
A74: S.1 | B74: branco | C74: Quadro Quíntuplo Horizontal | D74: S.1brancoQuadro Quíntuplo Horizontal | G74: 10158989
A75: S.1 | B75: branco | C75: Quadro Quíntuplo Vertical | D75: S.1brancoQuadro Quíntuplo Vertical | G75: 10158989
A76: S.1 | B76: creme | C76: Interruptor / Comutador de Escada | D76: S.1cremeInterruptor / Comutador de Escada | E76: 3036 | F76: 16208982 | G76: 10118982
A77: S.1 | B77: creme | C77: Comutador de Lustre | D77: S.1cremeComutador de Lustre | E77: 3035 | F77: 16238982 | G77: 10118982
A78: S.1 | B78: creme | C78: Inversor | D78: S.1cremeInversor | E78: 3037 | F78: 16208982 | G78: 10118982
A79: S.1 | B79: creme | C79: Comutador de Escada Duplo | D79: S.1cremeComutador de Escada Duplo | E79: 303808 | F79: 16238982 | G79: 10118982
A80: S.1 | B80: creme | C80: Botão de Pressão Simples 1NA | D80: S.1cremeBotão de Pressão Simples 1NA | E80: 5031 | F80: 16208982 | G80: 10118982
A81: S.1 | B81: creme | C81: Botão de Pressão Duplo 2NA | D81: S.1cremeBotão de Pressão Duplo 2NA | E81: 5035 | F81: 16238982 | G81: 10118982
A82: S.1 | B82: creme | C82: Botão de Pressão Duplo 4NA | D82: S.1cremeBotão de Pressão Duplo 4NA | E82: 503404 | F82: 16448982 | G82: 10118982
A83: S.1 | B83: creme | C83: Comutador para Estores | D83: S.1cremeComutador para Estores | E83: 303520 | F83: 16258982 | G83: 10118982
A84: S.1 | B84: creme | C84: Variador Rotativo | D84: S.1cremeVariador Rotativo | E84: 296110 | F84: 11378982 | G84: 10118982
A85: S.1 | B85: creme | C85: Interruptor de Cartão de Hotel | D85: S.1cremeInterruptor de Cartão de Hotel | E85: 16408992 | F85: incl. no mec. | G85: 10118982
A86: S.1 | B86: creme | C86: Comutador de Escada de Cordão | D86: S.1cremeComutador de Escada de Cordão | E86: 3966 | F86: 11468982 | G86: 10118982
A87: S.1 | B87: creme | C87: Botão de Cordão | D87: S.1cremeBotão de Cordão | E87: 395619 | F87: 11468982 | G87: 10118982
A88: S.1 | B88: creme | C88: Tomada Schuko com Obturadores | D88: S.1cremeTomada Schuko com Obturadores | E88: 47238982 | F88: incl. no mec. | G88: 10118982
A89: S.1 | B89: creme | C89: Tomada Schuko com Tampa e Obturadores | D89: S.1cremeTomada Schuko com Tampa e Obturadores | E89: 47448982 | F89: incl. no mec. | G89: 10118982
A90: S.1 | B90: creme | C90: Tomada Schuko Encarnada, c/ Obturadores | D90: S.1cremeTomada Schuko Encarnada, c/ Obturadores | E90: 714134 | F90: 17198912 | G90: 10118982
A91: S.1 | B91: creme | C91: Tomada Schuko com USB A+C e Obturadores | D91: S.1cremeTomada Schuko com USB A+C e Obturadores | E91: 48048982 | F91: incl. no mec. | G91: 10118982
A92: S.1 | B92: creme | C92: Tomada USB Carregamento | D92: S.1cremeTomada USB Carregamento | E92: 260209 | F92: 10338912 | G92: 10118982
A93: S.1 | B93: creme | C93: Tomada TV/FM | D93: S.1cremeTomada TV/FM | E93: 450210 | F93: 12038982 | G93: 10118982
A94: S.1 | B94: creme | C94: Tomada RJ45 cat.6, Simples, Blindada | D94: S.1cremeTomada RJ45 cat.6, Simples, Blindada | E94: 455401 | F94: 14078982 | G94: 10118982
A95: S.1 | B95: creme | C95: Tomada RJ45 cat.6, Dupla, Blindada | D95: S.1cremeTomada RJ45 cat.6, Dupla, Blindada | E95: 455501 | F95: 14098982 | G95: 10118982
A96: S.1 | B96: creme | C96: Tomada fibra óptica Duplex-SC | D96: S.1cremeTomada fibra óptica Duplex-SC | E96: 1009FO | F96: 10338912 | G96: 10118982
A97: S.1 | B97: creme | C97: BP KNX Comfort 1 tecla | D97: S.1cremeBP KNX Comfort 1 tecla | E97: 80040001 | F97: 80161780 | G97: 10118982
A98: S.1 | B98: creme | C98: BP KNX Comfort 2 teclas | D98: S.1cremeBP KNX Comfort 2 teclas | E98: 80040001 | F98: 80162780 | G98: 10118982
A99: S.1 | B99: creme | C99: BP KNX Comfort 3 teclas | D99: S.1cremeBP KNX Comfort 3 teclas | E99: 80040001 | F99: 80163780 | G99: 10118982
A100: S.1 | B100: creme | C100: BP KNX Comfort 4 teclas | D100: S.1cremeBP KNX Comfort 4 teclas | E100: 80040001 | F100: 80164780 | G100: 13098982
A101: S.1 | B101: creme | C101: Detector movimento KNX 1,1m | D101: S.1cremeDetector movimento KNX 1,1m | E101: 80262180 | F101: 80960452 | G101: 10118982
A102: S.1 | B102: creme | C102: Detector movimento KNX 2,2m | D102: S.1cremeDetector movimento KNX 2,2m | E102: 80262280 | F102: 80960452 | G102: 10118982
A103: S.1 | B103: creme | C103: Termóstato KNX com display | D103: S.1cremeTermóstato KNX com display | E103: 80440100 | F103: 80960182 | G103: 10118982
A104: S.1 | B104: creme | C104: Controlador ambiente KNX com display | D104: S.1cremeControlador ambiente KNX com display | E104: 80660100 | F104: 80960182 | G104: 10118982
A105: S.1 | B105: creme | C105: Quadro Duplo Horizontal | D105: S.1cremeQuadro Duplo Horizontal | G105: 10128982
A106: S.1 | B106: creme | C106: Quadro Duplo Vertical | D106: S.1cremeQuadro Duplo Vertical | G106: 10128982
A107: S.1 | B107: creme | C107: Quadro Triplo Horizontal | D107: S.1cremeQuadro Triplo Horizontal | G107: 10138982
A108: S.1 | B108: creme | C108: Quadro Triplo Vertical | D108: S.1cremeQuadro Triplo Vertical | G108: 10138982
A109: S.1 | B109: creme | C109: Quadro Quádruplo Horizontal | D109: S.1cremeQuadro Quádruplo Horizontal | G109: 10148982
A110: S.1 | B110: creme | C110: Quadro Quádruplo Vertical | D110: S.1cremeQuadro Quádruplo Vertical | G110: 10148982
A111: S.1 | B111: creme | C111: Quadro Quíntuplo Horizontal | D111: S.1cremeQuadro Quíntuplo Horizontal | G111: 10158982
A112: S.1 | B112: creme | C112: Quadro Quíntuplo Vertical | D112: S.1cremeQuadro Quíntuplo Vertical | G112: 10158982
A113: S.1 | B113: antracite mate | C113: Interruptor / Comutador de Escada | D113: S.1antracite mateInterruptor / Comutador de Escada | E113: 3036 | F113: 16201606 | G113: 10119949
A114: S.1 | B114: antracite mate | C114: Comutador de Lustre | D114: S.1antracite mateComutador de Lustre | E114: 3035 | F114: 16231606 | G114: 10119949
A115: S.1 | B115: antracite mate | C115: Inversor | D115: S.1antracite mateInversor | E115: 3037 | F115: 16201606 | G115: 10119949
A116: S.1 | B116: antracite mate | C116: Comutador de Escada Duplo | D116: S.1antracite mateComutador de Escada Duplo | E116: 303808 | F116: 16231606 | G116: 10119949
A117: S.1 | B117: antracite mate | C117: Botão de Pressão Simples 1NA | D117: S.1antracite mateBotão de Pressão Simples 1NA | E117: 5031 | F117: 16201606 | G117: 10119949
A118: S.1 | B118: antracite mate | C118: Botão de Pressão Duplo 2NA | D118: S.1antracite mateBotão de Pressão Duplo 2NA | E118: 5035 | F118: 16231606 | G118: 10119949
A119: S.1 | B119: antracite mate | C119: Botão de Pressão Duplo 4NA | D119: S.1antracite mateBotão de Pressão Duplo 4NA | E119: 503404 | F119: 16441606 | G119: 10119949
A120: S.1 | B120: antracite mate | C120: Comutador para Estores | D120: S.1antracite mateComutador para Estores | E120: 303520 | F120: 16251606 | G120: 10119949
A121: S.1 | B121: antracite mate | C121: Variador Rotativo | D121: S.1antracite mateVariador Rotativo | E121: 296110 | F121: 11371606 | G121: 10119949
A122: S.1 | B122: antracite mate | C122: Interruptor de Cartão de Hotel | D122: S.1antracite mateInterruptor de Cartão de Hotel | E122: 16409906 | F122: incl. no mec. | G122: 10119949
A123: S.1 | B123: antracite mate | C123: Comutador de Escada de Cordão | D123: S.1antracite mateComutador de Escada de Cordão | E123: 3966 | F123: 11461606 | G123: 10119949
A124: S.1 | B124: antracite mate | C124: Botão de Cordão | D124: S.1antracite mateBotão de Cordão | E124: 395619 | F124: 11461606 | G124: 10119949
A125: S.1 | B125: antracite mate | C125: Tomada Schuko com Obturadores | D125: S.1antracite mateTomada Schuko com Obturadores | E125: 47231606 | F125: incl. no mec. | G125: 10119949
A126: S.1 | B126: antracite mate | C126: Tomada Schuko com Tampa e Obturadores | D126: S.1antracite mateTomada Schuko com Tampa e Obturadores | E126: 47441606 | F126: incl. no mec. | G126: 10119949
A127: S.1 | B127: antracite mate | C127: Tomada Schuko Encarnada, c/ Obturadores | D127: S.1antracite mateTomada Schuko Encarnada, c/ Obturadores | E127: 714134 | F127: 17198912 | G127: 10119949
A128: S.1 | B128: antracite mate | C128: Tomada Schuko com USB A+C e Obturadores | D128: S.1antracite mateTomada Schuko com USB A+C e Obturadores | E128: 48041606 | F128: incl. no mec. | G128: 10119949
A129: S.1 | B129: antracite mate | C129: Tomada USB Carregamento | D129: S.1antracite mateTomada USB Carregamento | E129: 260205 | F129: 10331606 | G129: 10119949
A130: S.1 | B130: antracite mate | C130: Tomada TV/FM | D130: =CONCATENATE(A130,B130,C130) -> S.1antracite mateTomada TV/FM | E130: 450210 | F130: 12031606 | G130: 10119949
A131: S.1 | B131: antracite mate | C131: Tomada RJ45 cat.6, Simples, Blindada | D131: S.1antracite mateTomada RJ45 cat.6, Simples, Blindada | E131: 455401 | F131: 14071606 | G131: 10119949
A132: S.1 | B132: antracite mate | C132: Tomada RJ45 cat.6, Dupla, Blindada | D132: S.1antracite mateTomada RJ45 cat.6, Dupla, Blindada | E132: 455501 | F132: 14091606 | G132: 10119949
A133: S.1 | B133: antracite mate | C133: Tomada fibra óptica Duplex-SC | D133: S.1antracite mateTomada fibra óptica Duplex-SC | E133: 1009FO | F133: 10331606 | G133: 10119949
A134: S.1 | B134: antracite mate | C134: BP KNX Comfort 1 tecla | D134: S.1antracite mateBP KNX Comfort 1 tecla | E134: 80040001 | F134: 80161785 | G134: 10119949
A135: S.1 | B135: antracite mate | C135: BP KNX Comfort 2 teclas | D135: S.1antracite mateBP KNX Comfort 2 teclas | E135: 80040001 | F135: 80162785 | G135: 10119949
A136: S.1 | B136: antracite mate | C136: BP KNX Comfort 3 teclas | D136: S.1antracite mateBP KNX Comfort 3 teclas | E136: 80040001 | F136: 80163785 | G136: 10119949
A137: S.1 | B137: antracite mate | C137: BP KNX Comfort 4 teclas | D137: S.1antracite mateBP KNX Comfort 4 teclas | E137: 80040001 | F137: 80164785 | G137: 13099949
A138: S.1 | B138: antracite mate | C138: Detector movimento KNX 1,1m | D138: S.1antracite mateDetector movimento KNX 1,1m | E138: 80262180 | F138: 80960485 | G138: 10119949
A139: S.1 | B139: antracite mate | C139: Detector movimento KNX 2,2m | D139: S.1antracite mateDetector movimento KNX 2,2m | E139: 80262280 | F139: 80960485 | G139: 10119949
A140: S.1 | B140: antracite mate | C140: Termóstato KNX com display | D140: S.1antracite mateTermóstato KNX com display | E140: 80440100 | F140: 80960185 | G140: 10119949
A141: S.1 | B141: antracite mate | C141: Controlador ambiente KNX com display | D141: S.1antracite mateControlador ambiente KNX com display | E141: 80660100 | F141: 80960185 | G141: 10119949
A142: S.1 | B142: antracite mate | C142: Quadro Duplo Horizontal | D142: S.1antracite mateQuadro Duplo Horizontal | G142: 10129949
A143: S.1 | B143: antracite mate | C143: Quadro Duplo Vertical | D143: S.1antracite mateQuadro Duplo Vertical | G143: 10129949
A144: S.1 | B144: antracite mate | C144: Quadro Triplo Horizontal | D144: S.1antracite mateQuadro Triplo Horizontal | G144: 10139949
A145: S.1 | B145: antracite mate | C145: Quadro Triplo Vertical | D145: S.1antracite mateQuadro Triplo Vertical | G145: 10139949
A146: S.1 | B146: antracite mate | C146: Quadro Quádruplo Horizontal | D146: S.1antracite mateQuadro Quádruplo Horizontal | G146: 10149949
A147: S.1 | B147: antracite mate | C147: Quadro Quádruplo Vertical | D147: S.1antracite mateQuadro Quádruplo Vertical | G147: 10149949
A148: S.1 | B148: antracite mate | C148: Quadro Quíntuplo Horizontal | D148: S.1antracite mateQuadro Quíntuplo Horizontal | G148: 10159949
A149: S.1 | B149: antracite mate | C149: Quadro Quíntuplo Vertical | D149: S.1antracite mateQuadro Quíntuplo Vertical | G149: 10159949
A150: S.1 | B150: alumínio mate | C150: Interruptor / Comutador de Escada | D150: S.1alumínio mateInterruptor / Comutador de Escada | E150: 3036 | F150: 16201404 | G150: 10119939
A151: S.1 | B151: alumínio mate | C151: Comutador de Lustre | D151: S.1alumínio mateComutador de Lustre | E151: 3035 | F151: 16231404 | G151: 10119939
A152: S.1 | B152: alumínio mate | C152: Inversor | D152: S.1alumínio mateInversor | E152: 3037 | F152: 16201404 | G152: 10119939
A153: S.1 | B153: alumínio mate | C153: Comutador de Escada Duplo | D153: S.1alumínio mateComutador de Escada Duplo | E153: 303808 | F153: 16231404 | G153: 10119939
A154: S.1 | B154: alumínio mate | C154: Botão de Pressão Simples 1NA | D154: S.1alumínio mateBotão de Pressão Simples 1NA | E154: 5031 | F154: 16201404 | G154: 10119939
A155: S.1 | B155: alumínio mate | C155: Botão de Pressão Duplo 2NA | D155: S.1alumínio mateBotão de Pressão Duplo 2NA | E155: 5035 | F155: 16231404 | G155: 10119939
A156: S.1 | B156: alumínio mate | C156: Botão de Pressão Duplo 4NA | D156: S.1alumínio mateBotão de Pressão Duplo 4NA | E156: 503404 | F156: 16441404 | G156: 10119939
A157: S.1 | B157: alumínio mate | C157: Comutador para Estores | D157: S.1alumínio mateComutador para Estores | E157: 303520 | F157: 16251404 | G157: 10119939
A158: S.1 | B158: alumínio mate | C158: Variador Rotativo | D158: S.1alumínio mateVariador Rotativo | E158: 296110 | F158: 11371404 | G158: 10119939
A159: S.1 | B159: alumínio mate | C159: Interruptor de Cartão de Hotel | D159: S.1alumínio mateInterruptor de Cartão de Hotel | E159: 16408984 | F159: incl. no mec. | G159: 10119939
A160: S.1 | B160: alumínio mate | C160: Comutador de Escada de Cordão | D160: S.1alumínio mateComutador de Escada de Cordão | E160: 3966 | F160: 11461404 | G160: 10119939
A161: S.1 | B161: alumínio mate | C161: Botão de Cordão | D161: S.1alumínio mateBotão de Cordão | E161: 395619 | F161: 11461404 | G161: 10119939
A162: S.1 | B162: alumínio mate | C162: Tomada Schuko com Obturadores | D162: S.1alumínio mateTomada Schuko com Obturadores | E162: 47231404 | F162: incl. no mec. | G162: 10119939
A163: S.1 | B163: alumínio mate | C163: Tomada Schuko com Tampa e Obturadores | D163: S.1alumínio mateTomada Schuko com Tampa e Obturadores | E163: 47441404 | F163: incl. no mec. | G163: 10119939
A164: S.1 | B164: alumínio mate | C164: Tomada Schuko Encarnada, c/ Obturadores | D164: S.1alumínio mateTomada Schuko Encarnada, c/ Obturadores | E164: 714134 | F164: 17198912 | G164: 10119939
A165: S.1 | B165: alumínio mate | C165: Tomada Schuko com USB A+C e Obturadores | D165: S.1alumínio mateTomada Schuko com USB A+C e Obturadores | E165: 48041404 | F165: incl. no mec. | G165: 10119939
A166: S.1 | B166: alumínio mate | C166: Tomada USB Carregamento | D166: S.1alumínio mateTomada USB Carregamento | E166: 260205 | F166: 10331404 | G166: 10119939
A167: S.1 | B167: alumínio mate | C167: Tomada TV/FM | D167: S.1alumínio mateTomada TV/FM | E167: 450210 | F167: 12031404 | G167: 10119939
A168: S.1 | B168: alumínio mate | C168: Tomada RJ45 cat.6, Simples, Blindada | D168: S.1alumínio mateTomada RJ45 cat.6, Simples, Blindada | E168: 455401 | F168: 14071404 | G168: 10119939
A169: S.1 | B169: alumínio mate | C169: Tomada RJ45 cat.6, Dupla, Blindada | D169: S.1alumínio mateTomada RJ45 cat.6, Dupla, Blindada | E169: 455501 | F169: 14091404 | G169: 10119939
A170: S.1 | B170: alumínio mate | C170: Tomada fibra óptica Duplex-SC | D170: S.1alumínio mateTomada fibra óptica Duplex-SC | E170: 1009FO | F170: 10331404 | G170: 10119939
A171: S.1 | B171: alumínio mate | C171: BP KNX Comfort 1 tecla | D171: S.1alumínio mateBP KNX Comfort 1 tecla | E171: 80040001 | F171: 80161785 | G171: 10119939
A172: S.1 | B172: alumínio mate | C172: BP KNX Comfort 2 teclas | D172: S.1alumínio mateBP KNX Comfort 2 teclas | E172: 80040001 | F172: 80162785 | G172: 10119939
A173: S.1 | B173: alumínio mate | C173: BP KNX Comfort 3 teclas | D173: S.1alumínio mateBP KNX Comfort 3 teclas | E173: 80040001 | F173: 80163785 | G173: 10119939
A174: S.1 | B174: alumínio mate | C174: BP KNX Comfort 4 teclas | D174: S.1alumínio mateBP KNX Comfort 4 teclas | E174: 80040001 | F174: 80164785 | G174: 13099939
A175: S.1 | B175: alumínio mate | C175: Detector movimento KNX 1,1m | D175: S.1alumínio mateDetector movimento KNX 1,1m | E175: 80262180 | F175: 80960483 | G175: 10119939
A176: S.1 | B176: alumínio mate | C176: Detector movimento KNX 2,2m | D176: S.1alumínio mateDetector movimento KNX 2,2m | E176: 80262280 | F176: 80960483 | G176: 10119939
A177: S.1 | B177: alumínio mate | C177: Termóstato KNX com display | D177: S.1alumínio mateTermóstato KNX com display | E177: 80440100 | F177: 80960183 | G177: 10119939
A178: S.1 | B178: alumínio mate | C178: Controlador ambiente KNX com display | D178: S.1alumínio mateControlador ambiente KNX com display | E178: 80660100 | F178: 80960183 | G178: 10119939
A179: S.1 | B179: alumínio mate | C179: Quadro Duplo Horizontal | D179: S.1alumínio mateQuadro Duplo Horizontal | G179: 10129939
A180: S.1 | B180: alumínio mate | C180: Quadro Duplo Vertical | D180: S.1alumínio mateQuadro Duplo Vertical | G180: 10129939
A181: S.1 | B181: alumínio mate | C181: Quadro Triplo Horizontal | D181: S.1alumínio mateQuadro Triplo Horizontal | G181: 10139939
A182: S.1 | B182: alumínio mate | C182: Quadro Triplo Vertical | D182: S.1alumínio mateQuadro Triplo Vertical | G182: 10139939
A183: S.1 | B183: alumínio mate | C183: Quadro Quádruplo Horizontal | D183: S.1alumínio mateQuadro Quádruplo Horizontal | G183: 10149939
A184: S.1 | B184: alumínio mate | C184: Quadro Quádruplo Vertical | D184: S.1alumínio mateQuadro Quádruplo Vertical | G184: 10149939
A185: S.1 | B185: alumínio mate | C185: Quadro Quíntuplo Horizontal | D185: S.1alumínio mateQuadro Quíntuplo Horizontal | G185: 10159939
A186: S.1 | B186: alumínio mate | C186: Quadro Quíntuplo Vertical | D186: S.1alumínio mateQuadro Quíntuplo Vertical | G186: 10159939
A187: B.3 | B187: alumínio c/ branco mate | C187: Interruptor / Comutador de Escada | D187: B.3alumínio c/ branco mateInterruptor / Comutador de Escada | E187: 3036 | F187: 16201909 | G187: 10113904
A188: B.3 | B188: alumínio c/ branco mate | C188: Comutador de Lustre | D188: B.3alumínio c/ branco mateComutador de Lustre | E188: 3035 | F188: 16231909 | G188: 10113904
A189: B.3 | B189: alumínio c/ branco mate | C189: Inversor | D189: B.3alumínio c/ branco mateInversor | E189: 3037 | F189: 16201909 | G189: 10113904
A190: B.3 | B190: alumínio c/ branco mate | C190: Comutador de Escada Duplo | D190: B.3alumínio c/ branco mateComutador de Escada Duplo | E190: 303808 | F190: 16231909 | G190: 10113904
A191: B.3 | B191: alumínio c/ branco mate | C191: Botão de Pressão Simples 1NA | D191: B.3alumínio c/ branco mateBotão de Pressão Simples 1NA | E191: 5031 | F191: 16201909 | G191: 10113904
A192: B.3 | B192: alumínio c/ branco mate | C192: Botão de Pressão Duplo 2NA | D192: B.3alumínio c/ branco mateBotão de Pressão Duplo 2NA | E192: 5035 | F192: 16231909 | G192: 10113904
A193: B.3 | B193: alumínio c/ branco mate | C193: Botão de Pressão Duplo 4NA | D193: B.3alumínio c/ branco mateBotão de Pressão Duplo 4NA | E193: 503404 | F193: 16441909 | G193: 10113904
A194: B.3 | B194: alumínio c/ branco mate | C194: Comutador para Estores | D194: =CONCATENATE(A194,B194,C194) -> B.3alumínio c/ branco mateComutador para Estores | E194: 303520 | F194: 16251909 | G194: 10113904
A195: B.3 | B195: alumínio c/ branco mate | C195: Variador Rotativo | D195: B.3alumínio c/ branco mateVariador Rotativo | E195: 296110 | F195: 11371909 | G195: 10113904
A196: B.3 | B196: alumínio c/ branco mate | C196: Interruptor de Cartão de Hotel | D196: B.3alumínio c/ branco mateInterruptor de Cartão de Hotel | E196: 16409909 | F196: incl. no mec. | G196: 10113904
A197: B.3 | B197: alumínio c/ branco mate | C197: Comutador de Escada de Cordão | D197: B.3alumínio c/ branco mateComutador de Escada de Cordão | E197: 3966 | F197: 11461909 | G197: 10113904
A198: B.3 | B198: alumínio c/ branco mate | C198: Botão de Cordão | D198: B.3alumínio c/ branco mateBotão de Cordão | E198: 395619 | F198: 11461909 | G198: 10113904
A199: B.3 | B199: alumínio c/ branco mate | C199: Tomada Schuko com Obturadores | D199: B.3alumínio c/ branco mateTomada Schuko com Obturadores | E199: 47231909 | F199: incl. no mec. | G199: 10113904
A200: B.3 | B200: alumínio c/ branco mate | C200: Tomada Schuko com Tampa e Obturadores | D200: B.3alumínio c/ branco mateTomada Schuko com Tampa e Obturadores | E200: 47441909 | F200: incl. no mec. | G200: 10113904
... 4154 more rows

Sheet Imagens (hidden)
A1: Série | B1: Cor | C1: BASE
A2: S.1 | B2: branco mate | C2: =CONCATENATE(A2,B2) -> S.1branco mate | G2: sem imagem folha 2 | I2: 1
A3: S.1 | B3: branco | C3: S.1branco | G3: imagem folha 2 | I3: 2
A4: S.1 | B4: creme | C4: S.1creme
A5: S.1 | B5: antracite mate | C5: S.1antracite mate
A6: S.1 | B6: alumínio mate | C6: S.1alumínio mate
A7: B.3 | B7: alumínio c/ branco mate | C7: B.3alumínio c/ branco mate
A8: B.3 | B8: alumínio c/ antracite mate | C8: B.3alumínio c/ antracite mate
A9: B.3 | B9: dourado c/ branco mate | C9: B.3dourado c/ branco mate
A10: B.3 | B10: dourado c/ antracite mate | C10: B.3dourado c/ antracite mate
A11: B.3 | B11: preto c/ branco mate | C11: B.3preto c/ branco mate
A12: B.3 | B12: preto c/ antracite mate | C12: B.3preto c/ antracite mate
A13: B.3 | B13: encarnado c/ branco mate | C13: B.3encarnado c/ branco mate
A14: B.3 | B14: encarnado c/ antracite mate | C14: B.3encarnado c/ antracite mate
A15: B.3 | B15: castanho c/ branco mate | C15: B.3castanho c/ branco mate
A16: B.3 | B16: castanho c/ antracite mate | C16: B.3castanho c/ antracite mate
A17: B.7 | B17: branco mate | C17: B.7branco mate
A18: B.7 | B18: antracite mate | C18: B.7antracite mate
A19: B.7 | B19: alumínio mate | C19: B.7alumínio mate
A20: B.7 | B20: Vidro c/ branco mate | C20: B.7Vidro c/ branco mate
A21: B.7 | B21: Vidro c/ antracite mate | C21: B.7Vidro c/ antracite mate
A22: B.7 | B22: Vidro c/ alumínio mate | C22: B.7Vidro c/ alumínio mate
A23: B.7 | B23: Alumínio c/ branco mate | C23: B.7Alumínio c/ branco mate
A24: B.7 | B24: Alumínio c/ antracite mate | C24: B.7Alumínio c/ antracite mate
A25: B.7 | B25: Inox c/ branco mate | C25: B.7Inox c/ branco mate
A26: B.7 | B26: Inox c/ antracite mate | C26: B.7Inox c/ antracite mate
A27: Q.1 | B27: branco mate | C27: Q.1branco mate
A28: Q.1 | B28: antracite mate | C28: Q.1antracite mate
A29: Q.1 | B29: alumínio mate | C29: Q.1alumínio mate
A30: Q.3 | B30: branco mate | C30: Q.3branco mate
A31: Q.3 | B31: antracite mate | C31: Q.3antracite mate
A32: Q.3 | B32: alumínio mate | C32: Q.3alumínio mate
A33: Q.7 | B33: branco mate | C33: Q.7branco mate
A34: Q.7 | B34: antracite mate | C34: Q.7antracite mate
A35: Q.7 | B35: alumínio mate | C35: Q.7alumínio mate
A36: Q.7 | B36: Vidro c/ branco mate | C36: Q.7Vidro c/ branco mate
A37: Q.7 | B37: Vidro c/ antracite mate | C37: Q.7Vidro c/ antracite mate
A38: Q.7 | B38: Alumínio c/ branco mate | C38: Q.7Alumínio c/ branco mate
A39: Q.7 | B39: Alumínio c/ antracite mate | C39: Q.7Alumínio c/ antracite mate
A40: Q.7 | B40: Alumínio c/ alumínio mate | C40: Q.7Alumínio c/ alumínio mate
A41: Q.7 | B41: Inox c/ branco mate | C41: Q.7Inox c/ branco mate
A42: Q.7 | B42: Inox c/ antracite mate | C42: Q.7Inox c/ antracite mate
A43: Q.7 | B43: Inox c/ alumínio mate | C43: Q.7Inox c/ alumínio mate
A44: Q.7 | B44: Betão c/ branco mate | C44: Q.7Betão c/ branco mate
A45: Q.7 | B45: Betão c/ antracite mate | C45: Q.7Betão c/ antracite mate
A46: Q.7 | B46: Betão c/ alumínio mate | C46: Q.7Betão c/ alumínio mate
A47: Q.7 | B47: Ardósia c/ branco mate | C47: Q.7Ardósia c/ branco mate
A48: Q.7 | B48: Ardósia c/ antracite mate | C48: Q.7Ardósia c/ antracite mate
A49: Q.7 | B49: Ardósia c/ alumínio mate | C49: Q.7Ardósia c/ alumínio mate
A50: K.1 | B50: branco | C50: K.1branco
A51: K.1 | B51: antracite mate | C51: K.1antracite mate
A52: K.5 | B52: Alumínio | C52: K.5Alumínio
A53: K.5 | B53: Inox | C53: K.5Inox
A54: R.1 | B54: branco | C54: R.1branco
A55: R.1 | B55: preto | C55: R.1preto
A56: R.1 | B56: Vidro branco | C56: R.1Vidro branco
A57: R.1 | B57: Vidro preto | C57: R.1Vidro preto
A58: R.1 | B58: Alumínio c/ branco | C58: R.1Alumínio c/ branco
A59: R.1 | B59: Alumínio c/ preto | C59: R.1Alumínio c/ preto
A60: R.1 | B60: Inox c/ branco | C60: R.1Inox c/ branco
A61: R.1 | B61: Inox c/ preto | C61: R.1Inox c/ preto
A62: R.1 | B62: Ardósia c/ branco | C62: R.1Ardósia c/ branco
A63: R.1 | B63: Ardósia c/ preto | C63: R.1Ardósia c/ preto
A64: R.1 | B64: Betão c/ branco | C64: R.1Betão c/ branco
A65: R.1 | B65: Betão c/ preto | C65: R.1Betão c/ preto
A66: R.1 | B66: Pele natural c/ branco | C66: =CONCATENATE(A66,B66) -> R.1Pele natural c/ branco
A67: R.1 | B67: Pele natural c/ preto | C67: R.1Pele natural c/ preto
A68: R.1 | B68: Madeira carvalho c/ branco | C68: R.1Madeira carvalho c/ branco
A69: R.1 | B69: Madeira carvalho c/ preto | C69: R.1Madeira carvalho c/ preto
A70: R.1 | B70: Acrílico encarnado c/ branco | C70: R.1Acrílico encarnado c/ branco
A71: R.1 | B71: Acrílico encarnado c/ preto | C71: R.1Acrílico encarnado c/ preto
A72: R.1 | B72: Acrílico laranja c/ branco | C72: R.1Acrílico laranja c/ branco
A73: R.1 | B73: Acrílico laranja c/ preto | C73: R.1Acrílico laranja c/ preto
A74: R.3 | B74: branco | C74: R.3branco
A75: R.3 | B75: preto | C75: R.3preto
A76: R.3 | B76: Vidro branco | C76: R.3Vidro branco
A77: R.3 | B77: Vidro preto | C77: R.3Vidro preto
A78: R.3 | B78: Alumínio c/ branco | C78: R.3Alumínio c/ branco
A79: R.3 | B79: Alumínio c/ preto | C79: R.3Alumínio c/ preto
A80: R.3 | B80: Inox c/ branco | C80: R.3Inox c/ branco
A81: R.3 | B81: Inox c/ preto | C81: R.3Inox c/ preto
A82: R.8 | B82: Vidro branco c/ branco | C82: R.8Vidro branco c/ branco
A83: R.8 | B83: Vidro branco c/ preto | C83: R.8Vidro branco c/ preto
A84: R.8 | B84: Vidro preto c/ branco | C84: R.8Vidro preto c/ branco
A85: R.8 | B85: Vidro preto c/ preto | C85: R.8Vidro preto c/ preto
A86: R.8 | B86: Alumínio c/ branco | C86: R.8Alumínio c/ branco
A87: R.8 | B87: Alumínio c/ preto | C87: R.8Alumínio c/ preto
A88: R.8 | B88: Inox c/ branco | C88: R.8Inox c/ branco
A89: R.8 | B89: Inox c/ preto | C89: R.8Inox c/ preto
A90: R.8 Alvenaria | B90: Vidro branco c/ branco | C90: R.8 AlvenariaVidro branco c/ branco
A91: R.8 Alvenaria | B91: Vidro branco c/ preto | C91: R.8 AlvenariaVidro branco c/ preto
A92: R.8 Alvenaria | B92: Vidro preto c/ branco | C92: R.8 AlvenariaVidro preto c/ branco
A93: R.8 Alvenaria | B93: Vidro preto c/ preto | C93: R.8 AlvenariaVidro preto c/ preto
A94: R.8 Alvenaria | B94: Alumínio c/ branco | C94: R.8 AlvenariaAlumínio c/ branco
A95: R.8 Alvenaria | B95: Alumínio c/ preto | C95: R.8 AlvenariaAlumínio c/ preto
A96: R.8 Alvenaria | B96: Inox c/ branco | C96: R.8 AlvenariaInox c/ branco
A97: R.8 Alvenaria | B97: Inox c/ preto | C97: R.8 AlvenariaInox c/ preto
A98: R.classic | B98: branco | C98: R.classicbranco
A99: R.classic | B99: preto | C99: R.classicpreto
A100: R.classic | B100: Vidro branco | C100: R.classicVidro branco
A101: R.classic | B101: Vidro preto | C101: R.classicVidro preto
A102: R.classic | B102: Alumínio c/ branco | C102: R.classicAlumínio c/ branco
A103: R.classic | B103: Alumínio c/ preto | C103: R.classicAlumínio c/ preto
A104: R.classic | B104: Inox c/ branco | C104: R.classicInox c/ branco
A105: R.classic | B105: Inox c/ preto | C105: R.classicInox c/ preto
A106: 1930 | B106: branco | C106: 1930branco
A107: 1930 | B107: preto | C107: 1930preto
A108: 1930 | B108: porcelana branco | C108: 1930porcelana branco
A109: 1930 | B109: porcelana preto | C109: 1930porcelana preto
A110: Glas | B110: Vidro transp. c/ branco | C110: GlasVidro transp. c/ branco
A111: Glas | B111: Vidro transp. c/ preto | C111: GlasVidro transp. c/ preto
A112: Glas | B112: Vidro branco c/ branco | C112: GlasVidro branco c/ branco
A113: Glas | B113: Vidro branco c/ preto | C113: GlasVidro branco c/ preto
A114: cubyko componível | B114: encastrado cinzento | C114: cubyko componívelencastrado cinzento
A115: cubyko componível | B115: encastrado branco | C115: cubyko componívelencastrado branco
A116: cubyko componível | B116: saliente cinzento | C116: cubyko componívelsaliente cinzento
A117: cubyko componível | B117: saliente branco | C117: cubyko componívelsaliente branco
A118: cubyko monobloco | B118: encastrado cinzento | C118: cubyko monoblocoencastrado cinzento
A119: cubyko monobloco | B119: encastrado branco | C119: cubyko monoblocoencastrado branco
A120: cubyko monobloco | B120: saliente cinzento | C120: cubyko monoblocosaliente cinzento
A121: S.1 | C121: S.1
A122: B.3 | C122: B.3
A123: B.7 | C123: B.7
A124: Q.1 | C124: Q.1
A125: Q.3 | C125: Q.3
A126: Q.7 | C126: Q.7
A127: K.1 | C127: K.1
A128: K.5 | C128: K.5
A129: R.1 | C129: R.1
A130: R.3 | C130: =CONCATENATE(A130,B130) -> R.3
A131: R.8 | C131: R.8
A132: R.8 Alvenaria | C132: R.8 Alvenaria
A133: R.classic | C133: R.classic
A134: 1930 | C134: 1930
A135: Glas | C135: Glas
A136: cubyko componível | C136: cubyko componível
A137: cubyko componível | C137: cubyko componível
A138: cubyko componível | C138: cubyko componível
A139: cubyko componível | C139: cubyko componível
A140: cubyko monobloco | C140: cubyko monobloco
A141: cubyko monobloco | C141: cubyko monobloco
A142: cubyko monobloco | C142: cubyko monobloco

Sheet Ordenar Auto (hidden)
F1: Excepções | Y1: asd
F2: incl. no centro | G2: incl. no mec. | Y2: 1009FO
Y3: EK088
N4: range | O4: b | Q4: =IF(Q5<>0,1,0) -> 1 | Y4: EK090
E5: =+IF(Berker!$J114<>0,Berker!D114,"") ->  | F5: =+IF(AND(E5<>"",Berker!F114<>$F$2,Berker!F114<>$G$2),Berker!F114,"") ->  | G5: =+IF(AND(E5<>"",Berker!H114<>$F$2,Berker!H114<>$G$2),Berker!H114,"") ->  | H5: =+IF(E5<>"",Berker!B114,"") ->  | K5: =+E5 ->  | L5: =+H5 ->  | M5: =IF(K5<>" ",CONCATENATE("b",K5),"b") -> b | N5: =$M$5:INDEX($M$5:$M$126,MATCH(REPT("z",255),$M$5:$M$126)) -> b | O5: =IFERROR(INDEX(bk,MATCH(0,COUNTIF(bk,"<"&bk)-SUM(COUNTIF(bk,O$4:O4)),0)),"") ->  | P5: =+IFERROR(+RIGHT(O5,LEN(O5)-1),"") ->  | Q5: =+IFERROR(IF(COUNTIF($Y:$Y,P5)>0,UPPER(P5),+VALUE(P5)),"") ->  | R5: =IF(Q5<>"",SUMIF($K$5:$K$127,Q5,$L$5:$L$127),"") ->  | Y5: WNA001
E6: =+IF(Berker!$J115<>0,Berker!D115,"") ->  | F6: =+IF(AND(E6<>"",Berker!F115<>$F$2,Berker!F115<>$G$2),Berker!F115,"") ->  | G6: =+IF(AND(E6<>"",Berker!H115<>$F$2,Berker!H115<>$G$2),Berker!H115,"") ->  | H6: =+IF(E6<>"",Berker!B115,"") ->  | K6: =+E6 ->  | M6: =IF(K6<>" ",CONCATENATE("b",K6),"b") -> b | O6: =IFERROR(INDEX(bk,MATCH(0,COUNTIF(bk,"<"&bk)-SUM(COUNTIF(bk,O$4:O5)),0)),"") ->  | P6: =+IFERROR(+RIGHT(O6,LEN(O6)-1),"") ->  | R6: =IF(Q6<>"",SUMIF($K$5:$K$127,Q6,$L$5:$L$127),"") ->  | Y6: WNA001B
E7: =+IF(Berker!$J116<>0,Berker!D116,"") ->  | F7: =+IF(AND(E7<>"",Berker!F116<>$F$2,Berker!F116<>$G$2),Berker!F116,"") ->  | G7: =+IF(AND(E7<>"",Berker!H116<>$F$2,Berker!H116<>$G$2),Berker!H116,"") ->  | H7: =+IF(E7<>"",Berker!B116,"") ->  | M7: b | O7: =IFERROR(INDEX(bk,MATCH(0,COUNTIF(bk,"<"&bk)-SUM(COUNTIF(bk,O$4:O6)),0)),"") ->  | Y7: WNA002
E8: =+IF(Berker!$J117<>0,Berker!D117,"") ->  | F8: =+IF(AND(E8<>"",Berker!F117<>$F$2,Berker!F117<>$G$2),Berker!F117,"") ->  | G8: =+IF(AND(E8<>"",Berker!H117<>$F$2,Berker!H117<>$G$2),Berker!H117,"") ->  | H8: =+IF(E8<>"",Berker!B117,"") ->  | M8: b | O8: =IFERROR(INDEX(bk,MATCH(0,COUNTIF(bk,"<"&bk)-SUM(COUNTIF(bk,O$4:O7)),0)),"") ->  | Y8: WNA002B
E9: =+IF(Berker!$J118<>0,Berker!D118,"") ->  | F9: =+IF(AND(E9<>"",Berker!F118<>$F$2,Berker!F118<>$G$2),Berker!F118,"") ->  | G9: =+IF(AND(E9<>"",Berker!H118<>$F$2,Berker!H118<>$G$2),Berker!H118,"") ->  | H9: =+IF(E9<>"",Berker!B118,"") ->  | M9: b | O9: =IFERROR(INDEX(bk,MATCH(0,COUNTIF(bk,"<"&bk)-SUM(COUNTIF(bk,O$4:O8)),0)),"") ->  | Y9: WNA003
E10: =+IF(Berker!$J119<>0,Berker!D119,"") ->  | F10: =+IF(AND(E10<>"",Berker!F119<>$F$2,Berker!F119<>$G$2),Berker!F119,"") ->  | G10: =+IF(AND(E10<>"",Berker!H119<>$F$2,Berker!H119<>$G$2),Berker!H119,"") ->  | H10: =+IF(E10<>"",Berker!B119,"") ->  | M10: b | O10: =IFERROR(INDEX(bk,MATCH(0,COUNTIF(bk,"<"&bk)-SUM(COUNTIF(bk,O$4:O9)),0)),"") ->  | Y10: WNA003B
E11: =+IF(Berker!$J120<>0,Berker!D120,"") ->  | F11: =+IF(AND(E11<>"",Berker!F120<>$F$2,Berker!F120<>$G$2),Berker!F120,"") ->  | G11: =+IF(AND(E11<>"",Berker!H120<>$F$2,Berker!H120<>$G$2),Berker!H120,"") ->  | H11: =+IF(E11<>"",Berker!B120,"") ->  | M11: b | O11: =IFERROR(INDEX(bk,MATCH(0,COUNTIF(bk,"<"&bk)-SUM(COUNTIF(bk,O$4:O10)),0)),"") ->  | Y11: WNA006
E12: =+IF(Berker!$J121<>0,Berker!D121,"") ->  | F12: =+IF(AND(E12<>"",Berker!F121<>$F$2,Berker!F121<>$G$2),Berker!F121,"") ->  | G12: =+IF(AND(E12<>"",Berker!H121<>$F$2,Berker!H121<>$G$2),Berker!H121,"") ->  | H12: =+IF(E12<>"",Berker!B121,"") ->  | M12: b | O12: =IFERROR(INDEX(bk,MATCH(0,COUNTIF(bk,"<"&bk)-SUM(COUNTIF(bk,O$4:O11)),0)),"") ->  | Y12: WNA006B
E13: =+IF(Berker!$J122<>0,Berker!D122,"") ->  | F13: =+IF(AND(E13<>"",Berker!F122<>$F$2,Berker!F122<>$G$2),Berker!F122,"") ->  | G13: =+IF(AND(E13<>"",Berker!H122<>$F$2,Berker!H122<>$G$2),Berker!H122,"") ->  | H13: =+IF(E13<>"",Berker!B122,"") ->  | M13: b | O13: =IFERROR(INDEX(bk,MATCH(0,COUNTIF(bk,"<"&bk)-SUM(COUNTIF(bk,O$4:O12)),0)),"") ->  | Y13: WNA008
E14: =+IF(Berker!$J123<>0,Berker!D123,"") ->  | F14: =+IF(AND(E14<>"",Berker!F123<>$F$2,Berker!F123<>$G$2),Berker!F123,"") ->  | G14: =+IF(AND(E14<>"",Berker!H123<>$F$2,Berker!H123<>$G$2),Berker!H123,"") ->  | H14: =+IF(E14<>"",Berker!B123,"") ->  | M14: b | O14: =IFERROR(INDEX(bk,MATCH(0,COUNTIF(bk,"<"&bk)-SUM(COUNTIF(bk,O$4:O13)),0)),"") ->  | Y14: WNA008B
E15: =+IF(Berker!$J124<>0,Berker!D124,"") ->  | F15: =+IF(AND(E15<>"",Berker!F124<>$F$2,Berker!F124<>$G$2),Berker!F124,"") ->  | G15: =+IF(AND(E15<>"",Berker!H124<>$F$2,Berker!H124<>$G$2),Berker!H124,"") ->  | H15: =+IF(E15<>"",Berker!B124,"") ->  | M15: b | O15: =IFERROR(INDEX(bk,MATCH(0,COUNTIF(bk,"<"&bk)-SUM(COUNTIF(bk,O$4:O14)),0)),"") ->  | Y15: WNA010
E16: =+IF(Berker!$J125<>0,Berker!D125,"") ->  | F16: =+IF(AND(E16<>"",Berker!F125<>$F$2,Berker!F125<>$G$2),Berker!F125,"") ->  | G16: =+IF(AND(E16<>"",Berker!H125<>$F$2,Berker!H125<>$G$2),Berker!H125,"") ->  | H16: =+IF(E16<>"",Berker!B125,"") ->  | M16: b | O16: =IFERROR(INDEX(bk,MATCH(0,COUNTIF(bk,"<"&bk)-SUM(COUNTIF(bk,O$4:O15)),0)),"") ->  | Y16: WNA010B
E17: =+IF(Berker!$J126<>0,Berker!D126,"") ->  | F17: =+IF(AND(E17<>"",Berker!F126<>$F$2,Berker!F126<>$G$2),Berker!F126,"") ->  | G17: =+IF(AND(E17<>"",Berker!H126<>$F$2,Berker!H126<>$G$2),Berker!H126,"") ->  | H17: =+IF(E17<>"",Berker!B126,"") ->  | M17: b | O17: =IFERROR(INDEX(bk,MATCH(0,COUNTIF(bk,"<"&bk)-SUM(COUNTIF(bk,O$4:O16)),0)),"") ->  | Y17: WNA020
E18: =+IF(Berker!$J127<>0,Berker!D127,"") ->  | F18: =+IF(AND(E18<>"",Berker!F127<>$F$2,Berker!F127<>$G$2),Berker!F127,"") ->  | G18: =+IF(AND(E18<>"",Berker!H127<>$F$2,Berker!H127<>$G$2),Berker!H127,"") ->  | H18: =+IF(E18<>"",Berker!B127,"") ->  | M18: b | O18: =IFERROR(INDEX(bk,MATCH(0,COUNTIF(bk,"<"&bk)-SUM(COUNTIF(bk,O$4:O17)),0)),"") ->  | Y18: WNA020B
E19: =+IF(Berker!$J128<>0,Berker!D128,"") ->  | F19: =+IF(AND(E19<>"",Berker!F128<>$F$2,Berker!F128<>$G$2),Berker!F128,"") ->  | G19: =+IF(AND(E19<>"",Berker!H128<>$F$2,Berker!H128<>$G$2),Berker!H128,"") ->  | H19: =+IF(E19<>"",Berker!B128,"") ->  | M19: b | O19: =IFERROR(INDEX(bk,MATCH(0,COUNTIF(bk,"<"&bk)-SUM(COUNTIF(bk,O$4:O18)),0)),"") ->  | Y19: WNA021
E20: =+IF(Berker!$J129<>0,Berker!D129,"") ->  | F20: =+IF(AND(E20<>"",Berker!F129<>$F$2,Berker!F129<>$G$2),Berker!F129,"") ->  | G20: =+IF(AND(E20<>"",Berker!H129<>$F$2,Berker!H129<>$G$2),Berker!H129,"") ->  | H20: =+IF(E20<>"",Berker!B129,"") ->  | M20: b | O20: =IFERROR(INDEX(bk,MATCH(0,COUNTIF(bk,"<"&bk)-SUM(COUNTIF(bk,O$4:O19)),0)),"") ->  | Y20: WNA021B
E21: =+IF(Berker!$J130<>0,Berker!D130,"") ->  | F21: =+IF(AND(E21<>"",Berker!F130<>$F$2,Berker!F130<>$G$2),Berker!F130,"") ->  | G21: =+IF(AND(E21<>"",Berker!H130<>$F$2,Berker!H130<>$G$2),Berker!H130,"") ->  | H21: =+IF(E21<>"",Berker!B130,"") ->  | M21: b | O21: =IFERROR(INDEX(bk,MATCH(0,COUNTIF(bk,"<"&bk)-SUM(COUNTIF(bk,O$4:O20)),0)),"") ->  | Y21: WNA022
E22: =+IF(Berker!$J131<>0,Berker!D131,"") ->  | F22: =+IF(AND(E22<>"",Berker!F131<>$F$2,Berker!F131<>$G$2),Berker!F131,"") ->  | G22: =+IF(AND(E22<>"",Berker!H131<>$F$2,Berker!H131<>$G$2),Berker!H131,"") ->  | H22: =+IF(E22<>"",Berker!B131,"") ->  | M22: b | O22: =IFERROR(INDEX(bk,MATCH(0,COUNTIF(bk,"<"&bk)-SUM(COUNTIF(bk,O$4:O21)),0)),"") ->  | Y22: WNA022B
E23: =+IF(Berker!$J132<>0,Berker!D132,"") ->  | F23: =+IF(AND(E23<>"",Berker!F132<>$F$2,Berker!F132<>$G$2),Berker!F132,"") ->  | G23: =+IF(AND(E23<>"",Berker!H132<>$F$2,Berker!H132<>$G$2),Berker!H132,"") ->  | H23: =+IF(E23<>"",Berker!B132,"") ->  | M23: b | O23: =IFERROR(INDEX(bk,MATCH(0,COUNTIF(bk,"<"&bk)-SUM(COUNTIF(bk,O$4:O22)),0)),"") ->  | Y23: WNA023
E24: =+IF(Berker!$J133<>0,Berker!D133,"") ->  | F24: =+IF(AND(E24<>"",Berker!F133<>$F$2,Berker!F133<>$G$2),Berker!F133,"") ->  | G24: =+IF(AND(E24<>"",Berker!H133<>$F$2,Berker!H133<>$G$2),Berker!H133,"") ->  | H24: =+IF(E24<>"",Berker!B133,"") ->  | M24: b | O24: =IFERROR(INDEX(bk,MATCH(0,COUNTIF(bk,"<"&bk)-SUM(COUNTIF(bk,O$4:O23)),0)),"") ->  | Y24: WNA023B
E25: =+IF(Berker!$J134<>0,Berker!D134,"") ->  | F25: =+IF(AND(E25<>"",Berker!F134<>$F$2,Berker!F134<>$G$2),Berker!F134,"") ->  | G25: =+IF(AND(E25<>"",Berker!H134<>$F$2,Berker!H134<>$G$2),Berker!H134,"") ->  | H25: =+IF(E25<>"",Berker!B134,"") ->  | M25: b | O25: =IFERROR(INDEX(bk,MATCH(0,COUNTIF(bk,"<"&bk)-SUM(COUNTIF(bk,O$4:O24)),0)),"") ->  | Y25: WNA025
E26: =+IF(Berker!$J135<>0,Berker!D135,"") ->  | F26: =+IF(AND(E26<>"",Berker!F135<>$F$2,Berker!F135<>$G$2),Berker!F135,"") ->  | G26: =+IF(AND(E26<>"",Berker!H135<>$F$2,Berker!H135<>$G$2),Berker!H135,"") ->  | H26: =+IF(E26<>"",Berker!B135,"") ->  | M26: b | O26: =IFERROR(INDEX(bk,MATCH(0,COUNTIF(bk,"<"&bk)-SUM(COUNTIF(bk,O$4:O25)),0)),"") ->  | Y26: WNA025B
E27: =+IF(Berker!$J136<>0,Berker!D136,"") ->  | F27: =+IF(AND(E27<>"",Berker!F136<>$F$2,Berker!F136<>$G$2),Berker!F136,"") ->  | G27: =+IF(AND(E27<>"",Berker!H136<>$F$2,Berker!H136<>$G$2),Berker!H136,"") ->  | H27: =+IF(E27<>"",Berker!B136,"") ->  | M27: b | O27: =IFERROR(INDEX(bk,MATCH(0,COUNTIF(bk,"<"&bk)-SUM(COUNTIF(bk,O$4:O26)),0)),"") ->  | Y27: WNA032
E28: =+IF(Berker!$J137<>0,Berker!D137,"") ->  | F28: =+IF(AND(E28<>"",Berker!F137<>$F$2,Berker!F137<>$G$2),Berker!F137,"") ->  | G28: =+IF(AND(E28<>"",Berker!H137<>$F$2,Berker!H137<>$G$2),Berker!H137,"") ->  | H28: =+IF(E28<>"",Berker!B137,"") ->  | M28: b | O28: =IFERROR(INDEX(bk,MATCH(0,COUNTIF(bk,"<"&bk)-SUM(COUNTIF(bk,O$4:O27)),0)),"") ->  | Y28: WNA033
E29: =+IF(Berker!$J138<>0,Berker!D138,"") ->  | F29: =+IF(AND(E29<>"",Berker!F138<>$F$2,Berker!F138<>$G$2),Berker!F138,"") ->  | G29: =+IF(AND(E29<>"",Berker!H138<>$F$2,Berker!H138<>$G$2),Berker!H138,"") ->  | H29: =+IF(E29<>"",Berker!B138,"") ->  | M29: b | O29: =IFERROR(INDEX(bk,MATCH(0,COUNTIF(bk,"<"&bk)-SUM(COUNTIF(bk,O$4:O28)),0)),"") ->  | Y29: WNA035
E30: =+IF(Berker!$J139<>0,Berker!D139,"") ->  | F30: =+IF(AND(E30<>"",Berker!F139<>$F$2,Berker!F139<>$G$2),Berker!F139,"") ->  | G30: =+IF(AND(E30<>"",Berker!H139<>$F$2,Berker!H139<>$G$2),Berker!H139,"") ->  | H30: =+IF(E30<>"",Berker!B139,"") ->  | M30: b | O30: =IFERROR(INDEX(bk,MATCH(0,COUNTIF(bk,"<"&bk)-SUM(COUNTIF(bk,O$4:O29)),0)),"") ->  | Y30: WNA036
E31: =+IF(Berker!$J140<>0,Berker!D140,"") ->  | F31: =+IF(AND(E31<>"",Berker!F140<>$F$2,Berker!F140<>$G$2),Berker!F140,"") ->  | G31: =+IF(AND(E31<>"",Berker!H140<>$F$2,Berker!H140<>$G$2),Berker!H140,"") ->  | H31: =+IF(E31<>"",Berker!B140,"") ->  | M31: b | O31: =IFERROR(INDEX(bk,MATCH(0,COUNTIF(bk,"<"&bk)-SUM(COUNTIF(bk,O$4:O30)),0)),"") ->  | Y31: WNA037
E32: =+IF(Berker!$J141<>0,Berker!D141,"") ->  | F32: =+IF(AND(E32<>"",Berker!F141<>$F$2,Berker!F141<>$G$2),Berker!F141,"") ->  | G32: =+IF(AND(E32<>"",Berker!H141<>$F$2,Berker!H141<>$G$2),Berker!H141,"") ->  | H32: =+IF(E32<>"",Berker!B141,"") ->  | M32: b | O32: =IFERROR(INDEX(bk,MATCH(0,COUNTIF(bk,"<"&bk)-SUM(COUNTIF(bk,O$4:O31)),0)),"") ->  | Y32: WNA037B
E33: =IF(Berker!J143=1E-30,"",+IF(Berker!$J143<>0,Berker!D143,"")) ->  | F33: =+IF(E33<>"",Berker!F143,"") ->  | G33: =+IF(F33<>"",Berker!H143,"") ->  | H33: =+IF(G33<>"",Berker!B143,"") ->  | K33: =+F5 ->  | L33: =+H5 ->  | M33: b | O33: =IFERROR(INDEX(bk,MATCH(0,COUNTIF(bk,"<"&bk)-SUM(COUNTIF(bk,O$4:O32)),0)),"") ->  | Y33: WNA038
E34: =IF(Berker!J144=1E-30,"",+IF(Berker!$J144<>0,Berker!D144,"")) ->  | F34: =+IF(Berker!$J144<>0,Berker!F144,"") ->  | G34: =+IF(Berker!$J144<>0,Berker!H144,"") ->  | H34: =+IF(G34<>"",Berker!B144,"") ->  | L34: =+H6 ->  | M34: b | O34: =IFERROR(INDEX(bk,MATCH(0,COUNTIF(bk,"<"&bk)-SUM(COUNTIF(bk,O$4:O33)),0)),"") ->  | Y34: WNA040
E35: =IF(Berker!J145=1E-30,"",+IF(Berker!$J145<>0,Berker!D145,"")) ->  | F35: =+IF(Berker!$J145<>0,Berker!F145,"") ->  | G35: =+IF(Berker!$J145<>0,Berker!H145,"") ->  | H35: =+IF(G35<>"",Berker!B145,"") ->  | M35: b | O35: =IFERROR(INDEX(bk,MATCH(0,COUNTIF(bk,"<"&bk)-SUM(COUNTIF(bk,O$4:O34)),0)),"") ->  | Y35: WNA040B
E36: =IF(Berker!J146=1E-30,"",+IF(Berker!$J146<>0,Berker!D146,"")) ->  | F36: =+IF(Berker!$J146<>0,Berker!F146,"") ->  | G36: =+IF(Berker!$J146<>0,Berker!H146,"") ->  | H36: =+IF(G36<>"",Berker!B146,"") ->  | M36: b | O36: =IFERROR(INDEX(bk,MATCH(0,COUNTIF(bk,"<"&bk)-SUM(COUNTIF(bk,O$4:O35)),0)),"") ->  | Y36: WNA041
E37: =IF(Berker!J147=1E-30,"",+IF(Berker!$J147<>0,Berker!D147,"")) ->  | F37: =+IF(Berker!$J147<>0,Berker!F147,"") ->  | G37: =+IF(Berker!$J147<>0,Berker!H147,"") ->  | H37: =+IF(G37<>"",Berker!B147,"") ->  | M37: b | O37: =IFERROR(INDEX(bk,MATCH(0,COUNTIF(bk,"<"&bk)-SUM(COUNTIF(bk,O$4:O36)),0)),"") ->  | Y37: WNA041B
E38: =IF(Berker!J148=1E-30,"",+IF(Berker!$J148<>0,Berker!D148,"")) ->  | F38: =+IF(Berker!$J148<>0,Berker!F148,"") ->  | G38: =+IF(Berker!$J148<>0,Berker!H148,"") ->  | H38: =+IF(G38<>"",Berker!B148,"") ->  | M38: b | O38: =IFERROR(INDEX(bk,MATCH(0,COUNTIF(bk,"<"&bk)-SUM(COUNTIF(bk,O$4:O37)),0)),"") ->  | Y38: WNA044
E39: =IF(Berker!J149=1E-30,"",+IF(Berker!$J149<>0,Berker!D149,"")) ->  | F39: =+IF(Berker!$J149<>0,Berker!F149,"") ->  | G39: =+IF(Berker!$J149<>0,Berker!H149,"") ->  | H39: =+IF(G39<>"",Berker!B149,"") ->  | M39: b | O39: =IFERROR(INDEX(bk,MATCH(0,COUNTIF(bk,"<"&bk)-SUM(COUNTIF(bk,O$4:O38)),0)),"") ->  | Y39: WNA044B
E40: =IF(Berker!J150=1E-30,"",+IF(Berker!$J150<>0,Berker!D150,"")) ->  | F40: =+IF(Berker!$J150<>0,Berker!F150,"") ->  | G40: =+IF(Berker!$J150<>0,Berker!H150,"") ->  | H40: =+IF(G40<>"",Berker!B150,"") ->  | M40: b | O40: =IFERROR(INDEX(bk,MATCH(0,COUNTIF(bk,"<"&bk)-SUM(COUNTIF(bk,O$4:O39)),0)),"") ->  | Y40: WNA045
G41: =+IF(Berker!$J152<>0,Berker!H152,"") ->  | H41: =+IF(G41<>"",Berker!B152,"") ->  | M41: b | O41: =IFERROR(INDEX(bk,MATCH(0,COUNTIF(bk,"<"&bk)-SUM(COUNTIF(bk,O$4:O40)),0)),"") ->  | Y41: WNA045B
G42: =+IF(Berker!$J153<>0,Berker!H153,"") ->  | H42: =+IF(G42<>"",Berker!B153,"") ->  | M42: b | O42: =IFERROR(INDEX(bk,MATCH(0,COUNTIF(bk,"<"&bk)-SUM(COUNTIF(bk,O$4:O41)),0)),"") ->  | Y42: WNA100
G43: =+IF(Berker!$J154<>0,Berker!H154,"") ->  | H43: =+IF(G43<>"",Berker!B154,"") ->  | M43: b | O43: =IFERROR(INDEX(bk,MATCH(0,COUNTIF(bk,"<"&bk)-SUM(COUNTIF(bk,O$4:O42)),0)),"") ->  | Y43: WNA100B
G44: =+IF(Berker!$J155<>0,Berker!H155,"") ->  | H44: =+IF(G44<>"",Berker!B155,"") ->  | M44: b | O44: =IFERROR(INDEX(bk,MATCH(0,COUNTIF(bk,"<"&bk)-SUM(COUNTIF(bk,O$4:O43)),0)),"") ->  | Y44: WNA155
G45: =+IF(Berker!$J156<>0,Berker!H156,"") ->  | H45: =+IF(G45<>"",Berker!B156,"") ->  | M45: b | O45: =IFERROR(INDEX(bk,MATCH(0,COUNTIF(bk,"<"&bk)-SUM(COUNTIF(bk,O$4:O44)),0)),"") ->  | Y45: WNA155B
G46: =+IF(Berker!$J157<>0,Berker!H157,"") ->  | H46: =+IF(G46<>"",Berker!B157,"") ->  | M46: b | O46: =IFERROR(INDEX(bk,MATCH(0,COUNTIF(bk,"<"&bk)-SUM(COUNTIF(bk,O$4:O45)),0)),"") ->  | Y46: WNA157
G47: =+IF(Berker!$J158<>0,Berker!H158,"") ->  | H47: =+IF(G47<>"",Berker!B158,"") ->  | M47: b | O47: =IFERROR(INDEX(bk,MATCH(0,COUNTIF(bk,"<"&bk)-SUM(COUNTIF(bk,O$4:O46)),0)),"") ->  | Y47: WNA157B
G48: =+IF(Berker!$J159<>0,Berker!H159,"") ->  | H48: =+IF(G48<>"",Berker!B159,"") ->  | M48: b | O48: =IFERROR(INDEX(bk,MATCH(0,COUNTIF(bk,"<"&bk)-SUM(COUNTIF(bk,O$4:O47)),0)),"") ->  | Y48: WNA160
G49: =+IF(Berker!$J160<>0,Berker!H160,"") ->  | H49: =+IF(G49<>"",Berker!B160,"") ->  | M49: b | O49: =IFERROR(INDEX(bk,MATCH(0,COUNTIF(bk,"<"&bk)-SUM(COUNTIF(bk,O$4:O48)),0)),"") ->  | Y49: WNA160B
G50: =+IF(Berker!$J161<>0,Berker!H161,"") ->  | H50: =+IF(G50<>"",Berker!B161,"") ->  | M50: b | O50: =IFERROR(INDEX(bk,MATCH(0,COUNTIF(bk,"<"&bk)-SUM(COUNTIF(bk,O$4:O49)),0)),"") ->  | Y50: WNA161
G51: =+IF(Berker!$J162<>0,Berker!H162,"") ->  | H51: =+IF(G51<>"",Berker!B162,"") ->  | M51: b | O51: =IFERROR(INDEX(bk,MATCH(0,COUNTIF(bk,"<"&bk)-SUM(COUNTIF(bk,O$4:O50)),0)),"") ->  | Y51: WNA161B
G52: =+IF(Berker!$J163<>0,Berker!H163,"") ->  | H52: =+IF(G52<>"",Berker!B163,"") ->  | M52: b | O52: =IFERROR(INDEX(bk,MATCH(0,COUNTIF(bk,"<"&bk)-SUM(COUNTIF(bk,O$4:O51)),0)),"") ->  | Y52: WNA300
G53: =+IF(Berker!$J164<>0,Berker!H164,"") ->  | H53: =+IF(G53<>"",Berker!B164,"") ->  | M53: b | O53: =IFERROR(INDEX(bk,MATCH(0,COUNTIF(bk,"<"&bk)-SUM(COUNTIF(bk,O$4:O52)),0)),"") ->  | Y53: WNA300B
G54: =+IF(Berker!$J165<>0,Berker!H165,"") ->  | H54: =+IF(G54<>"",Berker!B165,"") ->  | M54: b | O54: =IFERROR(INDEX(bk,MATCH(0,COUNTIF(bk,"<"&bk)-SUM(COUNTIF(bk,O$4:O53)),0)),"") ->  | Y54: WNA301
M55: b | O55: =IFERROR(INDEX(bk,MATCH(0,COUNTIF(bk,"<"&bk)-SUM(COUNTIF(bk,O$4:O54)),0)),"") ->  | Y55: WNA301B
M56: b | O56: =IFERROR(INDEX(bk,MATCH(0,COUNTIF(bk,"<"&bk)-SUM(COUNTIF(bk,O$4:O55)),0)),"") ->  | Y56: WNA401
M57: b | O57: =IFERROR(INDEX(bk,MATCH(0,COUNTIF(bk,"<"&bk)-SUM(COUNTIF(bk,O$4:O56)),0)),"") ->  | Y57: WNA401B
M58: b | O58: =IFERROR(INDEX(bk,MATCH(0,COUNTIF(bk,"<"&bk)-SUM(COUNTIF(bk,O$4:O57)),0)),"") ->  | Y58: WNA402
M59: b | O59: =IFERROR(INDEX(bk,MATCH(0,COUNTIF(bk,"<"&bk)-SUM(COUNTIF(bk,O$4:O58)),0)),"") ->  | Y59: WNA402B
M60: b | O60: =IFERROR(INDEX(bk,MATCH(0,COUNTIF(bk,"<"&bk)-SUM(COUNTIF(bk,O$4:O59)),0)),"") ->  | Y60: WNA403
K61: =+G5 ->  | L61: =+H5 ->  | M61: b | O61: =IFERROR(INDEX(bk,MATCH(0,COUNTIF(bk,"<"&bk)-SUM(COUNTIF(bk,O$4:O60)),0)),"") ->  | Y61: WNA403B
K62: =+G6 ->  | M62: b | O62: =IFERROR(INDEX(bk,MATCH(0,COUNTIF(bk,"<"&bk)-SUM(COUNTIF(bk,O$4:O61)),0)),"") ->  | Y62: WNA408
M63: b | O63: =IFERROR(INDEX(bk,MATCH(0,COUNTIF(bk,"<"&bk)-SUM(COUNTIF(bk,O$4:O62)),0)),"") ->  | Y63: WNA408B
M64: b | O64: =IFERROR(INDEX(bk,MATCH(0,COUNTIF(bk,"<"&bk)-SUM(COUNTIF(bk,O$4:O63)),0)),"") ->  | Y64: WNA450
M65: b | O65: =IFERROR(INDEX(bk,MATCH(0,COUNTIF(bk,"<"&bk)-SUM(COUNTIF(bk,O$4:O64)),0)),"") ->  | Y65: WNA455
M66: b | O66: =IFERROR(INDEX(bk,MATCH(0,COUNTIF(bk,"<"&bk)-SUM(COUNTIF(bk,O$4:O65)),0)),"") ->  | Y66: WNA455B
M67: b | O67: =IFERROR(INDEX(bk,MATCH(0,COUNTIF(bk,"<"&bk)-SUM(COUNTIF(bk,O$4:O66)),0)),"") ->  | Y67: WNA601
M68: b | O68: =IFERROR(INDEX(bk,MATCH(0,COUNTIF(bk,"<"&bk)-SUM(COUNTIF(bk,O$4:O67)),0)),"") ->  | Y68: WNA602
M69: b | O69: =IFERROR(INDEX(bk,MATCH(0,COUNTIF(bk,"<"&bk)-SUM(COUNTIF(bk,O$4:O68)),0)),"") ->  | Q69: =+IFERROR(IF(COUNTIF($Y:$Y,P69)>0,UPPER(P69),+VALUE(P69)),"") ->  | Y69: WNA603
M70: =IF(K70<>" ",CONCATENATE("b",K70),"b") -> b | O70: =IFERROR(INDEX(bk,MATCH(0,COUNTIF(bk,"<"&bk)-SUM(COUNTIF(bk,O$4:O69)),0)),"") ->  | P70: =+IFERROR(+RIGHT(O70,LEN(O70)-1),"") ->  | R70: =IF(Q70<>"",SUMIF($K$5:$K$127,Q70,$L$5:$L$127),"") ->  | Y70: WNA681
M71: b | O71: =IFERROR(INDEX(bk,MATCH(0,COUNTIF(bk,"<"&bk)-SUM(COUNTIF(bk,O$4:O70)),0)),"") ->  | Y71: WNA681B
M72: b | O72: =IFERROR(INDEX(bk,MATCH(0,COUNTIF(bk,"<"&bk)-SUM(COUNTIF(bk,O$4:O71)),0)),"") ->  | Y72: WNA682
M73: b | O73: =IFERROR(INDEX(bk,MATCH(0,COUNTIF(bk,"<"&bk)-SUM(COUNTIF(bk,O$4:O72)),0)),"") ->  | Y73: WNA682B
M74: b | O74: =IFERROR(INDEX(bk,MATCH(0,COUNTIF(bk,"<"&bk)-SUM(COUNTIF(bk,O$4:O73)),0)),"") ->  | Y74: WNA683
M75: b | O75: =IFERROR(INDEX(bk,MATCH(0,COUNTIF(bk,"<"&bk)-SUM(COUNTIF(bk,O$4:O74)),0)),"") ->  | Y75: WNA683B
M76: b | O76: =IFERROR(INDEX(bk,MATCH(0,COUNTIF(bk,"<"&bk)-SUM(COUNTIF(bk,O$4:O75)),0)),"") ->  | Y76: WNA684
M77: b | O77: =IFERROR(INDEX(bk,MATCH(0,COUNTIF(bk,"<"&bk)-SUM(COUNTIF(bk,O$4:O76)),0)),"") ->  | Y77: WNA685
M78: b | O78: =IFERROR(INDEX(bk,MATCH(0,COUNTIF(bk,"<"&bk)-SUM(COUNTIF(bk,O$4:O77)),0)),"") ->  | Y78: WNA685B
M79: b | O79: =IFERROR(INDEX(bk,MATCH(0,COUNTIF(bk,"<"&bk)-SUM(COUNTIF(bk,O$4:O78)),0)),"") ->  | Y79: WNA686
M80: b | O80: =IFERROR(INDEX(bk,MATCH(0,COUNTIF(bk,"<"&bk)-SUM(COUNTIF(bk,O$4:O79)),0)),"") ->  | Y80: WNA686B
M81: b | O81: =IFERROR(INDEX(bk,MATCH(0,COUNTIF(bk,"<"&bk)-SUM(COUNTIF(bk,O$4:O80)),0)),"") ->  | Y81: WNA689
M82: b | O82: =IFERROR(INDEX(bk,MATCH(0,COUNTIF(bk,"<"&bk)-SUM(COUNTIF(bk,O$4:O81)),0)),"") ->  | Y82: WNA690
M83: b | O83: =IFERROR(INDEX(bk,MATCH(0,COUNTIF(bk,"<"&bk)-SUM(COUNTIF(bk,O$4:O82)),0)),"") ->  | Y83: WNA690B
M84: b | O84: =IFERROR(INDEX(bk,MATCH(0,COUNTIF(bk,"<"&bk)-SUM(COUNTIF(bk,O$4:O83)),0)),"") ->  | Y84: WNA691
M85: b | O85: =IFERROR(INDEX(bk,MATCH(0,COUNTIF(bk,"<"&bk)-SUM(COUNTIF(bk,O$4:O84)),0)),"") ->  | Y85: WNA691B
M86: b | O86: =IFERROR(INDEX(bk,MATCH(0,COUNTIF(bk,"<"&bk)-SUM(COUNTIF(bk,O$4:O85)),0)),"") ->  | Y86: WNA692
M87: b | O87: =IFERROR(INDEX(bk,MATCH(0,COUNTIF(bk,"<"&bk)-SUM(COUNTIF(bk,O$4:O86)),0)),"") ->  | Y87: WNA693
M88: b | O88: =IFERROR(INDEX(bk,MATCH(0,COUNTIF(bk,"<"&bk)-SUM(COUNTIF(bk,O$4:O87)),0)),"") ->  | Y88: WNA694
K89: =+E33 ->  | L89: =+H33 ->  | M89: b | O89: =IFERROR(INDEX(bk,MATCH(0,COUNTIF(bk,"<"&bk)-SUM(COUNTIF(bk,O$4:O88)),0)),"") ->  | Y89: WNA695
K90: =+E34 ->  | M90: b | O90: =IFERROR(INDEX(bk,MATCH(0,COUNTIF(bk,"<"&bk)-SUM(COUNTIF(bk,O$4:O89)),0)),"") ->  | Y90: WNA696
K91: =+E35 ->  | M91: b | O91: =IFERROR(INDEX(bk,MATCH(0,COUNTIF(bk,"<"&bk)-SUM(COUNTIF(bk,O$4:O90)),0)),"") ->  | Y91: WNA697
M92: b | O92: =IFERROR(INDEX(bk,MATCH(0,COUNTIF(bk,"<"&bk)-SUM(COUNTIF(bk,O$4:O91)),0)),"") ->  | Y92: WNA698
M93: b | O93: =IFERROR(INDEX(bk,MATCH(0,COUNTIF(bk,"<"&bk)-SUM(COUNTIF(bk,O$4:O92)),0)),"") ->  | Y93: WNA699
M94: b | O94: =IFERROR(INDEX(bk,MATCH(0,COUNTIF(bk,"<"&bk)-SUM(COUNTIF(bk,O$4:O93)),0)),"") ->  | Y94: WNA700
M95: b | O95: =IFERROR(INDEX(bk,MATCH(0,COUNTIF(bk,"<"&bk)-SUM(COUNTIF(bk,O$4:O94)),0)),"") ->  | Y95: WNC001
M96: b | O96: =IFERROR(INDEX(bk,MATCH(0,COUNTIF(bk,"<"&bk)-SUM(COUNTIF(bk,O$4:O95)),0)),"") ->  | Y96: WNC002
K97: =+F33 ->  | L97: =+H33 ->  | M97: b | O97: =IFERROR(INDEX(bk,MATCH(0,COUNTIF(bk,"<"&bk)-SUM(COUNTIF(bk,O$4:O96)),0)),"") ->  | Y97: WNC003
L98: =+H34 ->  | M98: b | O98: =IFERROR(INDEX(bk,MATCH(0,COUNTIF(bk,"<"&bk)-SUM(COUNTIF(bk,O$4:O97)),0)),"") ->  | Y98: WNC020
M99: b | O99: =IFERROR(INDEX(bk,MATCH(0,COUNTIF(bk,"<"&bk)-SUM(COUNTIF(bk,O$4:O98)),0)),"") ->  | Y99: WNC021
M100: b | O100: =IFERROR(INDEX(bk,MATCH(0,COUNTIF(bk,"<"&bk)-SUM(COUNTIF(bk,O$4:O99)),0)),"") ->  | Y100: WNC022
M101: b | O101: =IFERROR(INDEX(bk,MATCH(0,COUNTIF(bk,"<"&bk)-SUM(COUNTIF(bk,O$4:O100)),0)),"") ->  | Y101: WNC023
M102: b | O102: =IFERROR(INDEX(bk,MATCH(0,COUNTIF(bk,"<"&bk)-SUM(COUNTIF(bk,O$4:O101)),0)),"") ->  | Y102: WNC032
M103: b | O103: =IFERROR(INDEX(bk,MATCH(0,COUNTIF(bk,"<"&bk)-SUM(COUNTIF(bk,O$4:O102)),0)),"") ->  | Y103: WNC033
M104: b | O104: =IFERROR(INDEX(bk,MATCH(0,COUNTIF(bk,"<"&bk)-SUM(COUNTIF(bk,O$4:O103)),0)),"") ->  | Y104: WNC035
K105: =+G33 ->  | L105: =+H33 ->  | M105: b | O105: =IFERROR(INDEX(bk,MATCH(0,COUNTIF(bk,"<"&bk)-SUM(COUNTIF(bk,O$4:O104)),0)),"") ->  | Y105: WNC036
K106: =+G34 ->  | M106: b | O106: =IFERROR(INDEX(bk,MATCH(0,COUNTIF(bk,"<"&bk)-SUM(COUNTIF(bk,O$4:O105)),0)),"") ->  | Y106: WNC040
M107: b | O107: =IFERROR(INDEX(bk,MATCH(0,COUNTIF(bk,"<"&bk)-SUM(COUNTIF(bk,O$4:O106)),0)),"") ->  | Y107: WNC041
M108: b | O108: =IFERROR(INDEX(bk,MATCH(0,COUNTIF(bk,"<"&bk)-SUM(COUNTIF(bk,O$4:O107)),0)),"") ->  | Y108: WNC044
M109: b | O109: =IFERROR(INDEX(bk,MATCH(0,COUNTIF(bk,"<"&bk)-SUM(COUNTIF(bk,O$4:O108)),0)),"") ->  | Y109: WNC155
M110: b | O110: =IFERROR(INDEX(bk,MATCH(0,COUNTIF(bk,"<"&bk)-SUM(COUNTIF(bk,O$4:O109)),0)),"") ->  | Y110: WNC155B
M111: b | O111: =IFERROR(INDEX(bk,MATCH(0,COUNTIF(bk,"<"&bk)-SUM(COUNTIF(bk,O$4:O110)),0)),"") ->  | Y111: WNC160
M112: b | O112: =IFERROR(INDEX(bk,MATCH(0,COUNTIF(bk,"<"&bk)-SUM(COUNTIF(bk,O$4:O111)),0)),"") ->  | Y112: WNC162
M113: b | O113: =IFERROR(INDEX(bk,MATCH(0,COUNTIF(bk,"<"&bk)-SUM(COUNTIF(bk,O$4:O112)),0)),"") ->  | Y113: WNC172
M114: b | O114: =IFERROR(INDEX(bk,MATCH(0,COUNTIF(bk,"<"&bk)-SUM(COUNTIF(bk,O$4:O113)),0)),"") ->  | Y114: WNE001
M115: b | O115: =IFERROR(INDEX(bk,MATCH(0,COUNTIF(bk,"<"&bk)-SUM(COUNTIF(bk,O$4:O114)),0)),"") ->  | Y115: WNE001B
M116: b | O116: =IFERROR(INDEX(bk,MATCH(0,COUNTIF(bk,"<"&bk)-SUM(COUNTIF(bk,O$4:O115)),0)),"") ->  | Y116: WNE023
M117: b | O117: =IFERROR(INDEX(bk,MATCH(0,COUNTIF(bk,"<"&bk)-SUM(COUNTIF(bk,O$4:O116)),0)),"") ->  | Y117: WNE023B
M118: b | O118: =IFERROR(INDEX(bk,MATCH(0,COUNTIF(bk,"<"&bk)-SUM(COUNTIF(bk,O$4:O117)),0)),"") ->  | Y118: WNE040
M119: b | O119: =IFERROR(INDEX(bk,MATCH(0,COUNTIF(bk,"<"&bk)-SUM(COUNTIF(bk,O$4:O118)),0)),"") ->  | Y119: WNE040B
M120: b | O120: =IFERROR(INDEX(bk,MATCH(0,COUNTIF(bk,"<"&bk)-SUM(COUNTIF(bk,O$4:O119)),0)),"") ->  | Y120: WNE155
M121: b | O121: =IFERROR(INDEX(bk,MATCH(0,COUNTIF(bk,"<"&bk)-SUM(COUNTIF(bk,O$4:O120)),0)),"") ->  | Y121: WNE155B
K122: =+G50 ->  | M122: b | O122: =IFERROR(INDEX(bk,MATCH(0,COUNTIF(bk,"<"&bk)-SUM(COUNTIF(bk,O$4:O121)),0)),"") ->  | Y122: WNE160
M123: b | O123: =IFERROR(INDEX(bk,MATCH(0,COUNTIF(bk,"<"&bk)-SUM(COUNTIF(bk,O$4:O122)),0)),"") ->  | Y123: WNE160B
M124: b | O124: =IFERROR(INDEX(bk,MATCH(0,COUNTIF(bk,"<"&bk)-SUM(COUNTIF(bk,O$4:O123)),0)),"") ->  | Y124: WNT302
M125: b | O125: =IFERROR(INDEX(bk,MATCH(0,COUNTIF(bk,"<"&bk)-SUM(COUNTIF(bk,O$4:O124)),0)),"") ->  | Y125: WNT304
M126: b | O126: =IFERROR(INDEX(bk,MATCH(0,COUNTIF(bk,"<"&bk)-SUM(COUNTIF(bk,O$4:O125)),0)),"") ->  | Y126: WNT331
K127: =+Berker!Y49 -> 0 | L127: =-1*Berker!AB49 -> 0 | Q127: 0 | Y127: WNT332
Y128: WNT902
Y129: WNT902B
Y130: WNT912
Y131: WNT912B
Y132: WNT922
Y133: WNT922B
Y134: WNT932
Y135: WNT932B
Y136: WNT942
Y137: WNT942B
Y138: WNT944
Y139: WNT944B
Y140: WNT954
Y141: WNT954B
Y142: WNT964
Y143: WNT964B
Y144: WNT974
Y145: WNT974B
Y146: WNT982
Y147: WNT982B
Y148: WS120
Y149: WUZ681
Y150: WUZ682
Y151: WUZ686
Y152: WUZ687
Y153: WL0010
Y154: WL0020
Y155: WL0030
Y156: WL0040
Y157: WL0050
Y158: WL0060
Y159: WL0070
Y160: WL0110
Y161: WL0210
Y162: WL0220
Y163: WL0240
Y164: WL0410
Y165: WL1060
Y166: WL1160
Y167: WL1260
Y168: WL2150
Y169: WL2160
Y170: WL2170
Y171: WL2180
Y172: WL2320
Y173: WL2410
Y174: WL2510
Y175: WL3010
Y176: WL3020
Y177: WL3110
Y178: WL3120
Y179: WL3250
Y180: WL3310
Y181: WL5010
Y182: WL5120
Y183: WL5130
Y184: WL5140
Y185: WL5150
Y186: WL5220
Y187: WL5230
Y188: WL5240
Y189: WL5250
Y190: WL5310
Y191: WL6010
Y192: WL6020
Y193: WL6030
Y194: WL6110
Y195: WL6120
Y196: WL6130
Y197: WL6320
Y198: WL7010
Y199: WL7023
Y200: WXA450
... 588 more rows
